Workbook

Sheet Донецкий ГЦЗ
H1: Приложение
H2: к письму Минтруда ДНР
H3: от 26.04.2023 № _______
B4: Информация о текущей потребности экономики Донецкой Народной Республики в кадрах в разрезе организаций, населенных пунктов, в которых они располагаются, профессионально-квалификационных требованиях и размерах заработной платы, в том числе в кадрах для государственной и муниципальной службы
A6: Потребность, заявленная работодателями г. Донецка, по состоянию на 01.04.2023
A7: Раздел/ код ОКВЭД | B7: Виды экономической деятельности | C7: Наименование ПОУ | D7: Название профессии/ специальности | E7: Количество свободных рабочих мест (вакантных должностей) (ед.) | F7: Размер заработной платы, указанный в вакансии от, руб. | G7: Размер заработной платы, указанный в вакансии до, руб. | H7: Требования
A8: 1 | B8: 2 | C8: 3 | D8: 4 | E8: 5 | F8: 6 | G8: 7 | H8: 8
A9: Всего | C9: 186 | E9: 4192
A10: A | B10: Сельское, лесное хозяйство, охота, рыболовство и рыбоводство
A11: 1 | B11: Растениеводство и животноводство, охота и предоставление соответствующих услуг в этих областях
C12: ООО АПК ДОНЕЦКИЙ
D13: Бухгалтер | E13: 1 | F13: 16700 | H13: Знание планов счетов и его применение, знание налогового законодательства РФ, работа с компьютерными программами для ведения бухгалтерского учета, информационными и справочно-правовыми системами.
D14: Слесарь-электрик по ремонту электрооборудования | E14: 1 | F14: 16800 | H14: Квалификация слесарь-электрик
C15: МУНИЦИПАЛЬНОЕ УНИТАРНОЕ ПРЕДПРИЯТИЕ АДМИНИСТРАЦИИ ГОРОДА ДОНЕЦКА ЗЕЛЕНОЕ СТРОИТЕЛЬСТВО ВОРОШИЛОВСКОГО РАЙОНА
D16: Бухгалтер | E16: 1 | F16: 27259 | H16: Опыт работы не менее 3-х лет. Пользователь ПК. Знание правил и опыт ведения налогового и бухгалтерского учета, навыки оформления первичных документов, умение работать с большими объемами данных.
D17: Водитель автомобиля | E17: 1 | F17: 16310 | H17: Опыт работы не менее 3-х лет. Наличие водительского удостоверения категории Д. Доскональное знание правил дорожного движения, знание устройства автомобиля, навыки ремонта транспортых средств
D18: Водитель автомобиля | E18: 1 | F18: 18485 | H18: Наличие водительского удостоверения категории ВС, опыт работы не менее 2-х лет. Доскональное знание правил дорожного движения, знание устройства автомобиля, навыки ремонта транспортых средств
D19: Директор (начальник, управляющий) предприятия | E19: 1 | F19: 38163 | H19: Опыт работы на руководящей должности не менее 5 лет. Высшее техническое или инженерно-экономическое образование. Пользователь ПК, Интернет. Знание трудового и налогового законодательства,
D20: Ландшафтный архитектор | E20: 1 | F20: 26169 | H20: Опыт работы не менее 3-х лет при наличии средне-профессионального образования, при наличии высшего образования- опыт работы не менее 1 года. Знание компьютерных программ AutoCad, 3ds Max.
D21: Мастер зеленого хозяйства | E21: 1 | F21: 26169 | H21: Опыт работы не менее 3-х лет при наличии средне-профессионального образования, при наличии высшего образования- опыт работы не менее 1 года. Пользователь ПК, опыт ведения первичной документации.
D22: Механик гаража | E22: 1 | F22: 26169 | H22: Опыт работы не менее 3-х лет. Инженерно-техническое образование. Пользователь ПК. Знание устройства грузовой автомобильной спецтехники. Опыт ведения первичной документации.
D23: Рабочий зеленого строительства | E23: 1 | F23: 16242 | H23: Умение работать с инвентарем (грабли, тяпки, лопаты, метла, секаторы). Физически выносливые, работа в климатических условиях.
D24: Экономист | E24: 1 | F24: 27259 | H24: Опыт работы не менее 3-х лет. Квалификация- экономист, финансист. Пользователь ПК, знание программы Парус, Интернет. Умение проводитель оценку и анализ затрат. Знание налогового и трудового законодательства
B25: Итого | C25: =COUNTA(C10:C24) -> 2 | E25: =SUM(E10:E24) -> 11
A26: B | B26: Добыча полезных ископаемых
A27: 5 | B27: Добыча угля
C28: ГОСУДАРСТВЕННОЕ УНИТАРНОЕ ПРЕДПРИЯТИЕ ДОНЕЦКОЙ НАРОДНОЙ РЕСПУБЛИКИ ДОНЕЦКАЯ УГОЛЬНАЯ ЭНЕРГЕТИЧЕСКАЯ КОМПАНИЯ
D29: Аппаратчик химводоочистки | E29: 4 | F29: 19500 | H29: Прохождение первичного медицинского освидетельствования по направлению филиала. Квалификация: 3,4 разряд.
D30: Горнорабочий | E30: 6 | F30: 18300 | H30: Прохождение первичного медицинского освидительствования по направлению филиала. Применять способы разборки и отделения породы без повреждения полезного ископаемого.
D31: Горнорабочий по ремонту горных выработок | E31: 14 | F31: 35500 | H31: Прохождение первичного медицинского освидетельствования по направлению филиала. Квалификация: 3,4,5 разряд.
D32: Горнорабочий подземный | E32: 31 | F32: 31500 | H32: Прохождение первичного медицинского освидетельствования по направлению филиала. Выполнение работ, связанных с приемкой и сдачей смены, своевременной подготовкой к работе и уборкой своего рабочего места
D33: Ламповщик | E33: 4 | F33: 18000 | H33: Прохождение первичного медицинского освидетельствования по направлению филиала.
D34: Маркшейдер | E34: 3 | F34: 38608 | H34: Прохождение первичного медицинского освидетельствования по направлению филиала.
D35: Мастер | E35: 7 | F35: 51708 | H35: Прохождение первичного медицинского освидетельствования по направлению филиала.
D36: Машинист (кочегар) котельной | E36: 12 | F36: 21500 | H36: Прохождение первичного медицинского освидетельствования по направлению филиала. Квалификация: 3,4,5 разряд.
D37: Машинист конвейера | E37: 7 | F37: 18500 | H37: Прохождение первичного медицинского освидетельствования по направлению филиала. Владение навыками и умением выполнять работы, предусмотренные квалификационными характеристиками машиниста конвейера
D38: Машинист подземных установок | E38: 24 | F38: 41256 | H38: Прохождение первичного медицинского освидетельствования по направлению филиала.
D39: Машинист электровоза | E39: 4 | F39: 38877 | H39: Прохождение первичного медицинского освидетельствования по направлению филиала.
D40: Медицинская сестра | E40: 3 | F40: 23000 | H40: Прохождение первичного медицинского освидетельствования по направлению филиала.
D41: Начальник смены (в промышленности) | E41: 3 | F41: 48769 | H41: Прохождение первичного медицинского освидетельствования по направлению филиала.
D42: Оператор пульта управления | E42: 3 | F42: 19000 | H42: Прохождение первичного медицинского освидетельствования по направлению филиала.
D43: Рабочий производственных бань | E43: 8 | F43: 16635 | H43: Наличие медицинской книжки.
D44: Раздатчик взрывчатых материалов | E44: 4 | F44: 27900 | H44: Прохождение первичного медицинского освидетельствования по направлению филиала.
D45: Уборщик производственных и служебных помещений | E45: 6 | F45: 16242 | H45: Прохождение первичного медицинского освидетельствования по направлению филиала.
D46: Фельдшер | E46: 5 | F46: 23700 | H46: Прохождение первичного медицинского освидетельствования по направлению филиала.
D47: Электрослесарь подземный | E47: 45 | F47: 44401 | H47: Прохождение первичного медицинского освидетельствования по направлению филиала.
C48: ООО НИКА ТРЕЙД ИНВЕСТ
D49: Водитель автомобиля | E49: 3 | F49: 50000 | H49: Наличие сертификата нарколога, психиатра Опыт работы от 1-го года
D50: Подсобный рабочий | E50: 6 | F50: 30000
D51: Подсобный рабочий | E51: 6 | F51: 30000
B52: Итого | C52: =COUNTA(C26:C51) -> 2 | E52: =SUM(E26:E51) -> 208
A53: C | B53: Обрабатывающие производства
A54: 10 | B54: Производство пищевых продуктов
C55: ООО ЗОЛОТОЙ КОЛОС
D56: Бухгалтер | E56: 1 | F56: 20000
D57: Водитель автомобиля | E57: 7 | F57: 40000 | H57: Опыт вождения от 1 года. Категории В,С, возможность добратся в ночное время.
D58: Пекарь | E58: 10 | F58: 20000
D59: Слесарь по ремонту автомобилей | E59: 2 | F59: 22000 | H59: Среднее профессиональное образование - слесарь по ремонту авто. Опыт работы от 1-го года.
D60: Тестовод | E60: 2 | F60: 19000
D61: Уборщик производственных и служебных помещений | E61: 1 | F61: 19000
D62: Укладчик хлебобулочных изделий | E62: 5 | F62: 19000
D63: Формовщик теста | E63: 4 | F63: 20000
C64: ООО ПРОИЗВОДСТВЕННО-КОММЕРЧЕСКАЯ ФИРМА ОНИКС
D65: Кондитер | E65: 3 | F65: 33000 | H65: Наличие медицинской книжки
C66: ООО ДОНБАСС КОНДИТЕР
D67: Гладильщик | E67: 1 | F67: 18400 | H67: Наличие медицинской книжки.
D68: Грузчик | E68: 3 | F68: 24500 | H68: Наличие сертификата от психиатра
D69: Контролер контрольно-пропускного пункта | E69: 1 | F69: 24000 | H69: Пользователь ПК, знание правил ТБ и пожарной безопасности Сертификат от психиатра
D70: Контролер контрольно-пропускного пункта | E70: 1 | F70: 24000 | H70: Наличие медицинской книжки Наличие сертификата нарколога, психиатра Опыт работы желателен
D71: Машинист уборочных машин | E71: 2 | F71: 18700 | H71: Управление машиной во время мойки путем передвижения по территории производства, санитарное обслуживание поломоечной машины Сертификат от психиатра
D72: Медицинская сестра кабинета | E72: 1 | F72: 28000
D73: Менеджер | E73: 2 | F73: 40000 | H73: Опыт работы в сфере закупок от 2-х лет, высшее экономическое или техническое образование (Экономика предприятий, Менеджмент организаций). Уверенный пользователь ПК. Наличие медицинской книжки.
D74: Резчик пищевой продукции | E74: 1 | F74: 21740 | H74: Умение определить и отобрать некондиционный полуфабрикат, знание формата порезки продукции. Наличие сертификата от психиатра
D75: Уборщик производственных и служебных помещений | E75: 4 | F75: 18400 | H75: Наличие сертификата от психиатра
A76: 11 | B76: Производство напитков
C77: ГОСУДАРСТВЕННОЕ ПРЕДПРИЯТИЕ СПИРТ ДОНБАССА
D78: Слесарь-ремонтник | E78: 5 | F78: 34000 | H78: Опыт работы от 1 года. Работа с электроинструментом (болгарка, дрель), с насосным оборудованием (насосы), запорной арматурой (краны, вентеля, задвижки); навыки разметки металла (лист, трубы)
A79: 24 | B79: Производство металлургическое
C80: ООО ЗАВОД РЕМКОММУНЭЛЕКТРОТРАНС
D81: Грузчик | E81: 3 | F81: 18000
D82: Слесарь-ремонтник | E82: 4 | F82: 25000 | H82: Опыт работы не менее 2-х лет.
A83: 27 | B83: Производство электрического оборудования
C84: ООО КДН №2
D85: Оператор печатного оборудования | E85: 3 | F85: 19000 | H85: Опыт работы от 2-х лет. Возможно обучение на предприятии.
D86: Резчик заготовок и изделий из пластических масс | E86: 5 | F86: 16250
A87: 28 | B87: Производство машин и оборудования, не включенных в другие группировки
C88: ООО МАШГОРПРОМ
D89: Машинист крана (крановщик) | E89: 3 | F89: 16500
C90: ПУБЛИЧНОЕ АКЦИОНЕРНОЕ ОБЩЕСТВО ДОНЕЦКИЙ ЭКСПЕРИМЕНТАЛЬНЫЙ РЕМОНТНО-МЕХАНИЧЕСКИЙ ЗАВОД
D91: Слесарь-ремонтник | E91: 3 | F91: 20000 | H91: Наличие сертификата нарколога, психиатра Опыт работы от 1 года
D92: Слесарь-электрик по ремонту электрооборудования | E92: 3 | F92: 20000 | H92: Опыт работы от 1 года Наличие сертификата нарколога, психиатра
D93: Токарь | E93: 3 | F93: 20000 | H93: Наличие сертификатов нарколога, психиатра Опыт работы от 1 года
A94: 32 | B94: Производство прочих готовых изделий
C95: ООО ИНТЕРКОД
D96: Контролер станочных и слесарных работ | E96: 4 | F96: 19040 | H96: Желателен опыт работы
B97: Итого | C97: =COUNTA(C53:C96) -> 9 | E97: =SUM(E53:E96) -> 87
A98: D | B98: Обеспечение электрической энергией, газом и паром; кондиционирование воздуха
A99: 35 | B99: Обеспечение электрической энергией, газом и паром; кондиционирование воздуха
C100: ГОСУДАРСТВЕННЫЙ КОНЦЕРН ДОНБАССГАЗ
D101: Администратор вычислительной сети | E101: 1 | F101: 33265 | H101: Высшее образование (бакалавриат) по специальности: Программное обеспечение вычислительной техники и автоматизированных систем, Информационные системы и технологии.
D102: Водитель автомобиля | E102: 1 | F102: 28806 | H102: Водительские права категории В, С. Стаж работы от 1 года.
D103: Заведующий складом | E103: 1 | F103: 34735 | H103: Опыт работы не менее 1 года в области строительства. Высшее строительное образование. Знание номенклатуры, основных характеристик материальных ресурсов, состава и содержания сопроводительных документов
D104: Инженер | E104: 1 | F104: 55775 | H104: Опыт работы не менее 3 лет Анализировать документацию, связанную с эксплуатацией технического устройства Применять нормативную техническую, проектную (конструкторскую) и эксплуатационную документацию
D105: Инженер по техническому надзору | E105: 1 | F105: 33400 | H105: Высшее техническое образование по одной из специальностей: Строительство; Энергетическое машиностроение; Машиностроение; Технологические машины и оборудование; Нефтегазовое дело; Строительство
D106: Контролер газового хозяйства | E106: 1 | F106: 22045 | H106: Профессиональное обочение - программы проф. подготовки по профессиям рабочих, программы переподготовки рабочих.
D107: Методист | E107: 1 | F107: 37910 | H107: Не менее 3 лет в области физической культуры и спорта при наличии среднего профессионального образования Не менее одного года в области физической культуры и спорта при наличии высшего образования
D108: Слесарь по эксплуатации и ремонту газового оборудования | E108: 1 | F108: 21708 | H108: Без требований к опыту работы. Обучение на производстве.
D109: Слесарь по эксплуатации и ремонту газового оборудования | E109: 1 | F109: 24214 | H109: Опыт работы не менее 3 месяцев по профессии с более низким (предыдущим) разрядом
D110: Слесарь по эксплуатации и ремонту подземных газопроводов | E110: 1 | F110: 19391 | H110: 3 разряд, возможно обучение на производстве
D111: Слесарь по эксплуатации и ремонту подземных газопроводов | E111: 1 | F111: 24214
C112: ГОСУДАРСТВЕННОЕ УНИТАРНОЕ ПРЕДПРИЯТИЕ ДОНЕЦКОЙ НАРОДНОЙ РЕСПУБЛИКИ ЭНЕРГИЯ ДОНБАССА
D113: Аккумуляторщик | E113: 1 | F113: 20566 | H113: Опыт работы не менее 1 года аккумуляторщиком 5 разряда. Образование среднее профессиональное: электрослесарь, техник-электрик. Группа по электровезопасности не ниже 3. .
D114: Асфальтобетонщик | E114: 1 | F114: 26660 | H114: Наличие медицинской книжки Наличие сертификата нарколога, психиатра Знать дорожное строительство Иметь 5 разряд Опыт работы не менее 1 года
D115: Бетонщик | E115: 4 | F115: 19000 | H115: Наличие медицинской книжки Иметь 3-4 разряд Умение работать электрифицированным, пневматическим и ручным инструментом для выполнения бетонных работ Опыт работы не менее 1 года
D116: Бетонщик | E116: 3 | F116: 18000 | H116: 3-4 разряды. Опыт работы бетончщиком более низкого разряда не менее 2-х лет.
D117: Водитель автомобиля | E117: 2 | F117: 21180 | H117: Наличие медицинской книжки . Наличие сертификата нарколога, психиатра . Наличие водительского удостоверения категории В,С . 4 разряд Желателен опыт работы . Знание устройства автомобиля.
D118: Водитель автомобиля | E118: 3 | F118: 16242 | H118: Категории В, С, Д.
D119: Водитель погрузчика | E119: 2 | F119: 16242 | H119: Наличие удостоверения тракториста-машиниста (категория Д). Опыт работы водителем погрузчика 3 разряда.
D120: Водолаз | E120: 1 | F120: 23417 | H120: Опыт работы не менее 1-го года по професии водолаза 5-го разряда. Среднее профессиональное образование.
D121: Врач-терапевт участковый цехового врачебного участка | E121: 1 | F121: 38300 | H121: Наличие медицинской книжки . Наличие сертификата нарколога, психиатра Желателен опыт работы . Определение тактики ведения больного, согласно действующим нормативам и стандартам .
D122: Газорезчик | E122: 10 | F122: 24000 | H122: Наличие медицинской книжки . Наличие сертификата нарколога, психолога 3 разряд . Выполнение ручной термической разделительной (заготовительной,чистовой) и поверхностной резки металлов.
D123: Газосварщик | E123: 9 | F123: 28700 | H123: Наличие медицинской книжки . Наличие сертификата нарколога, психиатра . Выполнение газосварочных работ, сварка узлов, деталей и трубопроводов во всех пространственных положениях сварного шва .
D124: Геодезист | E124: 1 | F124: 30554 | H124: Опыт работы не менее 3-х лет в области геодезии.
D125: Дворник | E125: 5 | F125: 16242 | H125: Наличие медицинской книжки
D126: Дежурный по общежитию | E126: 1 | F126: 16242
D127: Дефектоскопист рентгено-, гаммаграфирования | E127: 2 | F127: 29190 | H127: Опыт работы не менее 1-го года по профессии с более низким разрядом. Среднее профессиональное образование - дифектоскопист, специалист по неразрушающему контролю.
D128: Директор (начальник, управляющий) предприятия | E128: 1 | F128: 53605 | H128: Стаж работы на руководящих должностях не менее 2-х лет.
D129: Изолировщик на термоизоляции | E129: 1 | F129: 17614 | H129: При наличии среднего образования опыт работы не менее 1 года по выполнению изоляционных работ.
D130: Изолировщик-пленочник | E130: 2 | F130: 17614 | H130: Опыт работы не менее 1-го года по професии изолировщик-пленочник 3 разряда Среднее профессиональное образование: техник-теплотехник.
D131: Изолировщик-пленочник | E131: 2 | F131: 25030 | H131: Опыт работы не менее 1-го года по професии изолировщик-пленочник 3 разряда Среднее профессиональное образование: по строительным специальностям.
D132: Инженер | E132: 1 | F132: 33090 | H132: Опыт работы не менее 3-х лет в области пожарной безопасности.
D133: Инженер по автоматизированным системам управления технологическими процессами | E133: 1 | F133: 26981 | H133: Опыт работы не менее 3-х лет в области эксплуатации АСУТП.
D134: Инженер по гражданской обороне и чрезвычайным ситуациям | E134: 1 | F134: 30554 | H134: Опыт работы не менее 3-х лет в области гражданской обороны.
D135: Инженер по охране труда | E135: 1 | F135: 33090 | H135: Опыт работы не менее 3-х лет в области охраны труда.
D136: Инженер по подготовке кадров | E136: 1 | F136: 33090 | H136: Опыт работы не менее 3-х лет в области обучения персонала.
D137: Инженер-лаборант | E137: 1 | F137: 20700 | H137: Высшее строительное образование: Производство и применение строительных материалов.
D138: Инженер-программист | E138: 1 | F138: 27999 | H138: Опыт работы не менее 1 года в области разработки программного обеспечения.
D139: Инженер-технолог | E139: 1 | F139: 27999 | H139: Опыт работы не менее 1 года в области эксплуатации оборудования тепловых сетей.
D140: Инженер-энергетик службы (группы) релейной защиты, автоматики, измерений и телемеханики | E140: 2 | F140: 47500 | H140: Образование высшее проффесиональное по специальности: Релейная защита и автоматизация электроэнергетических систем или Цифровые системы релейной защиты и автоматики. Опыт работы. Группа электробезопасности
D141: Каменщик | E141: 3 | F141: 16300 | H141: Наличие медицинской книжки . Опыт работы: 4 разряд-выполнение работ каменщтком 3-го разряда не менее 2 месяцев, 6 разряд- выполнение работ каменщиком 5-го разряда не менее 2 месяцев .
D142: Кладовщик | E142: 1 | F142: 16272
D143: Котлочист | E143: 8 | F143: 27200 | H143: Наличие медицинской книжки . Наличие сертификата нарколога, психиатра 3-4 разряд . Опыт работы не менее 2 лет . Выполнять техническое обслуживание инструмента, оборудования и приспособлений.
D144: Кровельщик по рулонным кровлям и по кровлям из штучных материалов | E144: 8 | F144: 17600 | H144: Наличие медицинской книжки . Выполнение кровельных работ, умение работать в команде . 4-5 разряд . Опыт работы не менее 2 лет.
D145: Лаборант химического анализа | E145: 1 | F145: 17207 | H145: Опыт работы не менее 6 месяцев лаборантом химического анализа 3 разряда.
D146: Маляр | E146: 6 | F146: 21400 | H146: Опыт работы не менее 1-го года по професии маляр 3 разряда . Наличие медицинской книжки.
D147: Маляр | E147: 6 | F147: 17600 | H147: Выполнение малярных и штукатурных работ, умение работать в команде.
D148: Мастер по ремонту оборудования (в промышленности) | E148: 1 | F148: 29500 | H148: Высшее строительное образование: Производство и применение строительных материалов. Опыт работы от 1 года.
D149: Мастер участка | E149: 1 | F149: 28490 | H149: Наличие медицинской книжки . Руководство производственной деятельностью участка по бетонно-плотницким работам, озеленению, кровельным работам, ремонту машин и механизмов . Умение организовать подчиненных.
D150: Мастер участка | E150: 3 | F150: 31868 | H150: При наличии высшего профессионального образование - опыт работы не менее 1-го года; при наличии среднего профессионального образования - опыт работы не менее 3-х лет.
D151: Мастер участка | E151: 2 | F151: 45900 | H151: Наличие медицинской книжки . Опыт работы в организациях электроэнергетики или в отраслях связанных с ремонтом парогазотурбинного оборудования . Умение организовать подчиненный персонал .
D152: Машинист бульдозера | E152: 5 | F152: 33900 | H152: Наличие медицинской книжки Наличие водительского удостоверения категории В,С Иметь 4,5,6 разряд Опыт работы не менее 1 года Умение работать в команде в условиях многозадачности
D153: Машинист вагоноопрокидывателя | E153: 2 | F153: 30760 | H153: Наличие медицинской книжки Наличие сертификата нарколога, психиатра Знание электрических схем обслуживаемого оборудования и механизмов Технические характеристики обслуживаемых механизмов
D154: Машинист крана (крановщик) | E154: 3 | F154: 31800 | H154: Наличие медицинской книжки . Наличие водительского удостоверения категории В,С . 6 разряд . Способы производства погрузочно-разгрузочных работ, основы электротехники
D155: Машинист крана (крановщик) | E155: 1 | F155: 21381 | H155: Опыт работы не менее 1 года машинистом крана 5 разряда.
D156: Машинист тепловоза | E156: 2 | F156: 25352 | H156: Опыт работы не менее 6 месяцев в качестве помощника машиниста тепловоза.
D157: Машинист топливоподачи | E157: 4 | F157: 38400 | H157: Наличие медицинской книжки . Обслуживание, контроль за работой путем обхода, обеспечение бесперебойной работы всего оборудования топливоподачи твердого топлива производительностью свыше 100 тонн в час .
D158: Машинист топливоподачи | E158: 2 | F158: 22908 | H158: Среднее общее или среднее профессиональное образование.
D159: Машинист энергоблока | E159: 2 | F159: 26981 | H159: Опыт работы не менее 1 года в должности машиниста-обходчика по турбинному или котельному оборудованию 7 разряда.
D160: Машинист энергоблока | E160: 24 | F160: 56900 | H160: Наличие медицинской книжки Пуск, останов, опробование, опрессовка оборудования и переключения в тепловых схемах энергоблока со щита управления
D161: Машинист-обходчик по котельному оборудованию | E161: 11 | F161: 43900 | H161: Наличие медицинской книжки . Профессиональная подготовка и стаж работы не менее 1 года . Умение работать в команде . Обеспечение надежной работы основного и вспомагательного котельного оборудования.
D162: Машинист-обходчик по котельному оборудованию | E162: 5 | F162: 22908 | H162: Без требований к опыту работы.
D163: Машинист-обходчик по котельному оборудованию | E163: 2 | F163: 24944 | H163: Опыт работы не менее 1 года в должности машиниста-обходчика по котельному оборудованию 6 разряда.
D164: Машинист-обходчик по турбинному оборудованию | E164: 10 | F164: 43900 | H164: Наличие медицинской книжки Наличие сертификата нарколога, психиатра Умение работать в команде Обеспечение надежной работы основного и вспомогательного турбинного оборудования
D165: Машинист-обходчик по турбинному оборудованию | E165: 8 | F165: 24944 | H165: Специальность по образованию - техник-теплотехник.
D166: Монтер пути | E166: 1 | F166: 19752 | H166: Опыт работы ее менее 6-ти месяцев в качестве монтера пути 4-го уровня квалификации. Среднее профессиональное образование: техник.
D167: Монтер пути | E167: 2 | F167: 23500 | H167: Наличие медицинской книжки Наличие сертификата нарколога, психиатра Умение работать в команде Регулировка стрелочных механизмов, замена реле и шпал, ремонт железнодорожных путей Опыт работы
D168: Начальник охраны (объекта, участка) | E168: 1 | F168: 20597 | H168: Опыт работы не менее 5 лет в области охраны.
D169: Начальник смены цеха электростанции | E169: 1 | F169: 30554 | H169: Опыт работы не менее 2-х лет в химическом цехе при наличии высшего образования. Опыт работы не менее 3-х лет при наличии среднего профессионального образования.
D170: Огнеупорщик | E170: 16 | F170: 28700 | H170: Не менее двух лет работы по выполнению кладки огнеупорными материалами. При наличии среднего профессионального образования требования к опыту работы не предъявляются.
D171: Огнеупорщик | E171: 1 | F171: 17614 | H171: При наличии среднего общего образования- опыт работы не менее 2-х лет по выполнению кладки огнеупорными материалами.
D172: Охранник | E172: 13 | F172: 16781 | G172: 17308
D173: Паяльщик | E173: 1 | F173: 17200 | H173: Среднее общее или среднее профессиональное образование (слесарные и слесарно-сборочные работы). Наличие медицинской книжки. Ключевые навыки: пайка оловом, медью, серебром и другими припоями деталей.
D174: Помощник машиниста тепловоза | E174: 2 | F174: 18937
D175: Приемщик баллонов | E175: 1 | F175: 18937 | H175: Среднее общее или среднее профессиональное образование.
D176: Пробоотборщик | E176: 4 | F176: 28600 | H176: Наличие медицинской книжки Проведение анализов, проб и механических испытаний Отбор и разделка проб угольной продукции, твердого минерального топлива, строительных материалов и др.
D177: Слесарь аварийно-восстановительных работ | E177: 7 | F177: 17000 | H177: Наличие медицинской книжки Иметь 3-6 разряд Умение работать в команде Выполнение ремонтных и слесарных работ Опыт работы: не менее 1 года по профилю деятельности в сфере эксплуатации сетей и соору
D178: Слесарь по обслуживанию оборудования электростанций | E178: 2 | F178: 32870 | H178: Наличие медицинской книжки Знать устройство и кинетические схемы обслуживаемого оборудования Эксплуатационно-ремонтное обслуживание
D179: Слесарь по ремонту автомобилей | E179: 1 | F179: 16578 | H179: Среднее общее или среднее профессиональное образование.
D180: Слесарь по ремонту автомобилей | E180: 1 | F180: 20566 | H180: Опыт работы не менее 3-х лет в области технического обслуживания и ремонта автотранспортных средств.
D181: Слесарь по ремонту дорожно-строительных машин и тракторов | E181: 1 | F181: 17614 | H181: Специальность по образованию- слесарь по ремонту автомобилей, машинист-тракторист.
D182: Слесарь по ремонту и обслуживанию систем вентиляции и кондиционирования | E182: 1 | F182: 27650 | H182: Наличие медицинской книжки . Правила строповки, подъема и перемещения грузов просьейшими грузоподъемными средствами, управляемыми с пола . Опыт работы не менее 1 года в области холодильной и вентиляционной установок.
D183: Слесарь по ремонту оборудования котельных и пылеприготовительных цехов | E183: 5 | F183: 24334 | H183: Опыт работы не менее 1- го года слесаря по ремонту оборудования котельных и пылеприготовительных цехов 5 разряда Среднее профессиональное образование: слесарь, техник-теплотехник.
D184: Слесарь по ремонту оборудования котельных и пылеприготовительных цехов | E184: 4 | F184: 16578 | H184: Среднее общее или среднее профессиональное образование (слесарь, техник-теплотехник)
D185: Слесарь по ремонту оборудования котельных и пылеприготовительных цехов | E185: 9 | F185: 20566 | H185: Не менее 3-х лет при наличии процессуального образования, не менее 1-го года при наличии высшего образования. Среднее профессиональное образование: слесарь, техник-теплотехник.
D186: Слесарь по ремонту оборудования котельных и пылеприготовительных цехов | E186: 16 | F186: 17614 | H186: Опыт работы не менее 6 месяцев по профессии слесаря по ремонту оборудования котельных и пылеприготовительных цехов 3 разряда.
D187: Слесарь по ремонту оборудования тепловых сетей | E187: 2 | F187: 29940 | H187: Наличие медицинской книжки Слесарная обработка деталей по 11-12 квалитетам Иметь 3-5 разряд Для работы по квалификации 3 разряда - без опыта работы
D188: Слесарь по ремонту парогазотурбинного оборудования | E188: 2 | F188: 17614 | H188: Опыт работы не 6-ти месяцев по професии слесарь по ремонту парогазотурбинного оборудования 3 разряда. Среднее профессиональное образование: слесарь, техник-теплотехник.
D189: Слесарь по ремонту парогазотурбинного оборудования | E189: 1 | F189: 20566 | H189: Опыт работы не менее года по професии слесарь по ремонту парогазотурбинного оборудования 4 разряда. Среднее профессиональное образование: слесарь, техник-теплотехник.
D190: Слесарь по ремонту парогазотурбинного оборудования | E190: 29 | F190: 25400 | H190: Наличие сертификата психиатра . Наличие медицинского осмотра . 3-6 разряд . Разборка, ремонт, сборка, регулировка, испытание узлов и механизмов основного и вспомагательного оборудования.
D191: Слесарь по ремонту парогазотурбинного оборудования | E191: 1 | F191: 16578 | H191: Среднее профессиональное образование: слесарь, техник-теплотехник.
D192: Слесарь строительный | E192: 1 | F192: 26340 | H192: Наличие медицинской книжки . 6 разряд . Выполнение работ слесарем строительным 5-го разряда не менее 2 месяцев . Выполнение слесарных работ по изготовлению или ремонту строительного оборудования С.
D193: Слесарь-ремонтник | E193: 1 | F193: 21381 | H193: Опыт работы: не менее 2-х лет слесарем-ремонтником 5-го разряда, не менее 1-го слесарем-ремонтником 5-го разряда при наличии среднего профессионального обучения.
D194: Слесарь-ремонтник | E194: 1 | F194: 17614 | H194: Среднее общее или Среднее профессиональное образование (слесарь, техник).Опыт работы: не менее 2-х лет слесарем-ремонтником 3-го разряда, без требований к стажу при наличии среднего профессионального образования.
D195: Слесарь-сантехник | E195: 9 | F195: 17500 | H195: Наличие медицинской книжки . Выполнение слесарных и ремонтных работ 4-5 разряд . Опыт работы не менее 1 года по более низкому (предшествующему) разряду . Умение работать в команде
D196: Слесарь-электрик по ремонту электрооборудования | E196: 1 | F196: 18470 | H196: Управление подъемно-транспортными механизмами Разборка, ремонт и сборка узлов и аппаратов средней сложности, арматуры электроосвещения Опыт работы не менее 2 лет слесарем-электриком цеховым 4 разряд
D197: Составитель поездов | E197: 2 | F197: 18632
D198: Старший машинист котлотурбинного цеха | E198: 2 | F198: 30239 | H198: Опыт работы не менее 1 года в должности старшего машиниста энергоблоков 8 разряда.
D199: Старший машинист энергоблоков | E199: 1 | F199: 29526 | H199: Опыт работы в должности машиниста энергоблока 8 разряда не менее 1 года.
D200: Столяр строительный | E200: 4 | F200: 17760 | H200: Наличие медицинской книжки . Проведение столярных и ремонтных работ в соответствии с требуемыми критериями . Иметь 3,4,6 разряд . Опыт работы не менее 1 года.
D201: Техник-лаборант | E201: 1 | F201: 20363 | H201: Не менее 6-ти месяцев в качестве специалиста по неразрушающему контролю3-го уровня квалификации. Среднее профессиональное образование: техник.
... 780 more rows

Sheet Горловский ГЦЗ
A5: Потребность, заявленная работодателями г. Горловка, по состоянию на 01.04.2023
A6: Раздел/ код ОКВЭД | B6: Виды экономической деятельности | C6: Наименование ПОУ | D6: Название профессии/ специальности | E6: Количество свободных рабочих мест (вакантных должнлстей) (ед.) | F6: Размер заработной платы, указанный в вакансии от, руб. | G6: Размер заработной платы, указанный в вакансии до, руб. | H6: Требования
A7: 1 | B7: 2 | C7: 3 | D7: 4 | E7: 5 | F7: 6 | G7: 7 | H7: 8
A8: Всего | C8: 116 | E8: 642
A9: A | B9: Сельское, лесное хозяйство, охота, рыболовство и рыбоводство
A10: 1 | B10: Растениеводство и животноводство, охота и предоставление соответствующих услуг в этих областях
C11: СЕЛЬСКОХОЗЯЙСТВЕННОЕ ООО ГУРТЫ
D12: Слесарь по ремонту сельскохозяйственных машин и оборудования | E12: 2 | F12: 16500
D13: Тракторист-машинист сельскохозяйственного производства | E13: 1 | F13: 16500
B14: Итого | C14: =COUNTA(C9:C13) -> 1 | E14: =SUM(E9:E13) -> 3
A15: C | B15: Обрабатывающие производства
A16: 10 | B16: Производство пищевых продуктов
C17: ООО ТВОЙ ПРОИЗВОДИТЕЛЬ
D18: Агент торговый | E18: 1 | F18: 16242
D19: Аппаратчик производства кисломолочных и детских молочных продуктов | E19: 1 | F19: 16242
D20: Бухгалтер | E20: 2 | F20: 16300
D21: Водитель автомобиля | E21: 2 | F21: 16422
D22: Грузчик | E22: 1 | F22: 16300
D23: Машинист моечных машин | E23: 2 | F23: 16245
D24: Менеджер (на транспорте, в связи, материально-техническом снабжении и сбыте) | E24: 1 | F24: 16242
D25: Наладчик оборудования в производстве пищевой продукции | E25: 1 | F25: 16242
D26: Оператор автомата по розливу молочной продукции в пакеты и пленку | E26: 1 | F26: 16242
D27: Оператор котельной | E27: 1 | F27: 16500
D28: Охранник | E28: 1 | F28: 16242
D29: Сборщик бумажных изделий | E29: 3 | F29: 16242
D30: Слесарь-ремонтник | E30: 1 | F30: 16500
D31: Транспортный экспедитор | E31: 1 | F31: 16242
D32: Уборщик производственных и служебных помещений | E32: 2 | F32: 16243
D33: Электрогазосварщик | E33: 1 | F33: 16242
C34: ООО ДОНБАСС КОНДИТЕР
D35: Грузчик | E35: 3 | F35: 25500
D36: Транспортировщик | E36: 3 | F36: 24000
D37: Уборщик производственных и служебных помещений | E37: 1 | F37: 16500
D38: Уборщик территорий | E38: 1 | F38: 16500
D39: Укладчик-упаковщик | E39: 1 | F39: 20400
C40: ООО НИКИТОВСКИЙ ХЛЕБ
D41: Инженер по проектно-сметной работе (в промышленном и гражданском строительстве) | E41: 1 | F41: 25000
D42: Кладовщик | E42: 1 | F42: 17000
D43: Машинист тестомесильных машин | E43: 1 | F43: 24000
D44: Машинист тесторазделочных машин | E44: 1 | F44: 17000
D45: Начальник охраны (объекта, участка) | E45: 1 | F45: 25000
D46: Формовщик теста | E46: 1 | F46: 17000
D47: Экспедитор | E47: 3 | F47: 24000
A48: 19 | B48: Производство кокса и нефтепродуктов
C49: ООО ИСТЭК
D50: Газорезчик | E50: 4 | F50: 16243
D51: Контролер контрольно-пропускного пункта | E51: 9 | F51: 20000
D52: Машинист-обходчик по турбинному оборудованию | E52: 3 | F52: 17500
D53: Слесарь-ремонтник | E53: 5 | F53: 16242
D54: Штукатур | E54: 3 | F54: 16600
D55: Электрогазосварщик | E55: 3 | F55: 17000
D56: Электромонтер по ремонту и обслуживанию электрооборудования | E56: 5 | F56: 16243
A57: 28 | B57: Производство машин и оборудования, не включенных в другие группировки
C58: ГОСУДАРСТВЕННОЕ УНИТАРНОЕ ПРЕДПРИЯТИЕ ДОНЕЦКОЙ НАРОДНОЙ РЕСПУБЛИКИ ГОРЛОВСКИЙ МАШИНОСТРОИТЕЛЬНЫЙ ЗАВОД
D59: Оператор станков с программным управлением | E59: 6 | F59: 18506
D60: Охранник | E60: 13 | F60: 16300
D61: Токарь | E61: 6 | F61: 16964
B62: Итого | C62: =COUNTA(C15:C61) -> 5 | E62: =SUM(E15:E61) -> 97
A63: D | B63: Обеспечение электрической энергией, газом и паром; кондиционирование воздуха
A64: 35 | B64: Обеспечение электрической энергией, газом и паром; кондиционирование воздуха
C65: ГОСУДАРСТВЕННОЕ УНИТАРНОЕ ПРЕДПРИЯТИЕ ДОНЕЦКОЙ НАРОДНОЙ РЕСПУБЛИКИ ДОНБАССТЕПЛОЭНЕРГО
D66: Аппаратчик химводоочистки | E66: 5 | F66: 17800
D67: Арматурщик | E67: 2 | F67: 19800
D68: Бетонщик | E68: 1 | F68: 22085
D69: Бухгалтер | E69: 1 | F69: 29835
D70: Водитель автомобиля | E70: 2 | F70: 20150 | G70: 23200
D71: Главный инженер (в промышленности) | E71: 1 | F71: 54450
D72: Диспетчер | E72: 1 | F72: 23800
D73: Инженер | E73: 1 | F73: 40130
D74: Инженер-проектировщик | E74: 1 | F74: 29835
D75: Каменщик | E75: 1 | F75: 24300
D76: Кассир | E76: 2 | F76: 26555
D77: Контролер-учетчик | E77: 4 | F77: 19695
D78: Мастер | E78: 2 | F78: 36100
D79: Машинист (кочегар) котельной | E79: 1 | F79: 17300
D80: Машинист экскаватора | E80: 2 | F80: 26280
D81: Огнеупорщик | E81: 1 | F81: 22085
D82: Оператор котельной | E82: 9 | F82: 20100
D83: Подсобный рабочий | E83: 1 | F83: 16771
D84: Слесарь по контрольноизмерительным приборам и автоматике | E84: 4 | F84: 24750
D85: Слесарь по ремонту автомобилей | E85: 2 | F85: 22400
D86: Слесарь по ремонту оборудования котельных и пылеприготовительных цехов | E86: 4 | F86: 17000 | G86: 18000
D87: Слесарь по ремонту оборудования тепловых сетей | E87: 4 | F87: 22431
D88: Специалист | E88: 1 | F88: 30435
D89: Техник | E89: 1 | F89: 22525
D90: Токарь | E90: 1 | F90: 16500
D91: Тракторист | E91: 1 | F91: 23800
D92: Уборщик производственных и служебных помещений | E92: 1 | F92: 17155
D93: Формовщик теплоизоляционных изделий | E93: 2 | F93: 22000
D94: Фрезеровщик | E94: 1 | F94: 24700
D95: Электрогазосварщик | E95: 2 | F95: 26200
D96: Электромонтер по ремонту и обслуживанию электрооборудования | E96: 10 | F96: 24700
C97: ООО ГОРЛОВСКТЕПЛОСЕТЬ
D98: Бухгалтер | E98: 1 | F98: 19300
D99: Водитель автомобиля | E99: 1 | F99: 18500
D100: Машинист крана (крановщик) | E100: 1 | F100: 19500
D101: Юрисконсульт | E101: 1 | F101: 20300
C102: ГОСУДАРСТВЕННЫЙ КОНЦЕРН ДОНБАССГАЗ
D103: Водитель автомобиля | E103: 2 | F103: 22226
D104: Монтер по защите подземных трубопроводов от коррозии | E104: 1 | F104: 22971
D105: Слесарь аварийно-восстановительных работ | E105: 3 | F105: 19035
D106: Слесарь по контрольноизмерительным приборам и автоматике | E106: 1 | F106: 21630
D107: Слесарь по ремонту автомобилей | E107: 1 | F107: 26849
D108: Слесарь по эксплуатации и ремонту газового оборудования | E108: 16 | F108: 21630
D109: Слесарь по эксплуатации и ремонту подземных газопроводов | E109: 9 | F109: 19391
D110: Электрогазосварщик | E110: 2 | F110: 25346
D111: Юрисконсульт | E111: 1 | F111: 36700
C112: ГОСУДАРСТВЕННОЕ УНИТАРНОЕ ПРЕДПРИЯТИЕ ДОНЕЦКОЙ НАРОДНОЙ РЕСПУБЛИКИ ГОСУДАРСТВЕННАЯ МАГИСТРАЛЬНАЯ СЕТЕВАЯ КОМПАНИЯ
D113: Водитель автомобиля | E113: 1 | F113: 16596
D114: Охранник | E114: 1 | F114: 18599
B115: Итого | C115: =COUNTA(C63:C114) -> 4 | E115: =SUM(E63:E114) -> 114
A116: E | B116: Водоснабжение; водоотведение, организация сбора и утилизации отходов, деятельность по ликвидации загрязнений
A117: 36 | B117: Забор, очистка и распределение воды
C118: ФИЛИАЛ "РЕГИОНАЛЬНОЕ УПРАВЛЕНИЕ ПО ЭКСПЛУАТАЦИИ КАНАЛА "ГОСУДАРСТЕННОГО УНИТАРНОГО ПРЕДПРИЯТИЯ ДОНЕЦКОЙ НАРОДНОЙ РЕСПУБЛИКИ "ВОДА ДОНБАССА"
D119: Заведующий хозяйством | E119: 1 | F119: 29070
D120: Лесоруб | E120: 7 | F120: 30754
D121: Маляр | E121: 2 | F121: 23065
D122: Мастер | E122: 1 | F122: 30570
D123: Оператор водозапорных сооружений | E123: 1 | F123: 18492
D124: Слесарь-ремонтник | E124: 4 | F124: 23259
D125: Токарь | E125: 3 | F125: 26142
D126: Электромонтер по ремонту и обслуживанию электрооборудования | E126: 10 | F126: 27789
C127: ФИЛИАЛ ГОРЛОВСКОЕ ПРОИЗВОДСТВЕННОЕ УПРАВЛЕНИЕ ВОДОПРОВОДНО-КАНАЛИЗАЦИОННОГО ХОЗЯЙСТВА ГОСУДАРСТВЕННОГО УНИТАРНОГО ПРЕДПРИЯТИЯ ДОНЕЦКОЙ НАРОДНОЙ РЕСПУБЛИКИ ВОДА ДОНБАССА
D128: Контролер водопроводного хозяйства | E128: 10 | F128: 19320
D129: Машинист насосных установок | E129: 5 | F129: 21850
D130: Машинист экскаватора одноковшового | E130: 4 | F130: 40614
D131: Обходчик водопроводноканализационной сети | E131: 5 | F131: 18491
D132: Оператор очистных сооружений | E132: 10 | F132: 18491
D133: Оператор хлораторной установки | E133: 5 | F133: 19232
D134: Оператор электронно-вычислительных и вычислительных машин | E134: 8 | F134: 16242
D135: Слесарь аварийно-восстановительных работ | E135: 10 | F135: 27780
D136: Слесарь-ремонтник | E136: 4 | F136: 32951
D137: Электрогазосварщик | E137: 5 | F137: 31124
D138: Электромонтер по ремонту и обслуживанию электрооборудования | E138: 8 | F138: 30000
B139: Итого | C139: =COUNTA(C116:C138) -> 2 | E139: =SUM(E116:E138) -> 103
A140: H | B140: Транспортировка и хранение
A141: 49 | B141: Деятельность сухопутного и трубопроводного транспорта
C142: КОММУНАЛЬНОЕ ПРЕДПРИЯТИЕ ТРАМВАЙНО-ТРОЛЛЕЙБУСНОЕ УПРАВЛЕНИЕ АДМИНИСТРАЦИИ ГОРОДА ГОРЛОВКА
D143: Водитель автомобиля | E143: 2 | F143: 18688
D144: Диспетчер автомобильного транспорта | E144: 1 | F144: 16942
D145: Слесарь-электрик по ремонту электрооборудования | E145: 2 | F145: 18688
D146: Специалист по кадрам | E146: 1 | F146: 23794
A147: 53 | B147: Деятельность почтовой связи и курьерская деятельность
C148: ГОСУДАРСТВЕННОЕ УНИТАРНОЕ ПРЕДПРИЯТИЕ ДОНЕЦКОЙ НАРОДНОЙ РЕСПУБЛИКИ ПОЧТА ДОНБАССА
D149: Оператор связи | E149: 5 | F149: 28000
D150: Почтальон | E150: 3 | F150: 20000
D151: Техник | E151: 3 | F151: 28000
B152: Итого | C152: =COUNTA(C140:C151) -> 2 | E152: =SUM(E140:E151) -> 17
A153: N | B153: Деятельность административная и сопутствующие дополнительные услуги
A154: 81 | B154: Деятельность по обслуживанию зданий и территорий
C155: КОММУНАЛЬНОЕ ПРЕДПРИЯТИЕ ПРОСТОР
D156: Водитель автомобиля | E156: 4 | F156: 16300
D157: Дорожный рабочий | E157: 10 | F157: 16300 | H157: Медицинская книжка.
D158: Тракторист | E158: 3 | F158: 17843
C159: КОММУНАЛЬНОЕ ПРЕДПРИЯТИЕ УПРАВЛЯЮЩАЯ КОМПАНИЯ ГОРОДА ГОРЛОВКА
D160: Рабочий зеленого хозяйства | E160: 3 | F160: 16300
B161: Итого | C161: =COUNTA(C153:C160) -> 2 | E161: =SUM(E153:E160) -> 20
A162: O | B162: Государственное управление и обеспечение военной безопасности; социальное обеспечение
A163: 84 | B163: Деятельность органов государственного управления по обеспечению военной безопасности, обязательному социальному обеспечению
C164: ГБУ 1 ВОЕНИЗИРОВАННЫЙ ГОРНОСПАСАТЕЛЬНЫЙ ОТРЯД Г. ГОРЛОВКА МИНИСТЕРСТВА ПО ДЕЛАМ ГРАЖДАНСКОЙ ОБОРОНЫ, ЧРЕЗВЫЧАЙНЫМ СИТУАЦИЯМ И ЛИКВИДАЦИИ ПОСЛЕДСТВИЙ СТИХИЙНЫХ БЕДСТВИЙ ДОНЕЦКОЙ НАРОДНОЙ РЕСПУБЛИКИ
D165: Водитель автомобиля | E165: 5 | F165: 18000
C166: ГБУ УПРАВЛЕНИЕ ПЕНСИОННОГО ФОНДА ДОНЕЦКОЙ НАРОДНОЙ РЕСПУБЛИКИ В ЦЕНТРАЛЬНО-ГОРОДСКОМ РАЙОНЕ Г.ГОРЛОВКИ
D167: Главный специалист | E167: 4 | F167: 16500
D168: Начальник отдела (специализированного в прочих отраслях) | E168: 1 | F168: 17048
D169: Специалист | E169: 5 | F169: 16300 | G169: 17000
C170: ГБУ ОТДЕЛЕНИЕ ФОНДА СОЦИАЛЬНОГО СТРАХОВАНИЯ ОТ НЕСЧАСТНЫХ СЛУЧАЕВ НА ПРОИЗВОДСТВЕ И ПРОФЕССИОНАЛЬНЫХ ЗАБОЛЕВАНИЙ ДОНЕЦКОЙ НАРОДНОЙ РЕСПУБЛИКИ В ЦЕНТРАЛЬНО-ГОРОДСКОМ РАЙОНЕ Г. ГОРЛОВКИ
D171: Главный специалист | E171: 1 | F171: 25000
C172: ГБУ ОТДЕЛЕНИЕ ФОНДА СОЦИАЛЬНОГО СТРАХОВАНИЯ ОТ НЕСЧАСТНЫХ СЛУЧАЕВ НА ПРОИЗВОДСТВЕ И ПРОФЕССИОНАЛЬНЫХ ЗАБОЛЕВАНИЙ ДОНЕЦКОЙ НАРОДНОЙ РЕСПУБЛИКИ В КАЛИНИНСКОМ РАЙОНЕ Г. ГОРЛОВКИ
D173: Главный специалист | E173: 1 | F173: 16800
D174: Заведующий сектором (функциональным в прочих областях деятельности) | E174: 1 | F174: 18200 | H174: Специальность инженер по охране труда.
D175: Юрисконсульт | E175: 1 | F175: 17300
C176: АДМИНИСТРАЦИЯ ГОРОДА ГОРЛОВКА
D177: Главный специалист | E177: 3 | F177: 22096
D178: Специалист | E178: 4 | F178: 18325
C179: ГБУ УПРАВЛЕНИЕ ПЕНСИОННОГО ФОНДА ДОНЕЦКОЙ НАРОДНОЙ РЕСПУБЛИКИ В НИКИТОВСКОМ РАЙОНЕ Г.ГОРЛОВКИ
D180: Главный специалист | E180: 2 | F180: 18500
D181: Специалист | E181: 2 | F181: 18500
C182: ГБУ МИЧУРИНСКАЯ ИСПРАВИТЕЛЬНАЯ КОЛОНИЯ ГОСУДАРСТВЕННОЙ СЛУЖБЫ ИСПОЛНЕНИЯ НАКАЗАНИЙ МИНИСТЕРСТВА ЮСТИЦИИ ДОНЕЦКОЙ НАРОДНОЙ РЕСПУБЛИКИ
D183: Инспектор | E183: 10 | F183: 16830
C184: ГБУ КАЛИНИНСКАЯ ИСПРАВИТЕЛЬНАЯ КОЛОНИЯ ГОСУДАРСТВЕННОЙ СЛУЖБЫ ИСПОЛНЕНИЯ НАКАЗАНИЙ МИНИСТЕРСТВА ЮСТИЦИИ ДОНЕЦКОЙ НАРОДНОЙ РЕСПУБЛИКИ
D185: Инспектор | E185: 5 | F185: 16800
C186: ГБУ УПРАВЛЕНИЕ ПЕНСИОННОГО ФОНДА ДОНЕЦКОЙ НАРОДНОЙ РЕСПУБЛИКИ В КАЛИНИНСКОМ РАЙОНЕ Г.ГОРЛОВКИ
D187: Специалист | E187: 6 | F187: 17400 | G187: 18500
C188: ГБУ ОТДЕЛЕНИЕ ФОНДА СОЦИАЛЬНОГО СТРАХОВАНИЯ ОТ НЕСЧАСТНЫХ СЛУЧАЕВ НА ПРОИЗВОДСТВЕ И ПРОФЕССИОНАЛЬНЫХ ЗАБОЛЕВАНИЙ ДОНЕЦКОЙ НАРОДНОЙ РЕСПУБЛИКИ В НИКИТОВСКОМ РАЙОНЕ Г. ГОРЛОВКИ
D189: Специалист | E189: 1 | F189: 18500
B190: Итого | C190: =COUNTA(C162:C189) -> 10 | E190: =SUM(E162:E189) -> 52
A191: P | B191: Образование
A192: 85 | B192: Образование
C193: ГБОУ ГОРЛОВСКАЯ СПЕЦИАЛЬНАЯ ШКОЛА-ИНТЕРНАТ № 24
D194: Бухгалтер | E194: 1 | F194: 19889
D195: Психолог | E195: 1 | F195: 25168
D196: Уборщик производственных и служебных помещений | E196: 1 | F196: 16242
C197: ГОСУДАРСТВЕННОЕ ОБРАЗОВАТЕЛЬНОЕ УЧРЕЖДЕНИЕ ВЫСШЕГО ПРОФЕССИОНАЛЬНОГО ОБРАЗОВАНИЯ ДОНЕЦКИЙ НАЦИОНАЛЬНЫЙ ТЕХНИЧЕСКИЙ УНИВЕРСИТЕТ
D198: Бухгалтер | E198: 1 | F198: 16900
D199: Главный бухгалтер | E199: 1 | F199: 20779
D200: Преподаватель (в колледжах, университетах и других вузах) | E200: 1 | F200: 17000 | H200: Специальность электроника и электротехника.
C201: МУНИЦИПАЛЬНОЕ БЮДЖЕТНОЕ УЧРЕЖДЕНИЕ ГОРОДА ГОРЛОВКА ДЕТСКО-ЮНОШЕСКАЯ СПОРТИВНАЯ ШКОЛА № 2
D202: Бухгалтер | E202: 1 | F202: 16500
D203: Подсобный рабочий | E203: 1 | F203: 16250
D204: Рабочий по комплексному обслуживанию и ремонту зданий | E204: 1 | F204: 16250
... 275 more rows

Sheet Дебальцевский ГЦЗ
A5: Потребность, заявленная работодателями г. Дебальцево, по состоянию на 01.04.2023
A6: Раздел/ код ОКВЭД | B6: Виды экономической деятельности | C6: Наименование ПОУ | D6: Название профессии/ специальности | E6: Количество свободных рабочих мест (вакантных должнлстей) (ед.) | F6: Размер заработной платы, указанный в вакансии от, руб. | G6: Размер заработной платы, указанный в вакансии до, руб. | H6: Требования
A7: 1 | B7: 2 | C7: 3 | D7: 4 | E7: 5 | F7: 6 | G7: 7 | H7: 8
A8: Всего | C8: 19 | E8: 165
A9: H | B9: Транспортировка и хранение
A10: 49 | B10: Деятельность сухопутного и трубопроводного транспорта
D11: Осмотрщик вагонов | E11: 3 | F11: 20726 | H11: Наличие квалификационного удостоверения. 5 разряд.
D12: Осмотрщик вагонов | E12: 3 | F12: 18826 | H12: Наличие квалификационного удостоверения. 4 разряд.
D13: Подсобный рабочий | E13: 4 | F13: 16242 | H13: Наличие квалификационного удостоверения. 1 разряд.
D14: Слесарь по ремонту подвижного состава | E14: 3 | F14: 16581 | H14: Наличие квалификационного удостоверения. 3 разряд.
D15: Стрелок | E15: 17 | F15: 16851 | G15: 18885 | H15: Наличие сертификата о прохождении медицинского осмотра.
D16: Электромеханик | E16: 3 | F16: 26513 | H16: Обязательный предварительный медицинский осмотр.
B17: Итого | C17: 1 | E17: =SUM(E9:E16) -> 33
A18: O | B18: Государственное управление и обеспечение военной безопасности; социальное обеспечение
A19: 84 | B19: Деятельность органов государственного управления по обеспечению военной безопасности, обязательному социальному обеспечению
C20: ГОСУДАРСТВЕННОЕ БЮДЖЕТНОЕ УЧРЕЖДЕНИЕ УПРАВЛЕНИЕ ПЕНСИОННОГО ФОНДА ДОНЕЦКОЙ НАРОДНОЙ РЕСПУБЛИКИ В Г. ДЕБАЛЬЦЕВО
D21: Главный специалист | E21: 2 | F21: 16242 | H21: Квалификация специалист, магистр. Специальность по образованию: экономического, юридического, гуманитарного профиля, а также в сфере информационных технологий. Прохождение обязательного медицинского осмотра
D22: Специалист | E22: 10 | F22: 16242 | H22: Проходжение обязательного медицинского предварительного осмотра.
D23: Юрисконсульт | E23: 1 | F23: 16242 | H23: Прохождение обязательного медицинского предварительного осмотра. Наличие сертификатов нарколога и психиатра.
C24: ГБУ ОТДЕЛЕНИЕ ФОНДА СОЦИАЛЬНОГО СТРАХОВАНИЯ ОТ НЕСЧАСТНЫХ СЛУЧАЕВ НА ПРОИЗВОДСТВЕ И ПРОФЕССИОНАЛЬНЫХ ЗАБОЛЕВАНИЙ ДОНЕЦКОЙ НАРОДНОЙ РЕСПУБЛИКИ В Г. ДЕБАЛЬЦЕВО
D25: Специалист (в представительстве, территориальном органе федерального органа исполнительной власти, федеральном суде, прокуратуре) | E25: 1 | F25: 16242
C26: АДМИНИСТРАЦИЯ ГОРОДА ДЕБАЛЬЦЕВО
D27: Сторож (вахтер) | E27: 4 | F27: 16242 | H27: Прохождение обязательного медицинского осмотра.
B28: Итого | C28: =COUNTA(C18:C27) -> 3 | E28: =SUM(E18:E27) -> 18
A29: P | B29: Образование
A30: 85 | B30: Образование
C31: ГОСУДАРСТВЕННОЕ БЮДЖЕТНОЕ ПРОФЕССИОНАЛЬНОЕ ОБРАЗОВАТЕЛЬНОЕ УЧРЕЖДЕНИЕ ДЕБАЛЬЦЕВСКИЙ МНОГОПРОФИЛЬНЫЙ ТЕХНИКУМ
D32: Бухгалтер | E32: 1 | F32: 16242 | H32: Медицинская книжка. Наличие квалификации- Бухгалтер, Бухгалтер- финансист, Специалист по учёту и аудиту.
D33: Мастер производственного обучения | E33: 1 | F33: 16242 | H33: Медицинская книжка.
C34: МУНИЦИПАЛЬНОЕ БЮДЖЕТНОЕ ДОШКОЛЬНОЕ ОБРАЗОВАТЕЛЬНОЕ УЧРЕЖДЕНИЕ " СВЕТЛОДАРСКИЙ ЯСЛИ-САД № 10 " РАДУГА" ОБЩЕРАЗВИВАЮЩЕГО ТИПА АДМИНИСТРАЦИИ ГОРОДА ДЕБАЛЬЦЕВО"
D35: Воспитатель детского сада (яслей-сада) | E35: 1 | F35: 16242 | H35: Прохождение обязательного медицинского предварительного осмотра. Знание основ физиологии, психологии и педагогики детей дошкольного возраста.
D36: Инструктор по лечебной физкультуре | E36: 1 | F36: 16242 | H36: Знание основ физиологии, психологии и педагогики детей дошкольного возраста. Инициативность, креативность. Прохождение обязательного медицинского предварительного осмотра. Прохождение осмотра психиатра
D37: Музыкальный руководитель | E37: 1 | F37: 16242 | H37: Прохождение обязательного медицинского предварительного осмотра. Прохождение осмотра психиатра.
D38: Педагог-психолог | E38: 1 | F38: 16242 | H38: Знание основ физиологии, психологии и педагогики детей дошкольного возраста. Инициативность, креативность. Прохождение обязательного медицинского предварительного осмотра. Прохождение осмотра психиатра
D39: Повар | E39: 2 | F39: 16242 | H39: Наличие квалификации.Прохождение обязательного медицинского предварительного осмотра. Прохождение осмотра психиатра, нарколога.
D40: Помощник воспитателя | E40: 1 | F40: 16242 | H40: Прохождение обязательного медицинского предварительного осмотра. Прохождение осмотра психиатра.
C41: МБДОУ ДЕТСКИЙ САД № 9 ЛЕСНАЯ СКАЗКА ОБЩЕРАЗВИВАЮЩЕГО ТИПА ГОРОДА ДЕБАЛЬЦЕВО
D42: Воспитатель детского сада (яслей-сада) | E42: 1 | F42: 16242
D43: Инструктор по лечебной физкультуре | E43: 1 | F43: 16242
D44: Медицинская сестра | E44: 1 | F44: 16242
D45: Музыкальный руководитель | E45: 1 | F45: 16242
D46: Сестра диетического питания | E46: 1 | F46: 16242
C47: МБОУ ШКОЛА № 2 ГОРОДА ДЕБАЛЬЦЕВО
D48: Дворник | E48: 1 | F48: 16242
D49: Учитель | E49: 1 | F49: 16242 | H49: Прохождение обязательного медицинского предварительного осмотра.
C50: МБДОУ ЯСЛИ-САД № 8 ЗВЕЗДОЧКА КОМБИНИРОВАННОГО ТИПА ГОРОДА ДЕБАЛЬЦЕВО
D51: Дворник | E51: 2 | F51: 16242
D52: Инструктор по физической культуре | E52: 1 | F52: 16242 | H52: Знание основ возрастной психологии.
D53: Машинист по стирке и ремонту спецодежды | E53: 1 | F53: 16242 | H53: Прохождение обязательного медицинского предварительного осмотра.
D54: Помощник воспитателя | E54: 1 | F54: 16242 | H54: Прохождение обязательного медицинского осмотра. Строгое выполнение санитарных и спротивоэпидемиологических требований.
D55: Электромонтер по ремонту и обслуживанию электрооборудования | E55: 1 | F55: 16242 | H55: 3 группа по электробезопасности. Прохождение оббязательного медицинского предварительного осмотра.
C56: МБОУ ШКОЛА № 5 ГОРОДА ДЕБАЛЬЦЕВО
D57: Инженер-электроник | E57: 1 | F57: 16242
C58: МУНИЦИПАЛЬНОЕ БЮДЖЕТНОЕ ОБЩЕОБРАЗОВАТЕЛЬНОЕ УЧРЕЖДЕНИЕ "ШКОЛА №3 ГОРОДА ДЕБАЛЬЦЕВО"
D59: Инженер-электроник | E59: 1 | F59: 17296 | H59: Прохождение обязательного медицинского предварительного осмотра.
D60: Лаборант | E60: 1 | F60: 16242 | H60: Знание физики и химии на уровне среднего общего образования. Прохождение обязательного медицинского предварительного осмотра.
D61: Повар | E61: 1 | F61: 16242 | H61: Прохождение обязательного медицинского предварительного осмотра, наличие квалифицированного удостоверения. 4 разряд.
D62: Секретарь учебной части (диспетчер) | E62: 1 | F62: 16242 | H62: Прохождение обязательного медицинского предварительного осмотра
D63: Уборщик производственных и служебных помещений | E63: 2 | F63: 16242 | H63: Прохождение обязательного медицинского предварительного осмотра
C64: МУНИЦИПАЛЬНОЕ БЮДЖЕТНОЕ ОБЩЕОБРАЗОВАТЕЛЬНОЕ УЧРЕЖДЕНИЕ ШКОЛА № 4 ГОРОДА ДЕБАЛЬЦЕВО
D65: Медицинская сестра | E65: 1 | F65: 16242 | H65: Прохождение обязательного медицинского предварительного осмотра.
D66: Электромонтер по ремонту и обслуживанию электрооборудования | E66: 1 | F66: 16242 | H66: Прохождение обязательного медицинского предварительного осмотра.
C67: МУНИЦИПАЛЬНОЕ БЮДЖЕТНОЕ УЧРЕЖДЕНИЕ ДОПОЛНИТЕЛЬНОГО ОБРАЗОВАНИЯ СТАНЦИЯ ЮНЫХ ТЕХНИКОВ ГОРОДА ДЕБАЛЬЦЕВО
D68: Педагог дополнительного образования | E68: 4 | F68: 16242 | H68: Прохождение обязательного медицинского предварительного осмотра.
D69: Рабочий по комплексному обслуживанию и ремонту зданий | E69: 1 | F69: 16242 | H69: Прохождение обязательного медицинского предварительного осмотра.
C70: МУНИЦИПАЛЬНОЕ БЮДЖЕТНОЕ УЧРЕЖДЕНИЕ ДОПОЛНИТЕЛЬНОГО ОБРАЗОВАНИЯ СВЕТЛОДАРСКИЙ ЦЕНТР ДЕТСКОГО И ЮНОШЕСКОГО ТВОРЧЕСТВА АДМИНИСТРАЦИИ ГОРОДА ДЕБАЛЬЦЕВО
D71: Педагог дополнительного образования | E71: 4 | F71: 16242 | H71: Прохожденние обязательного медицинского предварительного осмотра. Наличие сертификата от психиатра.
D72: Уборщик производственных и служебных помещений | E72: 1 | F72: 16242 | H72: Прохождение обязательного предварительного медицинского осмотра.
C73: МБОУ СВЕТЛОДАРСКИЙ УЧЕБНО-ВОСПИТАТЕЛЬНЫЙ КОМПЛЕКС АДМИНИСТРАЦИИ ГОРОДА ДЕБАЛЬЦЕВО
D74: Учитель | E74: 1 | F74: 16242 | H74: Обязательный предварительный медицинский осмотр.
B75: Итого | C75: =COUNTA(C29:C74) -> 11 | E75: =SUM(E29:E74) -> 42
A76: Q | B76: Деятельность в области здравоохранения и социальных услуг
A77: 86 | B77: Деятельность в области здравоохранения
C78: ГОСУДАРСТВЕННОЕ БЮДЖЕТНОЕ УЧРЕЖДЕНИЕ ЦЕНТРАЛЬНАЯ ГОРОДСКАЯ БОЛЬНИЦА Г.СВЕТЛОДАРСКА
D79: Биолог | E79: 1 | F79: 16289 | H79: Ежегодное прохождение медицинского осмотра. Наличие сертификата по специализации.
D80: Водитель автомобиля | E80: 1 | F80: 16242 | H80: Наличие прав управления автомобилем категории В, С. Ежегодное прохождение медицинского осмотра.
D81: Врач | E81: 9 | F81: 16289 | G81: 36007 | H81: Наличие сертификата по специализации, ежегодное прохождение медицинского осмотра.
D82: Врач функциональной диагностики | E82: 1 | F82: 20314 | H82: Ежегодное прохождение медицинского осмотра Наличие сертификата по специализации.
D83: Врач-акушер-гинеколог | E83: 1 | F83: 21658 | H83: Ежегодное прохождение медицинского осмотра. Наличие сертификата по специализации.
D84: Врач-кардиолог | E84: 2 | F84: 20314 | G84: 21658 | H84: Высшее профессиональное, наличие сертификата по специализации.
D85: Врач-офтальмолог | E85: 1 | F85: 21658 | H85: Ежегодное прохождение медицинского осмотра. Наличие сертификата по специализации.
D86: Врач-педиатр участковый | E86: 1 | F86: 20314 | H86: Ежегодное прохождение медицинского осмотра. Наличие сертификата по специализации.
D87: Врач-рентгенолог | E87: 1 | F87: 20314 | H87: Ежегодное прохождение медицинского осмотра. Наличие сертификата по специализации.
D88: Врач-терапевт участковый | E88: 1 | F88: 20314 | H88: Наличие сертификата по специализации, ежегодное прохождение медицинского осмотра.
D89: Врач-травматолог-ортопед | E89: 5 | F89: 21658 | H89: Наличие сертификата по специализации, ежегодное прохождение медицинского осмотра.
D90: Врач-хирург | E90: 3 | F90: 21658 | H90: Наличие сертификата по специализации. Ежегодное прохождение медицинского осмотра.
D91: Врач-эндокринолог | E91: 1 | F91: 20314 | H91: Ежегодное прохождение медицинского осмотра. Наличие сертификата по специализации.
D92: Гардеробщик | E92: 1 | F92: 16242 | H92: Ежегодное прохождение медицинского осмотра.
D93: Главный врач (директор, заведующий, начальник) учреждения здравоохранения | E93: 1 | F93: 36007 | H93: Ежегодное прохождение медицинского оссмотра.
D94: Инженер по гражданской обороне и чрезвычайным ситуациям | E94: 1 | F94: 16242 | H94: Ежегодное прохождение медицинского осмотра.
D95: Лаборант | E95: 1 | F95: 16289 | H95: Ежегодное прохождение медецинского осмотра.
D96: Медицинская сестра | E96: 8 | F96: 16242 | H96: Ежегодное прохождение медицинского осмотра.
D97: Медицинский статистик | E97: 1 | F97: 16242 | H97: Ежегодное прохождение медицинского осмотра.
D98: Младшая медицинская сестра по уходу за больными | E98: 1 | F98: 16242 | H98: Ежегодное прохождение медицинского осмотра.
D99: Рентгенолаборант | E99: 1 | F99: 16242 | H99: Наличие сертификата о специализации, ежегодное прохождение медецинского осмотра.
D100: Санитарка палатная | E100: 2 | F100: 16242 | H100: Ежегодное прохождение медицинского осмотра.
D101: Слесарь-сантехник | E101: 1 | F101: 16242 | H101: Ежегодное прохождение медицинского осмотра.
D102: Сторож (вахтер) | E102: 1 | F102: 16242 | H102: Ежегодное прохождение медицинского осмотра.
D103: Уборщик производственных и служебных помещений | E103: 1 | F103: 16242
D104: Фельдшер-лаборант | E104: 1 | F104: 16289 | H104: .Ежегодное прохождение медицинского осмотра.
D105: Электромонтер по ремонту и обслуживанию электрооборудования | E105: 1 | F105: 16242 | H105: Ежегодное прохождение медицинского осмотра. Допуск по электробезопасности.
C106: ОТДЕЛЕНЧЕСКАЯ БОЛЬНИЦА СТАНЦИИ ДЕБАЛЬЦЕВО
D107: Медицинская сестра | E107: 1 | F107: 16242
A108: 88 | B108: Предоставление социальных услуг без обеспечения проживания
C109: МУНИЦИПАЛЬНОЕ БЮДЖЕТНОЕ УЧРЕЖДЕНИЕ ТЕРРИТОРИАЛЬНЫЙ ЦЕНТР СОЦИАЛЬНОГО ОБСЛУЖИВАНИЯ (ПРЕДОСТАВЛЕНИЯ СОЦИАЛЬНЫХ УСЛУГ) ГОРОДА ДЕБАЛЬЦЕВО
D110: Бухгалтер | E110: 1 | F110: 16242 | H110: Знание бухгалтерского учета и финансовой отчетности, правила документооборота, план счетов бухгалтерского учета. Знание ПК на уровне опытного пользователя. Знание офисных программ
D111: Делопроизводитель | E111: 1 | F111: 16242 | H111: Знание делопроизводства и архивного дела. Знание ПК на уровне опытного пользователя. Знание офисных программ и информационных систем: МС Word, МС Ехсеl.
D112: Медицинская сестра по массажу | E112: 1 | F112: 16242 | H112: Наличие квалификационного удостоверения.
D113: Рабочий по комплексному обслуживанию и ремонту зданий | E113: 1 | F113: 16242
D114: Социальный работник | E114: 13 | F114: 16242 | H114: Знание правил ухода за престарелыми и инвалидами в домашних условиях. Знание порядка предоставления коммунальных, социально-бытовых и других индивидуальных услуг. Знание организации и принципов вед
D115: Экономист | E115: 1 | F115: 16242 | H115: Знание основ экономики и финансов. Знание ПК на уровне опытного пользователя. Знание офисных программ и информационных систем: МС Word, MC Excel
B116: Итого | C116: =COUNTA(C76:C115) -> 3 | E116: =SUM(E76:E115) -> 69
A117: R | B117: Деятельность в области культуры, спорта, организации досуга и развлечений
A118: 93 | B118: Деятельность в области спорта, отдыха и развлечений
C119: МУНИЦИПАЛЬНОЕ БЮДЖЕТНОЕ УЧРЕЖДЕНИЕ МИРОНОВСКИЙ ПОСЕЛКОВЫЙ ДВОРЕЦ КУЛЬТУРЫ АДМИНИСТРАЦИИ ГОРОДА ДЕБАЛЬЦЕВО
D120: Руководитель кружка (клуба по интересам, коллектива, любительского объединения, секции, студии, туристской группы) | E120: 3 | F120: 16242 | H120: Прохождение обязательного предварительного медицинского осмотра.
B121: Итого | C121: =COUNTA(C117:C120) -> 1 | E121: =SUM(E117:E120) -> 3

Sheet Докучаевский ГЦЗ
A5: Потребность, заявленная работодателями г. Докучаевска, по состоянию на 01.04.2023
A6: Раздел/ код ОКВЭД | B6: Виды экономической деятельности | C6: Наименование ПОУ | D6: Название профессии/ специальности | E6: Количество свободных рабочих мест (вакантных должнлстей) (ед.) | F6: Размер заработной платы, указанный в вакансии от, руб. | G6: Размер заработной платы, указанный в вакансии до, руб. | H6: Требования
A7: 1 | B7: 2 | C7: 3 | D7: 4 | E7: 5 | F7: 6 | G7: 7 | H7: 8
A8: Всего | C8: 23 | E8: 69
A9: A | B9: Сельское, лесное хозяйство, охота, рыболовство и рыбоводство
A10: 1 | B10: Растениеводство и животноводство, охота и предоставление соответствующих услуг в этих областях
C11: СЕЛЬСКОХОЗЯЙСТВЕННОЕ ООО АЛЕКСАНДРИЯ-АГРО
D12: Инспектор по кадрам | E12: 1 | F12: 19850
B13: Итого | C13: =COUNTA(C9:C12) -> 1 | E13: =SUM(E9:E12) -> 1
A14: D | B14: Обеспечение электрической энергией, газом и паром; кондиционирование воздуха
A15: 35 | B15: Обеспечение электрической энергией, газом и паром; кондиционирование воздуха
C16: ГОСУДАРСТВЕННОЕ УНИТАРНОЕ ПРЕДПРИЯТИЕ ДОНЕЦКОЙ НАРОДНОЙ РЕСПУБЛИКИ РЕГИОНАЛЬНАЯ ЭНЕРГОПОСТАВЛЯЮЩАЯ КОМПАНИЯ
D17: Инженер | E17: 1 | F17: 21763 | H17: Опыт или знания работы в электроустановках, владение компьютерным обеспечением (работа в XL,Word)
D18: Контролер энергонадзора | E18: 1 | F18: 15279
D19: Специалист | E19: 2 | F19: 21763 | H19: Опыт или знания работы в электроустановках. владение компьютерным обеспечением (работа в XL,Word)
D20: Электромонтер по эксплуатации электросчетчиков | E20: 2 | F20: 18327 | H20: Опыт или знание работы в электроустановках. Владение компьютерным обеспечением (работа в XL, Word).
C21: ГОСУДАРСТВЕННЫЙ КОНЦЕРН ДОНБАССГАЗ
D22: Инженер по промышленной безопасности | E22: 1 | F22: 36700 | H22: Опыт работы не менее трех лет на соответствующей работе на опасном производственном объекте отрасли. Наличие пройденного медицинского осмотра.
D23: Контролер газового хозяйства | E23: 1 | F23: 19695 | H23: Работа в г. Волноваха. Опыт работы не менее одного года по профссии с более низким (предыдущим) разрядом (за исключением минимального разряда по профссии). Наличие медицинского осмотра.
D24: Мастер | E24: 1 | F24: 36550 | H24: Опыт работы не менее одного года в области эксплуатации наружных газопроводов газораспределительных систем при наличии среднего профессионального образования. Опыт работы на руководящей должности.
D25: Начальник службы (в промышленности) | E25: 1 | F25: 46840 | H25: Опыт работы на руководящей должности, быстрая обучаемость.
D26: Слесарь по эксплуатации и ремонту газового оборудования | E26: 1 | F26: 23363 | H26: Работа в пгт. Донское (Прохоровка). Знание порядка подготовки, регулировки, смазки крепёжных работ технический устройств для ремонта (замены) импортного газового оборудования жилых и общественных зданий
D27: Слесарь по эксплуатации и ремонту газового оборудования | E27: 5 | F27: 20891 | G27: 25777 | H27: Опыт работы не менее трех месяцев по профессии с более низким (предыдущим) разрядом (за исключением минимального разряда по профессии). Уменее пользоваться инструментом. Наличие пройденного медицинского осмотра
D28: Слесарь по эксплуатации и ремонту газового оборудования | E28: 1 | F28: 20891 | H28: Работа в населенном пункте Доля. Наличие пройденного медицинского осмотра. Опыт работы не менее трех месяцев по профессии с более низким (предыдущим разрядом (за исключением минимального разряда профе
D29: Слесарь по эксплуатации и ремонту газового оборудования | E29: 2 | F29: 25777 | H29: Опыт работы не менее 1 года по профессии с более низким (предыдущим) разрядом. Знание порядка проведения ремонта (замены) импортного газовогооборудования жилых и общественных зданий. Знание электроники
D30: Слесарь по эксплуатации и ремонту газового оборудования | E30: 1 | F30: 24215 | H30: Наличие квалификационного удостоверения слесаря по эксплуатации и ремонту газового оборудования 4 разряда.
D31: Слесарь по эксплуатации и ремонту подземных газопроводов | E31: 1 | F31: 20891 | H31: Работа в г. Волноваха. Опыт работы не менее трех месяцев по профессии с более низким (предыдущим) разрядом за исключением минимального разряда по профессии) Наличие сертификатов, пройденного медицинского осмотра
D32: Слесарь по эксплуатации и ремонту подземных газопроводов | E32: 1 | F32: 20891 | H32: Опыт работы не менее трех месяцев по профессии с более низким (предыдущим) разрядом (за исключением минимального разряда по профессии). Наличие медицинского осмотра, сертификатов.
D33: Штукатур | E33: 1 | F33: 21243 | H33: Опыт работы не менее 6 месяцев по профессии в сфере отделочных штукатурных и декоративных работ. Наличие медицинского осмотра.
D34: Электромонтер по ремонту и обслуживанию электрооборудования | E34: 1 | F34: 21631 | H34: Работа в г.Волноваха. Опыт работы не менее 1 года по профессии с более низким (предыдущим разрядом). Наличие медицинского осмотра, сертификатов.
B35: Итого | C35: =COUNTA(C14:C34) -> 2 | E35: =SUM(E14:E34) -> 24
A36: N | B36: Деятельность административная и сопутствующие дополнительные услуги
A37: 81 | B37: Деятельность по обслуживанию зданий и территорий
C38: КОММУНАЛЬНОЕ ПРЕДПРИЯТИЕ ПРОМЕТЕЙ АДМИНИСТРАЦИИ ГОРОДА ДОКУЧАЕВСКА
D39: Грузчик | E39: 3 | F39: 17752 | H39: Наличие заключения мед. комиссии. Наличие мобильной связи.
D40: Штукатур | E40: 3 | F40: 21959 | H40: Наличие 3-4 разряда. Наличие опыта работы от 2-х лет. Наличие медицинского осмотра с заключением мед. комиссии. Наличие мобильной связи.
B41: Итого | C41: =COUNTA(C36:C40) -> 1 | E41: =SUM(E36:E40) -> 6
A42: O | B42: Государственное управление и обеспечение военной безопасности; социальное обеспечение
A43: 84 | B43: Деятельность органов государственного управления по обеспечению военной безопасности, обязательному социальному обеспечению
C44: ГБУ 42 ПОЖАРНО-СПАСАТЕЛЬНАЯ ЧАСТЬ Г. ДОКУЧАЕВСК МИНИСТЕРСТВА ПО ДЕЛАМ ГРАЖДАНСКОЙ ОБОРОНЫ, ЧРЕЗВЫЧАЙНЫМ СИТУАЦИЯМ И ЛИКВИДАЦИИ ПОСЛЕДСТВИЙ СТИХИЙНЫХ БЕДСТВИЙ ДОНЕЦКОЙ НАРОДНОЙ РЕСПУБЛИКИ
D45: Пожарный | E45: 3 | F45: 16885 | H45: Наличие сертификатов, отсутствие судимости.
C46: ГОСУДАРСТВЕННОЕ БЮДЖЕТНОЕ УЧРЕЖДЕНИЕ ДОКУЧАЕВСКИЙ ГОРОДСКОЙ ЦЕНТР ЗАНЯТОСТИ
D47: Специалист | E47: 1 | F47: 15279
D48: Юрисконсульт | E48: 1 | F48: 16242
B49: Итого | C49: =COUNTA(C42:C48) -> 2 | E49: =SUM(E42:E48) -> 5
A50: P | B50: Образование
A51: 85 | B51: Образование
C52: МУНИЦИПАЛЬНОЕ БЮДЖЕТНОЕ ДОШКОЛЬНОЕ ОБРАЗОВАТЕЛЬНОЕ УЧРЕЖДЕНИЕ ЯСЛИ-САД КОМБИНИРОВАННОГО ТИПА № 4 АДМИНИСТРАЦИИ ГОРОДА ДОКУЧАЕВСКА
D53: Воспитатель | E53: 1 | F53: 15483 | H53: Наличие медицинской книжки.
D54: Медицинская сестра | E54: 1 | F54: 14637 | H54: Наличие удостоверения по специальности Диетология.
D55: Электромонтер по обслуживанию электроустановок | E55: 1 | F55: 11714 | H55: Наличие удостоверения ДНР по электробезопасности, квалификационная группа по электробезопасности не ниже 3.
C56: МУНИЦИПАЛЬНОЕ БЮДЖЕТНОЕ ДОШКОЛЬНОЕ ОБРАЗОВАТЕЛЬНОЕ УЧРЕЖДЕНИЕ ЯСЛИ-САД КОМБИНИРОВАННОГО ТИПА №13 АДМИНИСТРАЦИИ ГОРОДА ДОКУЧАЕВСКА
D57: Воспитатель детского сада (яслей-сада) | E57: 1 | F57: 15279
C58: МУНИЦИПАЛЬНОЕ БЮДЖЕТНОЕ ДОШКОЛЬНОЕ ОБРАЗОВАТЕЛЬНОЕ УЧРЕЖДЕНИЕ ЯСЛИ-САД №10 АДМИНИСТРАЦИИ ГОРОДА ДОКУЧАЕВСКА
D59: Воспитатель детского сада (яслей-сада) | E59: 1 | F59: 16289
C60: МУНИЦИПАЛЬНОЕ БЮДЖЕТНОЕ ДОШКОЛЬНОЕ ОБРАЗОВАТЕЛЬНОЕ УЧРЕЖДЕНИЕ ЯСЛИ-САД №12 АДМИНИСТРАЦИИ ГОРОДА ДОКУЧАЕВСКА
D61: Воспитатель детского сада (яслей-сада) | E61: 1 | F61: 16289 | H61: Владение педагогическими методиками и приёмами.
C62: ГОСУДАРСТВЕННОЕ БЮДЖЕТНОЕ ПРОФЕССИОНАЛЬНОЕ ОБРАЗОВАТЕЛЬНОЕ УЧРЕЖДЕНИЕ ДОКУЧАЕВСКИЙ ПОЛИТЕХНИЧЕСКИЙ ТЕХНИКУМ
D63: Директор школы (гимназии, лицея) | E63: 1 | F63: 20575
D64: Преподаватель (в колледжах, университетах и других вузах) | E64: 1 | F64: 16242
C65: МУНИЦИПАЛЬНОЕ БЮДЖЕТНОЕ ДОШКОЛЬНОЕ ОБРАЗОВАТЕЛЬНОЕ УЧРЕЖДЕНИЕ ЯСЛИ-САД КОМБИНИРОВАННОГО ТИПА № 6 АДМИНИСТРАЦИИ ГОРОДА ДОКУЧАЕВСКА
D66: Инструктор по физической культуре | E66: 1 | F66: 7336.5 | H66: Умение владеть коллективом детей.
D67: Педагог-психолог | E67: 1 | F67: 7741.5 | H67: Владение психологическими методиками и приёмами. Наличие медицинской книжки. Рассматривается возможность трудоустройства без опыта работы.
C68: ГОСУДАРСТВЕННОЕ БЮДЖЕТНОЕ ОБЩЕОБРАЗОВАТЕЛЬНОЕ УЧРЕЖДЕНИЕ ДОКУЧАЕВСКАЯ СПЕЦИАЛЬНАЯ ШКОЛА-ИНТЕРНАТ №27
D69: Медицинская сестра | E69: 1 | F69: 18341.24
D70: Повар | E70: 1 | F70: 15279
D71: Секретарь-машинистка | E71: 1 | F71: 15279
C72: МУНИЦИПАЛЬНОЕ БЮДЖЕТНОЕ ОБЩЕОБРАЗОВАТЕЛЬНОЕ УЧРЕЖДЕНИЕ ШКОЛА №3 АДМИНИСТРАЦИИ ГОРОДА ДОКУЧАЕВСКА
D73: Медицинская сестра | E73: 1 | F73: 14673
C74: МУНИЦИПАЛЬНОЕ БЮДЖЕТНОЕ ДОШКОЛЬНОЕ ОБРАЗОВАТЕЛЬНОЕ УЧРЕЖДЕНИЕ ЯСЛИ-САД КОМБИНИРОВАННОГО ТИПА №2 АДМИНИСТРАЦИИ ГОРОДА ДОКУЧАЕВСКА
D75: Музыкальный руководитель | E75: 1 | F75: 16242
C76: МУНИЦИПАЛЬНОЕ БЮДЖЕТНОЕ ОБЩЕОБРАЗОВАТЕЛЬНОЕ УЧРЕЖДЕНИЕ ШКОЛА №5 АДМИНИСТРАЦИИ ГОРОДА ДОКУЧАЕВСКА
D77: Педагог-организатор | E77: 1 | F77: 15483 | H77: Рассматривается возможность без опыта работы. Наличие медицинского осмотра. Владение нормативно-правовой базой, профессиональными навыками.
D78: Сестра диетического питания | E78: 1 | F78: 15279 | H78: Наличие медицинского образования, специальная подготовка по диетическому питанию. Умение составлять сбалансированное диетическое меню. Наличие медицинского осмотра.
D79: Учитель (средней квалификации) | E79: 1 | F79: 15483 | H79: Владение профессиональными методиками и приемами. Рассматривается возможность без опыта работы. Наличие медицинского осмотра.
C80: МУНИЦИПАЛЬНОЕ БЮДЖЕТНОЕ ДОШКОЛЬНОЕ ОБРАЗОВАТЕЛЬНОЕ УЧРЕЖДЕНИЕ ЯСЛИ-САД КОМБИНИРОВАННОГО ТИПА №11 АДМИНИСТРАЦИИ ГОРОДА ДОКУЧАЕВСКА
D81: Педагог-психолог | E81: 1 | F81: 15483 | H81: Рассматривается возможность трудоустройства без опыта работы. Наличие медицинской книжки.
C82: МУНИЦИПАЛЬНОЕ БЮДЖЕТНОЕ УЧРЕЖДЕНИЕ ДОПОЛНИТЕЛЬНОГО ОБРАЗОВАНИЯ МУЗЫКАЛЬНАЯ ШКОЛА ИМЕНИ ПЕРЕЯСЛАВСКИХ ГОРОДА ДОКУЧАЕВСКА
D83: Преподаватель (в системе специального образования) | E83: 1 | F83: 15483
C84: МБОУ ШКОЛА № 6 АДМИНИСТРАЦИИ ГОРОДА ДОКУЧАЕВСКА
D85: Сестра диетического питания | E85: 1 | F85: 15279 | H85: Среднее медицинское образование, специальная подготовка по диетическому питанию. Умение составлять сбалансированное диетическое питание. Рассматривается возможность без опыта работы. Наличие медицинск
C86: МУНИЦИПАЛЬНОЕ БЮДЖЕТНОЕ ОБЩЕОБРАЗОВАТЕЛЬНОЕ УЧРЕЖДЕНИЕ ШКОЛА №1 АДМИНИСТРАЦИИ ГОРОДА ДОКУЧАЕВСКА
D87: Сестра диетического питания | E87: 1 | F87: 15279 | H87: Среднее медицинское образование, специальная подготовка по диетическому питанию. Умение составлять сбалансированное диетическое меню.
C88: МУНИЦИПАЛЬНОЕ БЮДЖЕТНОЕ УЧРЕЖДЕНИЕ ДЕТСКО - ЮНОШЕСКАЯ СПОРТИВНАЯ ШКОЛА ДОЛОМИТ АДМИНИСТРАЦИИ ГОРОДА ДОКУЧАЕВСКА
D89: Тренер | E89: 2 | F89: 18970
C90: МУНИЦИПАЛЬНОЕ БЮДЖЕТНОЕ УЧРЕЖДЕНИЕ ДОПОЛНИТЕЛЬНОГО ОБРАЗОВАНИЯ ДЕТСКО-ЮНОШЕСКАЯ СПОРТИВНАЯ ШКОЛА АДМИНИСТРАЦИИ ГОРОДА ДОКУЧАЕВСКА
D91: Тренер-преподаватель по спорту | E91: 8 | F91: 16289 | G91: 20314 | H91: Наличие спортивного образования. Наличие медицинского заключения.
B92: Итого | C92: =COUNTA(C50:C91) -> 16 | E92: =SUM(E50:E91) -> 32
A93: Q | B93: Деятельность в области здравоохранения и социальных услуг
A94: 86 | B94: Деятельность в области здравоохранения
C95: ГБУ ЦЕНТРАЛЬНАЯ ГОРОДСКАЯ БОЛЬНИЦА Г.ДОКУЧАЕВСКА
D96: Бухгалтер | E96: 1 | F96: 15483
B97: Итого | C97: =COUNTA(C93:C96) -> 1 | E97: =SUM(E93:E96) -> 1

Sheet Енакиевский ГЦЗ
A5: Потребность, заявленная работодателями г. Енакиево, по состоянию на 01.04.2023
A6: Раздел/ код ОКВЭД | B6: Виды экономической деятельности | C6: Наименование ПОУ | D6: Название профессии/ специальности | E6: Количество свободных рабочих мест (вакантных должнлстей) (ед.) | F6: Размер заработной платы, указанный в вакансии от, руб. | G6: Размер заработной платы, указанный в вакансии до, руб. | H6: Требования
A7: 1 | B7: 2 | C7: 3 | D7: 4 | E7: 5 | F7: 6 | G7: 7 | H7: 8
A8: Всего | C8: 47 | E8: 1976
A9: C | B9: Обрабатывающие производства
A10: 10 | B10: Производство пищевых продуктов
C11: ОБЩЕСТВО С ОГРАНИЧЕННОЙ ОТВЕТСТВЕННОСТЬЮ ЕНАКИЕВСКИЙ МЯСОКОМБИНАТ
D12: Изготовитель пищевых полуфабрикатов | E12: 3 | F12: 17000 | H12: Наличие медицинской книжки.
D13: Расфасовщик мясопродуктов | E13: 2 | F13: 17000 | H13: Наличие медицинской книжки.
D14: Уборщик производственных и служебных помещений | E14: 2 | F14: 18500
D15: Формовщик колбасных изделий | E15: 3 | F15: 17000 | H15: Наличие медицинской книжки.
C16: ФИЛИАЛ №2 ЕНАКИЕВСКИЙ МЕТАЛЛУРГИЧЕСКИЙ ЗАВОД ОБЩЕСТВА С ОГРАНИЧЕННОЙ ОТВЕТСТВЕННОСТЬЮ ЮЖНЫЙ ГОРНО-МЕТАЛЛУРГИЧЕСКИЙ КОМПЛЕКС
D17: Агломератчик | E17: 10 | F17: 25030
D18: Аппаратчик воздухоразделения | E18: 3 | F18: 25248
D19: Аппаратчик очистки газа | E19: 7 | F19: 27420
D20: Бригадир (освобожденный) предприятий железнодорожного транспорта и метрополитенов | E20: 4 | F20: 21910
D21: Бункеровщик | E21: 8 | F21: 19925
D22: Бункеровщик доменных печей | E22: 30 | F22: 16805
D23: Вальцовщик стана горячей прокатки | E23: 18 | F23: 30945
D24: Водитель автомобиля | E24: 5 | F24: 21416 | H24: ВОДИТЕЛЬСКОЕ УДОСТОВЕРЕНИЕ КАТЕГОРИИ С
D25: Водитель автомобиля | E25: 27 | F25: 22477 | G25: 26973
D26: Водитель погрузчика | E26: 15 | F26: 32376 | H26: УДОСТОВЕРЕНИЕ ТРАКТОРИСТА-МАШИНИСТА
D27: Водопроводчик доменной печи | E27: 7 | F27: 26252
D28: Выгрузчик горячего агломерата | E28: 3 | F28: 22262
D29: Газовщик доменной печи | E29: 4 | F29: 32427
D30: Газорезчик | E30: 34 | F30: 24369 | G30: 29838
D31: Газоспасатель | E31: 6 | F31: 24646
D32: Горновой доменной печи | E32: 13 | F32: 46547 | G32: 55398
D33: Грузчик | E33: 67 | F33: 43413 | H33: ГРУЗЧИК СЫРЬЯ, ТОПЛИВА, ГОРЯЧЕГО АГЛОМЕРАТА И СЫПУЧИХ МАТЕРИАЛОВ АГЛОМЕРАЦИОННОГО ПРОИЗВОДСТВА И РУДНОГО ДВОРА ДОМЕННОГО ПРОИЗВОДСТВА.
D34: Грузчик | E34: 9 | F34: 37229
D35: Дворник | E35: 11 | F35: 16300
D36: Дозировщик горячего возврата | E36: 7 | F36: 24769
D37: Инженер | E37: 3 | F37: 28125 | H37: Стаж работы в должности инженера-технолога 1 категории не менее 3 лет.
D38: Инженер | E38: 4 | F38: 40014
D39: Инженер по внедрению новой техники и технологии | E39: 3 | F39: 33346
D40: Инженер-конструктор | E40: 13 | F40: 25455 | G40: 32352
D41: Инженер-технолог | E41: 3 | F41: 37633
D42: Кладовщик | E42: 6 | F42: 18141
D43: Ковшевой | E43: 30 | F43: 29136 | G43: 30345
D44: Кузнец-штамповщик | E44: 4 | F44: 25499
D45: Мастер | E45: 7 | F45: 47291 | G45: 47850
D46: Машинист конвейера | E46: 6 | F46: 19200
D47: Машинист котлов | E47: 4 | F47: 23849
D48: Машинист крана (крановщик) | E48: 7 | F48: 23117 | G48: 24117 | H48: Удостоверение машиниста крана
D49: Машинист крана металлургического производства | E49: 34 | F49: 21996 | G49: 27831
D50: Машинист насосных установок | E50: 4 | F50: 20367
D51: Машинист перегружателей | E51: 9 | F51: 30690 | H51: УДОСТОВЕРЕНИЕ ТРАКТОРИСТА-МАШИНИСТА.
D52: Машинист разливочной машины | E52: 9 | F52: 28728
D53: Машинист размораживающей установки | E53: 4 | F53: 17751
D54: Машинист смесительных барабанов | E54: 7 | F54: 23916
D55: Машинист тепловоза | E55: 53 | F55: 40741
D56: Машинист шихтоподачи | E56: 13 | F56: 22628
D57: Машинист экскаватора | E57: 13 | F57: 30129 | G57: 32587 | H57: УДОСТОВЕРЕНИЕ ТРАКТОРИСТА-МАШИНИСТА.
D58: Машинист-транспортировщик горячего металла | E58: 6 | F58: 28851
D59: Монтажник санитарно-технических систем и оборудования | E59: 4 | F59: 18558
D60: Монтер пути | E60: 34 | F60: 16622 | G60: 16662
D61: Наладчик контрольноизмерительных приборов и автоматики | E61: 14 | F61: 21215
D62: Обжигальщик | E62: 8 | F62: 28860
D63: Огнеупорщик | E63: 39 | F63: 30668
D64: Оператор газораспределительной станции | E64: 4 | F64: 35100
D65: Оператор машины непрерывного литья заготовок | E65: 33 | F65: 22907
D66: Оператор по обслуживанию пылегазоулавливающих установок | E66: 5 | F66: 19975
D67: Охранник | E67: 61 | F67: 20232 | H67: Наличие сертификатов (наркогога, психиатра, справка о несудимости).
D68: Подручный сталевара конвертера | E68: 12 | F68: 30125
D69: Подручный сталевара электропечи | E69: 8 | F69: 25363 | G69: 36319
D70: Помощник машиниста тепловоза | E70: 62 | F70: 32078 | H70: Удостоверение помощника машиниста тепловоза.
D71: Посадчик металла | E71: 3 | F71: 21998
D72: Правильщик проката и труб | E72: 29 | F72: 23466
D73: Приемосдатчик груза и багажа | E73: 8 | F73: 18755
D74: Рабочий по комплексному обслуживанию и ремонту зданий | E74: 5 | F74: 16300
D75: Рабочий производственных бань | E75: 36 | F75: 16300 | H75: НАЛИЧИЕ МЕДИЦИНСКОЙ КНИЖКИ.
D76: Разливщик стали | E76: 15 | F76: 42264
D77: Разметчик | E77: 4 | F77: 20785
D78: Слесарь механосборочных работ | E78: 14 | F78: 25667
D79: Слесарь по контрольноизмерительным приборам и автоматике | E79: 30 | F79: 31814 | G79: 36426
D80: Слесарь по ремонту оборудования котельных и пылеприготовительных цехов | E80: 3 | F80: 24430
D81: Слесарь по ремонту парогазотурбинного оборудования | E81: 37 | F81: 23874 | G81: 27282
D82: Слесарь по ремонту подвижного состава | E82: 12 | F82: 19093
D83: Слесарь-ремонтник | E83: 201 | F83: 25995 | G83: 25995
D84: Слесарь-электрик по ремонту электрооборудования | E84: 3 | F84: 17341
D85: Сортировщик-сдатчик металла | E85: 7 | F85: 22732
D86: Составитель поездов | E86: 4 | F86: 25913
D87: Сталевар конвертера | E87: 6 | F87: 43258
D88: Термист | E88: 4 | F88: 21542
D89: Токарь | E89: 36 | F89: 25102 | G89: 26303
D90: Транспортерщик | E90: 6 | F90: 19438
D91: Уборщик горячего металла | E91: 3 | F91: 19216
D92: Уборщик отходов металлургического производства | E92: 4 | F92: 16500
D93: Уборщик производственных и служебных помещений | E93: 69 | F93: 16300 | H93: НАЛИЧИЕ САНИТАРНОЙ КНИЖКИ.
D94: Фрезеровщик | E94: 5 | F94: 25689
D95: Экономист | E95: 5 | F95: 25458
D96: Электрогазосварщик | E96: 34 | F96: 21710 | G96: 28559
D97: Электромонтер по обслуживанию и ремонту устройств сигнализации, централизации блокировки | E97: 21 | F97: 20376
D98: Электромонтер по ремонту и и обслуживанию аппаратуры и и устройств связи | E98: 13 | F98: 16300 | G98: 24331 | H98: Удостоверение по профессии с группой допуска по электробезопасности.
D99: Электромонтер по ремонту и обслуживанию электрооборудования | E99: 157 | F99: 18821 | G99: 33863 | H99: Удостоверение по профессии с группой допуска по электробезопасности.
D100: Электромонтер по ремонту обмоток и изоляции электрооборудования | E100: 6 | F100: 16635
D101: Электросварщик на автоматических и полуавтоматических машинах | E101: 4 | F101: 29081
D102: Электросварщик ручной сварки | E102: 17 | F102: 33378 | G102: 34207
B103: Итого | C103: =COUNTA(C9:C102) -> 2 | E103: =SUM(E9:E102) -> 1625
A104: D | B104: Обеспечение электрической энергией, газом и паром; кондиционирование воздуха
A105: 35 | B105: Обеспечение электрической энергией, газом и паром; кондиционирование воздуха
C106: ГОСУДАРСТВЕННОЕ УНИТАРНОЕ ПРЕДПРИЯТИЕ ДОНЕЦКОЙ НАРОДНОЙ РЕСПУБЛИКИ ДОНБАССТЕПЛОЭНЕРГО
D107: Аппаратчик химводоочистки | E107: 10 | F107: 20585 | H107: НАЛИЧИЕ УДОСТОВЕРЕНИЯ АППАРАТЧИКА 2 РАЗРЯДА.
D108: Водитель автомобиля | E108: 4 | F108: 30878 | G108: 34228 | H108: ВОДИТЕЛЬСКОЕ УДОСТОВЕРЕНИЕ КАТЕГОРИИ В, С
D109: Водитель мототранспортных средств | E109: 1 | F109: 16242 | H109: НАЛИЧИЕ ВОДИТЕЛЬСКОГО УДОСТОВЕРЕНИЯ КАТЕГОРИИ А
D110: Грузчик | E110: 1 | F110: 15279 | H110: ПРОФЕССИОНАЛЬНАЯ ПОДГОТОВКА НА ПРОИЗВОДСТВЕ
D111: Контролер-учетчик | E111: 1 | F111: 19695
D112: Мастер цеха | E112: 1 | F112: 36100 | H112: СТАЖ РАБОТЫ НА ПРОИЗВОДСТВЕ НЕМЕНЕЕ 1 ГОДА ИЛИ СРЕДНЕЕ ПРОФЕССИОНАЛЬНОЕ ОБРАЗОВАНИЕ И СТАЖ РАБОТЫ НА ПРОИЗВОДСТВЕ НЕ МЕНЕЕ 3 ЛЕТ, ГРУППУ ПО ЭЛЕКТРОБЕЗОПАСНОСТИ НЕ НИЖЕ III ДО 1000В
D113: Машинист (кочегар) котельной | E113: 10 | F113: 23994 | H113: ОБУЧЕНИЕ В УЧЕБНЫХ КОМБИНАТАХ ИЛИ ДРУГИХ УЧЕБНЫХ ЗАВЕДЕНИЯХ.
D114: Машинист экскаватора | E114: 2 | F114: 33457 | H114: 1 ГОД РАБОТЫ МАШИНИСТОМ ЭКСКАВАТОРА
D115: Механик | E115: 1 | F115: 30435 | H115: СТАЖ РАБОТЫ ПО СПЕЦИАЛЬНОСТИ НА ИНЖЕНЕРНО-ТЕХНИЧЕСКИХ ДОЛЖНОСТЯХ НЕ МЕНЕЕ 3 ЛЕТ
D116: Оператор диспетчерской (производственно-диспетчерской) службы | E116: 1 | F116: 25891
D117: Оператор котельной | E117: 10 | F117: 22592 | G117: 31948 | H117: НАЛИЧИЕ УДОСТОВЕРЕНИЯ ОПЕРАТОРА КОТЕЛЬНОЙ
D118: Подсобный рабочий | E118: 2 | F118: 17154
D119: Слесарь по контрольноизмерительным приборам и автоматике | E119: 11 | F119: 21718 | G119: 31505 | H119: Слесарь по контрольно-измерительным приборам и автоматике 3 разряд цеха по ремонту и обслуживанию КИПиАи электрооборудования
D120: Слесарь по ремонту оборудования котельных и пылеприготовительных цехов | E120: 3 | F120: 15279 | G120: 25279
D121: Слесарь по ремонту оборудования тепловых сетей | E121: 6 | F121: 25956
D122: Слесарь по эксплуатации и ремонту газового оборудования | E122: 5 | F122: 26821 | G122: 33414
D123: Электрогазосварщик | E123: 3 | F123: 32160 | H123: АВТОМАТИЧЕСКАЯ И МЕХАНИЧЕСКАЯ СВАРКА СРЕДНЕЙ СЛОЖНОСТИ И СЛОЖНЫХ АППАРАТОВ. УЗЛОВ, КОНСТРУКЦИЙ
D124: Электромонтер по ремонту и обслуживанию электрооборудования | E124: 6 | F124: 25091 | G124: 28640
C125: ГОСУДАРСТВЕННЫЙ КОНЦЕРН ДОНБАССГАЗ
D126: Водитель автомобиля | E126: 2 | F126: 20586 | H126: ВОДИТЕЛЬСКОЕ УДОСТОВЕРЕНИЕ КАТЕГОРИИ В, С, Д, Е ИЛИ В, С
D127: Инспектор по проведению профилактических осмотров водителей автомототранспортных средств | E127: 1 | F127: 22525
D128: Монтер по защите подземных трубопроводов от коррозии | E128: 3 | F128: 22972 | H128: ОСУЩЕСТВЛЯТЬ СБОРКУ ИЗМЕРИТЕЛЬНОГО ОБОРУДОВАНИЯ , В ТОМ ЧИСЛЕ ВЫСОКООМНЫХ ВОЛЬТМЕТРОВ, ИЗМЕРИТЕЛЕЙ ЗАЗЕМЛЕНИЯ, ПОЧВЕННЫХ ОММЕТРОВ, УНИВЕРСАЛЬНЫХ, КОРРОЗИОННО-ИЗМЕРИТЕЛЬНЫХ ПРИБОРОВ
D129: Штукатур | E129: 1 | F129: 19093
B130: Итого | C130: =COUNTA(C104:C129) -> 2 | E130: =SUM(E104:E129) -> 85
A131: E | B131: Водоснабжение; водоотведение, организация сбора и утилизации отходов, деятельность по ликвидации загрязнений
A132: 38 | B132: Сбор, обработка и утилизация отходов; обработка вторичного сырья
C133: МУНИЦИПАЛЬНОЕ УНИТАРНОЕ ПРЕДПРИЯТИЕ АДМИНИСТРАЦИИ ГОРОДА ЕНАКИЕВО СПЕЦКОМТРАНС
D134: Водитель транспортноуборочной машины | E134: 3 | F134: 25000
D135: Грузчик | E135: 3 | F135: 16242 | H135: Паспорт РФ, ДНР, СНИЛС. Медицинская книжка. Медосмотр.
D136: Контролер-приемщик | E136: 6 | F136: 16242
B137: Итого | C137: =COUNTA(C131:C136) -> 1 | E137: =SUM(E131:E136) -> 12
A138: H | B138: Транспортировка и хранение
A139: 49 | B139: Деятельность сухопутного и трубопроводного транспорта
C140: МУНИЦИПАЛЬНОЕ УНИТАРНОЕ ПРЕДПРИЯТИЕ ТРАМВАЙНО-ТРОЛЛЕЙБУСНОЕ УПРАВЛЕНИЕ АДМИНИСТРАЦИИ ГОРОДА ЕНАКИЕВО
D141: Водитель автомобиля | E141: 6 | F141: 23151
D142: Водитель трамвая | E142: 7 | F142: 20147
D143: Инженер-электроник | E143: 1 | F143: 22203
D144: Кузнец на молотах и прессах | E144: 1 | F144: 20465
D145: Медицинская сестра | E145: 1 | F145: 16242
D146: Механик | E146: 3 | F146: 20147
D147: Мойщик-уборщик подвижного состава | E147: 1 | F147: 16242
D148: Слесарь по ремонту автомобилей | E148: 2 | F148: 18172 | H148: ПРОВЕРЯТЬ ДАВЛЕНИЕ ВОЗДУХА ВШИНАХ ПРИ НЕОБХОДИМОСТИ.
D149: Слесарь по ремонту подвижного состава | E149: 1 | F149: 18172
D150: Слесарь по топливной аппаратуре | E150: 1 | F150: 20465
D151: Слесарь-сантехник | E151: 1 | F151: 20465
D152: Слесарь-электрик по ремонту электрооборудования | E152: 10 | F152: 20465
D153: Уборщик территорий | E153: 2 | F153: 16242
D154: Электрогазосварщик | E154: 1 | F154: 20465
D155: Электромонтер контактной сети | E155: 3 | F155: 18172
B156: Итого | C156: =COUNTA(C138:C155) -> 1 | E156: =SUM(E138:E155) -> 41
A157: N | B157: Деятельность административная и сопутствующие дополнительные услуги
A158: 81 | B158: Деятельность по обслуживанию зданий и территорий
C159: МУНИЦИПАЛЬНОЕ УНИТАРНОЕ ПРЕДПРИЯТИЕ АДМИНИСТРАЦИИ ГОРОДА ЕНАКИЕВО ЖИЛИЩНО-РЕМОНТНОЕ УПРАВЛЕНИЕ № 1
D160: Дворник | E160: 30 | F160: 16242
D161: Каменщик | E161: 11 | F161: 16242
D162: Кровельщик по рулонным кровлям и по кровлям из штучных материалов | E162: 12 | F162: 16242
D163: Мастер | E163: 3 | F163: 16242
D164: Монтажник санитарно-технических систем и оборудования | E164: 23 | F164: 16242
D165: Плотник | E165: 9 | F165: 16242
D166: Подсобный рабочий | E166: 6 | F166: 16242
D167: Столяр | E167: 6 | F167: 16242
D168: Штукатур | E168: 3 | F168: 16242
D169: Электрогазосварщик | E169: 4 | F169: 18200
D170: Электромонтер по ремонту и обслуживанию электрооборудования | E170: 4 | F170: 16242
C171: МУНИЦИПАЛЬНОЕ УНИТАРНОЕ ПРЕДПРИЯТИЕ АДМИНИСТРАЦИИ ГОРОДА ЕНАКИЕВО ЖИЛИЩНО-РЕМОНТНОЕ УПРАВЛЕНИЕ № 2
D172: Монтажник санитарно-технических систем и оборудования | E172: 3 | F172: 16242
B173: Итого | C173: =COUNTA(C157:C172) -> 2 | E173: =SUM(E157:E172) -> 114
A174: O | B174: Государственное управление и обеспечение военной безопасности; социальное обеспечение
A175: 84 | B175: Деятельность органов государственного управления по обеспечению военной безопасности, обязательному социальному обеспечению
C176: АДМИНИСТРАЦИЯ ГОРОДА ЕНАКИЕВО
D177: Главный специалист | E177: 3 | F177: 18937
C178: ГБУ ОТДЕЛЕНИЕ ФОНДА СОЦИАЛЬНОГО СТРАХОВАНИЯ ОТ НЕСЧАСТНЫХ СЛУЧАЕВ НА ПРОИЗВОДСТВЕ И ПРОФЕССИОНАЛЬНЫХ ЗАБОЛЕВАНИЙ ДОНЕЦКОЙ НАРОДНОЙ РЕСПУБЛИКИ В Г. ЕНАКИЕВО
D179: Главный специалист | E179: 2 | F179: 17652.8 | H179: ДОЛЖЕН ЗНАТЬ ПРАВИЛА ДЕЛОВОГО ЭТИКЕТА, ПРАВИЛА И НОРМЫ ОХРАНЫ ТРУДА И ПРОТИВОПОЖАРНОЙ БЕЗОПАСНОСТИ. ПРАВИЛА РАБОТЫ НА КОМПЬЮТЕРЕ, ГОСУДАРСТВЕННЫЙ ЯЗЫК НА УРОВНЕ ДЕЛОВОГО ОБЩЕНИЯ И ИСПОЛЬЗОВАНИЯ.
C180: ГОСУДАРСТВЕННОЕ БЮДЖЕТНОЕ УЧРЕЖДЕНИЕ УПРАВЛЕНИЕ ПЕНСИОННОГО ФОНДА ДОНЕЦКОЙ НАРОДНОЙ РЕСПУБЛИКИ В Г. ЕНАКИЕВО
D181: Главный специалист | E181: 6 | F181: 17653
D182: Начальник отдела (специализированного в прочих отраслях) | E182: 1 | F182: 20327 | H182: Стаж работы по специальности не менее 5 лет, обоазование высшее экономическое , юридическое.
D183: Начальник отдела (специализированного в прочих отраслях) | E183: 1 | F183: 19258
D184: Специалист | E184: 13 | F184: 16242
B185: Итого | C185: =COUNTA(C174:C184) -> 3 | E185: =SUM(E174:E184) -> 26
A186: P | B186: Образование
A187: 85 | B187: Образование
C188: ГОСУДАРСТВЕННОЕ БЮДЖЕТНОЕ ПРОФЕССИОНАЛЬНОЕ ОБРАЗОВАТЕЛЬНОЕ УЧРЕЖДЕНИЕ ЕНАКИЕВСКИЙ ТЕХНИКУМ СФЕРЫ УСЛУГ
D189: Библиотекарь | E189: 1 | F189: 16242 | H189: СОСТАВЛЕНИЕ ПЛАНА ОРГАНИЗАЦИИ И ПРОВЕДЕНИЕ БИБЛИОТЕЧНОГО МЕРОПРИЯТИЯ. ПОДГОТОВКА И АКТУАЛИЗАЦИЯ КОНТЕНТА. УЧЕТ СОСТАВА И ИТОГОВ ДВИЖЕНИЯ БИБЛИОТЕЧНОГО ФОНДА.
D190: Бухгалтер | E190: 1 | F190: 16242
D191: Дворник | E191: 1 | F191: 8121
D192: Мастер производственного обучения | E192: 1 | F192: 18579 | H192: ТЕХНОЛОГИЯ ХЛЕБА, КОНДИТЕРСКИХ И МАКАРОННЫХ ИЗДЕЛИЙ, ИМЕТЬ РАБОЧИЙ РАЗРЯД: ПОВАР 5 РАЗРЯД, КОНДИТЕР 4 РАЗРЯД
D193: Юрисконсульт | E193: 1 | F193: 8121
C194: ГОСУДАРСТВЕННОЕ БЮДЖЕТНОЕ ПРОФЕССИОНАЛЬНОЕ ОБРАЗОВАТЕЛЬНОЕ УЧРЕЖДЕНИЕ ЕНАКИЕВСКИЙ ПОЛИТЕХНИЧЕСКИЙ ТЕХНИКУМ
D195: Бухгалтер | E195: 1 | F195: 19416 | H195: Опыт работы желателен. Образование среднее профессиональное или высшее. Специальность Бухгалтерский учет, Учет и аудит, Экономист.
D196: Преподаватель (в колледжах, университетах и других вузах) | E196: 1 | F196: 16242 | H196: НАЛИЧИЕ МЕДИЦИНСКОЙ КНИЖКИ. СПЕЦИАЛЬНОСТЬ ПО ОБРАЗОВАНИЮ ФИЗИК
D197: Преподаватель (в колледжах, университетах и других вузах) | E197: 1 | F197: 16242 | H197: СПЕЦИАЛЬНОСТЬ ПО ОБРАЗОВАНИЮ: КОМПЬЮТЕРНЫЕ СЕТИ, ИНФОРМАЦИОННЫЕ СИСТЕМЫ И ТЕХНОЛОГИИ. НАЛИЧИЕ МЕДИЦИНСКОЙ КНИЖКИ.
C198: ГОУ ВПО ДОНЕЦКИЙ НАЦИОНАЛЬНЫЙ УНИВЕРСИТЕТ
D199: Бухгалтер | E199: 2 | F199: 16242 | G199: 19415 | H199: Наличие медицинской книжки.
D200: Инженер-электроник | E200: 1 | F200: 16242
C201: ГОСУДАРСТВЕННОЕ БЮДЖЕТНОЕ ПРОФЕССИОНАЛЬНОЕ ОБРАЗОВАТЕЛЬНОЕ УЧРЕЖДЕНИЕ ЕНАКИЕВСКИЙ МЕТАЛЛУРГИЧЕСКИЙ ТЕХНИКУМ
D202: Заведующий канцелярией | E202: 1 | F202: 16242
C203: МУНИЦИПАЛЬНОЕ БЮДЖЕТНОЕ ДОШКОЛЬНОЕ ОБРАЗОВАТЕЛЬНОЕ УЧРЕЖДЕНИЕ ЯСЛИ-САД № 59 БУРАТИНО КОМБИНИРОВАННОГО ТИПА ГОРОДА ЕНАКИЕВО
D204: Заведующий хозяйством | E204: 1 | F204: 16242
... 87 more rows

Sheet Ждановский ГЦЗ
A5: Потребность, заявленная работодателями г. Ждановка, по состоянию на 01.04.2023
A6: Раздел/ код ОКВЭД | B6: Виды экономической деятельности | C6: Наименование ПОУ | D6: Название профессии/ специальности | E6: Количество свободных рабочих мест (вакантных должнлстей) (ед.) | F6: Размер заработной платы, указанный в вакансии от, руб. | G6: Размер заработной платы, указанный в вакансии до, руб. | H6: Требования
A7: 1 | B7: 2 | C7: 3 | D7: 4 | E7: 5 | F7: 6 | G7: 7 | H7: 8
A8: Всего | C8: 11 | E8: 142
A9: B | B9: Добыча полезных ископаемых
A10: 5 | B10: Добыча угля
C11: ПУБЛИЧНОЕ АКЦИОНЕРНОЕ ОБЩЕСТВО АРЕНДНОЕ ПРЕДПРИЯТИЕ ШАХТА ЖДАНОВСКАЯ
D12: Водитель автомобиля | E12: 3 | F12: 30000 | H12: Наличие специальности по образованию. Удостоверение 2 класса. Возможно переобучение по повышению разряда. Наличие медицинской книжки.
D13: Машинист (кочегар) котельной | E13: 6 | F13: 19000 | H13: 2 класс. Полная занятость.Наличие санитарной книжки.
D14: Электрослесарь (слесарь) дежурный и по ремонту оборудования | E14: 4 | F14: 20000
B15: Итого | C15: =COUNTA(C9:C14) -> 1 | E15: =SUM(E9:E14) -> 13
A16: O | B16: Государственное управление и обеспечение военной безопасности; социальное обеспечение
A17: 84 | B17: Деятельность органов государственного управления по обеспечению военной безопасности, обязательному социальному обеспечению
C18: ГОСУДАРСТВЕННОЕ БЮДЖЕТНОЕ УЧРЕЖДЕНИЕ "ЖДАНОВСКАЯ ИСПРАВИТЕЛЬНАЯ КОЛОНИЯ СПЕЦИАЛИЗИРОВАННАЯ ТУБЕРКУЛЕЗНАЯ БОЛЬНИЦА ГОСУДАРСТВЕННОЙ СЛУЖБЫ ИСПОЛНЕНИЯ НАКАЗАНИЙ
D19: Врач | E19: 7 | F19: 26900 | H19: Отсутствие судимости. Наличие сертификата нарколога, психолога, санитарной книжки.
D20: Главная медицинская сестра | E20: 8 | F20: 19989 | H20: Отсутствие судимости, наличие санитарной книжки. Наличие сертификатов нарколога, судимости.
D21: Государственный инспектор | E21: 10 | F21: 18013
D22: Государственный инспектор | E22: 23 | F22: 18013 | H22: Отсутствие судимости. Наличие сертификата нарколога, психолога, санитарной книжки
B23: Итого | C23: =COUNTA(C16:C22) -> 1 | E23: =SUM(E16:E22) -> 48
A24: P | B24: Образование
A25: 85 | B25: Образование
C26: МБОУ ШКОЛА № 2 ГОРОДА ЖДАНОВКА
D27: Водитель автомобиля | E27: 1 | F27: 15279 | H27: Наличие водительского удостоверения категории Д. Наличие медицинской книжки и сертификатов.
D28: Медицинская сестра | E28: 1 | F28: 7640 | H28: Наличие медицинской книжки и сертификатов. Соблюдение медицинской этики.
D29: Учитель | E29: 2 | F29: 15279 | H29: Наличие медицинской книжки. Без требований к опыту работы. Образование средне-специальное, высшее. Учитель русского языка и литературы.
C30: МБДОУ ЯСЛИ-САД № 2 КАПИТОШКА ГОРОДА ЖДАНОВКА
D31: Воспитатель детского сада (яслей-сада) | E31: 1 | F31: 15279 | H31: Наличие медицинской книжки. Без вредных привычек. Дисциплинированность, ответственность, исполнительность.
D32: Музыкальный руководитель | E32: 1 | F32: 15279 | H32: Наличие медицинской книжки. Планирование музыкальных занятий в каждой группе должно осуществляться совместно с воспитателями и регулироваться графиком (расписанием), утверждаемым заведующим детским ДО
D33: Повар детского питания | E33: 1 | F33: 15279 | H33: Наличие медицинской книжки. Без вредных привычек. Дисциплинированность, ответственность, исполнительность.
C34: МБДОУ ЯСЛИ-САД № 3 УГОЛЁК ГОРОДА ЖДАНОВКА
D35: Инструктор по физической культуре | E35: 1 | F35: 15483 | H35: Наличие медицинской книжки. Свободная работа с компьютером. Дисциплинированность, пунктуальность. умение работы в команде, ответственность, коммуникабельность, обучаемость.
C36: МБОУ ШКОЛА № 1 ГОРОДА ЖДАНОВКА
D37: Медицинская сестра | E37: 2 | F37: 15279 | H37: знание теоретических и практических основ сестринского дела; основы лечебно-диагностического процесса, предупреждения заболеваний, пропаганды здорового образа жизни
D38: Педагог социальный | E38: 1 | F38: 15279 | H38: Наличие медицинской книжки. Образование высшее: психолог, юрист, педагогическое. Знание ПК.
D39: Уборщик производственных и служебных помещений | E39: 3 | F39: 16242 | H39: Чистоплотность. аккуратность,отсутствие вредных привычек. Наличие медицинской книжки, сертификатов от нарколога и психиатра.
C40: МУНИЦИПАЛЬНОЕ БЮДЖЕТНОЕ УЧРЕЖДЕНИЕ ДОПОЛНИТЕЛЬНОГО ОБРАЗОВАНИЯ ЦЕНТР ТУРИСТСКО-КРАЕВЕДЧЕСКОГО ТВОРЧЕСТВА УЧЕНИЧЕСКОЙ МОЛОДЁЖИ ГОРОДА ЖДАНОВКА
D41: Педагог дополнительного образования | E41: 1 | F41: 16242 | H41: Знания и умения в сфере спортивного и пешеходного туризма.
C42: МБОУ ШКОЛА № 4 ГОРОДА ЖДАНОВКА
D43: Уборщик производственных и служебных помещений | E43: 1 | F43: 16242 | H43: 0,85 ставки, не полный рабочий день, класс условий труда 1.
B44: Итого | C44: =COUNTA(C24:C43) -> 6 | E44: =SUM(E24:E43) -> 16
A45: Q | B45: Деятельность в области здравоохранения и социальных услуг
A46: 86 | B46: Деятельность в области здравоохранения
C47: ПСИХИАТРИЧЕСКАЯ БОЛЬНИЦА Г.ЖДАНОВКА МИНИСТЕРСТВА ЗДРАВООХРАНЕНИЯ ДОНЕЦКОЙ НАРОДНОЙ РЕСПУБЛИКИ
D48: Администратор системы | E48: 1 | F48: 16242 | H48: специальность по образованию инженер, наличие медицинской книжки и справки о несудимости
D49: Бухгалтер | E49: 2 | F49: 17231.25 | H49: наличие справки о несудимости, наличие медицинской книжки
D50: Водитель автомобиля | E50: 2 | F50: 16242 | H50: Справка о неподтверждении административным наказаниям за потребление наркотических средств или психиатрических веществ , Справку о отсутствии судимости. Коммуникабильность
D51: Врач | E51: 4 | F51: 20361.25 | G51: 21175.7 | H51: специальность по образованию врач-лечебник, наличие медицинской книжки и справки о несудимости
D52: Врач функциональной диагностики | E52: 2 | F52: 20361.25 | G52: 21175.7 | H52: специальность по образованию врач-лечебник, наличие медицинской книжки и справки о несудимости
D53: Врач-акушер-гинеколог | E53: 1 | F53: 20361.25 | H53: справку о том, является или не является лицо подвергнутым административному наказанию за потребление наркотических средств или психотропных веществ без назначения врача
D54: Врач-интерн | E54: 1 | F54: 20361.25 | H54: специальность по образованию врач-лечебник, наличие медицинской книжки и справки о несудимости
D55: Врач-психиатр участковый | E55: 5 | F55: 20361.25 | G55: 28505.75 | H55: специальность по образованию врач-лечебник, наличие медицинской книжки и справки о несудимости
D56: Врач-психиатр-нарколог участковый | E56: 1 | F56: 21175.7 | H56: специальность по образованию врач-лечебник, наличие медицинской книжки справки о несудимости
D57: Врач-статистик | E57: 1 | F57: 20361.25 | H57: специальность по образованию врач-лечебник, наличие медицинской книжки и справки о несудимости
D58: Врач-стоматолог | E58: 1 | F58: 20361.25 | H58: специальность по образованию врач-лечебник, наличие медицинской книжки и справки о несудимости
D59: Врач-терапевт участковый | E59: 1 | F59: 20361.25 | H59: специальность по образованию врач-лечебник, наличие медицинской книжки и справки о несудимости
D60: Заведующий лабораторией (в прочих отраслях) | E60: 1 | F60: 25410.84 | H60: специальность по образованию врач-лечебник, наличие медицинской книжки и справки о несудимости
D61: Медицинская сестра | E61: 12 | F61: 16242 | G61: 22706.25 | H61: справка о том, является или не является лицо подвергнутым административному наказанию за потребление наркотических средств или психотропных веществ без назначения врача либо новых потенциально опасных веществ
D62: Медицинская сестра кабинета | E62: 1 | F62: 16242 | H62: справку о том, является или не является лицо подвергнутым административному наказанию за потребление наркотических средств или психотропных веществ без назначения врача либо новых потенциально опасных веществ
D63: Медицинский психолог | E63: 1 | F63: 17231.25 | H63: Справку о том, является или не является лицо подвергнутым административному наказанию за потребление наркотических средств или психотропных веществ без назначения врача либо новых потенциально опасных веществ
D64: Младшая медицинская сестра по уходу за больными | E64: 11 | F64: 16242 | G64: 22314 | H64: справку о том, что является или не является лицо подвергнутым административному наказанию за потребление наркотических средств или психотропных веществ без назначения врача либо новых потенциально опасных веществ
D65: Повар | E65: 1 | F65: 16242 | H65: Справка об административном взыскании. Справку об отсутствии судимости.Медицинская книжка
D66: Санитарка (мойщица) | E66: 1 | F66: 16242
D67: Санитарка палатная | E67: 2 | F67: 16242 | H67: наличие медицинской книжки, справки о несудимости
D68: Уборщик производственных и служебных помещений | E68: 1 | F68: 16242 | H68: наличие медицинской книжки и справки о несудимости
D69: Уборщик территорий | E69: 3 | F69: 16242 | H69: Наличие медицинской книжки, справки о несудимости
D70: Фельдшер-лаборант | E70: 1 | F70: 17920.5 | H70: Специальность по образованию врач-лечебник, наличие медицинской книжки, справки о несудимости
C71: ГОСУДАРСТВЕННОЕ БЮДЖЕТНОЕ УЧРЕЖДЕНИЕ ЦЕНТР ПЕРВИЧНОЙ МЕДИКО-САНИТАРНОЙ ПОМОЩИ Г.ЖДАНОВКА
D72: Врач общей практики (семейный) | E72: 1 | F72: 16242 | H72: Умение оказать неотложную помощь больным в экстренном состоянии.Наличие медицинской книжки, сертификатов нарколога, психолога.
D73: Медицинская сестра | E73: 4 | F73: 16242 | H73: Знание сетринского дела. Наличие медицинской книжки, сертификатов нарколога и психолога.
D74: Медицинский статистик | E74: 1 | F74: 16242 | H74: Сестринское дело. Наличие медицинской книжки, сертификатовнарколога, психолога.
D75: Экономист | E75: 1 | F75: 16242 | H75: Наличие медицинской книжки, сертификатов нарколога, психолога
A76: 88 | B76: Предоставление социальных услуг без обеспечения проживания
C77: МУНИЦИПАЛЬНОЕ БЮДЖЕТНОЕ УЧРЕЖДЕНИЕ ТЕРРИТОРИАЛЬНЫЙ ЦЕНТР СОЦИАЛЬНОГО ОБСЛУЖИВАНИЯ (ПРЕДОСТАВЛЕНИЯ СОЦИАЛЬНЫХ УСЛУГ) АДМИНИСТРАЦИИ ГОРОДА ЖДАНОВКА
D78: Медицинская сестра | E78: 1 | F78: 8207 | H78: Владение массажем. Знание ПК. Наличие санитарной книжки.
B79: Итого | C79: =COUNTA(C45:C78) -> 3 | E79: =SUM(E45:E78) -> 65

Sheet Кировский ГЦЗ
A5: Потребность, заявленная работодателями г. Кировска, по состоянию на 01.04.2023
A6: Раздел/ код ОКВЭД | B6: Виды экономической деятельности | C6: Наименование ПОУ | D6: Название профессии/ специальности | E6: Количество свободных рабочих мест (вакантных должнлстей) (ед.) | F6: Размер заработной платы, указанный в вакансии от, руб. | G6: Размер заработной платы, указанный в вакансии до, руб. | H6: Требования
A7: 1 | B7: 2 | C7: 4 | D7: 5 | E7: 6 | F7: 7 | G7: 8 | H7: 9
A8: Всего | C8: 5 | E8: 12
A9: O | B9: Государственное управление и обеспечение военной безопасности; социальное обеспечение
A10: 84 | B10: Деятельность органов государственного управления по обеспечению военной безопасности, обязательному социальному обеспечению
C11: ГБУ КИРОВСКИЙ ГОРОДСКОЙ ЦЕНТР ЗАНЯТОСТИ
D12: Специалист | E12: 1 | F12: 16242 | H12: Наличие сертификата о прохождении профилактического наркологического осмотра, медицинской справки о прохождении обязательных предварительного и периодического психиатрических освидетельствований.
B13: Итого | C13: =COUNTA(C9:C12) -> 1 | E13: =SUM(E9:E12) -> 1
A14: P | B14: Образование
A15: 85 | B15: Образование
C16: МУНИЦИПАЛЬНОЕ ОБЩЕОБРАЗОВАТЕЛЬНОЕ УЧРЕЖДЕНИЕ СРЕДНЯЯ ШКОЛА 2 ГОРОДА КИРОВСКОЕ
D17: Дворник | E17: 1 | F17: 16242 | H17: Наличие медицинской книжки.
C18: МДОУ ЯСЛИ-САД 16 ГОРОДА КИРОВСКОЕ
D19: Рабочий по комплексному обслуживанию и ремонту зданий | E19: 1 | F19: 16242 | H19: Наличие медицинской книжки. Знание основ ремонтно-строительных работ и способы их выполнения, назначение и устройство инструментов, приспособлений, оборудования при ведении работ.
C20: МУНИЦИПАЛЬНОЕ ДОШКОЛЬНОЕ ОБРАЗОВАТЕЛЬНОЕ УЧРЕЖДЕНИЕ ЯСЛИ-САД 7 ГОРОДА КИРОВСКОЕ
D21: Рабочий по комплексному обслуживанию и ремонту зданий | E21: 1 | F21: 16242 | H21: Наличие медицинской книжки. Знание основ ремонтно-строительных работ и способы их выполнения, назначение и устройство инструментов, приспособлений, оборудования при ведении работ.
B22: Итого | C22: =COUNTA(C14:C21) -> 3 | E22: =SUM(E14:E21) -> 3
A23: Q | B23: Деятельность в области здравоохранения и социальных услуг
A24: 87 | B24: Деятельность по уходу с обеспечением проживания
C25: ГБУ КИРОВСКИЙ ПСИХОНЕВРОЛОГИЧЕСКИЙ ИНТЕРНАТ
D26: Инженер по охране труда | E26: 1 | F26: 23009 | H26: Наличие медицинской книжки. Умение работать на персональном компьютере с использованием программ Microsoft Word, Microsoft Excel; пользоваться офисной оргтехникой: факсом, сканером, принтером
D27: Машинист по стирке и ремонту спецодежды | E27: 1 | F27: 16242 | H27: Наличие медицинской книжки.
D28: Медицинская сестра | E28: 1 | F28: 26210 | H28: Наличие медицинской книжки.
D29: Рабочий зеленого строительства | E29: 1 | F29: 15279 | H29: Наличие медицинской книжки.
D30: Рабочий по благоустройству населенных пунктов | E30: 1 | F30: 16242 | H30: Наличие медицинской книжки.
D31: Санитарка (мойщица) | E31: 1 | F31: 15279 | H31: Наличие медицинской книжки.
D32: Уборщик производственных и служебных помещений | E32: 1 | F32: 15279 | H32: Наличие медицинской книжки.
D33: Юрисконсульт | E33: 1 | F33: 21618 | H33: Наличие медицинской книжки. Умение работать на персональном компьютере с использованием программ Microsoft Word, Microsoft Excel; пользоваться офисной оргтехникой: факсом, сканером, принтером,
B34: Итого | C34: =COUNTA(C23:C33) -> 1 | E34: =SUM(E23:E33) -> 8

Sheet Макеевский ГЦЗ
A5: Потребность, заявленная работодателями г. Макеевки, по состоянию на 01.04.2023
A6: Раздел/ код ОКВЭД | B6: Виды экономической деятельности | C6: Наименование ПОУ | D6: Название профессии/ специальности | E6: Количество свободных рабочих мест (вакантных должнлстей) (ед.) | F6: Размер заработной платы, указанный в вакансии от, руб. | G6: Размер заработной платы, указанный в вакансии до, руб. | H6: Требования
A7: 1 | B7: 2 | C7: 3 | D7: 4 | E7: 5 | F7: 6 | G7: 7 | H7: 8
A8: Всего | C8: 135 | E8: 2010
A9: B | B9: Добыча полезных ископаемых
A10: 5 | B10: Добыча угля
C11: ОБЩЕСТВО С ОГРАНИЧЕННОЙ ОТВЕТСТВЕННОСТЬЮ "УГЛЕКОМ"
D12: Машинист подземных установок | E12: 5 | F12: 27000 | H12: Прохождение медицинского осмотра. Наличие психиатрического и наркологического сертификата.
B13: Итого | C13: =COUNTA(C9:C12) -> 1 | E13: =SUM(E9:E12) -> 5
A14: C | B14: Обрабатывающие производства
A15: 10 | B15: Производство пищевых продуктов
C16: ООО ТОРГОВЫЙ ДОМ ПРОДУКТЫ ДОНБАССА
D17: Бухгалтер | E17: 1 | F17: 26300 | H17: Наличие санитарной книжки
D18: Машинист разливочно-наполнительных автоматов | E18: 2 | F18: 16280 | H18: Наличие санитарной книжки
D19: Оператор котельной | E19: 1 | F19: 21900 | H19: Наличие санитарной книжки
D20: Слесарь по контрольноизмерительным приборам и автоматике | E20: 2 | F20: 32900 | H20: Наличие санитарной книжки
D21: Слесарь-электрик по ремонту электрооборудования | E21: 1 | F21: 28200 | H21: Наличие санитарной книжки обязательно
C22: МУНИЦИПАЛЬНОЕ УНИТАРНОЕ ПРЕДПРИЯТИЕ АДМИНИСТРАЦИИ ГОРОДА МАКЕЕВКИ МАКЕЕВСКИЙ КОМБИНАТ ДЕТСКОГО ПИТАНИЯ
D23: Водитель автомобиля | E23: 2 | F23: 16480 | H23: Наличие медицинской справки, психиатрического и наркологического сертификатов
C24: ОБЩЕСТВО С ОГРАНИЧЕННОЙ ОТВЕТСТВЕННОСТЬЮ ФИРМА КОЛБИКО
D25: Грузчик | E25: 8 | F25: 16300 | H25: Наличие медицинской книжки
D26: Обработчик технологических емкостей и тары | E26: 25 | F26: 16250 | H26: Наличие медицинской книжки
D27: Продавец продовольственных товаров | E27: 15 | F27: 16300 | H27: Наличие медицинской книжки
D28: Укладчик-упаковщик | E28: 14 | F28: 16250 | H28: Наличие медицинской книжки
A29: 19 | B29: Производство кокса и нефтепродуктов
C30: ФИЛИАЛ №4 "МАКЕЕВКОКС" ОБЩЕСТВА С ОГРАНИЧЕННОЙ ОТВЕТСТВЕННОСТЬЮ "ЮЖНЫЙ ГОРНО-МЕТАЛЛУРГИЧЕСКИЙ КОМПЛЕКС ДОНЕЦК"
D31: Аппаратчик очистки газа | E31: 11 | F31: 23200 | H31: Обязательное прохождение медицинского осмотра. Наличие наркологического и психиатрического сертификата.
D32: Аппаратчик производства контактной серной кислоты | E32: 6 | F32: 27100 | G32: 30200 | H32: Обязательное прохождение медицинского осмотра. Наличие наркологического и психиатрического сертификата.
D33: Разливщик химической продукции | E33: 21 | F33: 24700 | H33: Обязательное прохождение медицинского осмотра. Наличие наркологического и психиатрического сертификата.
A34: 24 | B34: Производство металлургическое
C35: ФИЛИАЛ №2 "ШАХТОУПРАВЛЕНИЕ "ДОНБАСС"ОБЩЕСТВА С ОГРАНИЧЕННОЙ ОТВЕТСТВЕННОСТЬЮ "ДОНЕЦКИЙ МЕТАЛЛУРГИЧЕСКИЙ ЗАВОД
D36: Горнорабочий очистного забоя | E36: 300 | F36: 45000 | H36: Наличие сертификатов нарколога и психолога
D37: Горнорабочий по ремонту горных выработок | E37: 100 | F37: 32000 | H37: Наличие сертификатов нарколога и психолога
D38: Горнорабочий подземный | E38: 100 | F38: 25000 | H38: Наличие сертификатов нарколога и психиатра
D39: Машинист насосных установок | E39: 10 | F39: 16250
D40: Проходчик | E40: 100 | F40: 45000 | H40: Наличие сертификатов нарколога и психолога
D41: Электрослесарь подземный | E41: 200 | F41: 35000 | H41: Наличие сертификатов нарколога и психолога
C42: ФИЛИАЛ №3 МАКЕЕВСКИЙ МЕТАЛЛУРГИЧЕСКИЙ ЗАВОД ОБЩЕСТВА С ОГРАНИЧЕННОЙ ОТВЕТСТВЕННОСТЬЮ ЮЖНЫЙ ГОРНО-МЕТАЛЛУРГИЧЕСКИЙ КОМПЛЕКС
D43: Дворник | E43: 9 | F43: 18500 | H43: Прохождение медосмотра
D44: Дежурный стрелочного поста | E44: 10 | F44: 19451 | H44: Прохождение медосмотра.
D45: Машинист крана металлургического производства | E45: 11 | F45: 36229 | H45: Прохождение медосмотра
D46: Машинист насосных установок | E46: 4 | F46: 26000
D47: Осмотрщик-ремонтник вагонов | E47: 10 | F47: 28450
D48: Помощник машиниста тепловоза | E48: 4 | F48: 35258
D49: Составитель поездов | E49: 5 | F49: 32413
D50: Электрогазосварщик | E50: 4 | F50: 34818 | H50: Наличие медицинской книжки
D51: Электросварщик на автоматических и полуавтоматических машинах | E51: 4 | F51: 31304 | H51: Наличие медицинской книжки
B52: Итого | C52: =COUNTA(C14:C51) -> 6 | E52: =SUM(E14:E51) -> 980
A53: D | B53: Обеспечение электрической энергией, газом и паром; кондиционирование воздуха
A54: 35 | B54: Обеспечение электрической энергией, газом и паром; кондиционирование воздуха
C55: ГОСУДАРСТВЕННОЕ УНИТАРНОЕ ПРЕДПРИЯТИЕ ДОНЕЦКОЙ НАРОДНОЙ РЕСПУБЛИКИ ДОНБАССТЕПЛОЭНЕРГО
D56: Аппаратчик химводоочистки | E56: 27 | F56: 17154
D57: Водитель автомобиля | E57: 4 | F57: 20585 | G57: 22674 | H57: Прохождения профосмотра
D58: Главный инженер (в прочих отраслях) | E58: 1 | F58: 51615 | H58: Стаж по специальности на инженерно-технических должностях, главный инженер тепловых сетей
D59: Грузчик | E59: 1 | F59: 17154 | H59: Прохождение профосмотра
D60: Диспетчер | E60: 1 | F60: 23870 | H60: Прохлждения профосмотра
D61: Инженер | E61: 1 | F61: 36700 | H61: Прохождение профосмотра, стаж работы не менее 3 лет в должности инженера 2 категории
D62: Инженер | E62: 5 | F62: 29835 | G62: 33265 | H62: Прохождение профосмотра
D63: Инженер-программист | E63: 2 | F63: 36700 | H63: Прохождение профосмотра
D64: Инженер-проектировщик | E64: 1 | F64: 40130 | H64: Не менее трех лет в органищзациях, осуществляющих подготовку проектной документации, на инженерных должностях
D65: Инспектор по проведению профилактических осмотров водителей автомототранспортных средств | E65: 1 | F65: 22525 | H65: Прохождение профосмотра, 0,5 ставки
D66: Каменщик | E66: 4 | F66: 23500 | H66: Опыт выполнения обмуровочных кладок, прохождение профосмотра
D67: Кассир | E67: 2 | F67: 26555 | H67: Прохождение профосмотра
D68: Контролер-учетчик | E68: 4 | F68: 19695 | H68: Прохождение профосмотра
D69: Кровельщик по рулонным кровлям и по кровлям из штучных материалов | E69: 1 | F69: 23500 | H69: Прохождение профосмотра
D70: Лаборант химического анализа | E70: 1 | F70: 21630 | H70: Прохождения профосмотра
D71: Мастер | E71: 13 | F71: 36100 | G71: 44755 | H71: Прохождение профосмотра
D72: Машинист (кочегар) котельной | E72: 17 | F72: 23716 | H72: Прохождения профосмотра
D73: Машинист баровой установки | E73: 1 | F73: 25347 | H73: Наличие водительского удостоверения категории F
D74: Машинист крана автомобильного | E74: 2 | F74: 22972 | G74: 28515 | H74: Прохождение профосмотра
D75: Машинист экскаватора | E75: 5 | F75: 27374 | H75: Наличие водительского удостоверения категории F, удостоверения машиниста экскаватора
D76: Огнеупорщик | E76: 2 | F76: 21296 | H76: Прохождение профосмотра
D77: Оператор котельной | E77: 66 | F77: 17154 | G77: 21630 | H77: Прохождение профосмотра
D78: Оператор теплового пункта | E78: 1 | F78: 17154
D79: Оператор электронно-вычислительных и вычислительных машин | E79: 1 | F79: 21780 | H79: Прохождение профосмотра
D80: Плотник | E80: 2 | F80: 21297 | G80: 23500 | H80: Прохождение профосмотра
D81: Слесарь по контрольноизмерительным приборам и автоматике | E81: 17 | F81: 21630 | G81: 23867 | H81: Прохождение профосмотра
D82: Слесарь по ремонту автомобилей | E82: 2 | F82: 21630 | G82: 23867 | H82: Прохождение профосмотра
D83: Слесарь по ремонту оборудования котельных и пылеприготовительных цехов | E83: 50 | F83: 21630 | G83: 23867
D84: Слесарь по ремонту оборудования тепловых сетей | E84: 52 | F84: 19391 | G84: 23867 | H84: Прохождение профосмотра
D85: Слесарь по эксплуатации и ремонту газового оборудования | E85: 11 | F85: 19391 | G85: 23867 | H85: Прохождение профосмотра
D86: Тракторист | E86: 1 | F86: 20595 | H86: Прохождение профосмотра
D87: Уборщик производственных и служебных помещений | E87: 1 | F87: 17155 | H87: Прохождение профосмотра
D88: Штукатур | E88: 2 | F88: 21297 | H88: Прохождение профосмотра
D89: Электрогазосварщик | E89: 28 | F89: 22971 | G89: 25346 | H89: Прохождение профосмотра
D90: Электромонтер по ремонту и обслуживанию электрооборудования | E90: 13 | F90: 21630 | G90: 23867 | H90: Прохождение профосмотра
D91: Юрисконсульт | E91: 1 | F91: 36700 | H91: Прохождение профосмотра
B92: Итого | C92: =COUNTA(C53:C91) -> 1 | E92: =SUM(E53:E91) -> 344
A93: E | B93: Водоснабжение; водоотведение, организация сбора и утилизации отходов, деятельность по ликвидации загрязнений
A94: 36 | B94: Забор, очистка и распределение воды
C95: ФИЛИАЛ МАКЕЕВСКОЕ ПРОИЗВОДСТВЕННОЕ УПРАВЛЕНИЕ ВОДОПРОВОДНО-КАНАЛИЗАЦИОННОГО ХОЗЯЙСТВА ГОСУДАРСТВЕННОГО УНИТАРНОГО ПРЕДПРИЯТИЯ ДОНЕЦКОЙ НАРОДНОЙ РЕСПУБЛИКИ ВОДА ДОНБАССА
D96: Бухгалтер | E96: 2 | F96: 30000 | H96: Наличие медицинской книжки
D97: Водитель автомобиля | E97: 2 | F97: 20400 | H97: Наличие медицинской книжки
D98: Инженер | E98: 1 | F98: 20000 | H98: Наличие санитарной книжки.
D99: Оператор на песколовках и жироловках | E99: 1 | F99: 20000 | H99: Наличие медицинской книжки
D100: Слесарь аварийно-восстановительных работ | E100: 10 | F100: 23600 | H100: Наличие медицинской книжки
D101: Электрогазосварщик | E101: 2 | F101: 30600 | H101: Наличие медицинской книжки
B102: Итого | C102: =COUNTA(C93:C101) -> 1 | E102: =SUM(E93:E101) -> 18
A103: F | B103: Строительство
A104: 41 | B104: Строительство зданий
C105: ОБЩЕСТВО С ОГРАНИЧЕННОЙ ОТВЕТСТВЕННОСТЬЮ "ДИНКОМ"
D106: Дорожный рабочий | E106: 10 | F106: 30000
B107: Итого | C107: =COUNTA(C103:C106) -> 1 | E107: =SUM(E103:E106) -> 10
A108: G | B108: Торговля оптовая и розничная; ремонт автотранспортных средств и мотоциклов
A109: 47 | B109: Торговля розничная, кроме торговли автотранспортными средствами и мотоциклами
C110: ООО ЛОДИ
D111: Оператор заправочных станций | E111: 3 | F111: 16632 | H111: Наличие медицинской книжки
C112: ООО ТАБАККО ТРЕЙДИНГ
D113: Продавец непродовольственных товаров | E113: 30 | F113: 16250 | H113: Наличие медицинской книжки
B114: Итого | C114: =COUNTA(C108:C113) -> 2 | E114: =SUM(E108:E113) -> 33
A115: H | B115: Транспортировка и хранение
A116: 49 | B116: Деятельность сухопутного и трубопроводного транспорта
C117: МУНИЦИПАЛЬНОЕ УНИТАРНОЕ ПРЕДПРИЯТИЕ АДМИНИСТРАЦИИ ГОРОДА МАКЕЕВКИ МАКЭЛЕКТРОТРАНС
D118: Секретарь руководителя | E118: 1 | F118: 16242 | H118: Наличие медицинской справки
B119: Итого | C119: =COUNTA(C115:C118) -> 1 | E119: =SUM(E115:E118) -> 1
A120: L | B120: Деятельность по операциям с недвижимым имуществом
A121: 68 | B121: Операции с недвижимым имуществом
C122: МУНИЦИПАЛЬНОЕ УНИТАРНОЕ ПРЕДПРИЯТИЕ АДМИНИСТРАЦИИ ГОРОДА МАКЕЕВКИ КОММУНАЛЬНИК-3
D123: Дворник | E123: 30 | F123: 16242 | H123: Прохождение обязательных и периодических медицинских осмотров.
D124: Каменщик | E124: 3 | F124: 16242 | H124: Наличие медицинской книжки
D125: Кровельщик по рулонным кровлям и по кровлям из штучных материалов | E125: 7 | F125: 16242
D126: Маляр | E126: 7 | F126: 16242 | H126: Наличие медицинской книжки
D127: Монтажник санитарно-технических систем и оборудования | E127: 8 | F127: 16242 | H127: Наличие медицинской книжки
D128: Электрогазосварщик | E128: 3 | F128: 16242 | H128: Наличие удостоверения о присвоении квалификационной группы по электробезопасности
D129: Электромонтер по ремонту и обслуживанию электрооборудования | E129: 4 | F129: 16242 | H129: Прохождение обязательных предварительных и периодических медицинских осмотров, наличие удостоверения о присвоении квалификационной группы по электробезопасности
C130: ДОЧЕРНЕЕ ПРЕДПРИЯТИЕ РЕСПУБЛИКАНСКИЙ РЫНОК №13/2 ГОСУДАРСТВЕННОГО ПРЕДПРИЯТИЯ РЫНКИ ДОНБАССА
D131: Охранник | E131: 3 | F131: 25416 | H131: Наличие справки об отсутствии судимости, сертификата нарколога и психиатра, справки о прохождении флюрографии, без ограничений к работе в ночную смену и длительного нахождения на ногах
C132: ДОЧЕРНЕЕ ПРЕДПРИЯТИЕ РЕСПУБЛИКАНСКИЙ РЫНОК № 16/3 ГОСУДАРСТВЕННОГО ПРЕДПРИЯТИЯ РЫНКИ ДОНБАССА
D133: Уборщик территорий | E133: 3 | F133: 19262 | H133: Наличие санитарной книжки.
B134: Итого | C134: =COUNTA(C120:C133) -> 3 | E134: =SUM(E120:E133) -> 68
A135: M | B135: Деятельность профессиональная, научная и техническая
A136: 70 | B136: Деятельность головных офисов; консультирование по вопросам управления
C137: ГОСУДАРСТВЕННОЕ УНИТАРНОЕ ПРЕДПРИЯТИЕ ДОНЕЦКОЙ НАРОДНОЙ РЕСПУБЛИКИ МАКЕЕВУГОЛЬ
D138: Рабочий производственных бань | E138: 10 | F138: 16242
D139: Электрослесарь (слесарь) дежурный и по ремонту оборудования | E139: 5 | F139: 22000
B140: Итого | C140: =COUNTA(C135:C139) -> 1 | E140: =SUM(E135:E139) -> 15
A141: N | B141: Деятельность административная и сопутствующие дополнительные услуги
A142: 81 | B142: Деятельность по обслуживанию зданий и территорий
C143: МУНИЦИПАЛЬНОЕ УНИТАРНОЕ ПРЕДПРИЯТИЕ АДМИНИСТРАЦИИ ГОРОДА МАКЕЕВКИ КОММУНАЛЬНИК-15
D144: Газосварщик | E144: 7 | F144: 20000 | H144: Наличие медицинской книжки
D145: Кровельщик по рулонным кровлям и по кровлям из штучных материалов | E145: 9 | F145: 20000
D146: Лифтер | E146: 30 | F146: 16242 | H146: Наличие медицинской книжки.
D147: Слесарь-сантехник | E147: 4 | F147: 16242 | H147: Наличие медицинской книжки
D148: Электромеханик по лифтам | E148: 5 | F148: 20000 | H148: Наличие медицинской книжки
D149: Электромонтер по ремонту и обслуживанию электрооборудования | E149: 12 | F149: 20000
C150: МУНИЦИПАЛЬНОЕ УНИТАРНОЕ ПРЕДПРИЯТИЕ АДМИНИСТРАЦИИ ГОРОДА МАКЕЕВКИ ПЕРСПЕКТИВА
D151: Дорожный рабочий | E151: 10 | F151: 20874
D152: Рабочий зеленого хозяйства | E152: 10 | F152: 16242
D153: Рабочий по благоустройству населенных пунктов | E153: 29 | F153: 16242
D154: Электромонтер по ремонту и обслуживанию электрооборудования | E154: 3 | F154: 22282
B155: Итого | C155: =COUNTA(C141:C154) -> 2 | E155: =SUM(E141:E154) -> 119
A156: O | B156: Государственное управление и обеспечение военной безопасности; социальное обеспечение
A157: 84 | B157: Деятельность органов государственного управления по обеспечению военной безопасности, обязательному социальному обеспечению
C158: ГБУ УПРАВЛЕНИЕ ПЕНСИОННОГО ФОНДА ДОНЕЦКОЙ НАРОДНОЙ РЕСПУБЛИКИ В СОВЕТСКОМ РАЙОНЕ Г.МАКЕЕВКИ
D159: Главный специалист | E159: 4 | F159: 16242 | H159: Полное высшее образование в сфере экономики, информационных технологий.Опыт работы на должности специалиста - 1 год, в других сферах по специальности - не менее 2-х лет
D160: Начальник отдела (на предприятиях социально-бытового обслуживания населения) | E160: 1 | F160: 18723
D161: Специалист | E161: 5 | F161: 16242 | H161: Полное высшее образование в сфере экономики, информационных технологий.Опыт работы на должности специалиста - 1 год, в других сферах по специальности - не менее 2-х лет.
C162: ГБУ УПРАВЛЕНИЕ ПЕНСИОННОГО ФОНДА ДОНЕЦКОЙ НАРОДНОЙ РЕСПУБЛИКИ В ЧЕРВОНОГВАРДЕЙСКОМ РАЙОНЕ Г.МАКЕЕВКИ
D163: Главный специалист | E163: 1 | F163: 17000 | H163: Наличие справки 133у
C164: ГОСУДАРСТВЕННОЕ БЮДЖЕТНОЕ УЧРЕЖДЕНИЕ УПРАВЛЕНИЕ ПЕНСИОННОГО ФОНДА ДОНЕЦКОЙ НАРОДНОЙ РЕСПУБЛИКИ В КИРОВСКОМ РАЙОНЕ Г.МАКЕЕВКИ
D165: Главный специалист | E165: 1 | F165: 20000
D166: Специалист | E166: 8 | F166: 16242
C167: МУНИЦИПАЛЬНОЕ БЮДЖЕТНОЕ УЧРЕЖДЕНИЕ ТЕРРИТОРИАЛЬНЫЙ ЦЕНТР СОЦИАЛЬНОГО ОБСЛУЖИВАНИЯ (ПРЕДОСТАВЛЕНИЯ СОЦИАЛЬНЫХ УСЛУГ) ГОРНЯЦКОГО РАЙОНА ГОРОДА МАКЕЕВКИ
D168: Санитарка (мойщица) | E168: 1 | F168: 16242 | H168: Наличие медицинской книжки
D169: Социальный работник | E169: 1 | F169: 16242 | H169: Наличие медицинской книжки
C170: ГБУ ОТДЕЛЕНИЕ ФОНДА СОЦИАЛЬНОГО СТРАХОВАНИЯ ОТ НЕСЧАСТНЫХ СЛУЧАЕВ НА ПРОИЗВОДСТВЕ И ПРОФЕССИОНАЛЬНЫХ ЗАБОЛЕВАНИЙ ДОНЕЦКОЙ НАРОДНОЙ РЕСПУБЛИКИ В ГОРНЯЦКОМ РАЙОНЕ Г. МАКЕЕВКИ
D171: Специалист | E171: 1 | F171: 20834 | H171: Специалист по компьютерному обеспечению
C172: ГБУ ОТДЕЛЕНИЕ ФОНДА СОЦИАЛЬНОГО СТРАХОВАНИЯ ОТ НЕСЧАСТНЫХ СЛУЧАЕВ НА ПРОИЗВОДСТВЕ И ПРОФЕССИОНАЛЬНЫХ ЗАБОЛЕВАНИЙ ДОНЕЦКОЙ НАРОДНОЙ РЕСПУБЛИКИ В КИРОВСКОМ РАЙОНЕ Г. МАКЕЕВКИ
D173: Специалист | E173: 1 | F173: 20834 | H173: Должен знать: - Законодательство Российской Федерации в сфере социальной защиты населения; -Национальные стандарты Российской Федерации в сфере социального обслуживания;
B174: Итого | C174: =COUNTA(C156:C173) -> 6 | E174: =SUM(E156:E173) -> 24
A175: P | B175: Образование
A176: 85 | B176: Образование
C177: ГОСУДАРСТВЕННОЕ БЮДЖЕТНОЕ ОБРАЗОВАТЕЛЬНОЕ УЧРЕЖДЕНИЕ ВЫСШЕГО ОБРАЗОВАНИЯ ДОНБАССКАЯ АГРАРНАЯ АКАДЕМИЯ
D178: Администратор баз данных | E178: 1 | F178: 18407 | H178: Опыт работы на аналогичной должности от 3 лет
D179: Бухгалтер | E179: 2 | F179: 16242
D180: Диспетчер факультета | E180: 1 | F180: 16242 | H180: Навыки работы с компьютерной техникой, опыт работы по архивированию документов приветствуется
D181: Инженер | E181: 1 | F181: 16289 | H181: Опыт работы на аналогичной должности от 3 лет
D182: Преподаватель (в колледжах, университетах и других вузах) | E182: 1 | F182: 16242
D183: Специалист | E183: 1 | F183: 19415 | H183: Возможно трудоустройство с образованием в области различных фундаментальных и прикладных наук.
C184: ГОСУДАРСТВЕННОЕ ПРОФЕССИОНАЛЬНОЕ ОБРАЗОВАТЕЛЬНОЕ УЧРЕЖДЕНИЕ МАКЕЕВСКИЙ МЕДИЦИНСКИЙ КОЛЛЕДЖ
D185: Бухгалтер | E185: 1 | F185: 16242 | H185: Наличие медицинской книжки
D186: Главный бухгалтер | E186: 1 | F186: 19740 | H186: Наличие медицинской книжки
D187: Преподаватель (в системе специального образования) | E187: 4 | F187: 16242 | H187: Наличие медицинской книжки
C188: УПРАВЛЕНИЕ ОБРАЗОВАНИЯ АДМИНИСТРАЦИИ ГОРОДА МАКЕЕВКИ
D189: Бухгалтер | E189: 4 | F189: 27570
C190: ГОСУДАРСТВЕННОЕ БЮДЖЕТНОЕ ПРОФЕССИОНАЛЬНОЕ ОБРАЗОВАТЕЛЬНОЕ УЧРЕЖДЕНИЕ МАКЕЕВСКИЙ ТЕХНИКУМ КОММУНАЛЬНОГО ХОЗЯЙСТВА И БЫТА
D191: Бухгалтер | E191: 1 | F191: 16242 | H191: Знание законодательства Российской Федерации о бухгалтерском учете, налогах и сборах, социальном и медицинском страховании, в сфере образования
C192: МБОУ СРЕДНЯЯ ШКОЛА № 103 ГОРОДА МАКЕЕВКИ
D193: Водитель автомобиля | E193: 1 | F193: 16242 | H193: Наличие санитарной книжки, сертификатов нарколога и психиатра
D194: Инженер-электроник | E194: 1 | F194: 16242 | H194: Наличие санитарной книжки, сертификатов нарколога и психиатра, знание языков программирования приветствуется
D195: Медицинская сестра | E195: 1 | F195: 16242 | H195: Наличие медицинской книжки, сертификатов нарколога и психиатра
D196: Педагог-организатор | E196: 1 | F196: 16242 | H196: Наличие санитарной книжки, сертификатов нарколога и психолога
D197: Повар | E197: 1 | F197: 16242 | H197: Наличие медицинской книжки, сертификата нарколога и психиатра, опыт работы в детских учреждениях приветствуется
D198: Уборщик производственных и служебных помещений | E198: 1 | F198: 16242 | H198: Наличие санитарной книжки, сертификата нарколога и психиатра. Владение современными технологиями клининга приветствуется.
C199: МУНИЦИПАЛЬНОЕ БЮДЖЕТНОЕ ОБЩЕОБРАЗОВАТЕЛЬНОЕ УЧРЕЖДЕНИЕ СРЕДНЯЯ ШКОЛА № 19 ГОРОДА МАКЕЕВКИ
D200: Водитель автомобиля | E200: 1 | F200: 16242 | H200: Наличие санитарной книжки.
C201: МУНИЦИПАЛЬНОЕ БЮДЖЕТНОЕ ОБЩЕОБРАЗОВАТЕЛЬНОЕ УЧРЕЖДЕНИЕ СРЕДНЯЯ ШКОЛА № 1 ГОРОДА МАКЕЕВКИ
D202: Водитель автомобиля | E202: 1 | F202: 16242 | H202: Наличие санитарной книжки
D203: Руководитель кружка (клуба по интересам, коллектива, любительского объединения, секции, студии, туристской группы) | E203: 1 | F203: 16242
D204: Учитель | E204: 1 | F204: 16242
... 375 more rows

Sheet Мариупольский ГЦЗ
A5: Потребность, заявленная работодателями г. Мариуполь, по состоянию на 01.04.2023
A6: Раздел/ код ОКВЭД | B6: Виды экономической деятельности | C6: Наименование ПОУ | D6: Название профессии/ специальности | E6: Количество свободных рабочих мест (вакантных должнлстей) (ед.) | F6: Размер заработной платы, указанный в вакансии от, руб. | G6: Размер заработной платы, указанный в вакансии до, руб. | H6: Требования
A7: 1 | B7: 2 | C7: 3 | D7: 4 | E7: 5 | F7: 6 | G7: 7 | H7: 8
A8: Всего | C8: 43 | E8: 801
A9: C | B9: Обрабатывающие производства
A10: 10 | B10: Производство пищевых продуктов
C11: ООО ЭКОИЛЬИЧПРОДУКТ
D12: Менеджер | E12: 1 | F12: 19200
D13: Экономист | E13: 1 | F13: 23500 | H13: Опыт работы от 3 х лет
A14: 20 | B14: Производство химических веществ и химических продуктов
C15: ООО МИК
D16: Наполнитель баллонов | E16: 3 | F16: 40000 | H16: Желателен опыт работы.
B17: Итого | C17: =COUNTA(C9:C16) -> 2 | E17: =SUM(E9:E16) -> 5
A18: D | B18: Обеспечение электрической энергией, газом и паром; кондиционирование воздуха
A19: 35 | B19: Обеспечение электрической энергией, газом и паром; кондиционирование воздуха
C20: ГОСУДАРСТВЕННЫЙ КОНЦЕРН ДОНБАССГАЗ
D21: Водитель автомобиля | E21: 4 | F21: 21181 | H21: Соответствующая обощенной трудовой функции А профессионального стандарта Водитель внедорожных автомототранспортных средств, Водитель ТС. Водительское удостоверение категории В,С ; В,С,Д.
D22: Водитель автомобиля | E22: 5 | F22: 20585 | H22: Карточка работника, подлежащего обязательному предварительному медицинскому осмотру, медицинская справка о пригодности к управлению транспортным средством. Сертификат о прохождении профилактического осмотра
D23: Инструктор по противопожарной профилактике | E23: 1 | F23: 33400 | H23: Должен уметь: планировать организационно-технические мероприятия по устранению причин возгораний; идентифицировать опасности и разрабатывать рекомендации по уменьшению пожарного риска
D24: Каменщик | E24: 1 | F24: 25745 | H24: Должен знать: способы и правила соединения кладки при усилении стен зданий и сооружений; способы и правила устройства металлической гидроизоляции фундаментов, стен и перекрытий, конструкций перемычек
D25: Контролер газового хозяйства | E25: 10 | F25: 22045 | H25: Должен знать: устройство, принцип работы итехнические характеристики газовых счётчиков.
D26: Маляр | E26: 1 | F26: 23080 | H26: Должен знать: виды основных материалов, применяемых при производстве малярных и обойных работ; виды росписей и шрифтов; способы приготовления клея и раскроя обоев
D27: Оператор электронно-вычислительных и вычислительных машин | E27: 1 | F27: 24385 | H27: Знание законов Об обращении граждан, Огосударственной регистрации вещных прав на недвижимое имущество и их ограничений, знание программ Windows word excel
D28: Плотник | E28: 1 | F28: 26304 | H28: Должен знать: основные породы и пороки древесины; способы распиловки и заготовления прямолинейных щитов; способы устройства дощатых настилов, перегородок; основные свойства материалов
D29: Подсобный рабочий | E29: 5 | F29: 19203 | H29: Знание норм, правил погрузки, выгрузки, перемещения и укладки грузов.
D30: Рабочий зеленого хозяйства | E30: 1 | F30: 21207 | H30: Должен знать: способы выкапывания стандартных деревьев и кустарников; способы удаления поврежденных корней и веток крон; способы обрезки и прореживания крон деревьев, кустарников и цветочных насаждений
D31: Слесарь по эксплуатации и ремонту газового оборудования | E31: 2 | F31: 23445 | H31: Умение читать техническую документацию общего и специализированного назначения, выявлять внешние дефекты технических устройств для дальнейшего ремонта газового оборудования жилых и общественных зданий
D32: Слесарь по эксплуатации и ремонту газового оборудования | E32: 2 | F32: 21630 | H32: Умение читать тех.документацию общего и спец.назначения, выявлять внешние дефекты тех.устройств для дальнейшего ремонта газового оборудывания жилых и общественных зданий, определять места утечек газа,
D33: Специалист по кадрам | E33: 1 | F33: 28195 | H33: Наличие медицинской книжки формы 027/у
D34: Штукатур | E34: 1 | F34: 23838 | H34: Должен знать: виды штукатурок и штукатурных растворов; назначение и способы приготовления штукатурных растворов, в том числе с химическими добавками, и правила обращения с ними
D35: Электрогазосварщик | E35: 4 | F35: 25346 | H35: наличие удостоверения электрогазосварщика (свидетельства) соответствующей квалификации. Владеть техникой сварки.
D36: Юрисконсульт | E36: 1 | F36: 37240 | H36: Знание: гражданского, трудового, финансового и административного права; порядок заключения, расторжения, изменения и оформления договоров.
C37: ГОСУДАРСТВЕННОЕ УНИТАРНОЕ ПРЕДПРИЯТИЕ ДОНЕЦКОЙ НАРОДНОЙ РЕСПУБЛИКИ ДОНБАССТЕПЛОЭНЕРГО
D38: Электромонтер по ремонту и обслуживанию электрооборудования | E38: 1 | F38: 23630 | H38: Наличие медицинской книжки, сертификатов нарколога и психиатра. Навыки работы на обьектах любой сложности.
B39: Итого | C39: =COUNTA(C18:C38) -> 2 | E39: =SUM(E18:E38) -> 42
A40: E | B40: Водоснабжение; водоотведение, организация сбора и утилизации отходов, деятельность по ликвидации загрязнений
A41: 36 | B41: Забор, очистка и распределение воды
C42: Ф-Л "МАРИУП. ПРОИЗВ. УПР-Е ВОДОПР-КАНАЛИЗ. ХОЗ-ВА" ГОСУДАРСТВЕННОЕ УНИТАРНОЕ ПРЕДПРИЯТИЕ ДОНЕЦКОЙ НАРОДНОЙ РЕСПУБЛИКИ ВОДА ДОНБАССА
D43: Газорезчик | E43: 3 | F43: 30011 | H43: Подготовка по специальности и стаж работы по профессии не менее 1 года
D44: Дорожный рабочий | E44: 2 | F44: 23384
D45: Контролер водопроводного хозяйства | E45: 5 | F45: 19320
D46: Слесарь аварийно-восстановительных работ | E46: 5 | F46: 25500
D47: Электромонтер по испытаниям и измерениям | E47: 2 | F47: 27788 | H47: Электромонтёр по испытаниям и измерениям 5 разряда. Подготовка по специальности и стаж работы по профессии не менее 1 года.
D48: Электромонтер по ремонту и обслуживанию электрооборудования | E48: 2 | F48: 25500 | H48: Электромонтёр по ремонту и обслуживанию электрооборудования 4 разряда. Подготовка по специальности и стаж работы по профессии не менее 1 года.
D49: Электромонтер по ремонту и обслуживанию электрооборудования | E49: 2 | F49: 28900 | H49: Электромонтёр по ремонту и обслуживанию электрооборудования 5 разряда. Подготовка по специальности и стаж ра боты по профессии не менее 1 года.
D50: Электросварщик ручной сварки | E50: 3 | F50: 31123 | H50: Подготовка по специальности и стаж работы по профессии не менее 1 года
B51: Итого | C51: =COUNTA(C40:C50) -> 1 | E51: =SUM(E40:E50) -> 24
A52: F | B52: Строительство
A53: 41 | B53: Строительство зданий
C54: ОБЩЕСТВО С ОГРАНИЧЕННОЙ ОТВЕТСТВЕННОСТЬЮ АРХИТЕКТУРНО-ПРОИЗВОДСТВЕННАЯ КОМПАНИЯ "БЕЛЫЙ МЕДВЕДЬ"
D55: Уборщик производственных и служебных помещений | E55: 10 | F55: 30000 | H55: Ответственность, пунктуальность
A56: 42 | B56: Строительство инженерных сооружений
C57: МУНИЦИПАЛЬНОЕ УНИТАРНОЕ ПРЕДПРИЯТИЕ АДМИНИСТРАЦИИ ГОРОДА МАРИУПОЛЯ МАРИУПОЛЬАВТОДОР
D58: Асфальтобетонщик | E58: 4 | F58: 22958 | H58: Владение знаниями, навыками и умениями выполнять работы , предусмотренные квалификационными характеристика , а именно: основные требования, предъявляемые к основаниям под асфальтобетонные покрытия.
D59: Дорожный рабочий | E59: 9 | F59: 18231
D60: Дорожный рабочий | E60: 4 | F60: 22958 | H60: Должен знать и использовать в своей деятельности: методы оценки состояния дорожных покрытий и искуственных сооружений; устройство и правила применения геодезических инструментов; методы борьбы с эрозией
D61: Облицовщик-плиточник | E61: 3 | F61: 22958 | H61: Владение знаниями, навыками и умениями выполнять работы, предусмотренные квалификационными характеристиками: способы разметки под облицовку плиткамит криволинейных поверхностей; разметка поверхностейц
B62: Итого | C62: =COUNTA(C52:C61) -> 2 | E62: =SUM(E52:E61) -> 30
A63: G | B63: Торговля оптовая и розничная; ремонт автотранспортных средств и мотоциклов
A64: 46 | B64: Торговля оптовая, кроме оптовой торговли автотранспортными средствами и мотоциклами
C65: ООО ИСИДАФАРМ
D66: Заведующий аптекой | E66: 3 | F66: 28900 | H66: Знание фармацевтических групп; знание нормативной документации; знание кассовой дисциплины.
D67: Провизор | E67: 5 | F67: 25400 | H67: Знание фармацевтических групп; знание кассовой дисциплины; уверенное пользование ПК; знание техник продаж и навыков общения с клиентами приветствуются.
D68: Фармацевт | E68: 5 | F68: 23100 | H68: Знание фармацевтических групп; знание кассовой дисциплины; уверенное пользование ПК; знания техник продаж и навыков общения с клиентами приветствуются.
A69: 47 | B69: Торговля розничная, кроме торговли автотранспортными средствами и мотоциклами
C70: ООО ЭКОМАРКЕТ НАША МАРКА
D71: Продавец продовольственных товаров | E71: 4 | F71: 17000
B72: Итого | C72: =COUNTA(C63:C71) -> 2 | E72: =SUM(E63:E71) -> 17
A73: H | B73: Транспортировка и хранение
A74: 49 | B74: Деятельность сухопутного и трубопроводного транспорта
C75: ГОСУДАРСТВЕННОЕ УНИТАРНОЕ ПРЕДПРИЯТИЕ ДОНЕЦКОЙ НАРОДНОЙ РЕСПУБЛИКИ ДОНЕЦКАЯ ЖЕЛЕЗНАЯ ДОРОГА
D76: Агент коммерческий | E76: 4 | F76: 21158 | H76: Пунктуальность, внимательность.
D77: Аппаратчик химводоочистки | E77: 3 | F77: 16242 | H77: Прохождение медицинских осмотров, инструктажей по охране труда, противопожарные инструктажи, соблдение дисциплины труда.
D78: Маляр | E78: 3 | F78: 18826 | H78: Прохождение медицинских осмотров, соблюдение дисциплины труда.
D79: Слесарь по ремонту подвижного состава | E79: 15 | F79: 18826 | G79: 20726 | H79: Соблюдение дисциплины труда.
D80: Слесарь-электрик по ремонту электрооборудования | E80: 9 | F80: 18826 | G80: 20726 | H80: Прохождение медицинских осмотров, инструктажей по охране труда, противопожарные инструктажи, соблюдение дисциплины труда.
D81: Станционный рабочий | E81: 3 | F81: 16242 | H81: Наличие сертификатов нарколога и психиатра
C82: МУНИЦИПАЛЬНОЕ УНИТАРНОЕ ПРЕДПРИЯТИЕ АДМИНИСТРАЦИИ ГОРОДА МАРИУПОЛЯ МАРИУПОЛЬТРАНС
D83: Аккумуляторщик | E83: 2 | F83: 20729 | G83: 23320 | H83: Должен знать назначение, устройство и принцип работы аккумуляторных батарей, дистиляторов и зарядного оборудования, схем монтажа и территориальное расположение аккумуляторных батарей, правила эксплуатации
D84: Водитель автомобиля | E84: 6 | F84: 25393 | H84: Наличие соответствующей открытой категории в водительском удостоверении С
D85: Водитель автомобиля | E85: 168 | F85: 32634
D86: Водитель трамвая | E86: 6 | F86: 22982 | G86: 23320 | H86: Наличие водительского удостоверения на право управления трамваем.
D87: Инженер по подготовке кадров | E87: 1 | F87: 22982
D88: Инженер-системный программист | E88: 1 | F88: 22982
D89: Инженер-технолог | E89: 1 | F89: 28480
D90: Кладовщик | E90: 1 | F90: 16242 | H90: Знание правил инвентаризации, хранени, приема и выдачи разных материалов
D91: Кузнец на молотах и прессах | E91: 1 | F91: 23320 | H91: Наличие удостоверения на право самостоятнльной работы с подъемными сооружениями
D92: Мастер | E92: 2 | F92: 28480
D93: Монтер пути | E93: 5 | F93: 20729 | G93: 23320
D94: Начальник отдела (компьютерного обеспечения) | E94: 1 | F94: 35239
D95: Начальник отдела (управления кадрами и трудовыми отношениями) | E95: 1 | F95: 35239
D96: Обмотчик элементов электрических машин | E96: 1 | F96: 23320 | H96: Группа по электробезопасности не ниже 2
D97: Ремонтировщик резиновых изделий | E97: 1 | F97: 23320 | H97: Должен знать способы устранения дефектов; технологический процесс ремонта бывших в употреблении автопокрышек, мягких топливных баков и других резинотехнических изделий
D98: Слесарь по ремонту автомобилей | E98: 11 | F98: 17223 | G98: 23320
D99: Слесарь по ремонту подвижного состава | E99: 5 | F99: 20729 | G99: 23320
D100: Слесарь-электрик по ремонту электрооборудования | E100: 13 | F100: 23320 | H100: Группа по электробезопасности не ниже 3
D101: Столяр | E101: 1 | F101: 18025
D102: Электрогазосварщик | E102: 5 | F102: 23320
D103: Электромонтер контактной сети | E103: 3 | F103: 20729 | G103: 23320 | H103: Группа по электробезносности не ниже 4 (5), наличие 1 группы по безопасности при работе на высоте
D104: Электромонтер по ремонту и монтажу кабельных линий | E104: 1 | F104: 26429 | H104: Группа по электробезопасности не ниже 5
D105: Электромонтер тяговой подстанции | E105: 7 | F105: 17723 | G105: 23320 | H105: Группа электробезопасности не ниже 3
D106: Электросварщик ручной сварки | E106: 1 | F106: 23320
D107: Юрисконсульт | E107: 1 | F107: 28480
B108: Итого | C108: =COUNTA(C73:C107) -> 2 | E108: =SUM(E73:E107) -> 283
A109: N | B109: Деятельность административная и сопутствующие дополнительные услуги
A110: 81 | B110: Деятельность по обслуживанию зданий и территорий
C111: МУНИЦИПАЛЬНОЕ УНИТАРНОЕ ПРЕДПРИЯТИЕ АДМИНИСТРАЦИИ ГОРОДА МАРИУПОЛЯ МАРИУПОЛЬЖИЛКОМПЛЕКС
D112: Дежурный по общежитию | E112: 6 | F112: 18990 | H112: Наличие медицинской книжки
D113: Кровельщик по рулонным кровлям и по кровлям из штучных материалов | E113: 12 | F113: 20630
D114: Подсобный рабочий | E114: 3 | F114: 17968
D115: Уборщик производственных и служебных помещений | E115: 12 | F115: 16243 | H115: Наличие медицинской санитарной книжки
D116: Уборщик территорий | E116: 30 | F116: 16243 | H116: Наличие медицинской книжки
C117: МУНИЦИПАЛЬНОЕ УНИТАРНОЕ ПРЕДПРИЯТИЕ АДМИНИСТРАЦИИ ГОРОДА МАРИУПОЛЯ ЗЕЛЕНСТРОЙ
D118: Уборщик территорий | E118: 20 | F118: 16242 | H118: Прохождение медосмотра.
B119: Итого | C119: =COUNTA(C109:C118) -> 2 | E119: =SUM(E109:E118) -> 83
A120: O | B120: Государственное управление и обеспечение военной безопасности; социальное обеспечение
A121: 84 | B121: Деятельность органов государственного управления по обеспечению военной безопасности, обязательному социальному обеспечению
C122: УПРАВЛЕНИЕ ТРУДА И СОЦИАЛЬНОЙ ЗАЩИТЫ НАСЕЛЕНИЯ АДМИНИСТРАЦИИ ЖОВТНЕВОГО РАЙОНА ГОРОДА МАРИУПОЛЯ
D123: Главный специалист | E123: 5 | F123: 18939 | H123: Знание законодательной базы, регламентирующей деятельность отдела. Знание основ деловодства, деловой этики.
C124: ГБУ МАРИУПОЛЬСКИЙ СЛЕДСТВЕННЫЙ ИЗОЛЯТОР ГОСУДАРСТВЕННОЙ СЛУЖБЫ ИСПОЛНЕНИЯ НАКАЗАНИЙ МИНИСТЕРСТВА ЮСТИЦИИ ДОНЕЦКОЙ НАРОДНОЙ РЕСПУБЛИКИ
D125: Инспектор | E125: 56 | F125: 23000 | H125: Мужчина.Возраст от 18-40 лет, отсутствие судимости, наличие паспорта РФ.
D126: Комендант ведомственной охраны объекта | E126: 3 | F126: 21500 | H126: Возраст от 18-40 лет. Наличие паспорта гражданина Российской Федерации.
C127: УПРАВЛЕНИЕ ТРУДА И СОЦИАЛЬНОЙ ЗАЩИТЫ НАСЕЛЕНИЯ АДМИНИСТРАЦИИ ИЛЬИЧЁВСКОГО РАЙОНА ГОРОДА МАРИУПОЛЯ
D128: Специалист | E128: 9 | F128: 16554 | H128: Квлификация - соц.работа, экономика. Опыт работы - обязателен. Умение работать в расчётных программах.
C129: ГЛАВНОЕ УПРАВЛЕНИЕ ФЕДЕРАЛЬНОЙ СЛУЖБЫ СУДЕБНЫХ ПРИСТАВОВ ПО ДОНЕЦКОЙ НАРОДНОЙ РЕСПУБЛИКЕ
D130: Судебный пристав по обеспечению установленного порядка деятельности судов | E130: 5 | F130: 40000 | H130: Возраст до 40 лет.
B131: Итого | C131: =COUNTA(C120:C130) -> 4 | E131: =SUM(E120:E130) -> 78
A132: P | B132: Образование
A133: 85 | B133: Образование
C134: МУНИЦИПАЛЬНОЕ БЮДЖЕТНОЕ УЧРЕЖДЕНИЕ ДОПОЛНИТЕЛЬНОГО ОБРАЗОВАНИЯ ЦЕНТР ДЕТСКОГО И ЮНОШЕСКОГО ТВОРЧЕСТВА ГОРОДА МАРИУПОЛЯ
D135: Аккомпаниатор | E135: 3 | F135: 16242 | H135: Специальность по образованию (музыкальное).Наличие мед.книжки.
D136: Педагог дополнительного образования | E136: 72 | F136: 16242 | H136: Медицинская книжка.
D137: Педагог социальный | E137: 2 | F137: 16242 | H137: медицинская книжка
C138: МАРИУПОЛЬСКИЙ ПРОФЕССИОНАЛЬНЫЙ МАШИНОСТРОИТЕЛЬНЫЙ ЛИЦЕЙ
D139: Воспитатель общежития | E139: 1 | F139: 18000 | H139: Организация внеклассного времени подростков, умение работать с подростками.
D140: Педагог социальный | E140: 1 | F140: 18000 | H140: Работа с документацией, организациями, опекунами; Умение работать с подростками.
D141: Преподаватель (в колледжах, университетах и других вузах) | E141: 1 | F141: 22000 | H141: Умение работать с подростками
D142: Учитель | E142: 1 | F142: 20000 | H142: Владение предметом на высшем уровне, умение работать с подростками.
C143: МБДОУ ЯСЛИ-САД № 131 МАЛЫШ КОМБИНИРОВАННОГО ТИПА ГОРОДА МАРИУПОЛЯ
D144: Врач-педиатр участковый | E144: 1 | F144: 16289 | H144: Знание особенностей детской физиологии, а так же методов профилактики и диагностики
D145: Инструктор по физической культуре | E145: 1 | F145: 16242 | H145: Знание основ теории и практики физического воспитания детей, основ спортивной медицины и спортивной гигиены
D146: Медицинская сестра | E146: 1 | F146: 16242
D147: Медицинская сестра по физиотерапии | E147: 1 | F147: 16242 | H147: Умение выполнять физиопроцедуры и работать с физиоаппаратурой
D148: Педагог дополнительного образования | E148: 1 | F148: 16242 | H148: Знание педагогических методик и специфики усвоения учебного материала воспитанниками
D149: Педагог социальный | E149: 1 | F149: 16242 | H149: Знания общей и социальной педагогики, возрастной психологии и социально-педагогической диагностики
D150: Педагог-психолог | E150: 1 | F150: 16242 | H150: Знания психологии, навыки общения с детьми
D151: Электромонтер по ремонту и обслуживанию электрооборудования | E151: 1 | F151: 16242 | H151: Знание основ электротехники, навыки работы с электрооборудованием и специальным инструментом, знание техники безопасности.
C152: МАРИУПОЛЬСКОЕ ВЫСШЕЕ МЕТАЛЛУРГИЧЕСКОЕ ПРОФЕССИОНАЛЬНОЕ УЧИЛИЩЕ
D153: Директор училища (колледжа) | E153: 1 | F153: 25805 | H153: Опыт работы заместителем директора. Работа с компьютером и интернетом.
D154: Преподаватель (в колледжах, университетах и других вузах) | E154: 1 | F154: 23787 | H154: Умение работать с компьютером и интернетом.
C155: МБОУ СРЕДНЯЯ ШКОЛА № 14 ГОРОДА МАРИУПОЛЯ
D156: Инженер-электроник | E156: 1 | F156: 16242 | H156: Опыт работы, техническое образование
D157: Медицинская сестра | E157: 1 | F157: 16242 | H157: Наличие медицинской книжки
D158: Электромонтер по ремонту и обслуживанию электрооборудования | E158: 1 | F158: 16242 | H158: Наличие медицинской книжки
C159: МУНИЦИПАЛЬНОЕ БЮДЖЕТНОЕ УЧРЕЖДЕНИЕ КОМПЛЕКСНАЯ ДЕТСКО-ЮНОШЕСКАЯ СПОРТИВНАЯ ШКОЛА ОЛИМПИЯ
D160: Инструктор-методист спортивной школы | E160: 1 | F160: 17629
C161: МБОУ СРЕДНЯЯ ШКОЛА № 41 ГОРОДА МАРИУПОЛЯ
D162: Кухонный рабочий | E162: 1 | F162: 16242 | H162: Наличие медицинской книжки.
D163: Повар детского питания | E163: 2 | F163: 16242 | H163: Наличие медицинской книжки.
D164: Сестра диетического питания | E164: 1 | F164: 16242 | H164: Наличие медицинской книжки. Специальная подготовка по лечебному питанию или сертификат по специальности диетология.
D165: Учитель | E165: 3 | F165: 16242 | H165: Наличие медицинской книжки.
C166: МАРИУПОЛЬСКИЙ ПРОФЕССИОНАЛЬНЫЙ АГРАРНЫЙ ЛИЦЕЙ
D167: Рабочий по комплексному обслуживанию и ремонту зданий | E167: 2 | F167: 16448 | H167: Наличие медицинской книжки и сертификата
C168: МБОУ СРЕДНЯЯ ШКОЛА № 7 ГОРОДА МАРИУПОЛЯ
D169: Сестра диетического питания | E169: 1 | F169: 16242
D170: Учитель | E170: 1 | F170: 20000 | H170: Квалификация,высшее образование Учитель технолог
D171: Учитель | E171: 1 | F171: 20000 | H171: Квалификация, высшее образование Учитель-обществознания
D172: Учитель | E172: 1 | F172: 20000 | H172: Квалификация, высшее образование Педагог истории.
C173: МБОУ СРЕДНЯЯ ШКОЛА № 38 ГОРОДА МАРИУПОЛЯ
D174: Учитель | E174: 2 | F174: 16243 | H174: Наличие медицинской книжки.
C175: МАРИУПОЛЬСКИЙ ГОСУДАРСТВЕННЫЙ УНИВЕРСИТЕТ
D176: Экономист | E176: 2 | F176: 16289
B177: Итого | C177: =COUNTA(C132:C176) -> 11 | E177: =SUM(E132:E176) -> 112
A178: Q | B178: Деятельность в области здравоохранения и социальных услуг
A179: 86 | B179: Деятельность в области здравоохранения
C180: ГБУ БОЛЬНИЦА ИНТЕНСИВНОГО ЛЕЧЕНИЯ Г.МАРИУПОЛЯ
D181: Агент по снабжению | E181: 1 | F181: 15279 | H181: Квалификация соответствующая обобщенной трудовой функции Агент по снабжению. Общее среднее образование и спец.подготовка по установленной программе без предъявления требований к стажу работы.
D182: Врач | E182: 3 | F182: 16289 | H182: Квалификация соответствующая обобщенной трудовой функции А профессионального стандарта врач ультразвуковой диагностики.Сертификат специалиста или свидетельство об аккредитации специалиста по специальности
D183: Врач | E183: 2 | F183: 16289 | H183: Квалификация соответствующая обобщенной трудовой функции А профессионального стандарта врач инфекционист. Владение современными принципами и методиками диагностики и лечения заболеваний.
D184: Врач функциональной диагностики | E184: 2 | F184: 16289 | H184: Квалификация соответствующая обобщенной трудовой функции А профессионального стандарта врач функциональной диагностики.Сертификат специалиста или свидетельство об аккредитации специалиста Функциональная диагностика
D185: Врач-офтальмолог | E185: 3 | F185: 17629 | H185: Квалификация соответствующая обобщенной трудовой функции А профессионального стандарта врач офтальмолог.Сертификат специалиста или свидетельство об аккредитации специалиста по специальности Офтальмология.
D186: Врач-рентгенолог | E186: 6 | F186: 16289 | H186: Квалификация соответствующая обобщенной трудовой функции А профессионального стандарта врач-рентгенолог. Сертификат специалиста или свидетельство об аккредитации специалиста по специальности Рентгенология
D187: Врач-статистик | E187: 2 | F187: 16242 | H187: Квалификация соответствующая обобщенной трудовой функции А профессионального стандарта специалист в области организации здравоохранения и общественного здоровья. Сертификат специалиста или свидетельство
D188: Врач-терапевт участковый | E188: 4 | F188: 16289 | H188: Квалификация соответствующая обобщенной трудовой функции Врач-терапевт.Сертификат специалиста или свидетельство об аккредитации специалиста по специальности Терапия.
D189: Врач-уролог | E189: 3 | F189: 17629 | H189: Квалификация соответствующая обобщенной трудовой функции А прецессионного стандарта врач-уролог. Высшее образование - специалист Лечебное дело или Педиатрия и подготовка в ординатуре по специальности
C190: ГБУ ЦЕНТР ПЕРВИЧНОЙ МЕДИКО-САНИТАРНОЙ ПОМОЩИ № 3 Г.МАРИУПОЛЯ
D191: Администратор | E191: 1 | F191: 16242 | H191: Опыт работы, ответственность, коммуникабельность.
D192: Бухгалтер | E192: 1 | F192: 16242 | H192: Среднее профессиональное, высшее профессиональное образование. Специальность по образованию-бухгалтер, экономист. Ключевые навыки-опыт работы, ведение управленческого учёта. Организаторские способности
D193: Медицинская сестра | E193: 1 | F193: 16242 | H193: Умение вести мед.документацию.
D194: Медицинская сестра | E194: 1 | F194: 16242 | H194: Умение пользоваться медицинской аппаратурой.
D195: Медицинская сестра кабинета | E195: 3 | F195: 16242 | H195: Ключевые навыки-опыт проведения в/м и в/в инъекций, умение пользоваться медаппаратурой, опыт стерилизации инструментов.
D196: Экономист по финансовой работе | E196: 1 | F196: 16242 | H196: Ключевы навыки - финансовое планирование, управленческий учет, оптимизация затрат, экономический анализ.
C197: ГБУ ГОРОДСКАЯ БОЛЬНИЦА № 9 Г.МАРИУПОЛЯ
D198: Бухгалтер | E198: 2 | F198: 16242 | H198: Квалификация-бухгалтер 1 категории, высшее профессиональное ( экономическое ) образование и стаж работы в должности.
D199: Заместитель бухгалтера | E199: 1 | F199: 32406 | H199: Знание законодательной базы по организации бухгалтерского учета имущества; обязательств и хозяйственных операций и составлению отчётности.
D200: Инженер по охране труда | E200: 1 | F200: 16242 | H200: Опыт работы по специальности не менее одного года , знание офисных программ . Работа с программным обеспечением и системным сопровождением.
D201: Инженер-программист | E201: 1 | F201: 16242
D202: Медицинская сестра | E202: 2 | F202: 16242 | H202: Среднее профессиональное образование по специальности лечебное дело, Акушерское дело, Сестринское дело.
D203: Медицинская сестра процедурной | E203: 1 | F203: 16242 | H203: Знание нормативной базы.
D204: Младшая медицинская сестра по уходу за больными | E204: 4 | F204: 16242 | H204: Начальное профессиональное образование по специальности Сестринское дело без предъявления требований к стажу работы или среднее (полное) общее образование,дополнительная подготовка по направлению
... 54 more rows

Sheet Снежнянский ГЦЗ
A5: Потребность, заявленная работодателями г. Снежное, по состоянию на 01.04.2023
A6: Раздел/ код ОКВЭД | B6: Виды экономической деятельности | C6: Наименование ПОУ | D6: Название профессии/ специальности | E6: Количество свободных рабочих мест (вакантных должнлстей) (ед.) | F6: Размер заработной платы, указанный в вакансии от, руб. | G6: Размер заработной платы, указанный в вакансии до, руб. | H6: Требования
A7: 1 | B7: 2 | C7: 3 | D7: 4 | E7: 5 | F7: 6 | G7: 7 | H7: 8
A8: Всего | C8: 35 | E8: 275
A9: B | B9: Добыча полезных ископаемых
A10: 5 | B10: Добыча угля
C11: ГОСУДАРСТВЕННОЕ УНИТАРНОЕ ПРЕДПРИЯТИЕ ДОНЕЦКОЙ НАРОДНОЙ РЕСПУБЛИКИ ТОРЕЗАНТРАЦИТ
D12: Горнорабочий по ремонту горных выработок | E12: 5 | F12: 42000 | H12: Опыт работы не менее 1 года. Наличие удостоверения по профессии.
B13: Итого | C13: =COUNTA(C9:C12) -> 1 | E13: =SUM(E9:E12) -> 5
A14: C | B14: Обрабатывающие производства
A15: 33 | B15: Ремонт и монтаж машин и оборудования
C16: ДОНЕЦКИЙ ФИЛИАЛ ОБЩЕСТВА С ОГРАНИЧЕННОЙ ОТВЕТСТВЕННОСТЬЮ АВИАТЕХ
D17: Распределитель работ | E17: 5 | F17: 16242 | H17: наличие сертификатов нарколога, психиатра
B18: Итого | C18: =COUNTA(C14:C17) -> 1 | E18: =SUM(E14:E17) -> 5
A19: D | B19: Обеспечение электрической энергией, газом и паром; кондиционирование воздуха
A20: 35 | B20: Обеспечение электрической энергией, газом и паром; кондиционирование воздуха
C21: ГОСУДАРСТВЕННОЕ УНИТАРНОЕ ПРЕДПРИЯТИЕ ДОНЕЦКОЙ НАРОДНОЙ РЕСПУБЛИКИ ДОНБАССТЕПЛОЭНЕРГО
D22: Слесарь по ремонту оборудования котельных и пылеприготовительных цехов | E22: 5 | F22: 23000 | H22: наличие 4 квалификационного разряда сертификат психиатра, нарколога
D23: Слесарь по ремонту оборудования котельных и пылеприготовительных цехов | E23: 4 | F23: 21000 | H23: Наличие удостоверения по профессии, Наличие сертификатов психоневрологического, наркологического.
D24: Слесарь по ремонту оборудования тепловых сетей | E24: 2 | F24: 21500
D25: Токарь | E25: 1 | F25: 10800
D26: Электрогазосварщик | E26: 1 | F26: 21500 | H26: наличие сертификатов нарколога,психиатра
D27: Электромонтер по ремонту и обслуживанию электрооборудования | E27: 1 | F27: 21600 | H27: наличие сертификатов нарколога,психиатра
B28: Итого | C28: =COUNTA(C19:C27) -> 1 | E28: =SUM(E19:E27) -> 14
A29: E | B29: Водоснабжение; водоотведение, организация сбора и утилизации отходов, деятельность по ликвидации загрязнений
A30: 36 | B30: Забор, очистка и распределение воды
C31: ФИЛИАЛ СНЕЖНЯНСКОЕ ПРОИЗВОДСТВЕННОЕ УПРАВЛЕНИЕ ВОДОПРОВОДНО-КАНАЛИЗАЦИОННОГО ХОЗЯЙСТВА ГОСУДАРСТВЕННОГО УНИТАРНОГО ПРЕДПРИЯТИЯ ДОНЕЦКОЙ НАРОДНОЙ РЕСПУБЛИКИ ВОДА ДОНБАССА
D32: Водитель автомобиля | E32: 1 | F32: 24408 | H32: Знание технической базы автомобиля, знание и соблюдение Правил дорожного движения.
D33: Водитель автомобиля | E33: 1 | F33: 19600 | H33: Наличие прав водителя категории В,С. Безаварийный стаж работы, знание автомобильных дорог города и региона, зание технической базы автомобиля.
D34: Водитель автомобиля | E34: 4 | F34: 17970 | H34: Наличие прав водителя категории В,С. Безаварийный опыт вождения, знание дорог региона, умение оформлять путевые документы, опыт поездок на дальние расстояния.
D35: Маляр | E35: 1 | F35: 19600 | H35: Опыт работы приветствуется. Выполнение шпаклевок, грунтовочных слоев, покраски поверхностей, подготовка смесей.
D36: Мастер | E36: 2 | F36: 27200 | H36: Организаторские навыки, умение работать со схемами по ремонту и монтажу оборудования и трубопровода; знание правил и норм охраны труда. Опыт работы в сфере водоснабжения приветсивуется.
D37: Обходчик водопроводноканализационной сети | E37: 2 | F37: 18670 | H37: Знание технического состояния сетей, коллекторов, напорных трубопроводов. Опыт работы приветствуется.
D38: Плотник | E38: 1 | F38: 23062 | H38: Знание видов и особенностей древесины. приемы чистового обстругивания, обтесывания, изготовления сложных деревянных конструкций и зарубок.
D39: Слесарь аварийно-восстановительных работ | E39: 12 | F39: 20050 | H39: Умение проводить ремонтные работы канализационных сетей, и сетей водотведения. Опыт работы приветствуется.
D40: Слесарь по ремонту автомобилей | E40: 1 | F40: 21140 | H40: Знать устройство колесных транспортных средств и осуществлять их ремонт. Выполнять ремонт и сборку, в том числе дизельных, газобаллоных, специальных грузовых, импортных легковых автомобилей, автобусов
D41: Тракторист | E41: 2 | F41: 24100 | H41: Наличие удостоверения тракториста, Умение проводить ремонтные работы. Умение управлять различными самоходными мащинами. Опыт работы приветствуется.
B42: Итого | C42: =COUNTA(C29:C41) -> 1 | E42: =SUM(E29:E41) -> 27
A43: L | B43: Деятельность по операциям с недвижимым имуществом
A44: 68 | B44: Операции с недвижимым имуществом
C45: ДОЧЕРНЕЕ ПРЕДПРИЯТИЕ РЕСПУБЛИКАНСКИЙ РЫНОК № 24/1 ГОСУДАРСТВЕННОГО ПРЕДПРИЯТИЯ РЫНКИ ДОНБАССА
D46: Уборщик территорий | E46: 4 | F46: 16242 | H46: наличие медицинской книжки
B47: Итого | C47: =COUNTA(C43:C46) -> 1 | E47: =SUM(E43:E46) -> 4
A48: O | B48: Государственное управление и обеспечение военной безопасности; социальное обеспечение
A49: 84 | B49: Деятельность органов государственного управления по обеспечению военной безопасности, обязательному социальному обеспечению
C50: ГБУ ОТДЕЛЕНИЕ ФОНДА СОЦИАЛЬНОГО СТРАХОВАНИЯ ОТ НЕСЧАСТНЫХ СЛУЧАЕВ НА ПРОИЗВОДСТВЕ И ПРОФЕССИОНАЛЬНЫХ ЗАБОЛЕВАНИЙ ДОНЕЦКОЙ НАРОДНОЙ РЕСПУБЛИКИ В Г. СНЕЖНОЕ
D51: Водитель автомобиля | E51: 1 | F51: 16242 | H51: Наличие медицинских сертификатов
D52: Главный специалист | E52: 1 | F52: 16777 | H52: Опыт работы в области социального страхования не менее 3-х лет.
D53: Заведующий сектором (функциональным в прочих областях деятельности) | E53: 1 | F53: 18455 | H53: Опыт работы в сфере социального страхования не менее 5-ти лет.
C54: ГБУ СНЕЖНЯНСКИЙ ГОРОДСКОЙ ЦЕНТР ЗАНЯТОСТИ
D55: Начальник отдела (функционального в прочих областях деятельности) | E55: 1 | F55: 16242 | H55: знание основ делопроизводства, владение оргтехникой справки о прохождении наркологического, психиатрического осмотра
D56: Специалист | E56: 1 | F56: 16242 | H56: наличие справок о прохождении наркологического, психиатрического осмотра владение оргтехникой
B57: Итого | C57: =COUNTA(C48:C56) -> 2 | E57: =SUM(E48:E56) -> 5
A58: P | B58: Образование
A59: 85 | B59: Образование
C60: МБУ КОМПЛЕКСНАЯ ДЕТСКО-ЮНОШЕСКАЯ СПОРТИВНАЯ ШКОЛА ГОРОДА СНЕЖНОЕ
D61: Бухгалтер | E61: 1 | F61: 16242 | H61: Наличие медицинской книжки. Умение работать со всеми финансовыми программами. Опыт работы в бюджетных учреждениях.
D62: Инструктор-методист спортивной школы | E62: 1 | F62: 16288 | H62: Методическая работа в спортивных учреждениях, Наличие медицинской книжки.
D63: Тренер-преподаватель по спорту | E63: 5 | F63: 17629 | H63: Умение работат с детьми, Наличие медицинской книжки.
C64: ГБОУ РЕСПУБЛИКАНСКИЙ ЦЕНТР ОТДЫХА ДЕТЕЙ
D65: Бухгалтер | E65: 1 | F65: 21676 | H65: Наличие медицинской книжки, умение работать с большими объемами данных, знание бухгалтерских программ
D66: Делопроизводитель | E66: 1 | F66: 16242 | H66: Наличие медицинской книжки. Систематизация документов текущего архива.
D67: Уборщик производственных и служебных помещений | E67: 1 | F67: 16242 | H67: Наличие медицинской книжки
C68: МБОУ СРЕДНЯЯ ШКОЛА № 1 ГОРОДА СНЕЖНОЕ
D69: Водитель автомобиля | E69: 1 | F69: 16242 | H69: Наличие медицинской книжки наличие сертификатов нарколога, психиатра, справки об отсутствии судимости наличие водительского удостоверения категории Д
D70: Повар | E70: 1 | F70: 16242 | H70: Опыт работы по профессии. Наличие медицинской книжки.
D71: Слесарь по обслуживанию тепловых сетей | E71: 1 | F71: 16242 | H71: Наличие медицинской книжки. Наличие сертификатов наркологического и психоневрологического.
D72: Уборщик производственных и служебных помещений | E72: 1 | F72: 16242 | H72: Наличие медицинской книжки наличие сертификатов психиатра, нарколога, справки об отсутствии судимости
D73: Учитель | E73: 2 | F73: 16242 | H73: наличие медицинской книжки наличие сертификатов психиатра, нарколога, справки об отсутствии судимости
C74: МБОУ СРЕДНЯЯ ШКОЛА 2 ГОРОДА СНЕЖНОЕ
D75: Водитель автомобиля | E75: 2 | F75: 16242 | H75: Опыт работы по профессии, наличие удостоверения категории Д. Наличие медицинской книжки.
D76: Гардеробщик | E76: 2 | F76: 16242 | H76: Без требований к опыту работы. Наличие медицинской книжки.
D77: Дворник | E77: 1 | F77: 16242 | H77: Наличие медицинской книжки
D78: Директор школы (гимназии, лицея) | E78: 1 | F78: 23088 | H78: Наличие медицинской книжки
D79: Кладовщик | E79: 1 | F79: 16242 | H79: Опыт работы по профессии. Знание правил хранения продуктов питания, норм санитарной гигиены, норм охраны труда, техники безопасности и противопожарной защиты. Наличие медицинской книжки.
D80: Уборщик производственных и служебных помещений | E80: 1 | F80: 16242 | H80: наличие медицинской книжки
D81: Учитель | E81: 1 | F81: 20556 | H81: наличие медицинской книжки
C82: МБОУ СРЕДНЯЯ ШКОЛА 10 ГОРОДА СНЕЖНОЕ
D83: Водитель автомобиля | E83: 1 | F83: 16242 | H83: наличие медицинской книжки наличие водительского удостоверения
D84: Учитель | E84: 1 | F84: 21676
C85: МБДОУ ЯСЛИ-САД № 7 СОЛНЫШКО ГОРОДА СНЕЖНОЕ
D86: Воспитатель | E86: 1 | F86: 18555 | H86: наличие медицинской книжки коммуникабельность, ответственность
D87: Машинист по стирке и ремонту спецодежды | E87: 1 | F87: 16242 | H87: наличие медицинской книжки коммуникабельность, ответственность
D88: Музыкальный руководитель | E88: 1 | F88: 16542 | H88: коммуникабельность, ответственность наличие медицинской книжки
D89: Педагог-психолог | E89: 1 | F89: 16542 | H89: наличие медицинской книжки
D90: Повар | E90: 1 | F90: 16242 | H90: коммуникабельность, ответственность наличие медицинской книжки
D91: Подсобный рабочий | E91: 1 | F91: 16242 | H91: наличие медицинской книжки
C92: МБДОУ КОМБИНИРОВАННОГО ТИПА ЯСЛИ-САД № 1 ЩЕЛКУНЧИК ГОРОДА СНЕЖНОЕ
D93: Воспитатель | E93: 3 | F93: 16242 | H93: обязательное наличие медицинской книжки наличие сертификатов от психиатра, нарколога наличие справки об отсутствии (наличии) судимости или факта уголовного преследования, либо о прекращении уголовно
D94: Рабочий по комплексному обслуживанию и ремонту зданий | E94: 1 | F94: 16242 | H94: обязательное наличие медицинской книжки, сертификатов от психиатра, нарколога, справки об отсутствии (наличии) судимости
C95: ГБПОУ СНЕЖНЯНСКИЙ ТЕХНИКУМ ПРОМЫШЛЕННОСТИ И СФЕРЫ УСЛУГ
D96: Дворник | E96: 1 | F96: 16242 | H96: Наличие медицинской книжки
D97: Заведующий практикой (производственной, учебной) | E97: 1 | F97: 16242 | H97: Наличие медицинской книжки
D98: Инженер по ремонту | E98: 1 | F98: 16242 | H98: Наличие медицинской книжки
D99: Мастер производственного обучения | E99: 1 | F99: 16289 | H99: Наличие медицинской книжки опыт работы по професиии Парикмахер не менее 2 лет
D100: Рабочий по комплексному обслуживанию и ремонту зданий | E100: 2 | F100: 16242 | H100: Без опыта работы, наличие медицинской книжки.
C101: МБОУ ОСНОВНАЯ ШКОЛА 13 ГОРОДА СНЕЖНОЕ
D102: Дворник | E102: 1 | F102: 16242 | H102: обязательное наличие медицинской книжки справка об отсутствии или наличии судимости справка, что не является подвергнутым административному наказанию за употребление наркотических средств
D103: Медицинская сестра | E103: 1 | F103: 16242 | H103: обязательное наличие медицинской книжки справка об отсутствии или наличии судимости справка, что не является подвергнутым административному наказанию за употребление наркотических средств навыки пр
D104: Педагог-психолог | E104: 1 | F104: 16242 | H104: обязательное наличие медицинской книжки справка о судимости (отсутствии или наличии) справка, что не является подвергнутым административному наказанию за употребление наркотических средств
D105: Рабочий по комплексному обслуживанию и ремонту зданий | E105: 1 | F105: 16242 | H105: Опыт работы по проофессии. Наличие медицинской книжки. Наличие справки о несудимости, наличие сертифика от психиатра.
D106: Учитель | E106: 1 | F106: 16242 | H106: обязательное наличие медицинской книжки справка об отсутствии или наличии судимости справка, что не является подвергнутым административному наказанию за употребление наркотических средств знание ан
C107: МБОУ ОСНОВНАЯ ШКОЛА № 15 ГОРОДА СНЕЖНОЕ
D108: Директор школы (гимназии, лицея) | E108: 1 | F108: 26396 | H108: Знание ПК. Наличие справки о несудимости. Наличие медицинской книжки. Наличие сертификата психиатра.
D109: Педагог-организатор | E109: 1 | F109: 26396 | H109: Знаник ПК. Наличие справки о несудимости. Наличие медицинской книжки. Наличие сертификата от психиатра.
D110: Педагог-психолог | E110: 1 | F110: 16242 | H110: наличие справки об отсутствии судимости, наличие сертификатов психиатра, нарколога
C111: МБОУ ОСНОВНАЯ ШКОЛА № 12 ГОРОДА СНЕЖНОЕ
D112: Медицинская сестра | E112: 1 | F112: 16242 | H112: Наличие медицинской книжки
D113: Учитель-логопед | E113: 1 | F113: 18579 | H113: Наличие медицинской книжки
C114: МБДОУ ЯСЛИ-САД №5 ЯНТАРНЫЙ ГОРОДА СНЕЖНОЕ
D115: Музыкальный руководитель | E115: 1 | F115: 17607 | H115: Наличие медицинской книжки и сертификатов опыт работы с детьми
C116: МБУДО ДОМ ТВОРЧЕСТВА УЧАЩИХСЯ И МОЛОДЕЖИ ГОРОДА СНЕЖНОЕ
D117: Педагог дополнительного образования | E117: 2 | F117: 16242 | H117: Обязательное прохождение медосмотра. Наличие медицинской книжки с результатами медицинских обследований и лабораторных исследований, сведениями о прививках. Справка о судимости (отсутствии или налич
C118: МБОУ СРЕДНЯЯ ШКОЛА 3 ГОРОДА СНЕЖНОЕ
D119: Педагог-организатор | E119: 1 | F119: 19490 | H119: наличие медицинской книжки наличие сертификатов
D120: Учитель | E120: 2 | F120: 19490 | H120: наличие медицинской книжки, сертификатов
C121: МБОУ СРЕДНЯЯ ШКОЛА № 5 ГОРОДА СНЕЖНОЕ
D122: Педагог-организатор | E122: 1 | F122: 21676 | H122: Наличие медицинской карты
C123: МБДОУ ОБЩЕРАЗВИВАЮЩЕГО ТИПА ЯСЛИ-САД № 4 ДЮЙМОВОЧКА ГОРОДА СНЕЖНОЕ
D124: Педагог-психолог | E124: 1 | F124: 18407 | H124: Опыт работы не менее 1 года. Наличие медицинской книжки. Креативность, любовь к детям, профессионализм.
C125: МБДОУ ЯСЛИ-САД 10 РОСИНКА ГОРОДА СНЕЖНОЕ
D126: Педагог-психолог | E126: 1 | F126: 18555 | H126: Наличие медицинской книжки.
C127: МБДОУ ОБЩЕРАЗВИВАЮЩЕГО ТИПА ЯСЛИ-САД № 2 МАЛЫШКА ГОРОДА СНЕЖНОЕ
D128: Педагог-психолог | E128: 1 | F128: 16242 | H128: Наличие медицинской книжки, сертификата.
C129: МБОУ СРЕДНЯЯ ШКОЛА № 4 ГОРОДА СНЕЖНОЕ
D130: Повар | E130: 1 | F130: 16242 | H130: Опыт работы по профессии.Наличие медицинской книжки.
C131: МБОУ СРЕДНЯЯ ШКОЛА № 6 ГОРОДА СНЕЖНОЕ
D132: Уборщик производственных и служебных помещений | E132: 1 | F132: 16242 | H132: Наличие медицинской книжки. Наличие сертификатов: психиатра и нарколога.
C133: МБОУ СРЕДНЯЯ ШКОЛА № 8 ГОРОДА СНЕЖНОЕ
D134: Учитель | E134: 1 | F134: 18579 | H134: наличие медицинской книжки
C135: МБОУ ОСНОВНАЯ ШКОЛА № 11 ИМЕНИ АНДРЕЯ СТЕНИНА ГОРОДА СНЕЖНОЕ
D136: Учитель-логопед | E136: 1 | F136: 16242 | H136: Наличие медицинской книжки
B137: Итого | C137: =COUNTA(C58:C136) -> 22 | E137: =SUM(E58:E136) -> 67
A138: Q | B138: Деятельность в области здравоохранения и социальных услуг
A139: 86 | B139: Деятельность в области здравоохранения
C140: ГОСУДАРСТВЕННОЕ БЮДЖЕТНОЕ УЧРЕЖДЕНИЕ ЦЕНТР ПЕРВИЧНОЙ МЕДИКО-САНИТАРНОЙ ПОМОЩИ ГОРОДА СНЕЖНОЕ
D141: Бухгалтер | E141: 1 | F141: 16242 | H141: Без предъявления требований к стажу работы.
D142: Водитель автомобиля | E142: 1 | F142: 16242 | H142: Стаж по профессии не менее 3-х лет. Наличие водительского удостоверения категории В.С. Наличие медицинской книжки.
D143: Врач общей практики (семейный) | E143: 25 | F143: 16242 | H143: Наличие сертификата специалиста Общая врачебная практика (семейная медицина), Наличие медицинской книжки.
D144: Врач-педиатр участковый | E144: 2 | F144: 16242 | H144: Без предъявления требований к стажу работы. Наличие сертификата специалиста по специализации Педиатрия. Наличие медицинской книжки.
D145: Врач-терапевт участковый | E145: 1 | F145: 16242 | H145: Без предъявления требований к стажу работы. Наличие медицинской книжки. Наличие сертификата специалиста по специальности Терапия.
D146: Главный бухгалтер | E146: 1 | F146: 16242 | H146: Стаж бухгалтерско-финансовой работы, в том числе на руководящих должностях не менее 5 лет. наличие медицинской книжки.
D147: Медицинская сестра | E147: 30 | F147: 16242 | H147: Без предъявления требований к стажу.
D148: Медицинская сестра врача общей практики | E148: 25 | F148: 16242 | H148: Наличие сертификата специалиста Общая практика. Наличие медицинской книжки.
D149: Медицинская сестра по массажу | E149: 1 | F149: 16242 | H149: Без предъявления требований к стажу работы. Наличие сертификата по специальности Медицинский массаж. Наличие медицинской книжки.
D150: Медицинская сестра по физиотерапии | E150: 3 | F150: 16242 | H150: Наличие сертификата специалиста по специальности Физиотерапия. Наличие медицинской книжки.
D151: Уборщик территорий | E151: 2 | F151: 16242 | H151: Без предъявления требований к стажу работы. Наличие медицинской книжки.
D152: Экономист | E152: 1 | F152: 16242 | H152: Опыт работы в должности не менее 3-х лет, Наличие медицинской книжки.
C153: ГОРОДСКОЙ ДЕРМАТОВЕНЕРОЛОГИЧЕСКИЙ ДИСПАНСЕР Г.СНЕЖНОЕ МИНИСТЕРСТВА ЗДРАВООХРАНЕНИЯ ДОНЕЦКОЙ НАРОДНОЙ РЕСПУБЛИКИ
D154: Врач-специалист | E154: 1 | F154: 16289
D155: Медицинская сестра | E155: 1 | F155: 19415 | H155: Знаник ПК. Наличие медицинской книжки, справки о наличии (отсутствии) судимости, справки о наличии (отсутствии) административного наказания за потребление наркотических средств или психотропных вещ
C156: ГБУ ГОРОДСКАЯ СТОМАТОЛОГИЧЕСКАЯ ПОЛИКЛИНИКА Г.СНЕЖНОЕ
D157: Медицинская сестра | E157: 1 | F157: 19415 | H157: Стаж работы по специальности не менее 5-и лет. Наличие медицинской книжки.
D158: Санитарка (мойщица) | E158: 1 | F158: 16242 | H158: Наличие медицинской книжки.
A159: 87 | B159: Деятельность по уходу с обеспечением проживания
C160: ГБУ СНЕЖНЯНСКИЙ ПСИХОНЕВРОЛОГИЧЕСКИЙ ИНТЕРНАТ
D161: Бухгалтер (средней квалификации) | E161: 1 | F161: 16242 | H161: Наличие медицинской книжки
D162: Врач | E162: 1 | F162: 20361
D163: Врач-невролог | E163: 1 | F163: 25393 | H163: наличие медицинской книжки, наличие сертификатов
D164: Главная медицинская сестра | E164: 1 | F164: 18651 | H164: наличие медицинской книжки, сертификатов
D165: Зубной врач | E165: 1 | F165: 17231 | H165: наличие медицинской книжки,сертификатов
D166: Кладовщик | E166: 1 | F166: 16242 | H166: наличие медицинской книжки
D167: Медицинская сестра | E167: 15 | F167: 16242 | H167: наличие медицинской книжки, сертификатов
D168: Медицинская сестра по физиотерапии | E168: 1 | F168: 16242 | H168: наличие медицинской книжки, сертификатов
D169: Младшая медицинская сестра по уходу за больными | E169: 15 | F169: 16242 | H169: наличие трудовой книжки, сертификатов
D170: Обувщик по ремонту обуви | E170: 1 | F170: 16242 | H170: наличие медицинской книжки
D171: Рабочий по комплексному обслуживанию и ремонту зданий | E171: 1 | F171: 16242 | H171: наличие медицинской книжки
D172: Секретарь руководителя | E172: 1 | F172: 16242 | H172: Наличие медицинской книжки
D173: Специалист по социальной работе | E173: 1 | F173: 18341 | H173: наличие медицинской книжки, сертификатов
D174: Сторож (вахтер) | E174: 1 | F174: 16242 | H174: наличие медицинской книжки
D175: Швея | E175: 1 | F175: 16242 | H175: наличие медицинской книжки
A176: 88 | B176: Предоставление социальных услуг без обеспечения проживания
C177: МБУ ТЕРРИТОРИАЛЬНЫЙ ЦЕНТР СОЦИАЛЬНОГО ОБСЛУЖИВАНИЯ (ПРЕДОСТАВЛЕНИЯ СОЦИАЛЬНЫХ УСЛУГ Г.СНЕЖНОЕ
D178: Бухгалтер | E178: 1 | F178: 16242
D179: Главный бухгалтер | E179: 1 | F179: 25853 | H179: Умение работать на компьютере. Наличие медицинской книжки,
D180: Инженер по охране труда | E180: 1 | F180: 17629 | H180: Умение работать на компьютере.
D181: Медицинская сестра | E181: 1 | F181: 12975
D182: Медицинская сестра по массажу | E182: 1 | F182: 16242 | H182: Наличие удостоверения о курсах массажа
C183: МБУ СНЕЖНЯНСКИЙ ЦЕНТР СОЦИАЛЬНОЙ РЕАБИЛИТАЦИИ СМЕШАННОГО ТИПА ДЛЯ ИНВАЛИДОВ И ДЕТЕЙ-ИНВАЛИДОВ РОДНИК ДОБРА
D184: Врач-педиатр участковый | E184: 1 | F184: 25392 | H184: Наличие медицинской книжки
D185: Медицинская сестра | E185: 1 | F185: 16242
D186: Специалист по социальной работе | E186: 1 | F186: 19353 | H186: Наличие медицинской книжки
B187: Итого | C187: =COUNTA(C138:C186) -> 6 | E187: =SUM(E138:E186) -> 148

Sheet Торезский ГЦЗ
A5: Потребность, заявленная работодателями г. Торез, по состоянию на 01.04.2023
A6: Раздел/ код ОКВЭД | B6: Виды экономической деятельности | C6: Наименование ПОУ | D6: Название профессии/ специальности | E6: Количество свободных рабочих мест (вакантных должнлстей) (ед.) | F6: Размер заработной платы, указанный в вакансии от, руб. | G6: Размер заработной платы, указанный в вакансии до, руб. | H6: Требования
A7: 1 | B7: 2 | C7: 3 | D7: 4 | E7: 5 | F7: 6 | G7: 7 | H7: 8
A8: Всего | C8: 34 | E8: 258
A9: B | B9: Добыча полезных ископаемых
A10: 5 | B10: Добыча угля
C11: ООО ГРУППОВАЯ ОБОГАТИТЕЛЬНАЯ ФАБРИКА КРАСНАЯ ЗВЕЗДА
D12: Механик | E12: 5 | F12: 26441 | H12: Квалификация: Горный техник, электромеханник. Среднее профессиональное образование по специальности: Эксплуатация и ремонт горного электромеханического оборудования и автоматических устройств.
B13: Итого | C13: =COUNTA(C9:C12) -> 1 | E13: =SUM(E9:E12) -> 5
A14: C | B14: Обрабатывающие производства
A15: 10 | B15: Производство пищевых продуктов
C16: ИП ЗАЙЦЕВА ЕЛЕНА ВИКТОРОВНА
D17: Аппаратчик мукомольного производства | E17: 1 | F17: 16300 | H17: Наличие медицинской книжки
C18: ИП МАШАРОВА ОКСАНА ВИКТОРОВНА
D19: Формовщик теста | E19: 1 | F19: 16250 | H19: Наличие медицинской книжки.
B20: Итого | C20: =COUNTA(C14:C19) -> 2 | E20: =SUM(E14:E19) -> 2
A21: E | B21: Водоснабжение; водоотведение, организация сбора и утилизации отходов, деятельность по ликвидации загрязнений
A22: 36 | B22: Забор, очистка и распределение воды
C23: ФИЛИАЛ ТОРЕЗСКОГО ПРОИЗВОДСТВЕННОЕ УПРАВЛЕНИЕ ВОДОПРОВОДНО-КАНАЛИЗАЦИОННОГО ХОЗЯЙСТВА ГОСУДАРСТВЕННОГО УНИТАРНОГО ПРЕДПРИЯТИЯ ДОНЕЦКОЙ НАРОДНОЙ РЕСПУБЛИКИ ВОДА ДОНБАССА
D24: Водитель автомобиля | E24: 10 | F24: 30000 | H24: Наличие удостоверения водителя автомобиля 1-3 классов. Наличие медицинской книжки и сертификатов.
D25: Мастер | E25: 2 | F25: 29915 | H25: Умение организовать т руководить бригадой, составление и сдача отчетности.
D26: Машинист экскаватора | E26: 2 | F26: 30000 | H26: Управление эксковатором, наличие удостоверения и сертификата. Наличие медицинской книжки
D27: Слесарь аварийно-восстановительных работ | E27: 15 | F27: 28000 | H27: Наличие медицинской книжки. Навыки проведения ремонтных работ.
D28: Тракторист | E28: 2 | F28: 30000 | H28: Управление трактором. Наличие удостоверения и сертификата.. Наличие медицинской книжки
D29: Электрогазосварщик | E29: 2 | F29: 30000 | H29: Наличие медицинской книжки и сертификатов, удостоверения. Навыки проведения ремонтных работ и сварочных работ под давлением.
D30: Юрисконсульт | E30: 1 | F30: 27975 | H30: Навык пользования компьютерными программами, информационными и справочно-правовыми системами.
B31: Итого | C31: =COUNTA(C21:C30) -> 1 | E31: =SUM(E21:E30) -> 34
A32: G | B32: Торговля оптовая и розничная; ремонт автотранспортных средств и мотоциклов
A33: 47 | B33: Торговля розничная, кроме торговли автотранспортными средствами и мотоциклами
C34: ИП ГРАНКИН АЛЕКСАНДР ВИКТОРОВИЧ
D35: Продавец непродовольственных товаров | E35: 3 | F35: 16242 | H35: Умение ориентироваться в ассортименте товаров строительных материалов, знание приемов и методов обслуживания покупателей, принципов оформления витрин.
C36: ИП КУЧЕР ЕЛЕНА ВЛАДИМИРОВНА
D37: Продавец продовольственных товаров | E37: 3 | F37: 17000 | H37: Наличие медицинской книжки
B38: Итого | C38: =COUNTA(C32:C37) -> 2 | E38: =SUM(E32:E37) -> 6
A39: N | B39: Деятельность административная и сопутствующие дополнительные услуги
A40: 81 | B40: Деятельность по обслуживанию зданий и территорий
C41: МУНИЦИПАЛЬНОЕ УНИТАРНОЕ ПРЕДПРИЯТИЕ АДМИНИСТРАЦИИ ГОРОДА ТОРЕЗА ЖИЛКОММУНСЕРВИС
D42: Грузчик | E42: 10 | F42: 16242 | G42: 18441
D43: Кровельщик по рулонным кровлям и по кровлям из штучных материалов | E43: 8 | F43: 16242
D44: Маляр | E44: 5 | F44: 16242
D45: Слесарь-сантехник | E45: 19 | F45: 16242
D46: Уборщик территорий | E46: 19 | F46: 16242
D47: Чистильщик дымоходов, боровов и топок | E47: 4 | F47: 16242
D48: Электросварщик ручной сварки | E48: 3 | F48: 16242
B49: Итого | C49: =COUNTA(C39:C48) -> 1 | E49: =SUM(E39:E48) -> 68
A50: O | B50: Государственное управление и обеспечение военной безопасности; социальное обеспечение
A51: 84 | B51: Деятельность органов государственного управления по обеспечению военной безопасности, обязательному социальному обеспечению
C52: ГБУ ТОРЕЗСКАЯ ИСПРАВИТЕЛЬНАЯ КОЛОНИЯ ГОСУДАРСТВЕННОЙ СЛУЖБЫ ИСПОЛНЕНИЯ НАКАЗАНИЙ МИНИСТЕРСТВА ЮСТИЦИИ ДОНЕЦКОЙ НАРОДНОЙ РЕСПУБЛИКИ
D53: Инспектор | E53: 16 | F53: 23760 | H53: Мужчина возрастом от 18 до 35 лет
B54: Итого | C54: =COUNTA(C50:C53) -> 1 | E54: =SUM(E50:E53) -> 16
A55: P | B55: Образование
A56: 85 | B56: Образование
C57: ГОСУДАРСТВЕННОЕ БЮДЖЕТНОЕ ПРОФЕССИОНАЛЬНОЕ ОБРАЗОВАТЕЛЬНОЕ УЧРЕЖДЕНИЕ ТОРЕЗСКИЙ ТЕХНИКУМ СТРОИТЕЛЬСТВА, ТЕХНОЛОГИЙ И СЕРВИСА
D58: Библиотекарь | E58: 1 | F58: 19415 | H58: Высшее педагогическое образование 9 разряд Наличие медицинской книжки
D59: Дворник | E59: 1 | F59: 16242 | H59: Наличие медицинской книжки
D60: Инженер-электроник | E60: 1 | F60: 19415 | H60: Среднее профессиональное образование по направлению подготовки Программист Наличие медицинской книжки
D61: Мастер производственного обучения | E61: 1 | F61: 19415 | H61: 9 разряд Наличие медицинской книжки Среднее профессиональное образование по направлению подготовки: Штукатур, Маляр
D62: Мастер производственного обучения | E62: 1 | F62: 19415 | H62: Среднее профессиональное образование по направлению подготовки Каменщик, Электрогазосварщик Наличие медицинской книжки.
C63: ГБОУ ТОРЕЗСКАЯ СПЕЦИАЛЬНАЯ ШКОЛА-ИНТЕРНАТ № 43
D64: Бухгалтер | E64: 1 | F64: 16242 | H64: Умение составлять тарификацию. отчетность. Наличие медицинской книжки.
D65: Воспитатель | E65: 2 | F65: 22090 | H65: Опыт работы с детьми с нарушениями умственного развития. Наличие медицинской книжки.
D66: Врач | E66: 1 | F66: 16505
D67: Повар | E67: 1 | F67: 16242 | H67: Наличие медицинской книжки, систематическое прохождение медицинского осмотра..
C68: МБДОУ ЯСЛИ-САД № 35 ГНЕЗДЫШКО ОБЩЕРАЗВИВАЮЩЕГО ТИПА ГОРОДА ТОРЕЗА
D69: Воспитатель | E69: 1 | F69: 16242 | H69: Знание основ закономерности возрастного развития, основы методики воспитательной работы и др.
D70: Заведующий хозяйством | E70: 1 | F70: 8121 | H70: Наличие медицинской книжки, навыки работы в Microsoft Excel
D71: Медицинская сестра | E71: 1 | F71: 8121 | H71: Наличие медицинской книжки, знание санитарных норм.
D72: Музыкальный руководитель | E72: 1 | F72: 8121 | H72: Наличие медицинской книжки.
C73: МБДОУ ЯСЛИ-САД № 31 РАДОСТЬ КОМБИНИРОВАННОГО ТИПА ГОРОДА ТОРЕЗА
D74: Воспитатель детского сада (яслей-сада) | E74: 1 | F74: 14085 | H74: Наличие медицинской книжки.
D75: Инструктор по физической культуре | E75: 1 | F75: 13233.6 | H75: Без опыта работы или воспитатель на пенсии по выслуге лет. Наличие медицинской книжки.
D76: Медицинская сестра | E76: 1 | F76: 4060.5 | H76: Наличие медицинской книжки.
D77: Помощник воспитателя | E77: 1 | F77: 4060.5 | H77: Наличие медицинской книжки.
C78: МУНИЦИПАЛЬНОЕ БЮДЖЕТНО ДОШКОЛЬНОЕ ОБРАЗОВАТЕЛЬНОЕ УЧРЕЖДЕНИЕ ЯСЛИ-САД № 19 СОЛНЫШКО КОМБИНИРОВАННОГО ТИПА ГОРОДА ТОРЕЗА
D79: Воспитатель детского сада (яслей-сада) | E79: 2 | F79: 16242 | H79: Высшее образование, желательно опыт работы с детьми. Специальность по образованию - Воспитатель детского сада Прохождение медицинского осмотра, наличие санитарной книжки
C80: МОУ ЛИЦЕЙ СПЕКТР ГОРОДА ТОРЕЗА
D81: Дворник | E81: 1 | F81: 4060.5 | H81: Наличие медицинской книжки.
D82: Дворник | E82: 1 | F82: 8121 | H82: Наличие медицинского осмотра.
D83: Уборщик производственных и служебных помещений | E83: 2 | F83: 8121 | H83: Наличие медицинской книжки.
D84: Уборщик производственных и служебных помещений | E84: 1 | F84: 16242 | H84: Требуется медицинская книжка.
C85: МУНИЦИПАЛЬНОЕ ОБЩЕОБРАЗОВАТЕЛЬНОЕ УЧРЕЖДЕНИЕ ШКОЛА №13 ГОРОДА ТОРЕЗА
D86: Дворник | E86: 1 | F86: 16242 | H86: Наличие медицинской книжки.
C87: ГОСУДАРСТВЕННОЕ ПРОФЕССИОНАЛЬНОЕ ОБРАЗОВАТЕЛЬНОЕ УЧРЕЖДЕНИЕ ТОРЕЗСКИЙ МЕДИЦИНСКИЙ КОЛЛЕДЖ
D88: Директор училища (колледжа) | E88: 1 | F88: 24895 | H88: Наличие медицинской книжки., Опыт работы не менее 5 лет в области административного, хозяйственного, документационного или организационного сопровождения.
D89: Инспектор по кадрам | E89: 1 | F89: 16242 | H89: Организованность, стрессоустойчивость. Опыт работы более 1 года.Знание действующего законодательства в сфере трудовых отношений.
D90: Преподаватель (в колледжах, университетах и других вузах) | E90: 5 | F90: 16242 | H90: Знание методики преподавания предмета, содержание учебных программ и принципы организации обучения по преподаваемому предмету. Использование средств коммуникационной оргтехники для получения и передач
D91: Секретарь-машинистка | E91: 1 | F91: 16242 | H91: Знание и ведение делопроизводства. Знание ПК. Использование средств коммуникационной оргтехники для получения и передачи информации.. Наличие медицинской книжки.
C92: МБДОУ ЯСЛИ-САД № 16 СКАЗКА КОМБИНИРОВАННОГО ТИПА ГОРОДА ТОРЕЗА
D93: Инструктор по физической культуре | E93: 1 | F93: 13787 | H93: Умение работать с детьми, проводить праздники. оформлять документацию.Грамотная речь, организаторские способности, работа в команде, творческое мышление, обучение и развитие, креативность. Наличие ме
D94: Музыкальный руководитель | E94: 1 | F94: 13785 | H94: Наличие организационных навыков, умение работать в команде, обладание творческим мышлением и грамотной речью. Постоянное обучение и развитие, креативность, музыкальное образование. Умение работать с д
C95: МУНИЦИПАЛЬНОЕ БЮДЖЕТНОЕ УЧРЕЖДЕНИЕ ДЕТСКО-ЮНОШЕСКАЯ СПОРТИВНАЯ ШКОЛА № 2 ГОРОДА ТОРЕЗА
D96: Кассир | E96: 1 | F96: 16242 | H96: Наличие медицинской книжки.
D97: Слесарь-сантехник | E97: 1 | F97: 16242 | H97: Наличие медицинской книжки. Наличие удостоверения.
D98: Слесарь-электрик по ремонту электрооборудования | E98: 1 | F98: 16242 | H98: Наличие медицинской книжки. Наличие удостоверения.
D99: Уборщик производственных и служебных помещений | E99: 1 | F99: 8141 | H99: Наличие медицинской книжки.
C100: МУНИЦИПАЛЬНОЕ ОБЩЕОБРАЗОВАТЕЛЬНОЕ УЧРЕЖДЕНИЕ ШКОЛА № 22 ГОРОДА ТОРЕЗА
D101: Медицинская сестра | E101: 1 | F101: 7741 | H101: Наличие медицинской книжки. К работе не допускаются лица. имеющие или имевшие судимость.
D102: Педагог социальный | E102: 1 | F102: 7336 | H102: Наличие медицинской книжки. К работе не допускаются лица, имеющие или имевшие судимость.
D103: Психолог | E103: 1 | F103: 7336 | H103: Наличие медицинской книжки.К работе не допускаются лица имеющие или имевшие судимость.
C104: МУНИЦИПАЛЬНОЕ ОБЩЕОБРАЗОВАТЕЛЬНОЕ УЧРЕЖДЕНИЕ ШКОЛА № 26 ГОРОДА ТОРЕЗА
D105: Медицинская сестра | E105: 1 | F105: 16242 | H105: Должна знать: теоретические основы сестринского дела, общие вопросы организации питания в образовательной организации, санитарно-технический минимум для работников пищеблока, правила ведения учетно-от
D106: Рабочий по комплексному обслуживанию и ремонту зданий | E106: 1 | F106: 16242 | H106: Наличие медицинской книжки. Знание основ ремонтно-строительных работ и способов их выполнения, видов материалов, назначение и устройство инструментов, приспособлений. механизмов и оборудования при вед
C107: МБДОУ ЯСЛИ-САД № 17 МОТЫЛЕК КОМБИНИРОВАННОГО ТИПА ГОРОДА ТОРЕЗА
D108: Музыкальный руководитель | E108: 1 | F108: 16542 | H108: Владение музыкальным инструментом. Периодическое прохождение медицинского осмотра.
C109: МУНИЦИПАЛЬНОЕ УЧРЕЖДЕНИЕ ДОПОЛНИТЕЛЬНОГО ОБРАЗОВАНИЯ ШКОЛА ИСКУССТВ №1 ГОРОДА ТОРЕЗА
D110: Настройщик пианино и роялей | E110: 1 | F110: 8121 | H110: Наличие медицинской книжки
D111: Педагог дополнительного образования | E111: 2 | F111: 5500 | H111: Наличие медицинской книжки.
D112: Рабочий по комплексному обслуживанию и ремонту зданий | E112: 1 | F112: 16242 | H112: Наличие медицинской книжки
C113: МУНИЦИПАЛЬНОЕ УЧРЕЖДЕНИЕ ДОПОЛНИТЕЛЬНОГО ОБРАЗОВАНИЯ МУЗЫКАЛЬНАЯ ШКОЛА № 2 ГОРОДА ТОРЕЗА
D114: Педагог дополнительного образования | E114: 1 | F114: 19415 | H114: Наличие медицинской книжки
C115: МУНИЦИПАЛЬНОЕ БЮДЖЕТНОЕ ОБЩЕОБРАЗОВАТЕЛЬНОЕ УЧРЕЖДЕНИЕ ШКОЛА № 4 ГОРОДА ТОРЕЗА
D116: Педагог-психолог | E116: 1 | F116: 18579 | H116: Образованние высшее, квалификация - практический психолог (Специальная психология). Специальность по образованию - психология. Коммуникабельность, исполнительность, пунктуальность. Наличие медицинской
D117: Учитель | E117: 1 | F117: 9289 | H117: Образование высшее, специальность по образованию - учитель физики.Коммуникабельность, исполнительность, пунктуальность. Наличие медицинской книжки.
C118: МУНИЦИПАЛЬНОЕ БЮДЖЕТНОЕ ДОШКОЛЬНОЕ ОБРАЗОВАТЕЛЬНОЕ УЧРЕЖДЕНИЕ ЯСЛИ-САД № 5 ТЕРЕМОК ОБЩЕРАЗВИВАЮЩЕГО ТИПА ГОРОДА ТОРЕЗА
D119: Повар | E119: 1 | F119: 8121 | H119: Наличие санитарной книжки, владение компьютером.
C120: МБДОУ ЯСЛИ-САД № 41 ДРУЖБА ОБЩЕРАЗВИВАЮЩЕГО ТИПА ГОРОДА ТОРЕЗА
D121: Повар | E121: 1 | F121: 16242 | H121: Наличие медицинской книжки и сертификатов психолога и нарколога. Опыт паботы приветствуется.
C122: МБДОУ ЯСЛИ-САД № 49 ВЕСНЯНКА ОБЩЕРАЗВИВАЮЩЕГО ТИПА ГОРОДА ТОРЕЗА
D123: Рабочий по комплексному обслуживанию и ремонту зданий | E123: 1 | F123: 16242 | H123: Наличие санитарной книжки.
C124: МБДОУ ЯСЛИ-САД № 26 ТОПОЛЕК ОБЩЕРАЗВИВАЮЩЕГО ТИПА ГОРОДА ТОРЕЗА
D125: Рабочий по комплексному обслуживанию и ремонту зданий | E125: 1 | F125: 8121 | H125: Наличие медицинской книжки
C126: ГОСУДАРСТВЕННОЕ БЮДЖЕТНОЕ ПРОФЕССИОНАЛЬНОЕ ОБРАЗОВАТЕЛЬНОЕ УЧРЕЖДЕНИЕ ТОРЕЗСКИЙ ИНДУСТРИАЛЬНЫЙ ТЕХНИКУМ ИМ.А.Ф.ЗАСЯДЬКО
D127: Электромонтер по ремонту и обслуживанию электрооборудования | E127: 1 | F127: 15279 | H127: Наличие свидетельства о квалификации разряде и допуске к обслуживанию электрооборудования напряжением до 1000 В. Наличие медицинской книжки.
B128: Итого | C128: =COUNTA(C55:C127) -> 21 | E128: =SUM(E55:E127) -> 58
A129: Q | B129: Деятельность в области здравоохранения и социальных услуг
A130: 86 | B130: Деятельность в области здравоохранения
C131: ГБУ ЦЕНТР ПЕРВИЧНОЙ МЕДИКО-САНИТАРНОЙ ПОМОЩИ Г.ТОРЕЗА
D132: Врач общей практики (семейный) | E132: 19 | F132: 17630 | H132: Образование высшее медицинское. Специальность по образованию - врач общей практики (семейный врач). Наличие удостоверения о повышении квалификации. Опыт работы не менне 1 года. Наличие медицинской кни
D133: Врач-педиатр участковый | E133: 3 | F133: 16290 | H133: Образование высшее медицинское. Специальность по образованию - врач (лечебное дело). Наличие удостоверения о повышении квалификации. Опыт работы не менее 1 года. Наличие медицинской книжки.
D134: Врач-специалист | E134: 3 | F134: 23700 | H134: Образование высшее медицинское. Специальность по образованию - врач-лечебник. Наличие удостоверения о повышении квалификации. Опыт работы не менее 1 года. Наличие медицинской книжки.
D135: Врач-статистик | E135: 2 | F135: 16290 | H135: Образование высшее медицинское. Специальность по образованию - медицинская статистика. Наличие удостоверения о повышении квалификации. Опыт работы не менее 1 года. Наличие медицинской книжки.
D136: Врач-терапевт участковый | E136: 2 | F136: 16290 | H136: Образование высшее медицинское. Специальность по образованию - врач- терапевт. Наличие удостоверения о повышении квалификации. Опыт работы не менее 1 года. Наличие медицинской книжки.
D137: Медицинская сестра | E137: 2 | F137: 16280 | H137: Образование среднее профессиональное. Специальность по образованию - сестринское дело. Наличие удостоверения о повышении квалификации. Опыт работы не менее 1 года. Наличие медицинской книжки.
C138: ТОРЕЗСКАЯ ЦЕНТРАЛЬНАЯ ГОРОДСКАЯ БОЛЬНИЦА
D139: Санитарка палатная | E139: 1 | F139: 16242 | H139: Наличие медицинской книжи и справки об отсутствии судимости.
D140: Уборщик территорий | E140: 1 | F140: 16242 | H140: Наличие медицинской книжки.
A141: 87 | B141: Деятельность по уходу с обеспечением проживания
C142: ГОСУДАРСТВЕННОЕ БЮДЖЕТНОЕ УЧРЕЖДЕНИЕ ТОРЕЗСКИЙ ПСИХОНЕВРОЛОГИЧЕСКИЙ ИНТЕРНАТ
D143: Водитель автомобиля | E143: 1 | F143: 16242 | H143: Наличе категории В, наличие медицинской книжки. Справки от психиатра, нарколога.
D144: Дворник | E144: 2 | F144: 16242 | H144: Наличие медицинской книжки, сертификатов от наркоголога и психиатра.
D145: Инженер по охране труда | E145: 1 | F145: 18341 | H145: Наличие медицинской книжки. Предоставление справки от нарколога, психиатра.
D146: Кухонный рабочий | E146: 1 | F146: 16242 | H146: Наличие медицинской книжки, сертификатов от нарколога и психиатра
D147: Машинист по стирке и ремонту спецодежды | E147: 1 | F147: 16242 | H147: Совершенствование и соблюдение культуры обслуживания Наличие медицинской книжки, сертификатов психиатра и нарколога.
D148: Медицинская сестра | E148: 1 | F148: 16242 | H148: Неполное высшее или среднее профессиональное образование по направлению подготовки: Сестринское дело, лечебное дело, акушерское дело. Совершенствование и соблюдение культуры обслуживания. Наличие ме
D149: Младшая медицинская сестра по уходу за больными | E149: 1 | F149: 8121 | H149: Совершенствовать и соблюдать культуру обслуживания, принципы трудовой дисциплины и профессиональной этики. Наличие медицинской книжки, сертификатов психитра и нарколога.
D150: Младшая медицинская сестра по уходу за больными | E150: 2 | F150: 16242 | G150: 16561 | H150: Наличие медицинской книжки, сертификатов психиатра и нарколога. Совершенствование и соблюдение культуры обслуживания.
D151: Санитарка (мойщица) | E151: 2 | F151: 16242 | G151: 17118 | H151: Совершенствование и соблюдение культуры обслуживания. Наличие медицинской книжки, сертификатов нарколога и психиатра.
D152: Швея | E152: 1 | F152: 8121 | H152: Наличие медицинской книжки, сертификатов нарколога и психиатра.
D153: Юрисконсульт | E153: 1 | F153: 8615 | H153: Наличие медицинской книжки, сертификатов от нарколога и психиатра.
A154: 88 | B154: Предоставление социальных услуг без обеспечения проживания
C155: МУНИЦИПАЛЬНОЕ БЮДЖЕТНОЕ УЧРЕЖДЕНИЕ ТОРЕЗСКИЙ ЦЕНТР СОЦИАЛЬНОЙ РЕАБИЛИТАЦИИ СМЕШАННОГО ТИПА ИНВАЛИДОВ И ДЕТЕЙ-ИНВАЛИДОВ НАДЕЖДА
D156: Водитель автомобиля | E156: 1 | F156: 17000 | H156: Наличие категории D. Наличие медицинской справки о пригодности к управлению транспортным средством, сертификата о прохождении наркологического осмотра, медсправки психиатрического освидетельствования.
D157: Воспитатель | E157: 1 | F157: 23200 | H157: Среднее профессиональное педагогическое образование. Владение персональным компьютером и оргтехникой. Наличие медицинской книжки.
D158: Дворник | E158: 1 | F158: 16242 | H158: Наличие медицинской книжки
D159: Логопед | E159: 1 | F159: 13000 | H159: Соблюдение норм этики и морали, коммуникабельность, малая сменяемость рабочих мест. Работа с ПК, оргтехникой.
D160: Педагог социальный | E160: 1 | F160: 12000 | H160: Соблюдение норм этики и морали, коммуникабельность, малая сменяемость рабочих мест.
D161: Педагог-психолог | E161: 1 | F161: 13000 | H161: Соблюдение норм этики и морали, работа с ПК, оргтехникой, коммуникабельность
C162: МУНИЦИПАЛЬНОЕ БЮДЖЕТНОЕ УЧРЕЖДЕНИЕ ТЕРРИТОРИАЛЬНЫЙ ЦЕНТР СОЦИАЛЬНОГО ОБСЛУЖИВАНИЯ (ПРЕДОСТАВЛЕНИЯ СОЦИАЛЬНЫХ УСЛУГ) ГОРОДА ТОРЕЗА
D163: Заведующий хозяйством | E163: 1 | F163: 16242 | H163: Умение осуществлять административное, хозяйственное, документальное обеспечение.
D164: Кухонный рабочий | E164: 1 | F164: 12181 | H164: Наличие медицинской книжки.
D165: Машинист по стирке и ремонту спецодежды | E165: 1 | F165: 16242 | H165: Без опыта работы, налчие медицинской книжки.
D166: Младшая медицинская сестра по уходу за больными | E166: 5 | F166: 20151 | H166: Без опыта работы., наличие медицинской книжки.
D167: Санитарка (мойщица) | E167: 1 | F167: 19993 | H167: Без опыта работы, налчие медицинской книжки.
D168: Специалист по социальной работе | E168: 1 | F168: 18407 | H168: Специальность по образованию социальный работник. Без опыта работы. Налчие медицинской книжки.
D169: Сторож (вахтер) | E169: 3 | F169: 16242 | H169: Наличие медицинской книжки, без опыта работы, образование общее среднее.
D170: Уборщик производственных и служебных помещений | E170: 3 | F170: 16242 | H170: Без опыта работы, наличие медицинской книжки.
B171: Итого | C171: =COUNTA(C129:C170) -> 5 | E171: =SUM(E129:E170) -> 69

Sheet Харцызский ГЦЗ
A5: Потребность, заявленная работодателями г. Харцызск, по состоянию на 01.04.2023
A6: Раздел/ код ОКВЭД | B6: Виды экономической деятельности | C6: Наименование ПОУ | D6: Название профессии/ специальности | E6: Количество свободных рабочих мест (вакантных должнлстей) (ед.) | F6: Размер заработной платы, указанный в вакансии от, руб. | G6: Размер заработной платы, указанный в вакансии до, руб. | H6: Требования
A7: 1 | B7: 2 | C7: 3 | D7: 4 | E7: 5 | F7: 6 | G7: 7 | H7: 8
A8: Всего | C8: 45 | E8: 296
A9: C | B9: Обрабатывающие производства
A10: 10 | B10: Производство пищевых продуктов
C11: ООО АРТЕМИДА
D12: Бухгалтер | E12: 1 | F12: 18000 | H12: НАЛИЧИЕ МЕДИЦИНСКОЙ КНИЖКИ
A13: 22 | B13: Производство резиновых и пластмассовых изделий
C14: ИП ВЯТКИН ИГОРЬ ВАЛЕРИЕВИЧ
D15: Сборщик изделий из пластмасс | E15: 3 | F15: 18000
A16: 24 | B16: Производство металлургическое
C17: ФИЛИАЛ 1 ХАРЦЫЗСКИЙ СТАЛЕПРОВОЛОЧНЫЙ-КАНАТНЫЙ ЗАВОД СИЛУР ОБЩЕСТВА С ОГРАНИЧЕННОЙ ОТВЕТСТВЕННОСТЬЮ РОСТЭКСПОСНАБ 8
D18: Волочильщик проволоки | E18: 5 | F18: 35556 | H18: ОБСЛУЖИВАНИЕ ВОЛОЧИЛЬНОГО ОБОРУДОВАНИЯ, НАСТРОЙКА ВОЛОЧИЛЬНЫХ СТАНОВ
B19: Итого | C19: =COUNTA(C9:C18) -> 3 | E19: =SUM(E9:E18) -> 9
A20: D | B20: Обеспечение электрической энергией, газом и паром; кондиционирование воздуха | F20: 55
A21: 35 | B21: Обеспечение электрической энергией, газом и паром; кондиционирование воздуха | F21: 30
C22: ГОСУДАРСТВЕННОЕ УНИТАРНОЕ ПРЕДПРИЯТИЕ ДОНЕЦКОЙ НАРОДНОЙ РЕСПУБЛИКИ ДОНБАССТЕПЛОЭНЕРГО | F22: 10
D23: Аппаратчик по приготовлению химреагентов | E23: 1 | F23: 57
D24: Водитель автомобиля | E24: 3 | F24: 25
D25: Инженер-энергетик службы (группы) релейной защиты, автоматики, измерений и телемеханики | E25: 1 | F25: 4 | H25: НАЛИЧИЕ УДОСТОВЕРЕНИЯ IV-V ГРУППЫ ПО ЭЛЕКТРОБЕЗОПАСНОСТИ
D26: Кровельщик по рулонным кровлям и по кровлям из штучных материалов | E26: 2 | F26: 5 | G26: 21296
D27: Маляр | E27: 1 | F27: 69
D28: Мастер | E28: 3 | F28: 32
D29: Машинист-обходчик по котельному оборудованию | E29: 1 | F29: 23867 | H29: ПОВЫШЕНИЕ КВАЛИФИКАЦИИ, СПЕЦИАЛЬНАЯ ПОДГОТОВКА В ОТРАСЛИ
D30: Слесарь по контрольноизмерительным приборам и автоматике | E30: 5 | F30: 19391 | G30: 21630
D31: Слесарь по ремонту оборудования тепловых сетей | E31: 6 | F31: 23867 | G31: 26849 | H31: НАЛИЧИЕ СВИДЕТЕЛЬСТВА О ПРИСВОЕНИИ ПРОФЕССИИ СЛЕСАРЬ ПО РЕМОНТУ ОБОРУДОВАНИЯ ТЕПЛОВЫХ СЕТЕЙ
D32: Слесарь по ремонту оборудования тепловых сетей | E32: 1 | F32: 19391 | H32: ПОВЫШЕНИЕ КВАЛИФИКАЦИИ
D33: Старший машинист котельного оборудования | E33: 4 | F33: 25346
D34: Электрогазосварщик | E34: 2 | F34: 22971 | G34: 28515 | H34: ПОВЫШЕНИЕ КВАЛИФИКАЦИИ
D35: Электромонтер по ремонту и монтажу кабельных линий | E35: 1 | F35: 21630 | H35: ПОВЫШЕНИЕ КВАЛИФИКАЦИИ
D36: Электромонтер по ремонту и обслуживанию электрооборудования | E36: 2 | F36: 23867 | H36: ПОВЫШЕНИЕ КВАЛИФИКАЦИИ, СПЕЦИАЛЬНАЯ ПОДГОТОВКА
D37: Электрослесарь по ремонту оборудования распределительных устройств | E37: 2 | F37: 19391 | G37: 21630
D38: Электрослесарь по ремонту электрических машин | E38: 1 | F38: 19391
C39: ГОСУДАРСТВЕННЫЙ КОНЦЕРН ДОНБАССГАЗ
D40: Водитель автомобиля | E40: 2 | F40: 20585 | G40: 23045 | H40: НАЛИЧИЕ ВОДИТЕЛЬСКОГО УДОСТОВЕРЕНИЯ КАТЕГОРИИ В,С,Д,Е
D41: Грузчик | E41: 1 | F41: 17154
D42: Инженер по безопасности движения | E42: 1 | F42: 14098
D43: Инженер по подготовке производства | E43: 1 | F43: 36700
D44: Инженер-программист | E44: 1 | F44: 33400 | H44: ОПЫТ РАБОТЫ НЕ МЕНЕЕ 1 ГОДА В ОБЛАСТИ РАЗРАБОТКИ КОМПЬЮТЕРНОГО ПРОГРАМНОГО ОБЕСПЕЧЕНИЯ
D45: Контролер газового хозяйства | E45: 4 | F45: 19695
D46: Контролер контрольно-пропускного пункта | E46: 1 | F46: 19391 | H46: ЗНАНИЕ И УМЕНИЕ ПРИМЕНЕНИЯ МЕР ФИЗИЧЕСКОГО ВОЗДЕЙСТВИЯ И САМООБОРОНЫ
D47: Машинист крана автомобильного | E47: 1 | F47: 31775
D48: Слесарь по эксплуатации и ремонту газового оборудования | E48: 1 | F48: 25777 | H48: СПОСОБЫ И ПРАВИЛА ОБНАРУЖЕНИЯИ УСТРАНЕНИЯ НЕИСПРАВНОСТЕЙ; ПООИЗВОДСТВО ИСПЫТАНИЙИ НАЛАДКИ ОБОРУДОВАНИЯ ГАЗГОЛЬДЕРНЫХ, ГАЗОРАЗДАТОЧНЫХ И ГАЗОРЕГУЛЯТОРНЫХ СТАНЦИЙ(ПУНКТОВ); УСТРОЙСТВО, ПРИНЦИП ДЕЙСТВИЯ;
D49: Слесарь по эксплуатации и ремонту газового оборудования | E49: 5 | F49: 20943 | G49: 23361 | H49: ЗНАТЬ ПРАВИЛА ГАЗОСНАБЖЕНИЯ ЖИЛЫХ ДОМОВ; ПРАВИЛА ЭКСПЛУАТАЦИИ ВНУТРИДОМОВОГО ГАЗОВОГО ОБОРУДОВАНИЯ; ВИДЫ РЕМОНТА ГАЗОВЫХ ПРИБОРОВ.
D50: Слесарь по эксплуатации и ремонту подземных газопроводов | E50: 1 | F50: 23361 | H50: ЗНАТЬ ПРАВИЛА ВЕДЕНИЯ РАБОТ НА ТРАССАХ ГАЗОПРОВОДОВ;
B51: Итого | C51: =COUNTA(C20:C50) -> 2 | E51: =SUM(E20:E50) -> 55
A52: E | B52: Водоснабжение; водоотведение, организация сбора и утилизации отходов, деятельность по ликвидации загрязнений
A53: 36 | B53: Забор, очистка и распределение воды
C54: ФИЛИАЛ "ХАРЦЫЗСКОЕ ПРОИЗВОДСТВЕННОЕ УПРАВЛЕНИЕ ВОДОПРОВОДНО-КАНАЛИЗАЦИОННОГО ХОЗЯЙСТВА" ГОСУДАРСТВЕННОГО УНИТАРНОГО ПРЕДПРИЯТИЯ ДОНЕЦКОЙ НАРОДНОЙ РЕСПУБЛИКИ "ВОДА ДОНБАССА"
D55: Мастер участка | E55: 2 | F55: 32695 | H55: НАЛИЧИЕ МЕДИЦИНСКОЙ КНИЖКИ
D56: Слесарь аварийно-восстановительных работ | E56: 24 | F56: 23161 | H56: НАЛИЧИЕ МЕДИЦИНСКОЙ КНИЖКИ
D57: Уборщик производственных и служебных помещений | E57: 4 | F57: 16242 | H57: НАЛИЧИЕ МЕДИЦИНСКОЙ КНИЖКИ
B58: Итого | C58: =COUNTA(C52:C57) -> 1 | E58: =SUM(E52:E57) -> 30
A59: G | B59: Торговля оптовая и розничная; ремонт автотранспортных средств и мотоциклов
A60: 47 | B60: Торговля розничная, кроме торговли автотранспортными средствами и мотоциклами
C61: ИП ШАХОВА ЛИЛИЯ АНАТОЛЬЕВНА
D62: Продавец непродовольственных товаров | E62: 6 | F62: 16242
C63: ИП ВЫСОЦКИЙ ДМИТРИЙ ПАВЛОВИЧ
D64: Продавец продовольственных товаров | E64: 4 | F64: 16242
B65: Итого | C65: =COUNTA(C59:C64) -> 2 | E65: =SUM(E59:E64) -> 10
A66: H | B66: Транспортировка и хранение
A67: 49 | B67: Деятельность сухопутного и трубопроводного транспорта
C68: МУНИЦИПАЛЬНОЕ УНИТАРНОЕ ПРЕДПРИЯТИЕ ХАРЦЫЗСКЭЛЕКТРОТРАНС
D69: Водитель автомобиля | E69: 7 | F69: 20700 | G69: 28360
D70: Делопроизводитель | E70: 1 | F70: 8121 | H70: ЗНАНИЕ АРХИВНОГО ДЕЛА
D71: Мастер | E71: 1 | F71: 24748
D72: Медицинская сестра | E72: 1 | F72: 16500 | H72: ПОРЯДОК И ПРАВИЗА ИСПОЛЬЗОВАНИЯ АППАРАТУРЫ ДЛЯ ОПРЕДЕЛЕНИЯ ПАРОВ АЛКОГОЛЯ В ВЫДЫХАЕМОМ ВОЗДУХЕ, ИЗМЕРЕНИЯ АРТЕРИАЛЬНОГО ДАВЛЕНИЯ, ТЕМПЕРАТУРЫ ТЕЛА, ПУЛЬСА, МЕДИЦИНСКИХ ПРЕПАРАТОВ
D73: Мойщик-уборщик подвижного состава | E73: 1 | F73: 16242
D74: Слесарь по ремонту автомобилей | E74: 4 | F74: 20264 | G74: 22967 | H74: ЗНАТЬ КОНТСРУКТИВНОЕ УСТРОЙСТВО ОБСЛУЖИВАЕМЫХ АВТОМОБИЛЕЙ И АВТОБУСОВ, ЭЛЕКТРИЧЕСКИЕ И МОНТАЖНЫЕ СХЕМЫ ЛЮБОЙ СЛОЖНОСТИ И ВЗАИМОДЕЙСТВИЯ ПРИБОРОВ И АГРЕГАТОВ В НИХ
D75: Слесарь по ремонту подвижного состава | E75: 3 | F75: 18013 | G75: 20264
D76: Электромонтер тяговой подстанции | E76: 3 | F76: 18013 | G76: 20264
D77: Электрослесарь по ремонту электрических машин | E77: 1 | F77: 20264 | H77: СТАЖ РАБОТЫ ПО ПРОФЕССИИ ЭЛЕКТРОСЛЕСАРЬ 4 РАЗРЯДА НЕ МЕНЕЕ 2 ЛЕТ
D78: Электрослесарь по ремонту электрических машин | E78: 1 | F78: 22967 | H78: СТАЖ РАБОТЫ ПО ПРОФЕССИИ ЭЛЕКТРОСЛЕСАРЯ 5 РАЗРЯДА НЕ МЕНЕЕ 1 ГОДА
C79: ГОСУДАРСТВЕННОЕ УНИТАРНОЕ ПРЕДПРИЯТИЕ ДОНЕЦКОЙ НАРОДНОЙ РЕСПУБЛИКИ ДОНЕЦКАЯ ЖЕЛЕЗНАЯ ДОРОГА
D80: Дежурный стрелочного поста | E80: 3 | F80: 16581 | H80: ПРЕДВАРИТЕЛЬНЫЙ И ПЕРИОДИЧЕСКИЙ МЕДОСМОТР, НАЛИЧИЕ СЕРТИФИКАТА НАРКОЛОГА, ПСИХИАТРА; НАЛИЧИЕ УДОСТОВЕРЕНИЯ ДЕЖУРНОГО СТРЕЛОЧНОГО ПОСТА 3 РАЗРЯДА
D81: Машинист (кочегар) котельной | E81: 4 | F81: 16242 | H81: НАЛИЧИЕ УДОСТОВЕРЕНИЯ МАШИНИСТА (КОЧЕГАРА) КОТЕЛЬНОЙ 2 РАЗРЯДА, ПРЕДВАРИТЕЛЬНЫЙ И ПЕРИОДИЧЕСКИЙ МЕДОСМОТР, СЕРТИФИКАТ НАРКОЛОГА, ПСИХИАТРА
D82: Машинист тепловоза | E82: 3 | F82: 26513 | H82: ПРЕДВАРИТЕЛЬНЫЙ И ПЕРИОДИЧЕСКИЙ МЕДОСМОТР, НАЛИЧИЕ СЕРТИФИКАТА НАРКОЛОГА И ПСИХИАТРА, НАЛИЧИЕ ПРАВ УПРАВЛЕНИЯ ЛОКОМОТИВОМ, БЕЗ ПЕРЕРЫВА В РАБОТЕ БОЛЕЕ ГОДА
D83: Машинист электровоза | E83: 6 | F83: 26513 | H83: ПРЕДВАРИТЕЛЬНЫЙ И ПЕРИОДИЧЕСКИЙ МЕДОСМОТР, НАЛИЧИЕ СЕРТИФИКАТА НАРКОЛОГА, ПСИХИАТРА
D84: Оператор котельной | E84: 3 | F84: 16242 | H84: НАЛИЧИЕ УДОСТОВЕРЕНИЯ ОПЕРАТОРА КОТЕЛЬНОЙ, ПРОХОЖДЕНИЕ ОБЯЗАТЕЛЬНОГО МЕДИЦИНСКОГО ОСМОТРА, НАЛИЧИЕ СЕРТИФИКАТА НАРКОЛОГА И ПСИХИАТРА
D85: Помощник машиниста электровоза | E85: 5 | F85: 20726 | H85: ПРЕДВАРИТЕЛЬНЫЙ И ПЕРИОДИЧЕСКИЙ МЕДОСМОТР, НАЛИЧИЕ СЕРТИФИКАТА НАРКОЛОГА, ПСИХИАТРА
D86: Проводник пассажирского вагона | E86: 3 | F86: 16581
D87: Слесарь по ремонту подвижного состава | E87: 3 | F87: 20726 | H87: ПРЕДВАРИТЕЛЬНЫЙ И ПЕРИОДИЧЕСКИЙ МЕДОСМОТР, СЕРТИФИКАТ НАРКОЛОГА И ПСИХИАТРА
D88: Электрогазосварщик | E88: 4 | F88: 18826 | H88: ПРОХОЖДЕНИЕ ОБЯЗАТЕЛЬНОГО МЕДИЦИНСКОГО ОСМОТРА, НАЛИЧИЕ СЕРТИФИКАТА НАРКОЛОГА И ПСИХИАТРА
B89: Итого | C89: =COUNTA(C66:C88) -> 2 | E89: =SUM(E66:E88) -> 57
A90: L | B90: Деятельность по операциям с недвижимым имуществом
A91: 68 | B91: Операции с недвижимым имуществом
C92: МУНИЦИПАЛЬНОЕ УНИТАРНОЕ ПРЕДПРИЯТИЕ ГОРОДСКАЯ СЛУЖБА ЕДИНОГО ЗАКАЗЧИКА Г. ХАРЦЫЗСКА
D93: Дворник | E93: 9 | F93: 16242
D94: Мастер участка | E94: 4 | F94: 18628
D95: Монтажник санитарно-технических систем и оборудования | E95: 5 | F95: 16242
D96: Электромонтажник по освещению и осветительным сетям | E96: 4 | F96: 16242
C97: МУНИЦИПАЛЬНОЕ УНИТАРНОЕ ПРЕДПРИЯТИЕ ЗУГРЭСВОДОКАНАЛ-2 ГОРОДА ЗУГРЭС
D98: Уборщик территорий | E98: 3 | F98: 16242 | H98: НАЛИЧИЕ МЕДИЦИНСКОЙ КНИЖКИ
B99: Итого | C99: =COUNTA(C90:C98) -> 2 | E99: =SUM(E90:E98) -> 25
A100: N | B100: Деятельность административная и сопутствующие дополнительные услуги
A101: 81 | B101: Деятельность по обслуживанию зданий и территорий
C102: КОММУНАЛЬНОЕ ЖИЛИЩНО-ЭКСПЛУАТАЦИОННОЕ ПРЕДПРИЯТИЕ ЖЭП Г.ИЛОВАЙСКА
D103: Монтажник санитарно-технических систем и оборудования | E103: 4 | F103: 17547 | H103: НАВЫКИ РЕМОНТА, ОБСЛУЖИВАНИЯ ИМОНТАЖА СИСТЕМ ОТОПЛЕНИЯ И КАНАЛИЗАЦИИ. НАВЫКИ ОПРЕДЕЛЕНИЯ ГОДНОСТИ КОМПОНЕНТОВ И УЗЛОВ САНТЕХНИКИ, ЗНАНИЕ МЕТОДОВ ИЗМЕРЕНИЯ ТРУБ, ФИТИНГОВ, АРМАТУРЫ. ЗНАНИЕ ТЕХНИКИ БЕЗОПАСТНОСТИ
B104: Итого | C104: =COUNTA(C100:C103) -> 1 | E104: =SUM(E100:E103) -> 4
A105: O | B105: Государственное управление и обеспечение военной безопасности; социальное обеспечение
A106: 84 | B106: Деятельность органов государственного управления по обеспечению военной безопасности, обязательному социальному обеспечению
C107: ГБУ УПРАВЛЕНИЕ ПЕНСИОННОГО ФОНДА ДОНЕЦКОЙ НАРОДНОЙ РЕСПУБЛИКИ В Г. ХАРЦЫЗСКЕ
D108: Главный специалист | E108: 3 | F108: 17653 | H108: НАВЫКИ РАБОТЫ С ПК
D109: Директор (начальник, управляющий) предприятия | E109: 1 | F109: 22174 | H109: СТАЖ РАБОТЫ НЕ МЕНЕЕ 5 ЛЕТ НА РУКОВОДЯЩИХ ДОЛЖНОСТЯХ
D110: Специалист | E110: 1 | F110: 16242
B111: Итого | C111: =COUNTA(C105:C110) -> 1 | E111: =SUM(E105:E110) -> 5
A112: P | B112: Образование
A113: 85 | B113: Образование
C114: МУНИЦИПАЛЬНАЯ ОРГАНИЗАЦИЯ ДОПОЛНИТЕЛЬНОГО ОБРАЗОВАНИЯ ХАРЦЫЗСКИЙ ЦЕНТР ДЕТСКОГО И ЮНОШЕСКОГО ТВОРЧЕСТВА
D115: Аккомпаниатор | E115: 1 | F115: 16242 | H115: ВЛАДЕНИЕ КАКИМ-ЛИБО МУЗЫКАЛЬНЫМ ИНСТРУМЕНТОМ
D116: Руководитель кружка (клуба по интересам, коллектива, любительского объединения, секции, студии, туристской группы) | E116: 1 | F116: 17607 | H116: НАЛИЧИЕ МЕДИЦИНСКОЙ КНИЖКИ
C117: МУНИЦИПАЛЬНОЕ БЮДЖЕТНОЕ УЧРЕЖДЕНИЕ ДОПОЛНИТЕЛЬНОГО ОБРАЗОВАНИЯ "ИЛОВАЙСКАЯ ШКОЛА ИСКУССТВ"
D118: Бухгалтер | E118: 1 | F118: 16242 | H118: НАЛИЧИЕ МЕДИЦИНСКОЙ КНИЖКИ
C119: МУНИЦИПАЛЬНАЯ ДОШКОЛЬНАЯ ОБРАЗОВАТЕЛЬНАЯ ОРГАНИЗАЦИЯ ЯСЛИ-САД КОМБИНИРОВАННОГО ТИПА №25 ЧАЙКА Г. ХАРЦЫЗСКА
D120: Воспитатель | E120: 2 | F120: 16242 | H120: НАЛИЧИЕ МЕДИЦИНСКОЙ КНИЖКИ. ЗНАНИЕ ПЕДАГОГИКИ И ДЕТСКОЙ ПСИХОЛОГИИ
C121: МБДОУ ЯСЛИ-САД КОМБИНИРОВАННОГО ТИПА № 16 СКАЗКА Г. ХАРЦЫЗСКА
D122: Воспитатель | E122: 5 | F122: 14617
D123: Делопроизводитель | E123: 1 | F123: 8121
D124: Помощник воспитателя | E124: 1 | F124: 15429 | H124: НАВЫКИ ПОДАЧИ ПИЩИ, УБОРКА ГРУППОВОГО ПОМЕЩЕНИЯ
C125: МБДОУ ЯСЛИ-САД № 12 РОМАШКА Г. ИЛОВАЙСКА
D126: Воспитатель | E126: 2 | F126: 14617 | H126: ВЛАДЕНИЕ СОВРЕМЕННЫМИ ИННОВАЦИОННЫМИ ТЕХНОЛОГИЯМИ И МЕТОДИКАМИ И ЭФФЕКТИВНОЕ ПРИМЕНЕНИЕ ИХ В ПРАКТИЧЕСКОЙ ПРОФЕССИОНАЛЬНОЙ ДЕЯТЕЛЬНОСТИ, ОВЛАДЕНИЕ ДОПОЛНИТЕЛЬНЫМИ ПРОФЕССИОНАЛЬНЫМИ ОБРАЗОВАТЕЛЬНЫМИ ПРОГРАММАМИ
D127: Делопроизводитель | E127: 1 | F127: 16242
D128: Заведующий хозяйством | E128: 1 | F128: 16242
C129: МУНИЦИПАЛЬНАЯ ДОШКОЛЬНАЯ ОБРАЗОВАТЕЛЬНАЯ ОРГАНИЗАЦИЯ ЯСЛИ-САД КОМБИНИРОВАННОГО ТИПА № 7 ЧУДО-САД Г. ХАРЦЫЗСКА
D130: Врач-педиатр участковый | E130: 1 | F130: 2030
D131: Кастелянша | E131: 1 | F131: 16242 | H131: УМЕНИЕ ШИТЬ
D132: Медицинская сестра | E132: 1 | F132: 2030 | H132: ЗНАНИЕ ФИЗИОЛОГИИ ДЕТЕЙ ДОШКОЛЬНОГО ВОЗРАСТА
D133: Медицинская сестра по массажу | E133: 1 | F133: 2030 | H133: УМЕНИЕ ДЕЛАТЬ МАССАЖ ДЕТЯМ
C134: МБДОУ ЯСЛИ-САД КОМБИНИРОВАННОГО ТИПА № 1 ВОЛШЕБНИЦА Г. ХАРЦЫЗСКА
D135: Дворник | E135: 1 | F135: 8121
D136: Уборщик производственных и служебных помещений | E136: 1 | F136: 16242 | H136: НАЛИЧИЕ САНИТАРНОЙ КНИЖКИ
C137: МУНИЦИПАЛЬНАЯ ДОШКОЛЬНАЯ ОБРАЗОВАТЕЛЬНАЯ ОРГАНИЗАЦИЯ ЯСЛИ-САД КОМБИНИРОВАННОГО ТИПА №23 РАДУГА Г.ХАРЦЫЗСКА
D138: Дворник | E138: 1 | F138: 16242 | H138: НАЛИЧИЕ МЕДИЦИНСКОЙ КНИЖКИ
C139: МБОУ ХАРЦЫЗСКАЯ СРЕДНЯЯ ШКОЛА № 7
D140: Директор (начальник, управляющий) предприятия | E140: 1 | F140: 20575
C141: МУНИЦИПАЛЬНАЯ ДОШКОЛЬНАЯ ОБРАЗОВАТЕЛЬНАЯ ОРГАНИЗАЦИЯ "ЯСЛИ-САД КОМБИНИРОВАННОГО ТИПА № 2 "РЯБИНУШКА" Г. ХАРЦЫЗСКА"
D142: Инструктор по физической культуре | E142: 1 | F142: 12181 | H142: НАЛИЧИЕ МЕДИЦИНСКОЙ КНИЖКИ
D143: Педагог-психолог | E143: 1 | F143: 4060 | H143: НАЛИЧИЕ МЕДИЦИНСКОЙ КНИЖКИ
C144: МУНИЦИПАЛЬНАЯ ДОШКОЛЬНАЯ ОБРАЗОВАТЕЛЬНАЯ ОРГАНИЗАЦИЯ ЯСЛИ-САД КОМБИНИРОВАННОГО ТИПА №10 СВЕТЛЯЧОК Г. ХАРЦЫЗСКА
D145: Инструктор по физической культуре | E145: 1 | F145: 14561
D146: Помощник воспитателя | E146: 1 | F146: 16242
C147: МБОУ ГИМНАЗИЯ ДОМИНАНТА ГОРОДА ХАРЦЫЗСКА
D148: Кладовщик | E148: 1 | F148: 16242
C149: МУНИЦИПАЛЬНОЕ БЮДЖЕТНОЕ ОБЩЕОБРАЗОВАТЕЛЬНОЕ УЧРЕЖДЕНИЕ "ЗУЕВСКАЯ СРЕДНЯЯ ШКОЛА № 11 Г.ХАРЦЫЗСКА"
D150: Кладовщик | E150: 1 | F150: 16242 | H150: НАЛИЧИЕ МЕДИЦИНСКОЙ КНИЖКИ
D151: Медицинская сестра | E151: 2 | F151: 16242 | H151: НАЛИЧИЕ МЕДИЦИНСКОЙ КНИЖКИ
D152: Психолог | E152: 1 | F152: 16242 | H152: НАЛИЧИЕ МЕДИЦИНСКОЙ КНИЖКИ
C153: МУНИЦИПАЛЬНАЯ ДОШКОЛЬНАЯ ОБРАЗОВАТЕЛЬНАЯ ОРГАНИЗАЦИЯ ЯСЛИ-САД № 11 КОЛОКОЛЬЧИК Г. ХАРЦЫЗСКА
D154: Медицинская сестра | E154: 1 | F154: 8121 | H154: НАЛИЧИЕ САНИТАРНОЙ КНИЖКИ
D155: Педагог социальный | E155: 1 | F155: 8121 | H155: НАЛИЧИЕ САНИТАРНОЙ КНИЖКИ
C156: МУНИЦИПАЛЬНОЕ БЮДЖЕТНОЕ ОБЩЕОБРАЗОВАТЕЛЬНОЕ УЧРЕЖЕДЕНИЕ " ХАРЦЫЗСКАЯ СРЕДНЯЯ ШКОЛА № 1"
D157: Медицинская сестра | E157: 1 | F157: 16242 | H157: Знание САН-ПиНа, норм питания.Наличие медицинской книжки, сертификата психиатра.
D158: Педагог социальный | E158: 1 | F158: 8121 | H158: Наличие медицинской книжки, наличие сертификата психиатра.Ключевые навыки - организация учебно -образовательной деятельности, ведение деловой документации,знание возратсной психологии.
D159: Руководитель кружка (клуба по интересам, коллектива, любительского объединения, секции, студии, туристской группы) | E159: 1 | F159: 8121 | H159: Наличие медицинской книжки, сертификата психиатра.
D160: Уборщик производственных и служебных помещений | E160: 2 | F160: 15279 | G160: 16242 | H160: Наличие медицинской книжки, сертификата психиатра. Качественно проводить уборки закреплённой территории, уметь белить, красить,штукатурить.
D161: Учитель | E161: 2 | F161: 10720 | G161: 16242 | H161: Наличие медицинской книжки, сертификата психиатра.
C162: МБОУ ЛИЦЕЙ № 9 ОЛИМП ГОРОДА ЗУГРЭСА
D163: Медицинская сестра | E163: 1 | F163: 16242 | H163: НАЛИЧИЕ МЕДИЦИНСКОЙ КНИЖКИ.ЗНАТЬ ЗАКОНЫ И ИНЫЕ АКТЫ В СФЕРЕ ЗДРАВООХРАНЕНИЯ РФ,
D164: Педагог-психолог | E164: 1 | F164: 16242 | H164: УМЕНИЕ НАЛАЖИВАТЬ ДОВЕРИТЕЛЬНЫЕ ОТНОШЕНИЯ С ОБУЧАЮЩИМИСЯ,КОММУНИКАБЕЛЬНОСТЬ, СТРЕССОУСТОЙЧИВОСТЬ, ПРОВЕДЕНИЕПСИХОДИАГНОСТИКИ, ПРОФОРИЕНТАЦИЯ СТАРШЕКЛАССНИКОВ, АНАЛИЗ ПОВЕДЕНИЯ ПРОБЛЕМНЫХ ДЕТЕЙ. НАЛИЧ
D165: Подсобный рабочий | E165: 1 | F165: 16242 | H165: НАЛИЧИЕ МЕДИЦИНСКОЙ КНИЖКИ. ПРОХОЖДЕНИЕ ИНСТРУКТАЖА НА РАБОЧЕМ МЕСТЕ. УМЕЕНИЕ РАБОТАТЬ В КОМАНДЕ, ЧИСТОПЛОТНОСТЬ, ОТВЕТСТВЕННОСТЬ,ФИЗИЧЕСКАЯ ВЫНОСЛИВОСТЬ
D166: Рабочий по комплексному обслуживанию и ремонту зданий | E166: 1 | F166: 16242 | H166: Умение работать в команде, техническое обслуживание, работа в условиях многозадачности, ремонтные работы, слесарные работы, косметический ремонт помещений, штукатурные работы, малярные работы, плотниц
D167: Сторож (вахтер) | E167: 1 | F167: 16242 | H167: ДИСЦИПЛИНИРОВАННОСТЬ, ЭМОЦИОНАЛЬНАЯ СТАБИЛЬНОСТЬ, СТРЕССОУСТОЙЧИВОСТЬ, ВНИМАТЕЛЬНОСТЬ И БЫСТРАЯ РЕАКЦИЯ, ПУНКТУАЛЬНОСТЬ, ОТВЕТСТВЕННОСТЬ, НАБЛЮДАТЕЛЬНОСТЬ, ЧЕСТНОСТЬ, СПОКОЙСТВИЕ, ВЕЖЛИВОСТЬ
D168: Учитель | E168: 2 | F168: 16242 | H168: НАЛИЧИЕ МЕДИЦИНСКОЙ КНИЖКИ. ОТЛИЧНОЕ ЗНАНИЕ ПК, ОФИСНЫХ ПРОГРАММ, ПРОГРАММИРОВАНИЕ, ИСПОЛЬЗОВАНИЕ СОВРЕМЕННЫХ МЕТОДИК ПРЕПОДАВАНИЯ, СОЦИАЛЬНАЯ КОМПЕТЕНТНОСТЬ, УМЕНИЕ ОТБИРАТЬ ЭФФЕКТИВНЫЕ ПРИПЕМЫ И ТЕХНТКИ
C169: МУНИЦИПАЛЬНОЕ БЮДЖЕТНОЕ ОБЩЕОБРАЗОВАТЕЛЬНОЕ УЧРЕЖДЕНИЕ "ХАРЦЫЗСКАЯ СРЕДНЯЯ ШКОЛА № 3"
D170: Медицинская сестра | E170: 1 | F170: 16242 | H170: НАЛИЧИЕ МЕДИЦИНСКОЙ КНИЖКИ И СЕРТИФИКАТА ПСИХИАТРА, ЗНАНИЕ НОРМ ПИТАНИЯ, САНИТАРНЫХ ПРАВИЛ И НОРМ
D171: Медицинская сестра | E171: 1 | F171: 8121 | H171: НАЛИЧИЕ МЕДИЦИНСКОЙ КНИЖКИ И СЕРТИФИКАТА ПСИХИАТРА ЗНАНИЕ САНИТАРНО-ЭПИДЕМИОЛОГИЧЕСКИХ ТРЕБОВАНИЙ ПО ВОПРОСАМ ОРГАНИЗАЦИИ ВОСПИТАНИЯ И ОБУЧЕНИЯ, ОТДЫХА И ОЗДОРОВЛЕНИЯ ДЕТЕЙ И МОЛОДЕЖИ
D172: Педагог социальный | E172: 1 | F172: 8121 | H172: НАЛИЧИЕ МЕДИЦИНСКОЙ КНИЖКИ И СЕРТИФИКАТА ПСИХИАТРА
C173: МБОУ ТРОИЦКО-ХАРЦЫЗСКАЯ СРЕДНЯЯ ШКОЛА № 18 Г.ХАРЦЫЗСКА
D174: Медицинская сестра | E174: 1 | F174: 8121 | H174: НАЛИЧИЕ МЕДИЦИНСКОЙ КНИЖКИ
C175: МУНИЦИПАЛЬНОЕ БЮДЖЕТНОЕ УЧРЕЖДЕНИЕ ДЕТСКО-ЮНОШЕСКАЯ СПОРТИВНАЯ ШКОЛА ГОРОДА ЗУГРЭСА ЭНЕРГЕТИК
D176: Медицинская сестра | E176: 1 | F176: 4061 | H176: НАЛИЧИЕ МЕДИЦИНСКОЙ КНИЖКИ
D177: Тренер | E177: 1 | F177: 12217
C178: МБОУ ХАРЦЫЗСКАЯ СРЕДНЯЯ ШКОЛА № 6
D179: Медицинская сестра | E179: 1 | F179: 8300 | H179: МЕДИЦИНСКАЯ КНИЖКА
D180: Учитель | E180: 1 | F180: 9400 | H180: ВЛАДЕНИЕ МУЗЫКАЛЬНЫМ ИНСТРУМЕНТОМ, ЗНАНИЕ МУЗЫКАЛЬНЫХ ЖАНРОВ
D181: Учитель | E181: 1 | F181: 9400 | H181: УМЕТЬ РАБОТАТЬ С ПК, ПРОЕКТОРОМ, ТЕКСТОВЫМИ РЕДАКТОРАМИ, ПРЕЗЕНТАЦИЯМИ
C182: МУНИЦИПАЛЬНОЕ БЮДЖЕТНОЕ ОБЩЕОБРАЗОВАТЕЛЬНОЕ УЧРЕЖДЕНИЕ "ХАРЦЫЗСКАЯ СРЕДНЯЯ ШКОЛА № 4"
D183: Медицинская сестра | E183: 1 | F183: 16242 | H183: НАЛИЧИЕ МЕДИЦИНСКОЙ КНИЖКИ
D184: Педагог-организатор | E184: 1 | F184: 16242 | H184: НАЛИЧИЕ МЕДИЦИНСКОЙ КНИЖКИ
D185: Учитель | E185: 2 | F185: 16242 | H185: НАЛИЧИЯ МЕДИЦИНСКОЙ КНИЖКИ
C186: КОММУНАЛЬНОЕ УЧРЕЖДЕНИЕ ДОПОЛНИТЕЛЬНОГО ОБРАЗОВАНИЯ "ХАРЦЫЗСКАЯ ШКОЛА ИСКУССТВ"
D187: Настройщик пианино и роялей | E187: 1 | F187: 16242 | H187: НАЛИЧИЕ МЕДИЦИНСКОЙ КНИЖКИ
C188: МУНИЦИПАЛЬНАЯ ДОШКОЛЬНАЯ ОБРАЗОВАТЕЛЬНАЯ ОРГАНИЗАЦИЯ ЯСЛИ-САД КОМБИНИРОВАННОГО ТИПА № 24 ЗОЛУШКА Г. ХАРЦЫЗСКА
D189: Повар | E189: 1 | F189: 16242 | H189: НАЛИЧИЕ МЕДИЦИНСКОЙ КНИЖКИ, ЗНАНИЕ ТЕХНОЛОГИИ ПРИГОТОВЛЕНИЯ БЛЮД И НАПИТКОВ
C190: МУНИЦИПАЛЬНОЕ БЮДЖЕТНОЕ УЧРЕЖДЕНИЕ ДОПОЛНИТЕЛЬНОГО ОБРАЗОВАНИЯ ЗУГРЭССКАЯ ШКОЛА ИСКУССТВ
D191: Рабочий по комплексному обслуживанию и ремонту зданий | E191: 1 | F191: 16242 | H191: МЕДИЦИНСКАЯ КНИЖКА ОБЯЗАТЕЛЬНО, УМЕНИЕ ВЫПОЛНЯТЬ МЕЛКИЙ БЫТОВОЙ РЕМОНТ В ШКОЛЕ, ТЕКУЩИЙ РЕМОНТ ЦЕНТРАЛЬНОГО ОТОПЛЕНИЯ, КАНАЛИЗАЦИИ, ВОДОСНАБЖЕНИЯ, ВОДОСТОКОВ. ЖЕЛАТЕЛЬНЫЕ СПЕЦИАЛЬНОСТИ ПО ОБРАЗОВАНИЮ
C192: МУНИЦИПАЛЬНОЕ БЮДЖЕТНОЕ ОБЩЕОБРАЗОВАТЕЛЬНОЕ УЧРЕЖДЕНИЕ "ИЛОВАЙСКАЯ СРЕДНЯЯ ШКОЛА № 12 ИМЕНИ М. ТОЛСТЫХ Г. ХАРЦЫЗСКА"
D193: Учитель | E193: 3 | F193: 8121 | H193: ОБЯЗАТЕЛЬНЫЙ ПРЕДВАРИТЕЛЬНЫЙ МЕДОСМОТР
C194: МУНИЦИПАЛЬНОЕ БЮДЖЕТНОЕ ОБЩЕОБРАЗОВАТЕЛЬНОЕ УЧРЕЖДЕНИЕ "ХАРЦЫЗСКАЯ СРЕДНЯЯ ШКОЛА № 19"
D195: Учитель | E195: 1 | F195: 17629 | H195: НАЛИЧИЕ СЕРТИФИКАТА ПСИХИАТРА
B196: Итого | C196: =COUNTA(C112:C195) -> 26 | E196: =SUM(E112:E195) -> 69
A197: Q | B197: Деятельность в области здравоохранения и социальных услуг
A198: 86 | B198: Деятельность в области здравоохранения
C199: ГБУ ЦЕНТРАЛЬНАЯ ГОРОДСКАЯ БОЛЬНИЦА Г.ХАРЦЫЗСКА
D200: Акушерка | E200: 1 | F200: 20424
D201: Медицинская сестра | E201: 1 | F201: 16242 | H201: Наличие медицинской книжки.
D202: Младшая медицинская сестра по уходу за больными | E202: 1 | F202: 16242 | H202: Наличие медицинской книжки.
D203: Санитарка (мойщица) | E203: 2 | F203: 16242
D204: Швея | E204: 1 | F204: 16242
... 26 more rows

Sheet Шахтерский ГЦЗ
A5: Потребность, заявленная работодателями г. Шахтерск, по состоянию на 01.04.2023
A6: Раздел/ код ОКВЭД | B6: Виды экономической деятельности | C6: Наименование ПОУ | D6: Название профессии/ специальности | E6: Количество свободных рабочих мест (вакантных должнлстей) (ед.) | F6: Размер заработной платы, указанный в вакансии от, руб. | G6: Размер заработной платы, указанный в вакансии до, руб. | H6: Требования
A7: 1 | B7: 2 | C7: 3 | D7: 4 | E7: 5 | F7: 6 | G7: 7 | H7: 8
A8: Всего | C8: 55 | E8: 311
A9: A | B9: Сельское, лесное хозяйство, охота, рыболовство и рыбоводство
A10: 1 | B10: Растениеводство и животноводство, охота и предоставление соответствующих услуг в этих областях
C11: ООО ЭКОПРОДТОРГ
D12: Водитель автомобиля | E12: 2 | F12: 23490 | H12: медицинская справка на право вождения
D13: Оператор по ветеринарной обработке животных | E13: 6 | F13: 26000 | H13: Наличие медицинской книжки
D14: Оператор птицефабрик и механизированных ферм | E14: 26 | F14: 20800 | H14: Наличие медицинской книжки
D15: Птицевод | E15: 30 | F15: 24000 | H15: Наличие медицинской книжки
D16: Слесарь по контрольноизмерительным приборам и автоматике | E16: 5 | F16: 20880 | H16: наличие санитарной книжки
D17: Слесарь по ремонту сельскохозяйственных машин и оборудования | E17: 13 | F17: 24300 | H17: Наличие медицинской книжки
D18: Слесарь строительный | E18: 8 | F18: 20800 | H18: Наличие медицинской книжки
D19: Тракторист-машинист сельскохозяйственного производства | E19: 12 | F19: 27900 | H19: медицинская справка на право вождения
D20: Штукатур | E20: 5 | F20: 20800
C21: ООО ПЕРВЫЙ АГРОКОМПЛЕКС
D22: Директор (начальник, управляющий) предприятия | E22: 1 | F22: 30000 | H22: ОПЫТ РАБОТЫ В СЕЛЬСКОМ ХОЗЯЙСТВЕ.
D23: Механик по ремонту транспорта | E23: 1 | F23: 20000
D24: Тракторист-машинист сельскохозяйственного производства | E24: 1 | F24: 20000
C25: ОБЩЕСТВО С ОГРАНИЧЕННОЙ ОТВЕТСТВЕННОСТЬЮ "ТЕХСПЕКТР 2011"
D26: Тракторист-машинист сельскохозяйственного производства | E26: 1 | F26: 21000 | H26: Наличие водительского удостоверения
B27: Итого | C27: =COUNTA(C9:C26) -> 3 | E27: =SUM(E9:E26) -> 111
A28: D | B28: Обеспечение электрической энергией, газом и паром; кондиционирование воздуха
A29: 35 | B29: Обеспечение электрической энергией, газом и паром; кондиционирование воздуха
C30: ГОСУДАРСТВЕННЫЙ КОНЦЕРН ДОНБАССГАЗ
D31: Инженер | E31: 1 | F31: 41080 | H31: Квалификация-инженер по гражданскому строительству
D32: Слесарь по эксплуатации и ремонту газового оборудования | E32: 1 | F32: 19391 | H32: Техническое обслуживание и ремонт сложного оборудования технологических установок редуцирования, учета и распределения газа. Прохождение обязательных и периодических медицинских осмотров
D33: Слесарь по эксплуатации и ремонту подземных газопроводов | E33: 2 | F33: 21630 | H33: Выполнение средней сложности и сложных работ по эксплуатации наружных газопроводов газораспределительных систем. Прохождение обязательных и периодических медицинских осмотров
C34: ГОСУДАРСТВЕННОЕ УНИТАРНОЕ ПРЕДПРИЯТИЕ ДОНЕЦКОЙ НАРОДНОЙ РЕСПУБЛИКИ ДОНБАССТЕПЛОЭНЕРГО
D35: Электрогазосварщик | E35: 1 | F35: 22971
B36: Итого | C36: =COUNTA(C28:C35) -> 2 | E36: =SUM(E28:E35) -> 5
A37: E | B37: Водоснабжение; водоотведение, организация сбора и утилизации отходов, деятельность по ликвидации загрязнений
A38: 36 | B38: Забор, очистка и распределение воды
C39: ООО ШАХТЕРСКОЕ РАЙОННОЕ СЕЛЬСКОЕ КОММУНАЛЬНОЕ ПРЕДПРИЯТИЕ
D40: Контролер водопроводного хозяйства | E40: 1 | F40: 13575 | H40: ИСПОЛЬЗОВАТЬ ОПТИМАЛЬНЫЕ ФОРМЫ КОММУНИКАЦИИ С АБОНЕНТАМИ ПРИ ОСУЩЕСТВЛЕНИИ КОНТРОЛЯ ОБЪЕКТИВНОСТИ ПРЕДОСТАВЛЯЕМОЙ ИНФОРМАЦИИ ОБ ОБЪЕМАХ И КАЧЕСТВЕ ПРЕДОСТАВЛЕННЫХ УСЛУГ ВОДОСНАБЖЕНИЯ.
A41: 38 | B41: Сбор, обработка и утилизация отходов; обработка вторичного сырья
C42: МУНИЦИПАЛЬНОЕ УНИТАРНОЕ ПРЕДПРИЯТИЕ ТРАНСПОРТНОЕ ПРЕДПРИЯТИЕ ПАРТНЕР АДМИНИСТРАЦИИ ГОРОДА ШАХТЕРСКА
D43: Водитель автомобиля | E43: 4 | F43: 16242 | H43: Прохождене медосмотра при приеме на работу, ежегодный медосмотр, наличие сертификатов
D44: Грузчик | E44: 5 | F44: 16242 | H44: Прохождение медосмотра при приеме на работу
B45: Итого | C45: =COUNTA(C37:C44) -> 2 | E45: =SUM(E37:E44) -> 10
A46: L | B46: Деятельность по операциям с недвижимым имуществом
A47: 68 | B47: Операции с недвижимым имуществом
C48: ДОЧЕРНЕЕ ПРЕДПРИЯТИЕ РЕСПУБЛИКАНСКИЙ РЫНОК №28/1 ГОСУДАРСТВЕННОГО ПРЕДПРИЯТИЯ РЫНКИ ДОНБАССА
D49: Уборщик территорий | E49: 3 | F49: 16242 | H49: наличие санитарной книжки
B50: Итого | C50: =COUNTA(C46:C49) -> 1 | E50: =SUM(E46:E49) -> 3
A51: O | B51: Государственное управление и обеспечение военной безопасности; социальное обеспечение
A52: 84 | B52: Деятельность органов государственного управления по обеспечению военной безопасности, обязательному социальному обеспечению
C53: ГБУ УПРАВЛЕНИЕ ПЕНСИОННОГО ФОНДА ДОНЕЦКОЙ НАРОДНОЙ РЕСПУБЛИКИ В Г. ШАХТЁРСКЕ
D54: Главный специалист | E54: 9 | F54: 25676 | H54: Эпециальность по образрванию экономика предприятий, бухгалтерский учет, финансы
D55: Главный специалист | E55: 2 | F55: 28011 | H55: Пользователь ПК.
D56: Директор (начальник, управляющий) предприятия | E56: 1 | F56: 28011.2 | H56: Квалификация экономиста, специалиста по финансам, бухгалтера
D57: Директор (начальник, управляющий) предприятия | E57: 1 | F57: 31414
D58: Начальник отдела (специализированного в прочих отраслях) | E58: 3 | F58: 28011.2 | H58: ЭКОНОМИКА ПРЕДПРИЯТИЯ, БУХГАЛТЕРСКИЙ УЧЕТ ЭКОНОМИЧЕСКОЙ ДЕЯТЕЛЬНОСТИ
D59: Начальник отдела (финансово-экономического и административного) | E59: 1 | F59: 28011
D60: Специалист | E60: 1 | F60: 28011 | H60: Специальность по образованию - экономика предприятия, бухгалтерский учет, финансы. Пользователь ПК.
D61: Специалист | E61: 8 | F61: 23066.28 | H61: Специальность по образованию экономика предприятий, бухгалтерский учет, финансы
C62: УПРАВЛЕНИЕ ФИНАНСОВ АДМИНИСТРАЦИИ ГОРОДА ШАХТЁРСКА
D63: Главный специалист | E63: 3 | F63: 20833
C64: ГБУ ОТДЕЛЕНИЕ ФОНДА СОЦИАЛЬНОГО СТРАХОВАНИЯ ОТ НЕСЧАСТНЫХ СЛУЧАЕВ НА ПРОИЗВОДСТВЕ И ПРОФЕССИОНАЛЬНЫХ ЗАБОЛЕВАНИЙ ДОНЕЦКОЙ НАРОДНОЙ РЕСПУБЛИКИ В Г. ШАХТЕРСКЕ
D65: Главный специалист | E65: 2 | F65: 17652
D66: Заведующий сектором (специализированным) | E66: 1 | F66: 17507
B67: Итого | C67: =COUNTA(C51:C66) -> 3 | E67: =SUM(E51:E66) -> 32
A68: P | B68: Образование
A69: 85 | B69: Образование
C70: ГОСУДАРСТВЕННОЕ БЮДЖЕТНОЕ ПРОФЕССИОНАЛЬНОЕ ОБРАЗОВАТЕЛЬНОЕ УЧРЕЖДЕНИЕ ШАХТЁРСКИЙ ТЕХНИКУМ СФЕРЫ УСЛУГ
D71: Бухгалтер | E71: 1 | F71: 16242 | H71: наличие медицинской книжки
D72: Дворник | E72: 1 | F72: 16242 | H72: НАЛИЧИЕ МЕДИЦИНСКОЙ КНИЖКИ.
D73: Инженер по охране труда | E73: 1 | F73: 8121 | H73: ПОЛЬЗОВАТЕЛЬ ПК, НАЛИЧИЕ МЕДИЦИНСКОЙ КНИЖКИ.
D74: Педагог-психолог | E74: 1 | F74: 8121 | H74: НАЛИЧИЕ МЕДИЦИНСКОЙ КНИЖКИ.
D75: Преподаватель (в колледжах, университетах и других вузах) | E75: 2 | F75: 16242 | H75: НАЛИЧИЕ МЕДИЦИНСКОЙ КНИЖКИ. ПОЛЬЗОВАТЕЛЬ ПК.
D76: Руководитель физического воспитания | E76: 1 | F76: 16242 | H76: ПОЛЬЗОВАТЕЛЬ ПК, НАЛИЧИЕ МЕДИЦИНСКОЙ КНИЖКИ.
C77: МБДОУ ШАХТЁРСКИЙ ЯСЛИ-САД №1
D78: Воспитатель | E78: 1 | F78: 16242 | H78: Наличие медицинской книжки.
D79: Подсобный рабочий | E79: 1 | F79: 16242 | H79: Коммуникабельность, тактичность, аккуратность, трудолюбие
C80: ГБОУ ШАХТЕРСКАЯ САНАТОРНАЯ ШКОЛА-ИНТЕРНАТ № 15
D81: Воспитатель | E81: 2 | F81: 18579 | H81: Наличие медицинской книжки и сертификатов. Вести в установленном порядке документацию и отчетность.
D82: Врач-педиатр участковый | E82: 1 | F82: 20361 | H82: Наличие медицинской книжки и сертификатов. Осуществлять выявление заболевших детей и их своевременную изоляцию. Оказывать первую медицинскую помощь при возникновении несчастных случаев
C83: МБДОУ ШАХТЁРСКИЙ ЯСЛИ-САД №16
D84: Воспитатель детского сада (яслей-сада) | E84: 1 | F84: 9500 | H84: Медицинская книжка
D85: Инструктор по физической культуре | E85: 1 | F85: 8271 | H85: Наличие медицинской книжки
D86: Медицинская сестра | E86: 1 | F86: 16413 | H86: Наличие медицинской книжки
D87: Повар | E87: 1 | F87: 16242 | H87: Ниличие медицинской книжки
D88: Слесарь-электрик по ремонту электрооборудования | E88: 1 | F88: 8121 | H88: Наличие медицинской книжки
C89: МБОУ ШАХТЁРСКАЯ СРЕДНЯЯ ШКОЛА №14
D90: Дворник | E90: 1 | F90: 16242
D91: Уборщик производственных и служебных помещений | E91: 1 | F91: 16242 | H91: МЕДИЦИНСКАЯ КНИЖКА
C92: МБДОУ "ШАХТЁРСКИЙ ДЕТСКИЙ САД №17 ПОСЁЛКА МОЛОДЕЦКОЕ"
D93: Дворник | E93: 1 | F93: 8121 | H93: Наличие медицинской книжки и сертификатов
D94: Медицинская сестра | E94: 1 | F94: 8121 | H94: Наличие медицинской книжки и сертификатов
D95: Рабочий по комплексному обслуживанию и ремонту зданий | E95: 1 | F95: 8121 | H95: Наличие медицинской книжки и сертификатов
C96: МБОУ ШАХТЁРСКИЙ УЧЕБНО-ВОСПИТАТЕЛЬНЫЙ КОМПЛЕКС №1
D97: Дворник | E97: 1 | F97: 8121 | H97: навык работы с бензокосой, работа со специнструменком (секатор, топор, пила). наличие медицинской книжки
C98: ГОСУДАРСТВЕННОЕ БЮДЖЕТНОЕ ПРОФЕССИОНАЛЬНОЕ ОБРАЗОВАТЕЛЬНОЕ УЧРЕЖДЕНИЕ ШАХТЁРСКИЙ КОЛЛЕДЖ КИНО И ТЕЛЕВИДЕНИЯ ИМЕНИ А.А. ХАНЖОНКОВА
D99: Дворник | E99: 1 | F99: 16429 | H99: наличие медицинской книжки
D100: Уборщик производственных и служебных помещений | E100: 1 | F100: 16429
D101: Электрик участка | E101: 1 | F101: 16429 | H101: наличие санитарной книжки
C102: МБДОУ ШАХТЁРСКИЙ ЯСЛИ-САД №5
D103: Дворник | E103: 1 | F103: 17340 | H103: Наличие медицинской книжки, Сертификата о психиатрическом освидетельствовании, сертификата о прохождениинаркологического осмотра, справка о наличии (отсутствии) судимости
D104: Медицинская сестра | E104: 1 | F104: 16340 | H104: Наличие медицинской книжки. Сертификат о психиатрическом освидетельствовании, Сертификат о прохождении наркологического осмотра, Справка о несудимости
D105: Повар детского питания | E105: 1 | F105: 16242 | H105: наличие медицинской книжки. Сердификат о психиатрическом освидетельствовании, Сертификат о прохождении наркологического осмотра, Справка о несудимости
C106: МУНИЦИПАЛЬНОЕ БЮДЖЕТНОЕ УЧРЕЖДЕНИЕ ДОПОЛНИТЕЛЬНОГО ОБРАЗОВАНИЯ ШКОЛА ИСКУССТВ АДМИНИСТРАЦИИ ГОРОДА ШАХТЕРСКА
D107: Директор школы (гимназии, лицея) | E107: 1 | F107: 24208 | H107: СПЕЦИАЛЬНОСТЬ ПО ОБРАЗОВАНИЮ - ПЕДАГОГ.УМЕНИЕ РАБОТАТЬ С ПРОГРАММНЫМ ОБЕСПЕЧЕНИЕМ
D108: Уборщик территорий | E108: 1 | F108: 16242 | H108: ПРОХОЖДЕНИЕ МЕДОСМОТРА
C109: МБДОУ ШАХТЁРСКИЙ ЯСЛИ-САД №2
D110: Заведующий хозяйством | E110: 1 | F110: 16242 | H110: наличие санитарной книжки
D111: Инструктор по физической культуре | E111: 1 | F111: 16242 | H111: НАЛИЧИЕ МЕДИЦИНСКОЙ КНИЖКИ
D112: Слесарь-электрик по ремонту электрооборудования | E112: 1 | F112: 8121 | H112: Наличие медицинской книжки.
C113: МУНИЦИПАЛЬНОЕ БЮДЖЕТНОЕ УЧРЕЖДЕНИЕ ДОПОЛНИТЕЛЬНОГО ОБРАЗОВАНИЯ ШАХТЁРСКАЯ СТАНЦИЯ ЮНЫХ ТЕХНИКОВ
D114: Заведующий хозяйством | E114: 1 | F114: 16242 | H114: Умение работать с ИКТ Удостоверение по ОТ и ППБ
D115: Мастер по ремонту | E115: 1 | F115: 16242 | H115: НАЛИЧИЕ МЕДИЦИНСКОЙ КНИЖКИ.
D116: Мастер по ремонту оборудования (в промышленности) | E116: 1 | F116: 8121 | H116: НАЛИЧИЕ МЕДИЦИНСКОЙ КНИЖКИ.
C117: МБДОУ ШАХТЁРСКИЙ ДЕТСКИЙ САД №26 СЕЛА МАРИНОВКА
D118: Заведующий хозяйством | E118: 1 | F118: 8121 | H118: НАЛИЧИЕ МЕДИЦИНСКОЙ КНИЖКИ.
C119: МБОУ ШАХТЁРСКАЯ СРЕДНЯЯ ШКОЛА №19
D120: Инженер по охране труда | E120: 1 | F120: 8121 | H120: Наличие медицинской книжки.
D121: Инженер-электроник | E121: 1 | F121: 8121 | H121: Наличие медицинской книжки
D122: Учитель | E122: 4 | F122: 15279 | G122: 16242 | H122: Наличие медицинской книжки
D123: Электромонтер по ремонту и обслуживанию электрооборудования | E123: 1 | F123: 16242 | H123: Наличие мелицинской книжки.
C124: МБОУ ШАХТЁРСКАЯ СРЕДНЯЯ ШКОЛА №1
D125: Инженер-электроник | E125: 1 | F125: 16242
D126: Медицинская сестра | E126: 1 | F126: 16242 | H126: наличие санитарной книжки.
D127: Повар | E127: 1 | F127: 16242
D128: Подсобный рабочий | E128: 1 | F128: 16242 | H128: Наличие медицинской книжки
D129: Электромонтер по ремонту и обслуживанию электрооборудования | E129: 1 | F129: 16242
C130: МБДОУ ШАХТЁРСКИЙ ЯСЛИ-САД №6
D131: Инструктор по физической культуре | E131: 1 | F131: 10963
D132: Медицинская сестра | E132: 1 | F132: 16242 | H132: ЗНАНИЕ ПК (БАЗОВЫЙ УРОВЕНЬ)
C133: МБДОУ ШАХТЁРСКИЙ ДЕТСКИЙ САД №24 СЕЛА МАНУЙЛОВКА
D134: Инструктор по физической культуре | E134: 1 | F134: 2030.25 | H134: ОБРАЗОВАНИЕ ВЫСШЕЕ, СРЕДНЕ-СПЕЦИАЛЬНОЕ ИНСТРУКТОР ПО ФИЗИЧЕКСОЙ КУЛЬТУРЕ
C135: МБОУ ШАХТЁРСКАЯ СРЕДНЯЯ ШКОЛА СЕЛА ПЕТРОПАВЛОВКА
D136: Кладовщик | E136: 1 | F136: 16242 | H136: Наличие медицинской книжки
D137: Секретарь-машинистка | E137: 1 | F137: 16242 | H137: Наличие медицинской книжки
C138: МБОУ ШАХТЁРСКАЯ ОСНОВНАЯ ШКОЛА №8
D139: Медицинская сестра | E139: 1 | F139: 8121 | H139: наличие медицинской книжки.
C140: МБДОУ ШАХТЁРСКИЙ ЯСЛИ-САД №10
D141: Медицинская сестра | E141: 1 | F141: 16242 | H141: ПОЛЬЗОВАТЕЛЬ ПК
C142: МБДОУ ШАХТЁРСКИЙ ДЕТСКИЙ САД №30 СЕЛА ОРЛОВО-ИВАНОВКА
D143: Медицинская сестра | E143: 1 | F143: 15279 | H143: ЗНАНИЕ СЕСТРИНСКОГО ДЕЛА, УМЕНИЕ РАЗВОДИТЬ ДИЗ.РАСТВОРЫ. НАЛИЧИЕ МЕДИЦИНСКОЙ КНИЖКИ
C144: МБОУ ШАХТЁРСКИЙ УЧЕБНО-ВОСПИТАТЕЛЬНЫЙ КОМПЛЕКС №3
D145: Медицинская сестра | E145: 1 | F145: 16242
D146: Педагог-психолог | E146: 1 | F146: 16242 | H146: НАЛИЧИЕ САНИТАРНОЙ КНИЖКИ
C147: МУНИЦИПАЛЬНОЕ БЮДЖЕТНОЕ ДОШКОЛЬНОЕ ОБРАЗОВАТЕЛЬНОЕ УЧРЕЖДЕНИЕ "ШАХТЁРСКИЙ ЯСЛИ-САД №12"
D148: Медицинская сестра | E148: 1 | F148: 16242 | H148: Наличие медицинской книжки и сертификатов
C149: МБОУ ШАХТЁРСКАЯ СРЕДНЯЯ ШКОЛА СЕЛА РОЗОВКА
D150: Медицинская сестра | E150: 1 | F150: 16242 | H150: Ключевые навыки: оказание первой медицинской помощи учсащимся, педагогам и иным сотрудникам школы
D151: Педагог-организатор | E151: 1 | F151: 17031 | H151: Ключавой навык: работа с детским коллективом
C152: МБДОУ ШАХТЁРСКИЙ ДЕТСКИЙ САД №18 СЕЛА ДМИТРОВКА
D153: Медицинская сестра | E153: 1 | F153: 4060.5 | H153: Наличие медицинской книжки
C154: МБДОУ ШАХТЁРСКИЙ ДЕТСКИЙ САД №21 СЕЛА ГРАБОВО
D155: Медицинская сестра | E155: 1 | F155: 8121
C156: МБДОУ ШАХТЁРСКИЙ ДЕТСКИЙ САД №31 СЕЛА ВЕЛИКАЯ ШИШОВКА
D157: Медицинская сестра | E157: 1 | F157: 15279 | H157: ЗНАНИЕ ПК (БАЗОВЫЙ УРОВЕНЬ), НАЛИЧИЕ МЕДИЦИНСКОЙ КГИЖКИ И СЕРТИФИКАТОВ
C158: МБОУ ШАХТЁРСКАЯ СРЕДНЯЯ ШКОЛА №13 ИМЕНИ Н.И.БАРАНОВА
D159: Медицинская сестра | E159: 1 | F159: 16242
D160: Электромонтер по ремонту и обслуживанию электрооборудования | E160: 1 | F160: 8121
C161: МБДОУ ШАХТЁРСКИЙ ЯСЛИ-САД №15
D162: Педагог-психолог | E162: 1 | F162: 8121
C163: МБОУ "ШАХТЁРСКАЯ СРЕДНЯЯ ШКОЛА №18"
D164: Повар | E164: 1 | F164: 16242 | H164: Наличие медицинской книжки
D165: Учитель | E165: 1 | F165: 22000 | H165: Наличие медицинской книжки
D166: Электромонтер по ремонту и обслуживанию электрооборудования | E166: 1 | F166: 16242 | H166: Наличие медицинской книжки
C167: МБДОУ ШАХТЁРСКИЙ ЯСЛИ-САД №3
D168: Повар | E168: 1 | F168: 16242 | H168: Наличие медицинской книжки. Знание правил ценообразования и калькуляции блюд, правил хранения продуктов, технологичского оборудования, навыки приготовления блюд
C169: ГОСУДАРСТВЕННОЕ БЮДЖЕТНОЕ ПРОФЕССИОНАЛЬНОЕ ОБРАЗОВАТЕЛЬНОЕ УЧРЕЖДЕНИЕ ШАХТЁРСКИЙ ПЕДАГОГИЧЕСКИЙ КОЛЛЕДЖ
D170: Преподаватель (в колледжах, университетах и других вузах) | E170: 2 | F170: 18580 | H170: Навыки организации учебного процесса; знание теории и умение применения ее на практических занятиях, владение опытом руководителя академической группы Наличие медицинской книжки
C171: МБДОУ ШАХТЁРСКИЙ ЯСЛИ-САД №9
D172: Слесарь-электрик по ремонту электрооборудования | E172: 1 | F172: 16242 | H172: Опыт работы слесарем. Наличие удостоверения по электробезопасности. Прохождение медосмотра при приеме на работу
C173: МБДОУ ШАХТЁРСКИЙ ЯСЛИ-САД №8
D174: Слесарь-электрик по ремонту электрооборудования | E174: 1 | F174: 8121 | H174: Наличие медицинской книжки
C175: МБОУ ШАХТЁРСКАЯ СРЕДНЯЯ ШКОЛА СЕЛА ВЕЛИКАЯ ШИШОВКА
D176: Учитель | E176: 1 | F176: 19000 | H176: НАЛИЧИЕ МЕДИЦИНСКОЙ КНИЖКИ
C177: МБОУ ШАХТЁРСКАЯ СРЕДНЯЯ ШКОЛА №22
D178: Электромонтер по ремонту и обслуживанию электрооборудования | E178: 1 | F178: 8121 | H178: УМЕНИЕ ПРОИЗВОДИТЬ РЕМОНТ ЭЛЕКТРИЧЕСКОГО ОБОРУДОВАНИЯ. НАЛИЧИЕ МЕДИЦИНСКОЙ КНИЖКИ.
C179: МБДОУ "ШАХТЁРСКИЙ ЯСЛИ-САД №4"
D180: Электромонтер по ремонту и обслуживанию электрооборудования | E180: 1 | F180: 8121 | H180: Наличие медицинской книжки
B181: Итого | C181: =COUNTA(C68:C180) -> 37 | E181: =SUM(E68:E180) -> 80
A182: Q | B182: Деятельность в области здравоохранения и социальных услуг
A183: 86 | B183: Деятельность в области здравоохранения
C184: ГБУ ЦЕНТР ПЕРВИЧНОЙ МЕДИКО-САНИТАРНОЙ ПОМОЩИ Г.ШАХТЕРСКА
D185: Бухгалтер | E185: 1 | F185: 16242
D186: Врач-терапевт участковый | E186: 4 | F186: 16289
D187: Медицинская сестра | E187: 3 | F187: 16242
C188: ГОРОДСКОЙ ПРОТИВОТУБЕРКУЛЕЗНЫЙ ДИСПАНСЕР Г.ШАХТЕРСКА МИНИСТЕРСТВА ЗДРАВООХРАНЕНИЯ ДОНЕЦКОЙ НАРОДНОЙ РЕСПУБЛИКИ
D189: Водитель автомобиля | E189: 1 | F189: 16242
D190: Заведующий хозяйством | E190: 1 | F190: 19075
D191: Инженер | E191: 1 | F191: 17920
D192: Повар | E192: 1 | F192: 16242
D193: Санитарка (мойщица) | E193: 2 | F193: 16242
D194: Секретарь-машинистка | E194: 1 | F194: 16242
D195: Уборщик территорий | E195: 1 | F195: 16242
C196: ГБУ ШАХТЕРСКАЯ ЦЕНТРАЛЬНАЯ ГОРОДСКАЯ БОЛЬНИЦА
D197: Врач | E197: 1 | F197: 18678 | H197: Наличие медицинской книжки
D198: Врач-кардиолог | E198: 1 | F198: 16242 | H198: наличие санитарной книжки.
D199: Врач-педиатр городской (районный) | E199: 1 | F199: 21927 | H199: Наличие медицинской книжки
D200: Врач-травматолог-ортопед | E200: 1 | F200: 18678 | H200: Наличие медицинской книжки
D201: Кухонный рабочий | E201: 1 | F201: 16242
D202: Лаборант | E202: 1 | F202: 19165 | H202: наличие санитарной книжки
D203: Лифтер | E203: 1 | F203: 16242 | H203: НАЛИЧИЕ УДОСТОВЕРЕНИЯ ЛИФТЕРА. НАЛИЧИЕ МЕДИЦИНСКОЙ КНИЖКИ.
D204: Медицинская сестра | E204: 1 | F204: 20302.5 | H204: НАЛИЧИЕ МЕДИЦИНСКОЙ КНИЖКИ
... 43 more rows

Sheet Ясиноватский ГЦЗ
A5: Потребность, заявленная работодателями г. Ясиноватая, по состоянию на 01.04.2023
A6: Раздел/ код ОКВЭД | B6: Виды экономической деятельности | C6: Наименование ПОУ | D6: Название профессии/ специальности | E6: Количество свободных рабочих мест (вакантных должнлстей) (ед.) | F6: Размер заработной платы, указанный в вакансии от, руб. | G6: Размер заработной платы, указанный в вакансии до, руб. | H6: Требования
A7: 1 | B7: 2 | C7: 3 | D7: 4 | E7: 5 | F7: 6 | G7: 7 | H7: 8
A8: Всего | C8: 26 | E8: 337
A9: C | B9: Обрабатывающие производства
A10: 28 | B10: Производство машин и оборудования, не включенных в другие группировки
C11: ООО НАУЧНО-ПРОИЗВОДСТВЕННОЕ ОБЪЕДИНЕНИЕ ЯСИНОВАТСКИЙ МАШИНОСТРОИТЕЛЬНЫЙ ЗАВОД
D12: Водитель автомобиля | E12: 3 | F12: 19500
D13: Инженер по качеству | E13: 3 | F13: 19000
D14: Кузнец на молотах и прессах | E14: 4 | F14: 26000
D15: Лаборант электромеханических испытаний и измерений | E15: 3 | F15: 17000
D16: Машинист крана (крановщик) | E16: 6 | F16: 20000 | H16: МАШИНИСТ КРАНА 3-6 РАЗРЯДА
D17: Модельщик по деревянным моделям | E17: 4 | F17: 22000
D18: Наладчик приборов, аппаратуры и систем автоматического контроля, регулирования и управления (наладчик КИП и автоматики) | E18: 3 | F18: 18000
D19: Протяжчик | E19: 3 | F19: 28000
D20: Сверловщик | E20: 3 | F20: 28000
D21: Слесарь аварийно-восстановительных работ | E21: 3 | F21: 19000
D22: Слесарь по сборке металлоконструкций | E22: 6 | F22: 23000
D23: Слесарь-инструментальщик | E23: 3 | F23: 24000
D24: Слесарь-ремонтник | E24: 13 | F24: 23000
D25: Слесарь-электрик по ремонту электрооборудования | E25: 6 | F25: 23000
D26: Сталевар электропечи | E26: 4 | F26: 26000
D27: Стропальщик | E27: 3 | F27: 18000
D28: Термист | E28: 3 | F28: 22000
D29: Токарь | E29: 8 | F29: 24000 | H29: СТАНОЧНИК ШИРОКОГО ПРОФИЛЯ, ТОКАРЬ 4-6 РАЗРЯДА
D30: Формовщик по выплавляемым моделям | E30: 4 | F30: 26000
D31: Фрезеровщик | E31: 3 | F31: 28000 | H31: СТАНОЧНИК ШИРОКОГО ПРОФИЛЯ
D32: Электрогазосварщик | E32: 3 | F32: 27000
D33: Электромонтер по ремонту и обслуживанию электрооборудования | E33: 6 | F33: 26000
B34: Итого | C34: =COUNTA(C9:C33) -> 1 | E34: =SUM(E9:E33) -> 97
A35: D | B35: Обеспечение электрической энергией, газом и паром; кондиционирование воздуха
A36: 35 | B36: Обеспечение электрической энергией, газом и паром; кондиционирование воздуха
C37: ГОСУДАРСТВЕННЫЙ КОНЦЕРН ДОНБАССГАЗ
D38: Слесарь по эксплуатации и ремонту газового оборудования | E38: 5 | F38: 23303 | H38: НАЛИЧИЕ МЕДОСМОТРА И СЕРТИФИКАТОВ
B39: Итого | C39: =COUNTA(C35:C38) -> 1 | E39: =SUM(E35:E38) -> 5
A40: E | B40: Водоснабжение; водоотведение, организация сбора и утилизации отходов, деятельность по ликвидации загрязнений
A41: 38 | B41: Сбор, обработка и утилизация отходов; обработка вторичного сырья
C42: МУНИЦИПАЛЬНОЕ УНИТАРНОЕ ПРЕДПРИЯТИЕ ЭКО-КОМФОРТ-СЕРВИС АДМИНИСТРАЦИИ ГОРОДА ЯСИНОВАТАЯ
D43: Рабочий по благоустройству населенных пунктов | E43: 3 | F43: 19910
B44: Итого | C44: =COUNTA(C40:C43) -> 1 | E44: =SUM(E40:E43) -> 3
A45: H | B45: Транспортировка и хранение
A46: 49 | B46: Деятельность сухопутного и трубопроводного транспорта
C47: ГОСУДАРСТВЕННОЕ УНИТАРНОЕ ПРЕДПРИЯТИЕ ДОНЕЦКОЙ НАРОДНОЙ РЕСПУБЛИКИ ДОНЕЦКАЯ ЖЕЛЕЗНАЯ ДОРОГА
D48: Агент коммерческий | E48: 5 | F48: 21158 | H48: ВЛАДЕНИЕ КОМПЬЮТЕРОМ, НАЛИЧИЕ СЕРТИФИКАТОВ
D49: Бригадир (освобожденный) по текущему содержанию и ремонту пути и искусственных сооружений | E49: 5 | F49: 23835 | H49: НАЛИЧИЕ СЕРТИФИКАТОВ
D50: Буфетчик | E50: 4 | F50: 16242 | H50: НАЛИЧИЕ МЕДИЦИНСКОЙ КНИЖКИ
D51: Дежурный по железнодорожной станции | E51: 3 | F51: 22022 | H51: ВЛАДЕНИЕ КОМПЬЮТЕРОМ, НАЛИЧИЕ СЕРТИФИКАТОВ
D52: Дежурный по переезду | E52: 11 | F52: 16242 | G52: 18826 | H52: НАЛИЧИЕ ОБУЧЕНИЯ ПО ПРОФЕССИИ, НАЛИЧИЕ СЕРТИФИКАТОВ
D53: Мастер дорожный | E53: 3 | F53: 30831 | H53: НАЛИЧИЕ СЕРТИФИКАТОВ
D54: Монтер пути | E54: 6 | F54: 18826 | H54: НАЛИЧИЕ СВИДЕТЕЛЬСТВА О ПРОФЕССИОНАЛЬНЫХ КУРСАХ ПО ПРОФЕССИИ, НАЛИЧИЕ СЕРТИФИКАТОВ
D55: Осмотрщик-ремонтник вагонов | E55: 3 | F55: 20726 | H55: ПРОХОЖДЕНИЕ МЕДОСМОТРА, НАЛИЧИЕ СЕРТИФИКАТОВ
D56: Техник | E56: 3 | F56: 22022 | H56: НАЛИЧИЕ СЕРТИФИКАТОВ
B57: Итого | C57: =COUNTA(C45:C56) -> 1 | E57: =SUM(E45:E56) -> 43
A58: N | B58: Деятельность административная и сопутствующие дополнительные услуги
A59: 81 | B59: Деятельность по обслуживанию зданий и территорий
C60: МУНИЦИПАЛЬНОЕ УНИТАРНОЕ ПРЕДПРИЯТИЕ АДМИНИСТРАЦИИ ГОРОДА ЯСИНОВАТАЯ ЖИЛИЩНО-ЭКСПЛУАТАЦИОННЫЙ КОМБИНАТ
D61: Водитель автомобиля | E61: 3 | F61: 16501
D62: Дворник | E62: 26 | F62: 16242 | H62: Физическое здоровье, граждане без вредных привычек
D63: Лифтер | E63: 7 | F63: 16244
D64: Плотник | E64: 4 | F64: 20410
D65: Слесарь-сантехник | E65: 3 | F65: 23131
D66: Электромеханик по лифтам | E66: 3 | F66: 21216
D67: Электромонтер по ремонту и обслуживанию электрооборудования | E67: 3 | F67: 23131
B68: Итого | C68: =COUNTA(C58:C67) -> 1 | E68: =SUM(E58:E67) -> 49
A69: O | B69: Государственное управление и обеспечение военной безопасности; социальное обеспечение
A70: 84 | B70: Деятельность органов государственного управления по обеспечению военной безопасности, обязательному социальному обеспечению
C71: ГБУ УПРАВЛЕНИЕ ПЕНСИОННОГО ФОНДА ДОНЕЦКОЙ НАРОДНОЙ РЕСПУБЛИКИ В Г. ЯСИНОВАТАЯ
D72: Главный специалист | E72: 9 | F72: 16242 | H72: ВЛАДЕНИЕ ПК, ЗНАНИЕ ОСНОВ ДЕЛОПРОИЗВОДСТВА И ДОКУМЕНТООБОРОТА, ЗАКОНОДАТЕЛЬНЫХ АКТОВ И НОРМАТИВНЫХ ДОКУМЕНТОВ НАЛИЧИЕ СЕРТИФИКАТОВ
D73: Заведующий сектором (специализированным) | E73: 1 | F73: 17021 | H73: ВЛАДЕНИЕ ПК, ЗНАНИЕ ОСНОВ ДЕЛОПРОИЗВОДСТВА И ДОКУМЕНТООБОРОТА; ЗАКОНОДАТЕЛЬНЫХ АКТОВ И НОРМАТИВНЫХ ДОКУМЕНТОВ НАЛИЧИЕ СЕРТИФИКАТОВ
D74: Начальник отдела (функционального в прочих областях деятельности) | E74: 2 | F74: 17021 | H74: ВЛАДЕНИЕ ПК, ЗНАНИЕ ОСНОВ ДЕЛОПРОИЗВОДСТВА И ДОКУМЕНТООБОРОТА; ЗАКОНОДАТЕЛЬНЫХ АКТОВ И НОРМАТИВНЫХ ДОКУМЕНТОВ НАЛИЧИЕ СЕРТИФИКАТОВ
D75: Начальник управления (специализированного в прочих отраслях) | E75: 2 | F75: 17021 | H75: ВЛАДЕНИЕ ПК, ЗНАНИЕ ОСНОВ ДЕЛОПРОИЗВОДСТВА, ЗАКОНОДАТЕЛЬНЫХ АКТОВ И НОРМАТИВНЫХ ДОКУМЕНТОВ
D76: Специалист | E76: 5 | F76: 16242 | H76: ВЛАДЕНИЕ ПК, ЗНАНИЕ ОСНОВ ДЕЛОПРОИЗВОДСТВА, ЗНАНИЕ ЗАКОНОДАТЕЛЬНЫХ АКТОВ
D77: Юрисконсульт | E77: 1 | F77: 17021 | H77: ВЛАДЕНИЕ ПК, ЗНАНИЕ ОСНОВ ДЕЛОПРОИЗВОДСТВА И ДОКУМЕНТООБОРОТА; ЗАКОНОДАТЕЛЬНЫХ АКТОВ И НОРМАТИВНЫХ ДОКУМЕНТОВ НАЛИЧИЕ СЕРТИФИКАТОВ
C78: АДМИНИСТРАЦИЯ ГОРОДА ЯСИНОВАТАЯ
D79: Главный специалист | E79: 3 | F79: 18939 | H79: ЗНАНИЕ ЗАКОНОДАТЕЛЬСТВА (КОНСТИТУЦИЯ ДНР, РФ,ТК РФ, ЗАКОНЫ И КОДЕКСЫ ДНР,РФ) РАБОТА НА КОМПЬЮТЕРЕ СЕРТИФИКАТЫ НАРКОЛОГА, ПСИХИАТРА
D80: Специалист | E80: 3 | F80: 16554 | H80: ЗНАНИЕ ЗАКОНОДАТЕЛЬСТВА (КОНСТИТУЦИЯ ДНР, РФ, ТК РФ, ЗАКОНЫ И КОДЕКСЫ ДНР, РФ) РАБОТА НА КОМПЬЮТЕРЕ СЕРТИФИКАТЫ ПСИХИАТРА, НАРКОЛОГА
C81: ОТДЕЛ ГОСУДАРСТВЕННОГО КОМИТЕТА ПО ЗЕМЕЛЬНЫМ РЕСУРСАМ ДОНЕЦКОЙ НАРОДНОЙ РЕСПУБЛИКИ В Г.ЯСИНОВАТАЯ И ЯСИНОВАТСКОМ РАЙОНЕ
D82: Главный специалист | E82: 3 | F82: 24103
B83: Итого | C83: =COUNTA(C69:C82) -> 3 | E83: =SUM(E69:E82) -> 29
A84: P | B84: Образование
A85: 85 | B85: Образование
C86: ГБОУ ЯСИНОВАТСКАЯ САНАТОРНАЯ ШКОЛА-ИНТЕРНАТ № 14
D87: Воспитатель | E87: 4 | F87: 23787 | H87: НАЛИЧИЕ МЕДИЦИНСКОЙ КНИЖКИ
D88: Врач-специалист | E88: 2 | F88: 23787 | H88: ОПЫТ РАБОТЫ С ДЕТЬМИ НАЛИЧИЕ МЕДИЦИНСКОЙ КНИЖКИ, СЕРТИФИКАТОВ
D89: Врач-стоматолог | E89: 1 | F89: 23787 | H89: ОПЫТ РАБОТЫ С ДЕТЬМИ НАЛИЧИЕ МЕД.КНИЖКИ, СЕРТИФИКАТОВ
D90: Врач-хирург | E90: 1 | F90: 23787 | H90: ОПЫТ РАБОТЫ С ДЕТЬМИ, НАЛИЧИЕ МЕД.КНИЖКИ, СЕРТИФИКАТОВ
D91: Инструктор по лечебной физкультуре | E91: 1 | F91: 16506 | H91: ОПЫТ РАБОТЫ С ДЕТЬМИ, КУРСЫ ПОВЫШЕНИЯ КВАЛИФИКАЦИИ ПО СПЕЦИАЛЬНОСТИ НАЛИЧИЕ МЕДИЦИНСКОЙ КНИЖКИ
D92: Медицинская сестра | E92: 1 | F92: 16506 | H92: ОПЫТ РАБОТЫ С ДЕТЬМИ, КУРСЫ ПОВЫШЕНИЯ КВАЛИФИКАЦИИ ПО СПЕЦИАЛЬНОСТИ НАЛИЧИЕ МЕДИЦИНСКОЙ КНИЖКИ
D93: Обувщик по ремонту обуви | E93: 1 | F93: 16242 | H93: НАЛИЧИЕ МЕДИЦИНСКОЙ КНИЖКИ СПЕЦИАЛЬНАЯ ПОДГОТОВКА
D94: Педагог-организатор | E94: 1 | F94: 23787 | H94: НАЛИЧИЕ МЕДИЦИНСКОЙ КНИЖКИ
D95: Слесарь-сантехник | E95: 1 | F95: 16242 | H95: НАЛИЧИЕ МЕДИЦИНСКОЙ КНИЖКИ, СПЕЦИАЛЬНАЯ ПОДГОТОВКА
D96: Столяр | E96: 1 | F96: 16242 | H96: НАЛИЧИЕ МЕДИЦИНСКОЙ КНИЖКИ СПЕЦИАЛЬНАЯ ПОДГОТОВКА
C97: МБДОУ ЯСЛИ-САД ОБЩЕРАЗВИВАЮЩЕГО ТИПА № 3 РАДУГА ГОРОДА ЯСИНОВАТАЯ
D98: Воспитатель | E98: 2 | F98: 16242 | H98: НАЛИЧИЕ СЕРТИФИКАТОВ И МЕДИЦИНСКОЙ КНИЖКИ
D99: Инструктор по физической культуре | E99: 1 | F99: 16242 | H99: НАЛИЧИЕ МЕДИЦИНСКОЙ КНИЖКИ, СЕРТИФИКАТОВ
D100: Музыкальный руководитель | E100: 1 | F100: 16242 | H100: НАЛИЧИЕ МЕДИЦИНСКОЙ КНИЖКИ И СЕРТИФИКАТОВ
D101: Педагог дополнительного образования | E101: 1 | F101: 16242 | H101: НАЛИЧИЕ МЕДИЦИНСКОЙ КНИЖКИ, СЕРТИФИКАТОВ
D102: Педагог социальный | E102: 1 | F102: 16242 | H102: НАЛИЧИЕ МЕДИЦИНСКОЙ КНИЖКИ И СЕРТИФИКАТОВ
D103: Повар | E103: 1 | F103: 16242 | H103: НАЛИЧИЕ МЕДИЦИНСКОЙ КНИЖКИ, СЕРТИФИКАТОВ
D104: Сестра диетического питания | E104: 1 | F104: 16242 | H104: НАЛИЧИЕ МЕДИЦИНСКОЙ КНИЖКИ, СЕРТИФИКАТОВ
C105: МБДОУ ЯСЛИ-САД ОБЩЕРАЗВИВАЮЩЕГО ТИПА № 7 БЕРЕЗКА ГОРОДА ЯСИНОВАТАЯ
D106: Воспитатель | E106: 1 | F106: 16242 | H106: НАЛИЧИЕ МЕДИЦИНСКОЙ КНИЖКИ
D107: Заведующий хозяйством | E107: 1 | F107: 16242 | H107: НАЛИЧИЕ МЕДИЦИНСКОЙ КНИЖКИ
D108: Инструктор по физической культуре | E108: 1 | F108: 16242 | H108: НАЛИЧИЕ МЕДИЦИНСКОЙ КНИЖКИ
D109: Педагог дополнительного образования | E109: 1 | F109: 16242 | H109: НАЛИЧИЕ МЕДИЦИНСКОЙ КНИЖКИ
D110: Педагог социальный | E110: 1 | F110: 16242 | H110: НАЛИЧИЕ МЕДИЦИНСКОЙ КНИЖКИ
D111: Педагог-психолог | E111: 1 | F111: 16242 | H111: НАЛИЧИЕ МЕДИЦИНСКОЙ КНИЖКИ
C112: МБДОУ ЯСЛИ-САД КОМБИНИРОВАННОГО ТИПА № 2 ЗОЛОТОЙ КЛЮЧИК ГОРОДА ЯСИНОВАТАЯ
D113: Дворник | E113: 1 | F113: 16242 | H113: НАЛИЧИЕ МЕДИЦИНСКОЙ КНИЖКИ И СЕРТИФИКАТОВ
D114: Кладовщик | E114: 1 | F114: 16262 | H114: НАЛИЧИЕ МЕДИЦИНСКОЙ КНИЖКИ И СЕРТИФИКАТОВ
D115: Кухонный рабочий | E115: 1 | F115: 16242 | H115: НАЛИЧИЕ МЕДИЦИНСКОЙ КНИЖКИ И СЕРТИФИКАТОВ
D116: Медицинская сестра | E116: 2 | F116: 16242 | H116: НАЛИЧИЕ МЕДИЦИНСКОЙ КНИЖКИ И СЕРТИФИКАТОВ
D117: Музыкальный руководитель | E117: 1 | F117: 16242 | H117: ПРОФЕССИОНАЛЬНОЕ ВЛАДЕНИЕ ТЕХНИКОЙ ИСПОЛНЕНИЯ НА МУЗЫКАЛЬНОМ ИНСТРУМЕНТЕ, НАЛИЧИЕ МЕДИЦИНСКОЙ КНИЖКИ И СЕРТИФИКАТОВ
D118: Педагог-психолог | E118: 1 | F118: 16242 | H118: НАЛИЧИЕ МЕДИЦИНСКОЙ КНИЖКИ И СЕРТИФИКАТОВ
D119: Повар | E119: 1 | F119: 16242 | H119: НАЛИЧИЕ МЕДИЦИНСКОЙ КНИЖКИ И СЕРТИФИКАТОВ
D120: Сестра диетического питания | E120: 1 | F120: 16242 | H120: НАЛИЧИЕ МЕДИЦИНСКОЙ КНИЖКИ И СЕРТИФИКАТОВ
D121: Слесарь-электрик по ремонту электрооборудования | E121: 1 | F121: 16262 | H121: НАЛИЧИЕ МЕДИЦИНСКОЙ КНИЖКИ И СЕРТИФИКАТОВ
C122: ГОСУДАРСТВЕННОЕ БЮДЖЕТНОЕ ПРОФЕССИОНАЛЬНОЕ ОБРАЗОВАТЕЛЬНОЕ УЧРЕЖДЕНИЕ ЯСИНОВАТСКИЙ МНОГОПРОФИЛЬНЫЙ ТЕХНИКУМ
D123: Заведующий хозяйством | E123: 1 | F123: 16242
D124: Методист | E124: 1 | F124: 16245
D125: Педагог-психолог | E125: 1 | F125: 16245
D126: Преподаватель (в колледжах, университетах и других вузах) | E126: 1 | F126: 23158
C127: МБОУ ШКОЛА №5 ГОРОДА ЯСИНОВАТАЯ
D128: Инженер-электроник | E128: 1 | F128: 16242 | H128: НАЛИЧИЕ МЕДИЦИНСКОЙ КНИЖКИ
D129: Секретарь руководителя | E129: 1 | F129: 16242 | H129: НАЛИЧИЕ МЕДИЦИНСКОЙ КНИЖКИ
D130: Электромонтер по ремонту и обслуживанию электрооборудования | E130: 1 | F130: 16242 | H130: ДОПУСК К РАБОТЕ, НАЛИЧИЕ МЕДИЦИНСКОЙ КНИЖКИ
C131: МБДОУ ЯСЛИ-САД ОБЩЕРАЗВИВАЮЩЕГО ТИПА № 1 ЗОЛОТЫЕ ЗЕРНЫШКИ ГОРОДА ЯСИНОВАТАЯ
D132: Инструктор по физической культуре | E132: 1 | F132: 16242 | H132: НАЛИЧИЕ СЕРТИФИКАТОВ, МЕДИЦИНСКОЙ КНИЖКИ
D133: Педагог дополнительного образования | E133: 1 | F133: 16242 | H133: НАЛИЧИЕ СЕРТИФИКАТОВ, МЕДИЦИНСКОЙ КНИЖКИ
D134: Педагог социальный | E134: 1 | F134: 16242 | H134: НАЛИЧИЕ СЕРТИФИКАТОВ, МЕДИЦИНСКОЙ КНИЖКИ
C135: МБДОУ ДЕТСКИЙ САД ОБЩЕРАЗВИВАЮЩЕГО ТИПА № 9 ПЧЕЛКА ГОРОДА ЯСИНОВАТАЯ
D136: Инструктор по физической культуре | E136: 1 | F136: 16242 | H136: НАЛИЧИЕ МЕДИЦИНСКОЙ КНИЖКИ, НАЛИЧИЕ СЕРТИФИКАТА
D137: Машинист по стирке и ремонту спецодежды | E137: 1 | F137: 16242 | H137: НАЛИЧИЕ МЕДИЦИНСКОЙ КНИЖКИ, СЕРТИФИКАТОВ
D138: Повар | E138: 1 | F138: 16242 | H138: НАЛИЧИЕ МЕДИЦИНСКОЙ КНИЖКИ, СЕРТИФИКАТОВ
C139: МБДОУ ДЕТСКИЙ САД ОБЩЕРАЗВИВАЮЩЕГО ТИПА № 10 ДЮЙМОВОЧКА ГОРОДА ЯСИНОВАТАЯ
D140: Инструктор по физической культуре | E140: 1 | F140: 16242
D141: Машинист по стирке и ремонту спецодежды | E141: 1 | F141: 16242
D142: Медицинская сестра | E142: 1 | F142: 16242
D143: Музыкальный руководитель | E143: 1 | F143: 16242
D144: Педагог дополнительного образования | E144: 1 | F144: 16242
D145: Педагог социальный | E145: 1 | F145: 16242
D146: Педагог-психолог | E146: 1 | F146: 16242
D147: Сестра диетического питания | E147: 1 | F147: 16242
C148: МБДОУ ЯСЛИ-САД ОБЩЕРАЗВИВАЮЩЕГО ТИПА № 5 СОЛНЫШКО ГОРОДА ЯСИНОВАТАЯ
D149: Кухонный рабочий | E149: 1 | F149: 16242 | H149: НАЛИЧИЕ МЕДИЦИНСКОЙ КНИЖКИ, СЕРТИФИКАТОВ
D150: Медицинская сестра | E150: 2 | F150: 16242 | H150: НАЛИЧИЕ МЕДИЦИНСКОЙ КНИЖКИ, СЕРТИФИКАТОВ
D151: Педагог дополнительного образования | E151: 1 | F151: 16242 | H151: НАЛИЧИЕ МЕДИЦИНСКОЙ КНИЖКИ, СЕРТИФИКАТОВ
D152: Педагог социальный | E152: 1 | F152: 16242 | H152: НАЛИЧИЕ МЕДИЦИНСКОЙ КНИЖКИ, СЕРТИФИКАТОВ
D153: Педагог-психолог | E153: 1 | F153: 16242 | H153: НАЛИЧИЕ МЕДИЦИНСКОЙ КНИЖКИ, СЕРТИФИКАТОВ
D154: Сестра диетического питания | E154: 1 | F154: 16242 | H154: НАЛИЧИЕ МЕДИЦИНСКОЙ КНИЖКИ, СЕРТИФИКАТОВ
C155: МБОУ ШКОЛА №6 С УГЛУБЛЕННЫМ ИЗУЧЕНИЕМ ОТДЕЛЬНЫХ ПРЕДМЕТОВ ГОРОДА ЯСИНОВАТАЯ
D156: Логопед | E156: 1 | F156: 16242
D157: Начальник отдела (функционального в прочих областях деятельности) | E157: 1 | F157: 23719
D158: Педагог социальный | E158: 1 | F158: 16242
D159: Сестра диетического питания | E159: 1 | F159: 16242
D160: Учитель | E160: 2 | F160: 23787
C161: МБОУ ШКОЛА №1 ГОРОДА ЯСИНОВАТАЯ
D162: Логопед | E162: 1 | F162: 16242
D163: Медицинская сестра | E163: 1 | F163: 16242
D164: Педагог социальный | E164: 1 | F164: 16242
D165: Педагог-психолог | E165: 1 | F165: 16242
D166: Сестра диетического питания | E166: 1 | F166: 16242
D167: Уборщик производственных и служебных помещений | E167: 3 | F167: 16242
C168: НАЧАЛЬНОЕ СПЕЦИАЛИЗИРОВАННОЕ УЧЕБНОЕ ЗАВЕДЕНИЕ ИСКУССТВ ЯСИНОВАТСКАЯ ШКОЛА ИСКУССТВ
D169: Настройщик пианино и роялей | E169: 1 | F169: 16242 | H169: НАЛИЧИЕ СЕРТИФИКАТА О ПРОХОЖДЕНИИ ПСИХИАТРИЧЕСКИХ ОСВИДЕТЕЛЬСТВОВАНИЙ, МЕДОСМОТРА
D170: Педагог дополнительного образования | E170: 16 | F170: 16242 | H170: ДОЛЖЕН ЗНАТЬ ОСНОВЫ ПЕДАГОГИКИ И ПСИХОЛОГИИ, ФОРМ И МЕТОДОВ ОБУЧЕНИЯ И ВОСПИТАНИЯ, ИНСТРУКТИВНЫЕ И МЕТОДИЧЕСКИЕ МАТЕРИАЛЫ ПО ОРГАНИЗАЦИИ УЧЕБНО-ВОСПИТАТЕЛЬНОЙ И МЕТОДИЧЕСКОЙ РАБОТЫ, ПРОГРАММЫ ПО ПРЕДМ
D171: Слесарь-электрик по ремонту электрооборудования | E171: 1 | F171: 16242 | H171: ГРУППА ДОПУСКА - 3 НАЛИЧИЕ СЕРТИФИКАТА О ПРОХОЖДЕНИИ ПСИХИАТРИЧЕСКИХ ОСВИДЕТЕЛЬСТВОВАНИЙ НАЛИЧИЕ МЕДОСМОТРА
D172: Техник | E172: 1 | F172: 16242 | H172: ДОЛЖЕН ЗНАТЬ СОСТАВ И ПОРЯДОК ВЫПОЛНЕНИЯ РАБОТ ПРИ ТЕХНИЧЕСКОМ ОБСЛУЖИВАНИИ ОБОРУДОВАНИЯ
C173: ГОСУДАРСТВЕННОЕ БЮДЖЕТНОЕ ПРОФЕССИОНАЛЬНОЕ ОБРАЗОВАТЕЛЬНОЕ УЧРЕЖДЕНИЕ ЯСИНОВАТСКИЙ ТЕХНИКУМ МАШИНОСТРОЕНИЯ И ТРАНСПОРТА
D174: Начальник отдела (функционального в прочих областях деятельности) | E174: 1 | F174: 21940
D175: Электромонтер по ремонту и обслуживанию электрооборудования | E175: 1 | F175: 21940
C176: МБДОУ ЯСЛИ-САД ОБЩЕРАЗВИВАЮЩЕГО ТИПА № 6 ЖУРАВУШКА ГОРОДА ЯСИНОВАТАЯ
D177: Педагог дополнительного образования | E177: 1 | F177: 16242 | H177: НАЛИЧИЕ МЕДИЦИНСКОЙ КНИЖКИ, СЕРТИФИКАТОВ
D178: Педагог социальный | E178: 1 | F178: 16242 | H178: НАЛИЧИЕ МЕДИЦИНСКОЙ КНИЖКИ, СЕРТИФИКАТОВ
C179: МБОУ ШКОЛА №3 ГОРОДА ЯСИНОВАТАЯ
D180: Педагог-организатор | E180: 1 | F180: 16242
D181: Учитель | E181: 2 | F181: 16242
D182: Учитель-логопед | E182: 1 | F182: 16242
C183: МУНИЦИПАЛЬНОЕ БЮДЖЕТНОЕ УЧРЕЖДЕНИЕ ДОПОЛНИТЕЛЬНОГО ОБРАЗОВАНИЯ ДОМ ДЕТСКОГО И ЮНОШЕСКОГО ТВОРЧЕСТВА ГОРОДА ЯСИНОВАТАЯ
D184: Педагог-психолог | E184: 1 | F184: 16242 | H184: НАЛИЧИЕ МЕДИЦИНСКОЙ КНИЖКИ И СЕРТИФИКАТОВ, ОТСУТСТВИЕ ВРЕДНЫХ ПРИВЫЧЕК
D185: Сторож (вахтер) | E185: 1 | F185: 16242 | H185: НАЛИЧИЕ МЕДИЦИНСКОЙ КНИЖКИ И СЕРТИФИКАТОВ, ОТСУТСТВИЕ ВРЕДНЫХ ПРИВЫЧЕК
D186: Электромонтер по ремонту и обслуживанию электрооборудования | E186: 1 | F186: 16242 | H186: НАЛИЧИЕ МЕДИЦИНСКОЙ КНИЖКИ И СЕРТИФИКАТОВ, ОТСУТСТВИЕ ВРЕДНЫХ ПРИВЫЧЕК
C187: МБОУ ШКОЛА №4 ГОРОДА ЯСИНОВАТАЯ
D188: Секретарь руководителя | E188: 1 | F188: 16242 | H188: ОТВЕТСТВЕННОСТЬ, УМЕНИЕ РАБОТАТЬ В ОФИСНЫХ ПРОГРАММАХ, ГРАМОТНОСТЬ, ЗНАНИЕ ПК
B189: Итого | C189: =COUNTA(C84:C188) -> 18 | E189: =SUM(E84:E188) -> 111

Sheet Амвросиевский РЦЗ
A5: Потребность, заявленная работодателями Амросиевского р-на, по состоянию на 01.04.2023
A6: Раздел/ код ОКВЭД | B6: Виды экономической деятельности | C6: Наименование ПОУ | D6: Название профессии/ специальности | E6: Количество свободных рабочих мест (вакантных должнлстей) (ед.) | F6: Размер заработной платы, указанный в вакансии от, руб. | G6: Размер заработной платы, указанный в вакансии до, руб. | H6: Требования
A7: 1 | B7: 2 | C7: 4 | D7: 5 | E7: 6 | F7: 7 | G7: 8 | H7: 9
A8: Всего | C8: 25 | E8: 173
A9: A | B9: Сельское, лесное хозяйство, охота, рыболовство и рыбоводство
A10: 1 | B10: Растениеводство и животноводство, охота и предоставление соответствующих услуг в этих областях
C11: ООО АГРО-ДОН
D12: Бухгалтер | E12: 1 | F12: 20133
D13: Водитель автомобиля | E13: 1 | F13: 17962
D14: Сторож (вахтер) | E14: 1 | F14: 16330
D15: Тракторист-машинист сельскохозяйственного производства | E15: 1 | F15: 22734
C16: ООО АМВРОСИЕВСКАЯ ПТИЦЕФАБРИКА
D17: Кассир | E17: 1 | F17: 16242 | H17: Ответственность.
C18: ООО МРИЯ-АГРО
D19: Тракторист-машинист сельскохозяйственного производства | E19: 1 | F19: 26877 | H19: Удостоверение тракториста-машиниста
B20: Итого | C20: =COUNTA(C9:C19) -> 3 | E20: =SUM(E9:E19) -> 6
A21: C | B21: Обрабатывающие производства
A22: 23 | B22: Производство прочей неметаллической минеральной продукции
C23: ФИЛИАЛ №1 ООО ПИК-ЦЕМЕНТ+
D24: Подсобный рабочий | E24: 5 | F24: 60000
B25: Итого | C25: =COUNTA(C21:C24) -> 1 | E25: =SUM(E21:E24) -> 5
A26: D | B26: Обеспечение электрической энергией, газом и паром; кондиционирование воздуха
A27: 35 | B27: Обеспечение электрической энергией, газом и паром; кондиционирование воздуха
C28: ГОСУДАРСТВЕННЫЙ КОНЦЕРН ДОНБАССГАЗ
D29: Водитель автомобиля | E29: 2 | F29: 25731 | G29: 26476 | H29: Водительское удостоверение категории В, С, отсутствие медицинских показателей. Сертификат о прохождении профилатического наркологического и психиатрического освидетельствования
D30: Кассир | E30: 1 | F30: 2655 | H30: Знание ПК на уровне уверенного пользователя
D31: Контролер газового хозяйства | E31: 3 | F31: 19695 | H31: Сертификат о прохождении профилактического наркологического и психиатрического освидетельствования
D32: Машинист компрессора передвижного с электродвигателем | E32: 1 | F32: 22971 | H32: Справка о прохождении обязательногопредварительного, переодического психиатрического освидетельствования
D33: Машинист электросварочного передвижного агрегата с двигателем внутреннего сгорания | E33: 2 | F33: 21630
D34: Монтер по защите подземных трубопроводов от коррозии | E34: 1 | F34: 23890 | H34: сертификат о прохождении наркологического и психиатрического освидетельствования
D35: Слесарь по ремонту автомобилей | E35: 1 | F35: 20942 | H35: Водительское удостоверение, справка о прохождении психиатрического освидетельствования
D36: Слесарь по эксплуатации и ремонту газового оборудования | E36: 16 | F36: 18526 | G36: 23361 | H36: Сертификат о прохождении наркологического и психиатрического освидетельствования
D37: Слесарь по эксплуатации и ремонту подземных газопроводов | E37: 3 | F37: 18526 | G37: 20942 | H37: Сертификаты о прохождении профилактическогонаркологического и психиатрического освидетельствования
D38: Слесарь-ремонтник | E38: 1 | F38: 19391 | H38: Прохождение обязательных предварительных и переодических и внеочередных медицинских осмотров
D39: Тракторист | E39: 2 | F39: 24803 | H39: Водительское удостоверение. Прохождение обязательных предварительных, переодических внеочереднвх медицинских осмотров
D40: Тракторист | E40: 1 | F40: 22971 | H40: Прохождение предварительных и периодических медицинских осмотров. Наличие удостоверения категорий В,С, D,E,F
D41: Электрогазосварщик | E41: 1 | F41: 28388 | H41: Сертификат о прохождении наркологического и психиатрического освидетельствования
C42: ГОСУДАРСТВЕННОЕ УНИТАРНОЕ ПРЕДПРИЯТИЕ ДОНЕЦКОЙ НАРОДНОЙ РЕСПУБЛИКИ ДОНБАССТЕПЛОЭНЕРГО
D43: Слесарь по эксплуатации и ремонту газового оборудования | E43: 1 | F43: 20000 | H43: Соответствующее квалиикационное удостоверение
D44: Электромонтер по ремонту и обслуживанию электрооборудования | E44: 2 | F44: 18000 | H44: Соответствующее квалификационное удостоверение
B45: Итого | C45: =COUNTA(C26:C44) -> 2 | E45: =SUM(E26:E44) -> 38
A46: F | B46: Строительство
A47: 42 | B47: Строительство инженерных сооружений
C48: ООО ДОРСТРОЙ
D49: Весовщик | E49: 6 | F49: 20000 | H49: Знание офисных программ Word, Excel. Умение работать в системе учета данных 1:С
D50: Водитель автомобиля | E50: 30 | F50: 50000 | H50: Водительское удостоверение категории B, C, D, E. Работа на автомобилях МАЗы, МЕРСЕДЕСЫ-самосвалы, МАНы (тонар), УАЗ
D51: Дорожный рабочий | E51: 20 | F51: 40000
D52: Машинист автогрейдера | E52: 4 | F52: 45000 | H52: Наличие опыта работы на автогрейдере. Наличие повышения квалификации по профессии Машинист автогрейдера
D53: Машинист катка самоходного с гладкими вальцами | E53: 10 | F53: 15279 | H53: Удостоверение тракториста-машиниста, водительское удостоверение, удостоверение о повышении квалификации по профессии машинист катка
D54: Машинист укладчика асфальтобетона | E54: 4 | F54: 50000 | H54: Опыт работы на дорожно-строительной технике (в т.ч. на асфальтоукладчике. Водительское удостоверение
D55: Машинист экскаватора | E55: 10 | F55: 50000 | H55: Наличие удостоверения тракторист-машинист (с необходимыми категориями
D56: Учетчик | E56: 4 | F56: 40000
B57: Итого | C57: =COUNTA(C46:C56) -> 1 | E57: =SUM(E46:E56) -> 88
A58: O | B58: Государственное управление и обеспечение военной безопасности; социальное обеспечение
A59: 84 | B59: Деятельность органов государственного управления по обеспечению военной безопасности, обязательному социальному обеспечению
C60: ГБУ АМВРОСИЕВСКИЙ РАЙОННЫЙ ЦЕНТР ЗАНЯТОСТИ
D61: Начальник отдела (специализированного в прочих отраслях) | E61: 1 | F61: 21787 | H61: Специальность по образованию Менеджмент, Экономика, Управление персаналом
D62: Специалист | E62: 1 | F62: 19544 | H62: Специальность по образованию Экономика, Учет и аудит, Менеджмент
B63: Итого | C63: =COUNTA(C58:C62) -> 1 | E63: =SUM(E58:E62) -> 2
A64: P | B64: Образование
A65: 85 | B65: Образование
C66: ГБОУ АМВРОСИЕСКАЯ ШКОЛА-ИНТЕРНАТ №4
D67: Бухгалтер | E67: 1 | F67: 19415
C68: ГБПОУ АМВРОСИЕВСКИЙ МНОГОПРОФИЛЬНЫЙ ТЕХНИКУМ
D69: Бухгалтер | E69: 1 | F69: 16242 | H69: Опыт работы по профессии бухгалтера по начислению заработной платы
D70: Директор училища (колледжа) | E70: 1 | F70: 16242
C71: МБУДО АМВРОСИЕВСКАЯ ШКОЛА ИСКУССТВ
D72: Водитель автомобиля | E72: 1 | F72: 16242
D73: Настройщик пианино и роялей | E73: 1 | F73: 16242
C74: МБДОУ АМВРОСИЕВСКИЙ ДЕТСКИЙ САД № 4 ТЕРЕМОК АМВРОСИЕВСКОГО РАЙОНА
D75: Воспитатель | E75: 1 | F75: 16249
D76: Педагог-психолог | E76: 1 | F76: 16242
D77: Рабочий по комплексному обслуживанию и ремонту зданий | E77: 1 | F77: 16242
D78: Сторож (вахтер) | E78: 1 | F78: 16242 | H78: Наличие медицинской книжки
C79: МБДОУ АМВРОСИЕВСКИЙ ДЕТСКИЙ САД № 9 РЯБИНУШКА АМВРОСИЕВСКОГО РАЙОНА
D80: Воспитатель детского сада (яслей-сада) | E80: 1 | F80: 16242
D81: Учитель-логопед | E81: 1 | F81: 16242
C82: МБОУ АМВРОСИЕВСКАЯ ШКОЛА №4 АМВРОСИЕВСКОГО РАЙОНА
D83: Директор школы (гимназии, лицея) | E83: 1 | F83: 16242
D84: Педагог-организатор | E84: 1 | F84: 16242
D85: Педагог-психолог | E85: 1 | F85: 16242 | H85: Владение компьютером на уровне пользователя.
C86: МБУ "ДЕТСКИЙ ЦЕНТР ОЗДОРОВЛЕНИЯ И ОТДЫХА "ОРЛЕНОК"АМВРОСИЕВСКОГО РАЙОНА
D87: Заведующий хозяйством | E87: 1 | F87: 16242 | H87: Наличие санитарной книжки
D88: Сторож (вахтер) | E88: 6 | F88: 16242 | H88: Наличие медицинской книжки
C89: МБДОУ НОВОИВАНОВСКИЙ ДЕТСКИЙ САД АМВРОСИЕВСКОГО РАЙОНА
D90: Заведующий хозяйством | E90: 1 | F90: 16242 | H90: Наличие медицинской книжки
D91: Медицинская сестра | E91: 1 | F91: 16242 | H91: Наличие медецинской книжки
C92: МБДОУ АМВРОСИЕВСКИЙ ДЕТСКИЙ САД № 2 СВЕТЛЯЧОК АМВРОСИЕВСКОГО РАЙОНА
D93: Кухонный рабочий | E93: 1 | F93: 16242
D94: Педагог-психолог | E94: 1 | F94: 16242
C95: МБДОУ РОДНИКОВСКИЙ ДЕТСКИЙ САД АМВРОСИЕВСКОГО РАЙОНА
D96: Медицинская сестра | E96: 1 | F96: 16242
C97: МБДОУ БЕЛОЯРОВСКИЙ ДЕТСКИЙ САД АМВРОСИЕВСКОГО РАЙОНА
D98: Медицинская сестра | E98: 1 | F98: 17295
C99: МБОУ УЛЬЯНОВСКАЯ ШКОЛА АМВРОСИЕВСКОГО РАЙОНА
D100: Медицинская сестра | E100: 1 | F100: 16242
C101: МБОУ ГРАБСКАЯ ШКОЛА АМВРОСИЕВСКОГО РАЙОНА
D102: Медицинская сестра | E102: 1 | F102: 16242
C103: МБОУ АМВРОСИЕВСКАЯ ШКОЛА №5 АМВРОСИЕВСКОГО РАЙОНА
D104: Медицинская сестра | E104: 1 | F104: 16242 | H104: Медицинское образование.
C105: МБОУ АМВРОСИЕВСКАЯ ШКОЛА 6 АМВРОСИЕВСКОГО РАЙОНА
D106: Учитель | E106: 1 | F106: 16242
B107: Итого | C107: =COUNTA(C64:C106) -> 15 | E107: =SUM(E64:E106) -> 31
A108: Q | B108: Деятельность в области здравоохранения и социальных услуг
A109: 86 | B109: Деятельность в области здравоохранения
C110: ГБУ ЦЕНТР ПЕРВИЧНОЙ МЕДИКО-САНИТАРНОЙ ПОМОЩИ АМВРОСИЕВСКОГО РАЙОНА
D111: Экономист по труду | E111: 1 | F111: 17295
A112: 88 | B112: Предоставление социальных услуг без обеспечения проживания
C113: МБУ ТЕРРИТОРИАЛЬНЫЙ ЦЕНТР СОЦИАЛЬНОГО ОБСЛУЖИВАНИЯ (ПРЕДОСТАВЛЕНИЯ СОЦИАЛЬНЫХ УСЛУГ) АМВРОСИЕВСКОГО РАЙОНА
D114: Социальный работник | E114: 2 | F114: 16242 | H114: Наличие медицинской книжки
B115: Итого | C115: =COUNTA(C108:C114) -> 2 | E115: =SUM(E108:E114) -> 3

Sheet Волновахский РЦЗ
A5: Потребность, заявленная работодателями Волновахского р-на, по состоянию на 01.04.2023
A6: Раздел/ код ОКВЭД | B6: Виды экономической деятельности | C6: Наименование ПОУ | D6: Название профессии/ специальности | E6: Количество свободных рабочих мест (вакантных должнлстей) (ед.) | F6: Размер заработной платы, указанный в вакансии от, руб. | G6: Размер заработной платы, указанный в вакансии до, руб. | H6: Требования
A7: 1 | B7: 2 | C7: 3 | D7: 4 | E7: 5 | F7: 6 | G7: 7 | H7: 8
A8: Всего | C8: 16 | E8: 221
A9: D | B9: Обеспечение электрической энергией, газом и паром; кондиционирование воздуха
A10: 35 | B10: Обеспечение электрической энергией, газом и паром; кондиционирование воздуха
C11: ГОСУДАРСТВЕННОЕ УНИТАРНОЕ ПРЕДПРИЯТИЕ ДОНЕЦКОЙ НАРОДНОЙ РЕСПУБЛИКИ ДОНБАССТЕПЛОЭНЕРГО
D12: Аппаратчик химводоочистки | E12: 1 | F12: 17154 | H12: образование: общее среднее
D13: Водитель автомобиля | E13: 3 | F13: 22300 | H13: опыт работы: не менее 1 года образование: среднее общее иные требования: специальная учебно-курсовая подготовка,наличие водительского удостоверения категорий В и С
D14: Водитель автомобиля | E14: 1 | F14: 22300 | H14: опыт работ
D15: Кассир | E15: 1 | F15: 29540 | H15: опыт работы: не менее 1 года образование: профессионально-техническое образование
D16: Контролер контрольно-пропускного пункта | E16: 5 | F16: 17200 | G16: 20500 | H16: образование: общее среднее образование
D17: Машинист экскаватора | E17: 1 | F17: 25347 | H17: опыт работы: не менее 1 года образование: среднее общее образование
D18: Начальник отдела (в промышленности) | E18: 1 | F18: 45650 | H18: опыт работы: не менее 5 лет на руководящих должностях образование: высшее профессиональное
D19: Начальник охраны (объекта, участка) | E19: 1 | F19: 41320 | H19: опыт работы: не менее 5-ти лет на руководящих должностях образование: высшее профессиональное
D20: Начальник участка (в промышленности) | E20: 1 | F20: 45650 | H20: опыт работы: не менее 3-х лет на должностях руководителей в теплоснабжающих организациях. образование: высшее специальностьпо образованию: техническая
D21: Оператор котельной | E21: 11 | F21: 20500 | H21: образование: общее среднее иные требования: соответсвующая подготовка по специальности,медосмотр
D22: Охранник | E22: 1 | F22: 28195 | H22: опыт работы: не менее 3-х лет образование: высшее профессиональное
D23: Слесарь по техническому обслуживанию оборудования газоразделительного производства | E23: 1 | F23: 23867 | H23: опыт работы: не менее 1 года образование: среднее профессиональное
D24: Тракторист | E24: 1 | F24: 22972 | H24: образование: среднее общее образование
D25: Электромонтер по ремонту и обслуживанию электрооборудования | E25: 1 | F25: 21630 | H25: опыт работы: не менее 1 года образование: среднее профессиональное
D26: Электрослесарь по ремонту и обслуживанию автоматики и средств измерений электростанций | E26: 1 | F26: 23867
D27: Юрисконсульт (средней квалификации) | E27: 1 | F27: 16632
B28: Итого | C28: =COUNTA(C9:C27) -> 1 | E28: =SUM(E9:E27) -> 32
A29: E | B29: Водоснабжение; водоотведение, организация сбора и утилизации отходов, деятельность по ликвидации загрязнений
A30: 36 | B30: Забор, очистка и распределение воды
C31: ГОСУДАРСТВЕННОЕ УНИТАРНОЕ ПРЕДПРИЯТИЕ ДОНЕЦКОЙ НАРОДНОЙ РЕСПУБЛИКИ ВОДА ДОНБАССА
D32: Водитель автомобиля | E32: 2 | F32: 24230.3 | H32: опыт работы: с 1- 3 лет образование: среднее профессиональное медицинская книжка: да водительское удостоверение: да категории С наличие сертификатов (необязательно): да
D33: Инженер | E33: 1 | F33: 37103 | H33: опыт работы: 3-5 лет образование: высшее специальность по образованию: инженер-строитель иные требования: знания компьютера, составление схем, умение составлять сметы.
D34: Контролер водопроводного хозяйства | E34: 6 | F34: 19320 | H34: опыт работы: от 1-3 лет образование: среднее профессиональное ключевые навыки: грамотный, умение общаться с людьми
D35: Слесарь аварийно-восстановительных работ | E35: 5 | F35: 24519.57 | H35: опыт работы:3-5 лет образование:среднее профессиональное специальность по образованию:слесарь-ремонтник
D36: Электромонтер по ремонту и обслуживанию электрооборудования | E36: 5 | F36: 27788.74 | H36: опыт работы: 3-5 лет образование: среднее профессиональное специальность по образованию: электромонтер
B37: Итого | C37: =COUNTA(C29:C36) -> 1 | E37: =SUM(E29:E36) -> 19
A38: H | B38: Транспортировка и хранение
A39: 49 | B39: Деятельность сухопутного и трубопроводного транспорта
C40: ГОСУДАРСТВЕННОЕ УНИТАРНОЕ ПРЕДПРИЯТИЕ ДОНЕЦКОЙ НАРОДНОЙ РЕСПУБЛИКИ ДОНЕЦКАЯ ЖЕЛЕЗНАЯ ДОРОГА
D41: Бригадир (освобожденный) по текущему содержанию и ремонту пути и искусственных сооружений | E41: 11 | F41: 24319 | H41: квалификация: бригадир пути,техник-путеец опыт работы:не менее двух лет работы по текущему содержанию и ремонту пути и искусственных сооружений для прошедших профессиональное обучение
D42: Водитель автомобиля | E42: 3 | F42: 20726 | H42: образование: среднее водительское удостоверение: соответствующей категории(В;С;С1;)
D43: Дежурный по переезду | E43: 12 | F43: 15279 | H43: квалификация:дежурный по переезду 2 разряда образование:среднее профессиональное иные требования: наличие обучения по професси
D44: Дежурный по разъезду | E44: 3 | F44: 22022 | H44: образование:среднее профессиональное или высшее образование-специалитет специальность по образованию: организация перевозок и управление на железнодорожном транспорте иные требования: повышение квадификации
D45: Мастер дорожный (на железной дороге) | E45: 8 | F45: 30831 | H45: квалификация:инженер-строитель путей сообщения опыт работы: не менее одного года в области текущего содержания и ремонта железнодорожного пути при наличии высшего образования образование: высшее
D46: Монтер пути | E46: 8 | F46: 16581 | H46: квалификация:монтер пути 3 разряда опыт работы:не менее шести месяцев монтером пути 2-го разряда образование:среднее профессиональное иные требования:наличие обучения по профессии медицинская книжка
D47: Монтер пути | E47: 30 | F47: 18826 | H47: квалификация: монтер пути 4 разряда опыт работы: не менее шести месяцев монтером пути 3-го разряда образование:среднее профессиональное иные требования: наличие обучения по професси медицинская книжка
D48: Сигналист | E48: 3 | F48: 16586 | H48: образование:среднее профессиональное иные требования: наличия обучения по профессии медицинская книжка: прохождение обязательных предварительных и периодических медицинским осмотров
D49: Электромеханик | E49: 3 | F49: 26513 | H49: квалификация:электромеханик образование: среднее- профессиональное, неполное высшее
B50: Итого | C50: =COUNTA(C38:C49) -> 1 | E50: =SUM(E38:E49) -> 81
A51: O | B51: Государственное управление и обеспечение военной безопасности; социальное обеспечение
A52: 84 | B52: Деятельность органов государственного управления по обеспечению военной безопасности, обязательному социальному обеспечению
C53: УПРАВЛЕНИЕ ОБРАЗОВАНИЯ АДМИНИСТРАЦИИ ВОЛНОВАХСКОГО РАЙОНА
D54: Бухгалтер | E54: 6 | F54: 17629 | H54: образование: среднее,полное или базовое высшее обрахование соответствующего направления подготовки. специальность по образованию: бухгалтер, экономист, финансист ключевые навыки: знание основных офисных программ
C55: АДМИНИСТРАЦИЯ ВОЛНОВАХСКОГО РАЙОНА
D56: Глава администрации (сельской, поселковой) | E56: 7 | F56: 15785 | H56: Опыт работы: не менее 1 года Образование: высшее
D57: Главный специалист | E57: 7 | F57: 20833 | H57: Образование:высшее
D58: Инспектор по учету и бронированию военнообязанных | E58: 4 | F58: 15279
D59: Истопник | E59: 3 | F59: 15279
D60: Начальник отдела (специализированного в прочих отраслях) | E60: 4 | F60: 23991 | H60: Опыт работы: не менее 1 года на подобных должностях Образование: высшее
D61: Специалист | E61: 17 | F61: 15279 | H61: образование: высшее
D62: Специалист | E62: 3 | F62: 18326 | H62: Опыт работы: от 1 года Образование: высшее
D63: Уборщик производственных и служебных помещений | E63: 4 | F63: 15279
C64: ГОСУДАРСТВЕННОЕ БЮДЖЕТНОЕ УЧРЕЖДЕНИЕ ВОЛНОВАХСКИЙ РАЙОННЫЙ ЦЕНТР ЗАНЯТОСТИ
D65: Главный специалист | E65: 1 | F65: 15279 | H65: Квалификация: бухгалтер Опыт работы; нет Образование: Высшее професиональное( магистратура, специалитет) Специальность по бразованию: экономика бухгалтерский учет
D66: Специалист | E66: 1 | F66: 15279 | H66: квалификация: Бухгалтер , опыт работы: нет образование: Высшее професиональное (магистратура, специалитет,бакалавриат) . Специальность по образованию: Экономика; Бухгалтерский учет
D67: Специалист | E67: 5 | F67: 15279 | H67: квалификация: юрист, экономист,менеджер, психолог, ИТ-специалист .Опыт работы: нет специальность по образованию: Государственное и муниципальное управленте, Юриспруденция , Экономика , Менеджмент
D68: Юрисконсульт | E68: 1 | F68: 15279 | H68: квалификация: юрист , опыт работы: нет образование:высшее профессиональное(магистратура, специалитет) специальность по бразованию: юриспруденция владение языками: русский
B69: Итого | C69: =COUNTA(C51:C68) -> 3 | E69: =SUM(E51:E68) -> 63
A70: P | B70: Образование
A71: 85 | B71: Образование
C72: МБДОУ ЯСЛИ-САД КОМБИНИРОВАННОГО ТИПА № 8 ТЕРЕМОК АДМИНИСТРАЦИИ ВОЛНОВАХСКОГО РАЙОНА
D73: Воспитатель | E73: 1 | F73: 15483 | H73: Квалификация: Педагог Опыт работы в ДОУ Образование:профильное Специальность по образованию: педагогическое Иные требования: опыт работы с детьми Ключевые навыки:навыки ухода за детьми дошкольного возраста
D74: Воспитатель детского сада (яслей-сада) | E74: 1 | F74: 15483 | H74: Квалификация: педагог Опыт работы в ДОУ Образование: профильное Специальность по образованию: педагогические Иные требования: опыт работы с детьми Медицинская книжка: да
D75: Музыкальный руководитель | E75: 1 | F75: 15279 | H75: квалификация: педагог опыт работы: опыт работы в ДОУ образование: профильное специальность по образованию: педагогическое иные требования:опыт работы с детьми
C76: МБДОУ ДОНСКОЙ ЯСЛИ-САД КОМБИНИРОВАННОГО ТИПА ТЕРЕМОК АДМИНИСТРАЦИИ ВОЛНОВАХСКОГО РАЙОНА
D77: Воспитатель детского сада (яслей-сада) | E77: 1 | F77: 15846.84 | H77: образование: среднее профессиональное(высшее) специальность по образование: профессональное педагогическое ключевые навыки:знание базовых программ дошкольного образования, любовь к детям.
D78: Музыкальный руководитель | E78: 1 | F78: 18816.53 | H78: опыт работы: до 1 года образование: среднее (высшее) профессиональное специальность по образованию: музыкальное образование иные требование: опыт работы с детьми
D79: Педагог дополнительного образования | E79: 1 | F79: 17607.6 | H79: образование:среднее профессиональное(высшее) медицинская книжка: наличие специальность по образолванию: профессиональное педагогическое, диплом о попереподготовке по направлению Образование и педагогика
D80: Педагог социальный | E80: 1 | F80: 18579.6 | H80: образование: высшее профессиональное специальность по образованию: психолого-педагогическое или социологические факультеты ключевые навыки:знания социальной педагогики,детской психологии, первой медицинской помощи
D81: Повар детского питания | E81: 1 | F81: 15279 | H81: квалификация: 3-6 опыт работы: не менее одного года образование:среднее профессиональное специальность по образованию: организация питания ключевые навыки: грамотное управление персоналом
D82: Слесарь-электрик по ремонту электрооборудования | E82: 1 | F82: 15279 | H82: квалификация: 1,2 класс опыт работы: не менее 1 года образование: среднее специальное (высшее) специальность по образованию: техническое иные требования: наличие группы допуска по электробезопасности
D83: Учитель-логопед | E83: 1 | F83: 17661.6 | H83: образование: высшее специальность по образованию: дефектологическое образование ключевые навыки: умение организовать занятие по исправлению речи в игровой форме
C84: МБОУ ВОЛНОВАХСКАЯ ШКОЛА № 5 АДМИНИСТРАЦИИ ВОЛНОВАХСКОГО РАЙОНА
D85: Гардеробщик | E85: 1 | F85: 15483 | H85: образование; среднее-специальное иные требования:опыт работы с детьми ключевые навыки: тактичность,доброжелательность,исполнительность,ответсвенность,коммуникабельность,аккуратность,неконфликтность
D86: Медицинская сестра | E86: 1 | F86: 15483 | H86: Квалификация: Медицинская сестра Опыт работы:опыт работы с общеоброзовательных учреждениях Образовние: среднее специальное Специальность по образованию: сестричное дело Медицинская книжка: да
C87: МУНИЦИПАЛЬНОЕ БЮДЖЕТНОЕ ОБЩЕОБРАЗОВАТЕЛЬНОЕ УЧРЕЖДЕНИЕ ОКТЯБРЬСКАЯ ШКОЛА АДМИНИСТРАЦИИ ВОЛНОВАХСКОГО РАЙОНА
D88: Инженер-электроник | E88: 1 | F88: 16242 | H88: квалификация: инженер опыт работы с компьютером (ремонт компьютерного оборудования,программное обеспечение) образование: высшее
D89: Педагог-психолог | E89: 1 | F89: 16242 | H89: опыт работы с детьми образование:высшее
C90: МБДОУ ХЛЕБОДАРОВСКИЙ ЯСЛИ-САД СОЛНЫШКО АДМИНИСТРАЦИИ ВОЛНОВАХСКОГО РАЙОНА
D91: Инструктор | E91: 1 | F91: 15279 | H91: квалификация: 9 разряд опыт работы: рассматриваеться возможность без опыта работы образование: специально профессиональное специальность по образованию: педагогическое, физическоое медицинская книжка
D92: Музыкальный руководитель | E92: 1 | F92: 15279 | H92: квалификация: 8 разряд опыт работы: рассматривается возможность без опыта работы образование: специально профессиональное ключевые навыки: владение муз.инструментом методиками и приемами обучения
D93: Педагог дополнительного образования | E93: 1 | F93: 15279 | H93: квалификация: 9 разряд опыт работы: рассматривается возможность без опыта работы образование: специально профессиональное
C94: МБДОУ КРАСНОВСКИЙ ДЕТСКИЙ САД СОЛНЫШКО АДМИНИСТРАЦИИ ВОЛНОВАХСКОГО РАЙОНА
D95: Медицинская сестра | E95: 1 | F95: 15279 | H95: квалификация: 6 разряд опыт работы: рассматривается возможность без опыта образование: специальное профессиональное специальность по образованию: медицина ключевые навыки: оказание первой медицинской помощи
D96: Педагог-психолог | E96: 1 | F96: 15279 | H96: квалификация: 9 разряд опыт работы: рассматривается возможность без опыта работы ключевые навыки: владение психологическими методиками и приемами
C97: МУНИЦИПАЛЬНОЕ БЮДЖЕТНОЕ ОБРАЗОВАТЕЛЬНОЕ УЧРЕЖДЕНИЕ "НОВОТРОИЦКАЯ ШКОЛА №4"
D98: Медицинская сестра | E98: 1 | F98: 16242 | H98: Квалификация: да Опыт работы: не обязательно Образование: Техническое и выше Специальность по образованию: да Ученая степень(при наличии): нет Иные требования: нет
C99: МБДОУ ЗЛАТОУСТОВСКИЙ ЯСЛИ-САД КОЛОКОЛЬЧИК АДМИНИСТРАЦИИ ВОЛНОВАХСКОГО РАЙОНА
D100: Музыкальный руководитель | E100: 1 | F100: 15279 | H100: квалификация: 7 разряд опыт работы: рассматривается без опыта работы образование: специальное профессиональное специальность по образованию: музыкальный руководитель в ДОУ иные требования: высшее образование
D101: Педагог социальный | E101: 1 | F101: 15279 | H101: квалификация: 9 разряд опыт работы: рассматривается возможность без опыта работы образование: специально профессиональное медицинская книжка: да иные требования: высшее образование
C102: МБОУ ВОЛЬНЕНСКАЯ ШКОЛА АДМИНИСТРАЦИИ ВОЛНОВАХСКОГО РАЙОНА
D103: Педагог социальный | E103: 1 | F103: 15279 | H103: квалификация: 10 разряд опыт работь: без опыта образованиее: высшее специалитет
B104: Итого | C104: =COUNTA(C70:C103) -> 9 | E104: =SUM(E70:E103) -> 23
A105: R | B105: Деятельность в области культуры, спорта, организации досуга и развлечений
A106: 91 | B106: Деятельность библиотек, архивов, музеев и прочих объектов культуры
C107: МУНИЦИПАЛЬНОЕ БЮДЖЕТНОЕ УЧРЕЖДЕНИЕ ВОЛНОВАХСКАЯ ЦЕНТРАЛЬНАЯ РАЙОННАЯ БИБЛИОТЕКА АДМИНИСТРАЦИИ ВОЛНОВАХСКОГО РАЙОНА
D108: Библиотекарь | E108: 3 | F108: 18407 | H108: Квалификация:8 разряд Опыт работы: рассматриваеться возможность без опыта работы Образование: специальное, высшее профессиональное Специальность по образованию: библиотекар педагог Медицинская книжка
B109: Итого | C109: =COUNTA(C105:C108) -> 1 | E109: =SUM(E105:E108) -> 3

Sheet Володарский РЦЗ
A5: Потребность, заявленная работодателями Володарского р-на, по состоянию на 01.04.2023
A6: Раздел/ код ОКВЭД | B6: Виды экономической деятельности | C6: Наименование ПОУ | D6: Название профессии/ специальности | E6: Количество свободных рабочих мест (вакантных должнлстей) (ед.) | F6: Размер заработной платы, указанный в вакансии от, руб. | G6: Размер заработной платы, указанный в вакансии до, руб. | H6: Требования
A7: 1 | B7: 2 | C7: 4 | D7: 5 | E7: 6 | F7: 7 | G7: 8 | H7: 9
A8: Всего | C8: 1 | E8: 1
A9: C | B9: Обрабатывающие производства
A10: 10 | B10: Производство пищевых продуктов
C11: ВОЛОДАРСКОЕ РАЙОННОЕ ПОТРЕБИТЕЛЬСКОЕ ОБЩЕСТВО
D12: Повар | E12: 1 | F12: 18000 | H12: Наличие образования и опыта работы, знание сроков и условий хранения продуктов, производство еды с соблюдением технологии приготовления и рецептуры блюд.
B13: Итого | C13: =COUNTA(C9:C12) -> 1 | E13: =SUM(E9:E12) -> 1

Sheet Новоазовский РЦЗ
A5: Потребность, заявленная работодателями Новоазовского р-на, по состоянию на 01.04.2023
A6: Раздел/ код ОКВЭД | B6: Виды экономической деятельности | C6: Наименование ПОУ | D6: Название профессии/ специальности | E6: Количество свободных рабочих мест (вакантных должнлстей) (ед.) | F6: Размер заработной платы, указанный в вакансии от, руб. | G6: Размер заработной платы, указанный в вакансии до, руб. | H6: Требования
A7: 1 | B7: 2 | C7: 3 | D7: 4 | E7: 5 | F7: 6 | G7: 7 | H7: 8
A8: Всего | C8: 10 | E8: 62
A9: A | B9: Сельское, лесное хозяйство, охота, рыболовство и рыбоводство
A10: 1 | B10: Растениеводство и животноводство, охота и предоставление соответствующих услуг в этих областях
C11: ООО НОВОАЗОВСКАЯ ПТИЦЕФАБРИКА
D12: Водитель автомобиля | E12: 3 | F12: 30000 | H12: Наличие медицинской книжки. Водительское удостоверение каториии А,В,С, D. Наличие сертификата нарколога и психолога.
D13: Птицевод | E13: 3 | F13: 30000 | H13: Наличие медицинской книжки.
D14: Птицевод | E14: 4 | F14: 30000 | H14: Квота. Для лиц с инвалидностью.
D15: Слесарь-ремонтник | E15: 3 | F15: 25000 | H15: Наличие медицинской книжки.
B16: Итого | C16: =COUNTA(C9:C15) -> 1 | E16: =SUM(E9:E15) -> 13
A17: C | B17: Обрабатывающие производства
A18: 10 | B18: Производство пищевых продуктов
C19: ООО РОССИЯ НОВА
D20: Подсобный рабочий | E20: 1 | F20: 16242 | H20: Наличие медицинской книжки
B21: Итого | C21: =COUNTA(C17:C20) -> 1 | E21: =SUM(E17:E20) -> 1
A22: D | B22: Обеспечение электрической энергией, газом и паром; кондиционирование воздуха
A23: 35 | B23: Обеспечение электрической энергией, газом и паром; кондиционирование воздуха
C24: ГОСУДАРСТВЕННОЕ УНИТАРНОЕ ПРЕДПРИЯТИЕ ДОНЕЦКОЙ НАРОДНОЙ РЕСПУБЛИКИ ДОНБАССТЕПЛОЭНЕРГО
D25: Аппаратчик химводоочистки | E25: 2 | F25: 17154 | H25: Наличие удостоверения аппаратчика химводоочистки, предварительного медицинского осмотра, сертификатов нарколога и психиатра.
D26: Водитель автомобиля | E26: 1 | F26: 20585 | H26: Наличие предварительного медицинского осмотра, справки на право управления автомобилем, сертификаты нарколога, психиатра.
D27: Инженер | E27: 1 | F27: 40130 | H27: Наличие профессионально-технического или инженернр-строительного образования, предварительного медицинского осмотра.
D28: Инженер по промышленной безопасности | E28: 1 | F28: 29835 | H28: Предварительный медицинский осмотр
D29: Контролер-учетчик | E29: 1 | F29: 19695 | H29: Наличие предварительного медицинского осмотра
D30: Мастер | E30: 1 | F30: 36100 | H30: Мастер 2 группы; организаторские навыки; знание ПК, владение Word, Excel; предварительный медицинский осмотр
D31: Оператор диспетчерской (производственно-диспетчерской) службы | E31: 1 | F31: 21630 | H31: Знание ПК, владение Word, Excel. Предварительный медицинский осмотр. Наличие сертификатов нарколога, психолога.
D32: Оператор котельной | E32: 3 | F32: 17154 | G32: 19391 | H32: Наличие предварительного медицинского осмотра, сертификатов нарколога и психиатра; удостоверение оператора котельной.
D33: Слесарь по контрольноизмерительным приборам и автоматике | E33: 2 | F33: 21630 | H33: Наличие предварительного медицинского осмотра, сертификатов нарколога, психиатра.
D34: Слесарь по ремонту автомобилей | E34: 1 | F34: 23687 | H34: Знание: - Назначение, устройство и правила применение ручного слесарно-монтажного, пневматического и электрического инструмента, универсальных и специальных приспособлений. - Технология проведения с
D35: Слесарь по ремонту оборудования тепловых сетей | E35: 1 | F35: 21630 | H35: Наличие первичного медицинского осмотра, сертификатов нарколога, психиатра.
D36: Слесарь по эксплуатации и ремонту газового оборудования | E36: 1 | F36: 21630 | H36: Наличие первичного медицинского осмотра, сертификатов психиатра и нарколога.
D37: Тракторист | E37: 1 | F37: 22971 | H37: Наличие предварительного медицинского осмотра, справки на право управления, сертификаты нарколога, психиатра. Наличие водительского удостоверения тракториста-машиниста, умение управлять различными ви
C38: ГОСУДАРСТВЕННЫЙ КОНЦЕРН ДОНБАССГАЗ
D39: Бухгалтер | E39: 1 | F39: 31565 | H39: Навыки пользования программы Microsoft Office, 1С Предприятие. Наличие медицинской книжки.
D40: Кассир | E40: 1 | F40: 29725 | H40: Наличие медицинской книжки. Знание кассового аппарата.
D41: Монтер по защите подземных трубопроводов от коррозии | E41: 1 | F41: 28374 | H41: Опыт работы не менее одного года по профессии с более низким (предыдущим) разрядом. Допуск III группы по электробезопасности. Умение наносить изоляционное покрытие, размещать установки катодной защиты
D42: Слесарь по эксплуатации и ремонту газового оборудования | E42: 1 | F42: 24214 | H42: Опыт работы не менее одного года по профессии с более низким (предыдущим) разрядом. Производить ремонт газового оборудования жилых домов, КБО и пуску газа на обьектах, знать способы и правила врезок
D43: Слесарь по эксплуатации и ремонту подземных газопроводов | E43: 2 | F43: 24214 | H43: Опыт работы не менее одного года по профессии с более низким (предыдущим) разрядом. Иметь навыки установки уплотнительных муфт на газопроводах всех диаметров и давлений; знание устройства и правил
D44: Слесарь по эксплуатации и ремонту подземных газопроводов | E44: 1 | F44: 19203 | H44: Наличие медицинской книжки.
D45: Слесарь-электрик по ремонту электрооборудования | E45: 1 | F45: 26718 | H45: Наличие медицинской книжки. Наличие 4-й группы допуска по электробезопасности, действующего свидетельства о присвоении (повышении) рабочей квалификации Слесарь-электрик по ремонту электрооборудования
D46: Электрогазосварщик | E46: 1 | F46: 25714 | H46: Наличие медицинской книжки. Действующие свидетельство о присвоении (повышении) рабочей квалификации - электрогазосварщик.
D47: Юрисконсульт | E47: 1 | F47: 20540 | H47: Знание законодательства и нормативно-правовых актов РФ, ДНР. Наличие медицинской книжки.
B48: Итого | C48: =COUNTA(C22:C47) -> 2 | E48: =SUM(E22:E47) -> 27
A49: L | B49: Деятельность по операциям с недвижимым имуществом
A50: 68 | B50: Операции с недвижимым имуществом
C51: МУП УНИВЕРСАЛ-НОВСЕРВИС АДМИНИСТРАЦИИ НОВОАЗОВСКОГО РАЙОНА
D52: Грузчик | E52: 7 | F52: 16242 | H52: Карта предварительного медицинского осмотра
B53: Итого | C53: =COUNTA(C49:C52) -> 1 | E53: =SUM(E49:E52) -> 7
A54: O | B54: Государственное управление и обеспечение военной безопасности; социальное обеспечение
A55: 84 | B55: Деятельность органов государственного управления по обеспечению военной безопасности, обязательному социальному обеспечению
C56: ГБУ УПРАВЛЕНИЕ ПЕНСИОННОГО ФОНДА ДОНЕЦКОЙ НАРОДНОЙ РЕСПУБЛИКИ В НОВОАЗОВСКОМ РАЙОНЕ
D57: Главный специалист | E57: 5 | F57: 22000 | H57: Наличие сертификата психиатра, нарколога
D58: Специалист | E58: 5 | F58: 20000 | H58: Наличие сертификатов психиатра, нарколога
B59: Итого | C59: =COUNTA(C54:C58) -> 1 | E59: =SUM(E54:E58) -> 10
A60: P | B60: Образование
A61: 85 | B61: Образование
C62: МБОУ МИТЬКОВО-КАЧКАРСКАЯ ШКОЛА АДМИНИСТРАЦИИ НОВОАЗОВСКОГО РАЙОНА
D63: Медицинская сестра | E63: 1 | F63: 4060 | H63: Наличие медицинской книжки, сертификатов нарколога и психиатра.
C64: МБОУ САМОЙЛОВСКАЯ ШКОЛА АДМИНИСТРАЦИИ НОВОАЗОВСКОГО РАЙОНА
D65: Медицинская сестра | E65: 1 | F65: 4060 | H65: Наличие медицинской книжки, сертификатов нарколога и психиатра
C66: МБОУ НОВОАЗОВСКАЯ ШКОЛА №3 АДМИНИСТРАЦИИ НОВОАЗОВСКОГО РАЙОНА
D67: Медицинская сестра | E67: 1 | F67: 16242 | H67: Наличие медицинской книжки. Наличие сертификатов психиатра, нарколога.
B68: Итого | C68: =COUNTA(C60:C67) -> 3 | E68: =SUM(E60:E67) -> 3
A69: Q | B69: Деятельность в области здравоохранения и социальных услуг
A70: 87 | B70: Деятельность по уходу с обеспечением проживания
C71: МУНИЦИПАЛЬНОЕ БЮДЖЕТНОЕ УЧРЕЖДЕНИЕ ТЕРРИТОРИАЛЬНЫЙ ЦЕНТР СОЦИАЛЬНОГО ОБСЛУЖИВАНИЯ(ПРЕДОСТАВЛЕНИЯ СОЦИАЛЬНЫХ УСЛУГ) НОВОАЗОВСКОГО РАЙОНА
D72: Инженер по охране труда | E72: 1 | F72: 8803 | H72: Наличие медицинского осмотра. Способности к обучению.
B73: Итого | C73: =COUNTA(C69:C72) -> 1 | E73: =SUM(E69:E72) -> 1

Sheet Першотравневый РЦЗ
A5: Потребность, заявленная работодателями Першотравневого р-на, по состоянию на 01.04.2023
A6: Раздел/ код ОКВЭД | B6: Виды экономической деятельности | C6: Наименование ПОУ | D6: Название профессии/ специальности | E6: Количество свободных рабочих мест (вакантных должнлстей) (ед.) | F6: Размер заработной платы, указанный в вакансии от, руб. | G6: Размер заработной платы, указанный в вакансии до, руб. | H6: Требования | I6: Задолженность (тыс.руб)
A7: 1 | B7: 2 | C7: 3 | D7: 4 | E7: 5 | F7: 6 | G7: 7 | H7: 8 | I7: 9
A8: Всего | C8: 5 | E8: 9
A9: E | B9: Водоснабжение; водоотведение, организация сбора и утилизации отходов, деятельность по ликвидации загрязнений
A10: 36 | B10: Забор, очистка и распределение воды
C11: МУНИЦИПАЛЬНОЕ УНИТАРНОЕ ПРЕДПРИЯТИЕ МАНГУШСКОЕ УПРАВЛЕНИЕ КОММУНАЛЬНЫМИ ПРЕДПРИЯТИЯМИ АДМИНИСТРАЦИИ ПЕРШОТРАВНЕВОГО РАЙОНА | I11: 6766.2
D12: Приемщик сырья | E12: 1 | F12: 16300
D13: Слесарь аварийно-восстановительных работ | E13: 1 | F13: 16300 | H13: Знание технических характеристик и принципа работы специализированной аппаратуры. Опыт работы от 1 года
B14: Итого | C14: =COUNTA(C9:C13) -> 1 | E14: =SUM(E9:E13) -> 2
A15: O | B15: Государственное управление и обеспечение военной безопасности; социальное обеспечение
A16: 84 | B16: Деятельность органов государственного управления по обеспечению военной безопасности, обязательному социальному обеспечению
C17: ГБУ УПРАВЛЕНИЕ ПЕНСИОННОГО ФОНДА ДОНЕЦКОЙ НАРОДНОЙ РЕСПУБЛИКИ В ПЕРШОТРАВНЕВОМ РАЙОНЕ
D18: Главный специалист | E18: 3 | F18: 16500 | H18: Знание законов и иных нормативных и правовых актов по направлению деятельности отдела ; знание основ управления и организация труда, норм делового общения, форм и методов работы
D19: Специалист | E19: 1 | F19: 16400
B20: Итого | C20: =COUNTA(C15:C19) -> 1 | E20: =SUM(E15:E19) -> 4
A21: P | B21: Образование
A22: 85 | B22: Образование
C23: МБОУ МАНГУШСКАЯ ШКОЛА №2 АДМИНИСТРАЦИИ ПЕРШОТРАВНЕВОГО РАЙОНА
D24: Дворник | E24: 1 | F24: 16300
B25: Итого | C25: =COUNTA(C21:C24) -> 1 | E25: =SUM(E21:E24) -> 1
A26: Q | B26: Деятельность в области здравоохранения и социальных услуг
A27: 86 | B27: Деятельность в области здравоохранения
C28: ГБУ МАНГУШСКАЯ ЦЕНТРАЛЬНАЯ РАЙОННАЯ БОЛЬНИЦА
D29: Медицинская сестра | E29: 1 | F29: 16300 | H29: Медицинская сестра должен знать: основы лечебно-диагностического процесса, профилактики заболеваний
A30: 88 | B30: Предоставление социальных услуг без обеспечения проживания
C31: МУНИЦИПАЛЬНОЕ БЮДЖЕТНОЕ УЧРЕЖДЕНИЕ ТЕРРИТОРИАЛЬНЫЙ ЦЕНТР СОЦИАЛЬНОГО ОБСЛУЖИВАНИЯ (ПРЕДОСТАВЛЕНИЯ СОЦИАЛЬНЫХ УСЛУГ) ПЕРШОТРАВНЕВОГО РАЙОНА
D32: Социальный работник | E32: 1 | F32: 16300
B33: Итого | C33: =COUNTA(C26:C32) -> 2 | E33: =SUM(E26:E32) -> 2

Sheet Старобешевский РЦЗ
A5: Потребность, заявленная работодателями Старобешевского р-на, по состоянию на 01.04.2023
A6: Раздел/ код ОКВЭД | B6: Виды экономической деятельности | C6: Наименование ПОУ | D6: Название профессии/ специальности | E6: Количество свободных рабочих мест (вакантных должнлстей) (ед.) | F6: Размер заработной платы, указанный в вакансии от, руб. | G6: Размер заработной платы, указанный в вакансии до, руб. | H6: Требования
A7: 1 | B7: 2 | C7: 3 | D7: 4 | E7: 5 | F7: 6 | G7: 7 | H7: 8
A8: Всего | C8: 45 | E8: 168
A9: A | B9: Сельское, лесное хозяйство, охота, рыболовство и рыбоводство
A10: 1 | B10: Растениеводство и животноводство, охота и предоставление соответствующих услуг в этих областях
C11: СЕЛЬСКОХОЗЯЙСТВЕННОЕ ООО ИМ. ФРУНЗЕ
D12: Водитель автомобиля | E12: 2 | F12: 18000 | H12: Соблюдение правил и норм по охране труда. Наличие медицинской книжки. Водительское удостоверение.
D13: Начальник (заведующий) гаража | E13: 1 | F13: 20000 | H13: Правила и нормы охраны труда. Наличие медицинской книжки, водительское удостоверение.
D14: Оператор машинного доения | E14: 2 | F14: 18000 | H14: Помощь специалистам при проведении ветеринарных мероприятий. Наличие медицинской книжки.
D15: Оператор по искусственному осеменению животных и птицы | E15: 1 | F15: 17000 | H15: Знание правил и норм по охране труда
D16: Продавец продовольственных товаров | E16: 2 | F16: 18000 | H16: Наличие медицинской книжки
D17: Слесарь-ремонтник | E17: 1 | F17: 16500 | H17: Без вредных привычек
C18: ООО АГРОФИРМА ГОРНЯК
D19: Водитель автомобиля | E19: 3 | F19: 16242 | H19: Опыт работы в с/х
D20: Тракторист-машинист сельскохозяйственного производства | E20: 4 | F20: 16242 | H20: Опыт работы в с/х
C21: ООО АГРОФИРМА ЗАРЯ
D22: Оператор машинного доения | E22: 1 | F22: 25000 | H22: Наличие санитарной книжки.
B23: Итого | C23: =COUNTA(C9:C22) -> 3 | E23: =SUM(E9:E22) -> 17
A24: D | B24: Обеспечение электрической энергией, газом и паром; кондиционирование воздуха
A25: 35 | B25: Обеспечение электрической энергией, газом и паром; кондиционирование воздуха
C26: ГОСУДАРСТВЕННОЕ УНИТАРНОЕ ПРЕДПРИЯТИЕ ДОНЕЦКОЙ НАРОДНОЙ РЕСПУБЛИКИ ДОНБАССТЕПЛОЭНЕРГО
D27: Аппаратчик химводоочистки | E27: 1 | F27: 17154 | H27: Удостоверение аппаратчика химводоочистки
D28: Водитель автомобиля | E28: 1 | F28: 20585 | H28: Наличие водительского удостоверения категории В,С.
D29: Контролер контрольно-пропускного пункта | E29: 1 | F29: 17154 | H29: Внимательность, ориентация на клиента, опыт работы с людьми.
D30: Мастер | E30: 1 | F30: 36100 | H30: Организаторские навыки.
D31: Машинист крана автомобильного | E31: 1 | F31: 28515 | H31: Уметь управлять автомобильным кранам при подъеме, перемещении и опускании грузов и т.д.
D32: Оператор котельной | E32: 1 | F32: 17154 | H32: Наличие удостоверения оператора котельной.
D33: Оператор котельной | E33: 1 | F33: 21630 | H33: Умение оценивать степень аварийности обстановки и незамедлительно принимать экстренные меры
D34: Слесарь по ремонту оборудования тепловых сетей | E34: 2 | F34: 19391 | G34: 21630 | H34: Опыт ремонта и обслуживания производственного оборудования.
D35: Слесарь по эксплуатации и ремонту газового оборудования | E35: 1 | F35: 21630 | H35: Обслуживание и ремонт ГРТ, ГРУ газового оборудования.
D36: Тракторист | E36: 1 | F36: 22971 | H36: Наличие водительского удостоверения тракториста-машиниста.
D37: Уборщик производственных и служебных помещений | E37: 1 | F37: 16412 | H37: Безопасное применение бытовой химии.
D38: Электрогазосварщик | E38: 2 | F38: 22971 | G38: 28515 | H38: Сварка сложных деталей, узлов конструкций и трубопроводов, во всех пространственных положениях сварного шва.
C39: ГОСУДАРСТВЕННЫЙ КОНЦЕРН ДОНБАССГАЗ
D40: Водитель автомобиля | E40: 1 | F40: 23044 | H40: Знание правила дорожного движения РФ, виды ответсвенности за их нарушение.
D41: Инженер-энергетик | E41: 1 | F41: 29835 | H41: Определение мест размещения и характеристик основных электропотребителей на объекте капитального строительства.
D42: Мастер | E42: 1 | F42: 36550 | H42: Читать техническую документацию общего и специализированного назначения. Определять нарушения прокладки газопроводов в составе сети газопотребления.
D43: Слесарь по эксплуатации и ремонту газового оборудования | E43: 12 | F43: 19391 | G43: 23867 | H43: Читать техническую документацию общего и специализированного назначения. Определять места утечек газа. Применять ручной и механизированный инструмент, приспособления.
D44: Слесарь по эксплуатации и ремонту подземных газопроводов | E44: 7 | F44: 17154 | G44: 21630 | H44: Читать схемы,карты,чертежи и техническую документацию общего и специализированного назначения. Оценивать состояние трубопроводов,монтажных узлов при проведении продувки,опрессовки.
D45: Электрогазосварщик | E45: 2 | F45: 25347
D46: Электромонтер по ремонту и обслуживанию электрооборудования | E46: 1 | F46: 21630 | H46: Группа по электробезопасности не ниже III. Читать техническую документацию общего и специализированного назначения.
C47: МУНИЦИПАЛЬНОЕ УНИТАРНОЕ ПРЕДПРИЯТИЕ СТАРОБЕШЕВСКОЕ
D48: Главный бухгалтер | E48: 1 | F48: 29300 | H48: Знание бухгалтерского учета.
D49: Экономист по планированию | E49: 1 | F49: 23973 | H49: Ответсвенное отношение к работе.
B50: Итого | C50: =COUNTA(C24:C49) -> 3 | E50: =SUM(E24:E49) -> 41
A51: L | B51: Деятельность по операциям с недвижимым имуществом
A52: 68 | B52: Операции с недвижимым имуществом
C53: КОММУНАЛЬНОЕ ПРЕДПРИЯТИЕ КОМСОМОЛЬСКОЕ ГОРОДСКОЕ ДОМОУПРАВЛЕНИЕ
D54: Дворник | E54: 3 | F54: 16242 | H54: Уборка придомовой территории.
D55: Монтажник санитарно-технических систем и оборудования | E55: 3 | F55: 17522 | H55: Знание систем отопления, водоснабжения МКД.
D56: Электрогазосварщик | E56: 3 | F56: 17522 | H56: Умение проводить электро и газосварочные работы.
D57: Электромонтер по ремонту и обслуживанию электрооборудования | E57: 3 | F57: 17522 | H57: Наличие 3 группы допуска по электробезопасности.
B58: Итого | C58: =COUNTA(C51:C57) -> 1 | E58: =SUM(E51:E57) -> 12
A59: O | B59: Государственное управление и обеспечение военной безопасности; социальное обеспечение
A60: 84 | B60: Деятельность органов государственного управления по обеспечению военной безопасности, обязательному социальному обеспечению
C61: УПРАВЛЕНИЕ ОБРАЗОВАНИЯ АДМИНИСТРАЦИИ СТАРОБЕШЕВСКОГО РАЙОНА
D62: Методист | E62: 3 | F62: 27336 | H62: Владение ПК
C63: ГБУ СТАРОБЕШЕВСКИЙ РАЙОННЫЙ ЦЕНТР ЗАНЯТОСТИ
D64: Специалист | E64: 1 | F64: 16242 | H64: Знание бухгалтерского учета.
D65: Специалист | E65: 3 | F65: 16242 | H65: Организаторские способности, контактное общение.
D66: Сторож (вахтер) | E66: 1 | F66: 16242 | H66: Ответственное отношение к работе.
B67: Итого | C67: =COUNTA(C59:C66) -> 2 | E67: =SUM(E59:E66) -> 8
A68: P | B68: Образование
A69: 85 | B69: Образование
C70: МБОУ СТАРОБЕШЕВСКАЯ ШКОЛА № 2 АДМИНИСТРАЦИИ СТАРОБЕШЕВСКОГО РАЙОНА
D71: Библиотекарь | E71: 1 | F71: 16242 | H71: Наличие медицинской книжки
D72: Дворник | E72: 1 | F72: 16242 | H72: Наличие медицинской книжки
D73: Медицинская сестра | E73: 1 | F73: 18407 | H73: Наличие медицинской книжки
D74: Педагог-организатор | E74: 1 | F74: 20424 | H74: Ответственность
D75: Секретарь руководителя | E75: 1 | F75: 16242 | H75: Ответственность
C76: ГОСУДАРСТВЕННОЕ БЮДЖЕТНОЕ ПРОФЕССИОНАЛЬНОЕ ОБРАЗОВАТЕЛЬНОЕ УЧРЕЖДЕНИЕ КОМСОМОЛЬСКИЙ ИНДУСТРИАЛЬНЫЙ ТЕХНИКУМ
D77: Бухгалтер | E77: 1 | F77: 25000 | H77: Знание нормативной базы в области оплаты труда и налогообложения заработной платы.
C78: МБДОУ МАРЬЯНОВСКИЙ ЯСЛИ-САД РАДУГА СТАРОБЕШЕВСКОГО РАЙОНА
D79: Воспитатель | E79: 1 | F79: 22466 | H79: Владение ПК
D80: Медицинская сестра | E80: 1 | F80: 19972 | H80: Умение организовывать медицинскую, санитарно-просветительскую работу в образовательных организациях
C81: МБДОУ КОМБИНИРОВАННОГО ТИПА КОМСОМОЛЬСКИЙ ЯСЛИ-САД СКАЗКА СТАРОБЕШЕВСКОГО РАЙОНА
D82: Воспитатель | E82: 1 | F82: 16242 | H82: Владение методиками дошкольного образования.
D83: Дворник | E83: 1 | F83: 16242 | H83: Работоспособность,активность,обязательность.
D84: Музыкальный руководитель | E84: 1 | F84: 24813 | H84: Умение развивать музыкальные способности и эмоциональную сферу,творческую деятельность воспитанников.
C85: МБДОУ КОМСОМОЛЬСКИЙ ЯСЛИ-САД ТОПОЛЕК СТАРОБЕШЕВСКОГО РАЙОНА
D86: Воспитатель | E86: 1 | F86: 16242 | H86: Наличие медицинской книжки
D87: Воспитатель детского сада (яслей-сада) | E87: 1 | F87: 16242 | H87: Высокий уровень владения ПК
D88: Воспитатель детского сада (яслей-сада) | E88: 1 | F88: 16289 | H88: Наличие медицинской книжки.
D89: Машинист по стирке и ремонту спецодежды | E89: 1 | F89: 16242 | H89: Наличие медицинской книжки
D90: Рабочий по комплексному обслуживанию и ремонту зданий | E90: 1 | F90: 16242 | H90: Монтаж,Ю демонтаж и текущий ремонт электрическмх сетей.
D91: Слесарь-электрик по ремонту электрооборудования | E91: 1 | F91: 16242 | H91: Наличие медицинской книжки.
C92: ГОСУДАРСТВЕННОЕ БЮДЖЕТНОЕ ПРОФЕССИОНАЛЬНОЕ ОБРАЗОВАТЕЛЬНОЕ УЧРЕЖДЕНИЕ КОМСОМОЛЬСКИЙ МНОГОПРОФИЛЬНЫЙ ТЕХНИКУМ
D93: Главный бухгалтер | E93: 1 | F93: 18283 | H93: Знание законодательства о бухгалтерском учете.
C94: ГОСУДАРСТВЕННОЕ БЮДЖЕТНОЕ ПРОФЕССИОНАЛЬНОЕ ОБРАЗОВАТЕЛЬНОЕ УЧРЕЖДЕНИЕ СТАРОБЕШЕВСКИЙ МНОГОПРОФИЛЬНЫЙ ТЕХНИКУМ
D95: Главный бухгалтер | E95: 1 | F95: 24448 | H95: Понимание стандартов бухгалтерского учета.
D96: Заведующий хозяйством | E96: 1 | F96: 18407 | H96: Коммуникабельность, ответственность.
D97: Инженер-электроник | E97: 1 | F97: 16242 | H97: Знание компьютера
D98: Мастер производственного обучения | E98: 2 | F98: 23787 | H98: Коммуникабельность. Наличие квалификации по профессии Мастер по обработке цыфровой информации
D99: Паспортист | E99: 1 | F99: 16301 | H99: Осуществляет работу по организационно-техническому обеспечению административно-распорядительной деятельности руководителя организации
D100: Педагог-психолог | E100: 1 | F100: 23787 | H100: Ораторские способности,знание современных методов обучения
D101: Преподаватель (в колледжах, университетах и других вузах) | E101: 2 | F101: 23762 | G101: 25806 | H101: Ораторские способности, знание современных методов обучения, ответственность.
D102: Фельдшер | E102: 1 | F102: 20424 | H102: Ответственность при выполнении должностных обязанностей
C103: МБДОУ НОВОСВЕТСКИЙ ЯСЛИ-САД БЕРЕЗКА СТАРОБЕШЕВСКОГО РАЙОНА
D104: Дворник | E104: 1 | F104: 16242 | H104: Умение ухаживать за садовыми растениями.
C105: МБДОУ СТЫЛЬСКИЙ ДЕТСКИЙ САД СОЛНЫШКО СТАРОБЕШЕВСКОГО РАЙОНА
D106: Дворник | E106: 1 | F106: 16242 | H106: Ответственное отношение к работе.
C107: МБОУ СТАРОБЕШЕВСКАЯ ШКОЛА № 1 АДМИНИСТРАЦИИ СТАРОБЕШЕВСКОГО РАЙОНА
D108: Дворник | E108: 1 | F108: 16242 | H108: Наличие медицинской книжки.
D109: Лаборант | E109: 1 | F109: 16242 | H109: Наличие санитарной книжки
D110: Психолог | E110: 1 | F110: 16242 | H110: Наличие медицинской книжки
D111: Уборщик производственных и служебных помещений | E111: 3 | F111: 16242 | H111: Наличие медицинской книжки.
C112: МБДОУ ОСЫКОВСКИЙ ЯСЛИ-САД КОЛОСОК СТАРОБЕШЕВСКОГО РАЙОНА
D113: Заведующий хозяйством | E113: 1 | F113: 22181 | H113: Наличие медицинской книжки
D114: Сторож (вахтер) | E114: 1 | F114: 18883 | H114: Паспорт РФ
C115: МБДОУ СТАРОБЕШЕВСКИЙ ЯСЛИ-САД УЛЫБКА СТАРОБЕШЕВСКОГО РАЙОНА
D116: Заведующий хозяйством | E116: 1 | F116: 18407 | H116: Владение ПК.
D117: Повар | E117: 1 | F117: 16242 | H117: Участие в составлении меню на каждый день.
C118: МБОУ НОВОСВЕТСКАЯ ШКОЛА № 2 АДМИНИСТРАЦИИ СТАРОБЕШЕВСКОГО РАЙОНА
D119: Заведующий хозяйством | E119: 1 | F119: 18407 | H119: Наличие санитарной книжки, ответсвенное отношение к работе.
D120: Кладовщик | E120: 1 | F120: 16242 | H120: Навыки работы на компьютере.
D121: Медицинская сестра | E121: 1 | F121: 16506 | H121: Ответственное отношение к работе.
D122: Секретарь руководителя | E122: 1 | F122: 16242 | H122: Навыки работы на компьютере.
D123: Уборщик производственных и служебных помещений | E123: 3 | F123: 16242 | H123: Наличие санитарной книжки.
C124: МБДОУ РОДНИКОВСКИЙ ЯСЛИ-САД РОДНИЧОК СТАРОБЕШЕВСКОГО РАЙОНА
D125: Заведующий хозяйством | E125: 1 | F125: 16242 | H125: Наличие мединской книжки.
D126: Машинист по стирке и ремонту спецодежды | E126: 1 | F126: 16242 | H126: Наличие медицинской книжки.
C127: МБДОУ РАЗДОЛЬНЕНСКИЙ ЯСЛИ-САД ЗОЛОТОЙ ПЕТУШОК СТАРОБЕШЕВСКОГО РАЙОНА
D128: Инструктор по физической культуре | E128: 1 | F128: 16242 | H128: Наличие медицинской книжки
D129: Слесарь-электрик по ремонту электрооборудования | E129: 1 | F129: 16242 | H129: Наличие медицинской книжки
C130: МБОУ СОЛНЦЕВСКАЯ ШКОЛА АДМИНИСТРАЦИИ СТАРОБЕШЕВСКОГО РАЙОНА
D131: Медицинская сестра | E131: 1 | F131: 16242 | H131: Навыки работы на компьютере
C132: МБОУ ВАСИЛЬЕВСКАЯ ШКОЛА АДМИНИСТРАЦИИ СТАРОБЕШЕВСКОГО РАЙОНА
D133: Медицинская сестра | E133: 1 | F133: 16242 | H133: Наличие медицинской книжки
D134: Педагог-организатор | E134: 1 | F134: 16242 | H134: Навыки работы в детском коллективе, владение ИКТ
C135: МБОУ НОВОЗАРЬЕВСКАЯ ШКОЛА АДМИНИСТРАЦИИ СТАРОБЕШЕВСКОГО РАЙОНА
D136: Медицинская сестра | E136: 1 | F136: 24038 | H136: Организация и работа по проведению медицинских профилактических осмотров и скрининг-обследований обучающихся.
C137: МБОУ ПРИДОРОЖНЕНСКАЯ ШКОЛА АДМИНИСТРАЦИИ СТАРОБЕШЕВСКОГО РАЙОНА
D138: Медицинская сестра | E138: 1 | F138: 16242 | H138: Умение оказывать первую медицинскую помощь.
D139: Секретарь учебной части (диспетчер) | E139: 1 | F139: 16242 | H139: Культура общения.
C140: МБОУ НОВОКАТЕРИНОВСКАЯ ШКОЛА АДМИНИСТРАЦИИ СТАРОБЕШЕВСКОГО РАЙОНА
D141: Медицинская сестра | E141: 1 | F141: 16242 | H141: Ответственность при выполнении должностных обязанностей
C142: МБДОУ НОВОСВЕТСКИЙ ЯСЛИ-САД МАЛЫШ СТАРОБЕШЕВСКОГО РАЙОНА
D143: Медицинская сестра | E143: 1 | F143: 16500 | H143: Оказание первой медицинской помощи.
C144: МБОУ НОВОСЕЛОВСКАЯ ШКОЛА АДМИНИСТРАЦИИ СТАРОБЕШЕВСКОГО РАЙОНА
D145: Медицинская сестра | E145: 1 | F145: 16242 | H145: Наличие медицинской книжки
C146: МБДОУ КОММУНАРОВСКИЙ ЯСЛИ-САД ЛАДА СТАРОБЕШЕВСКОГО РАЙОНА
D147: Медицинская сестра | E147: 1 | F147: 16242 | H147: Умение найти подход к детям
C148: МБОУ КОММУНАРОВСКАЯ ШКОЛА АДМИНИСТРАЦИИ СТАРОБЕШЕВСКОГО РАЙОНА
D149: Медицинская сестра | E149: 1 | F149: 16242 | H149: Оказание первой медицинской помощи
D150: Учитель | E150: 1 | F150: 19828 | H150: Планировать и осуществлять учебный процесс в соответствии с основной образовательной программой школы
C151: МБДОУ НОВОСВЕТСКИЙ ЯСЛИ-САД РОМАШКА СТАРОБЕШЕВСКОГО РАЙОНА
D152: Медицинская сестра | E152: 1 | F152: 16242 | H152: Организация питания. Наличие сертификатов психиатра и нарколога.
C153: МУНИЦИПАЛЬНОЕ БЮДЖЕТНОЕ УЧРЕЖДЕНИЕ ДОПОЛНИТЕЛЬНОГО ОБРАЗОВАНИЯ АДМИНИСТРАЦИИ СТАРОБЕШЕВСКОГО РАЙОНА СТАРОБЕШЕВСКИЙ РАЙОННЫЙ ДОМ ДЕТСКОГО И ЮНОШЕСКОГО ТВОРЧЕСТВА
D154: Педагог дополнительного образования | E154: 1 | F154: 17607 | H154: Умение выявлять творческие способности обучающихся,воспитанников,способствовать их развитию.
C155: МБОУ НОВОСВЕТСКАЯ ШКОЛА № 1 АДМИНИСТРАЦИИ СТАРОБЕШЕВСКОГО РАЙОНА
D156: Педагог-организатор | E156: 1 | F156: 16242 | H156: Руководствоваться Конституцией и законами ДНР, указами Главы Республики
D157: Преподаватель (в средней школе) | E157: 1 | F157: 16242 | H157: Руководствоваться Законом ДНР Об образовании решениями Правительства ДНР и органов управления образования всех уровней по вопросам образования и воспитания учащихся
C158: МБДОУ КОМБИНИРОВАННОГО ТИПА КОМСОМОЛЬСКИЙ ЯСЛИ-САД ЗОЛОТОЙ КЛЮЧИК СТАРОБЕШЕВСКОГО РАЙОНА
D159: Помощник воспитателя | E159: 1 | F159: 16300 | H159: Наличие санитарной книжки.
D160: Учитель-логопед | E160: 1 | F160: 18579 | H160: Умение организовывать коррекционную,компенсационную,реабилитационную работу с детьми,которые имеют недостатки в речевом развитии. Наличие медицинской книжки. Наличие сертификата психиатрического осв
C161: МУНИЦИПАЛЬНОЕ БЮДЖЕТНОЕ УЧРЕЖДЕНИЕ ДОПОЛНИТЕЛЬНОГО ОБРАЗОВАНИЯ СТАРОБЕШЕВСКАЯ ШКОЛА ИСКУССТВ
D162: Преподаватель (в системе специального образования) | E162: 1 | F162: 19074 | H162: Знание основ циркового искусства, методики обучения и воспитания, программы по предмету, основы педагогики т психологии.
C163: МУНИЦИПАЛЬНОЕ БЮДЖЕТНОЕ УЧРЕЖДЕНИЕ ДОПОЛНИТЕЛЬНОГО ОБРАЗОВАНИЯ НОВОСВЕТСКАЯ ДЕТСКАЯ МУЗЫКАЛЬНАЯ ШКОЛА
D164: Преподаватель (в системе специального образования) | E164: 1 | F164: 16242 | H164: Ответсвенное отношение к работе.
C165: МУНИЦИПАЛЬНОЕ БЮДЖЕТНОЕ УЧРЕЖДЕНИЕ АДМИНИСТРАЦИИ СТАРОБЕШЕВСКОГО РАЙОНА СТАРОБЕШЕВСКАЯ РАЙОННАЯ ДЕТСКО-ЮНОШЕСКАЯ СПОРТИВНАЯ ШКОЛА
D166: Тренер | E166: 1 | F166: 16242 | H166: Способность организовать учебный процесс.
C167: МБОУ ПЕТРОВСКАЯ ШКОЛА АДМИНИСТРАЦИИ СТАРОБЕШЕВСКОГО РАЙОНА
D168: Электромонтер по ремонту и обслуживанию электрооборудования | E168: 1 | F168: 16242 | H168: Навыки работы с электрооборудованием
B169: Итого | C169: =COUNTA(C68:C168) -> 32 | E169: =SUM(E68:E168) -> 73
A170: Q | B170: Деятельность в области здравоохранения и социальных услуг
A171: 86 | B171: Деятельность в области здравоохранения
C172: ГБУ КОМСОМОЛЬСКАЯ ГОРОДСКАЯ БОЛЬНИЦА СТАРОБЕШЕВСКОГО РАЙОНА
D173: Врач | E173: 1 | F173: 29305 | H173: Тактичность и умение выстраивать доверительные отношения с пациентом. Наличие медицинской книжки.
D174: Врач | E174: 1 | F174: 31238 | H174: Методы лабораторных и инструментальных исследований для диагностики заболеваний уха,горла,носа
D175: Врач-стоматолог | E175: 1 | F175: 25483 | H175: Умение работать со специальным инструментом, изучение новых технологий
D176: Рабочий по комплексному обслуживанию и ремонту зданий | E176: 1 | F176: 17000 | H176: Без вредных привычек
C177: ГБУ ЦЕНТР ПЕРВИЧНОЙ МЕДИКО-САНИТАРНОЙ ПОМОЩИ СТАРОБЕШЕВСКОГО РАЙОНА
D178: Врач общей практики (семейный) | E178: 2 | F178: 17629 | H178: Наличие медицинской книжки
A179: 87 | B179: Деятельность по уходу с обеспечением проживания
C180: ГБУ НОВОСВЕТСКИЙ ПСИХОНЕВРОЛОГИЧЕСКИЙ ИНТЕРНАТ
D181: Младшая медицинская сестра по уходу за больными | E181: 3 | F181: 16242 | G181: 21644 | H181: Медицинская книжка Ответсвенное отношение к работе.
A182: 88 | B182: Предоставление социальных услуг без обеспечения проживания
C183: МУНИЦИПАЛЬНОЕ БЮДЖЕТНОЕ УЧРЕЖДЕНИЕ ТЕРРИТОРИАЛЬНЫЙ ЦЕНТР СОЦИАЛЬНОГО ОБСЛУЖИВАНИЯ (ПРЕДОСТАВЛЕНИЯ СОЦИАЛЬНЫХ УСЛУГ) АДМИНИСТРАЦИИ СТАРОБЕШЕВСКОГО РАЙОНА
D184: Заведующий отделением (в прочих отраслях) | E184: 1 | F184: 23787 | H184: Наличие медицинской книжки
D185: Медицинская сестра | E185: 2 | F185: 16506 | H185: Наличие медицинской книжки
D186: Социальный работник | E186: 4 | F186: 16506 | H186: Наличие медицинской книжки
D187: Электромонтер по ремонту и обслуживанию электрооборудования | E187: 1 | F187: 16242 | H187: Наличие медицинской книжки
B188: Итого | C188: =COUNTA(C170:C187) -> 4 | E188: =SUM(E170:E187) -> 17

Sheet Тельмановский РЦЗ
A5: Потребность, заявленная работодателями Тельмановского р-на, по состоянию на 01.04.2023
A6: Раздел/ код ОКВЭД | B6: Виды экономической деятельности | C6: Наименование ПОУ | D6: Название профессии/ специальности | E6: Количество свободных рабочих мест (вакантных должнлстей) (ед.) | F6: Размер заработной платы от | G6: Размер заработной платы до | H6: Требования
A7: 1 | B7: 2 | C7: 3 | D7: 4 | E7: 5 | F7: 6 | G7: 7 | H7: 8
A8: Всего | C8: 9 | E8: 57
A9: C | B9: Обрабатывающие производства
A10: 23 | B10: Производство прочей неметаллической минеральной продукции
C11: ООО КАРАНСКИЙ КАРЬЕР
D12: Водитель автомобиля | E12: 24 | F12: 40000 | H12: Наличие водительского удостоверения
D13: Машинист бульдозера | E13: 3 | F13: 45000
B14: Итого | C14: =COUNTA(C9:C13) -> 1 | E14: =SUM(E9:E13) -> 27
A15: D | B15: Обеспечение электрической энергией, газом и паром; кондиционирование воздуха
A16: 35 | B16: Обеспечение электрической энергией, газом и паром; кондиционирование воздуха
C17: ГОСУДАРСТВЕННОЕ УНИТАРНОЕ ПРЕДПРИЯТИЕ ДОНЕЦКОЙ НАРОДНОЙ РЕСПУБЛИКИ ДОНБАССТЕПЛОЭНЕРГО
D18: Контролер контрольно-пропускного пункта | E18: 1 | F18: 17154 | H18: Внимательность, ориентация на клиента, опыт работы с людьми. Коммуникабельность, ответственность. Предварительный медицинский осмотр.Сертификаты:нарколог, психолог.
D19: Машинист (кочегар) котельной | E19: 7 | F19: 18218 | H19: Стаж по профессии не менее 0,5 года. Наличие удостоверения машиниста(кочегара) котельной. Навыки в обслуживании водогрейных и паровых котлов с соблюдением нормативов времени и мер предосторожности.
D20: Оператор котельной | E20: 1 | F20: 19391 | H20: Стаж по профессии не менее 0,5 года. Удостоверение оператора котельной. Навыки в обслуживании водогрейных и паровых котлов с соблюдением нормативов времени и мер предосторожности.
D21: Слесарь по контрольноизмерительным приборам и автоматике | E21: 1 | F21: 31504 | H21: Ремонт, регулировка, наладка счетных, автоматических приборов. Работа с технической документацией. Предварительный медицинский осмотр. Сертификаты: нарколог, психолог.
D22: Слесарь по ремонту оборудования котельных и пылеприготовительных цехов | E22: 2 | F22: 21630 | H22: Наличие удостоверения слесаря по ремонту оборудования котельных. Навыки в установке и наладке оборудования. Ремонт производственного оборудования.
D23: Слесарь по ремонту оборудования котельных и пылеприготовительных цехов | E23: 1 | F23: 25090 | H23: Наличие удостоверения слесаря по ремонту оборудования котельных. Навыки в установке и наладке оборудования, ремонт производственного оборудования. Первичный медицинский осмотр. Наличие сертификатов:нарколог, психолог.
D24: Слесарь по ремонту оборудования тепловых сетей | E24: 1 | F24: 20090 | H24: Первичный медицинский осмотр. Наличие сертификатов:нарколог, психолог.
D25: Слесарь по эксплуатации и ремонту газового оборудования | E25: 1 | F25: 25088 | H25: Обслуживание и ремонт ГРП, ГРУ газового оборудования. Ремонт газового оборудования как внутри, так и снаружи. Первичный медицинский осмотр. Сертификаты: нарколог, психолог.
D26: Тракторист | E26: 1 | F26: 18218 | H26: Специальность по образованию машинист-тракторист. Наличие удостоверения категории А машинистра-тракториста, водительское удостоверение катерии В. Умение управлять разными видами тракторной техники.
B27: Итого | C27: =COUNTA(C15:C26) -> 1 | E27: =SUM(E15:E26) -> 16
A28: O | B28: Государственное управление и обеспечение военной безопасности; социальное обеспечение
A29: 84 | B29: Деятельность органов государственного управления по обеспечению военной безопасности, обязательному социальному обеспечению
C30: ГБУ ТЕЛЬМАНОВСКИЙ РАЙОННЫЙ ЦЕНТР ЗАНЯТОСТИ
D31: Специалист | E31: 2 | F31: 16242 | H31: Специальность по образованию экономист, бкхгалтер.
D32: Специалист | E32: 1 | F32: 16242 | H32: Специальность по образованию психолог, педагог.
B33: Итого | C33: =COUNTA(C28:C32) -> 1 | E33: =SUM(E28:E32) -> 3
A34: P | B34: Образование
A35: 85 | B35: Образование
C36: МБДОУ БОГДАНОВСКИЙ ДЕТСКИЙ САД СОЛНЫШКО АДМИНИСТРАЦИИ ТЕЛЬМАНОВСКОГО РАЙОНА
D37: Заведующий хозяйством | E37: 1 | F37: 16242 | H37: Ответственность, пунктуальность.
C38: МБОУ НОВОСЕЛОВСКАЯ ШКОЛА АДМИНИСТРАЦИИ ТЕЛЬМАНОВСКОГО РАЙОНА
D39: Медицинская сестра | E39: 1 | F39: 16242 | H39: Наличие медицинской книжки, сертификатов.
C40: МБДОУ ТЕЛЬМАНОВСКИЙ ЯСЛИ-САД КОМБИНИРОВАНННОГО ТИПА КАТЮША АДМИНИСТРАЦИИ ТЕЛЬМАНОВСКОГО РАЙОНА
D41: Музыкальный руководитель | E41: 1 | F41: 16242 | H41: Наличие медицинской книжки.
D42: Повар | E42: 1 | F42: 16242 | H42: Исполнительность, ответственность.
C43: МУНИЦИПАЛЬНОЕ БЮДЖЕТНОЕ УЧРЕЖДЕНИЕ ТЕЛЬМАНОВСКАЯ РАЙОННАЯ ДЕТСКО-ЮНОШЕСКАЯ СПОРТИВНАЯ ШКОЛА
D44: Тренер | E44: 4 | F44: 18579 | H44: Наличие медицинской книжкой.
D45: Уборщик производственных и служебных помещений | E45: 1 | F45: 16242 | H45: Наличие медицинской книжки.
C46: МБОУ АНДРЕЕВСКАЯ ШКОЛА АДМИНИСТРАЦИИ ТЕЛЬМАНОВСКОГО РАЙОНА
D47: Учитель | E47: 1 | F47: 16289 | H47: Наличие медицинской книжки.
C48: МБОУ ТЕЛЬМАНОВСКАЯ ГИМНАЗИЯ АДМИНИСТРАЦИИ ТЕЛЬМАНОВСКОГО РАЙОНА
D49: Электромонтер по ремонту и обслуживанию электрооборудования | E49: 1 | F49: 16242 | H49: Знание основ электротехники, навыки работы с электрооборудованием и специальным инструментом, знание техники безопасности.
B50: Итого | C50: =COUNTA(C34:C49) -> 6 | E50: =SUM(E34:E49) -> 11
